Workbook

Sheet Data Input Instructions (hidden)
A3: Worksheet ID | B3: Worksheet | C3: Input Data Notes
A4: 1 | B4: Data Current Rates | C4: R2 Service Charge should already be net of RRRP credit
A5: 1 | B5: Data Current Rates | C5: Demand billed RTSR should already be loss adjusted
A6: 2 | B6: Data Proposed Rates | C6: Mapped from Draft Rates file prepared for Claude
A7: 2 | B7: Data Proposed Rates | C7: Row 5 with header name TEXT is precedent to templates; changes to TEXT need to reflected in templates
A8: 2 | B8: Data Proposed Rates | C8: Templates are set up with 2-dimension vlookups so it will accommodate inserted/deleted rows and/or columns
A9: 3 | B9: Data Billing Quantities | C9: Row 4 with header name TEXT is precedent to templates; changes to TEXT need to reflected in templates
A10: 3 | B10: Data Billing Quantities | C10: Templates are set up with 2-dimension vlookups so it will accommodate inserted/deleted rows and/or columns
A11: 4 | B11: Data Pass Through | C11: Changes to Pass Through rates can be manually input on this sheet, which is precedent to the templates
A12: 4 | B12: Data Pass Through | C12: Links to templates from Column A TEXT; any changes in the TEXT of the charge names must be reflected in the templates
A13: 5 | B13: Data BI List | C13: Instruction Sheet for macro to create individual bill impact worksheets
A14: 5 | B14: Data BI List | C14: Need to MANUALLY update Test Year to appear as header on all bill impact worksheets
A15: 6 | B15: Data BI Summary | C15: This replaces the need for cell references in summary sheet, and displays value for totals so rows can be added to templates and worksheets without having to update the summary sheet
B16: Bill Impact Summary | C16: This file has 2 hidden columns needed to link to worksheets; see Col E and F

Sheet Data Current Rates (hidden)
A1: 2021 Rates
A3: 1 | B3: 2 | C3: 3 | D3: 4 | E3: 5 | J3: 6 | K3: 7 | L3: 8 | M3: 9 | N3: 10 | Q3: 11 | R3: 12
A4: Rate Description | B4: Fixed Charge ($/month) | C4: Current Variable Charge ($/kWh or $/kW) | D4: Current Foregone Revenue Riders Fixed ($/month) | E4: Current Volumetric Foregone Revenue Rider | F4: Fixed Charge + Fixed Foregone | G4: Volumetric Charge + Volumetric Foregone | J4: Current Def/VA rate rider Fixed ($/month) | K4: Current Def/VA rate rider Volumetric ($/kWh or $/kW) | L4: Vol VA Rider ($/kWh or $/kW) Non WMP | M4: Current Rate Rider for CBR (Non-WMP Class B) ($/kWh or $/kW) | N4: Current Rate Rider for Disposition of Global Adjustment (Non WMP, Non-RPP, Non-LDC, and Class B) ($/kWh) | Q4: Current RTSR-NW ($/kWh or $/kW) | R4: Current RTSR-CONN ($/kWh or $/kW)
A5: Rate as shown on Bill Impact Sheet | B5: Service Charge | C5: Distribution Volumetric Charge | D5: Fixed Foregone Revenue Charge | E5: Volumetric Foregone Revenue Charge | F5: Fixed Service Charge | G5: Dx Volumetric Charge | H5: Fixed Base Rate Adjustment to Recover Misallocated Tax Savings | I5: Volumetric Base Rate Adjustment to Recover Misallocated Tax Savings | J5: Fixed Deferral/Variance Account Rider (General) | K5: Volumetric Deferral/Variance Account Rider (General) | L5: Volumetric Deferral/Variance Account Rider (Sub-Account RSVA Wholesale Market Service Charge & RSVA Power) - ST only | M5: Volumetric Deferral/Variance Account Rider (Sub Account CBR) | N5: Volumetric Deferral/Variance Account Rider (Sub-Account Global Adjustment) | O5: Fixed ESM Rider | P5: Volumetric ESM Rider | Q5: Retail Transmission Rate – Network Service Rate | R5: Retail Transmission Rate – Line and Transformation Connection Service Rate
A6: UR | B6: =VLOOKUP($A6,'[1]Data Proposed Rates'!$A:$AX,MATCH(B$5,[1]!ProposedHeader,0),FALSE) -> 35.92 | C6: =VLOOKUP($A6,'[1]Data Proposed Rates'!$A:$AX,MATCH(C$5,[1]!ProposedHeader,0),FALSE) -> 0 | D6: =VLOOKUP($A6,'[1]Data Proposed Rates'!$A:$AX,MATCH(D$5,[1]!ProposedHeader,0),FALSE) -> 0 | E6: =VLOOKUP($A6,'[1]Data Proposed Rates'!$A:$AX,MATCH(E$5,[1]!ProposedHeader,0),FALSE) -> 0 | F6: =ROUND(SUM(B6,D6),2) -> 35.92 | G6: =ROUND(SUM(C6,E6),4) -> 0 | H6: 0 | I6: 0 | J6: =VLOOKUP($A6,'[1]Data Proposed Rates'!$A:$AX,MATCH(J$5,[1]!ProposedHeader,0),FALSE) -> -0.14 | K6: =VLOOKUP($A6,'[1]Data Proposed Rates'!$A:$AX,MATCH(K$5,[1]!ProposedHeader,0),FALSE) -> -0.0007 | L6: =VLOOKUP($A6,'[1]Data Proposed Rates'!$A:$AX,MATCH(L$5,[1]!ProposedHeader,0),FALSE) -> 0 | M6: =VLOOKUP($A6,'[1]Data Proposed Rates'!$A:$AX,MATCH(M$5,[1]!ProposedHeader,0),FALSE) ->  | N6: =VLOOKUP($A6,'[1]Data Proposed Rates'!$A:$AX,MATCH(N$5,[1]!ProposedHeader,0),FALSE) -> -0.0039 | O6: =VLOOKUP($A6,'[1]Data Proposed Rates'!$A:$AX,MATCH(O$5,[1]!ProposedHeader,0),FALSE) -> -0.5 | P6: =VLOOKUP($A6,'[1]Data Proposed Rates'!$A:$AX,MATCH(P$5,[1]!ProposedHeader,0),FALSE) -> 0 | Q6: =VLOOKUP($A6,'[1]Data Proposed Rates'!$A:$AX,MATCH(Q$5,[1]!ProposedHeader,0),FALSE) -> 0.0089 | R6: =VLOOKUP($A6,'[1]Data Proposed Rates'!$A:$AX,MATCH(R$5,[1]!ProposedHeader,0),FALSE) -> 0.0077
A7: R1 | B7: =VLOOKUP($A7,'[1]Data Proposed Rates'!$A:$AX,MATCH(B$5,[1]!ProposedHeader,0),FALSE) -> 49.04 | C7: =VLOOKUP($A7,'[1]Data Proposed Rates'!$A:$AX,MATCH(C$5,[1]!ProposedHeader,0),FALSE) -> 0.0141 | D7: =VLOOKUP($A7,'[1]Data Proposed Rates'!$A:$AX,MATCH(D$5,[1]!ProposedHeader,0),FALSE) -> 0 | E7: =VLOOKUP($A7,'[1]Data Proposed Rates'!$A:$AX,MATCH(E$5,[1]!ProposedHeader,0),FALSE) -> 0 | F7: =ROUND(SUM(B7,D7),2) -> 49.04 | G7: =ROUND(SUM(C7,E7),4) -> 0.0141 | H7: 0 | I7: 0 | J7: =VLOOKUP($A7,'[1]Data Proposed Rates'!$A:$AX,MATCH(J$5,[1]!ProposedHeader,0),FALSE) -> -0.14 | K7: =VLOOKUP($A7,'[1]Data Proposed Rates'!$A:$AX,MATCH(K$5,[1]!ProposedHeader,0),FALSE) -> -0.0008 | L7: =VLOOKUP($A7,'[1]Data Proposed Rates'!$A:$AX,MATCH(L$5,[1]!ProposedHeader,0),FALSE) -> 0 | M7: =VLOOKUP($A7,'[1]Data Proposed Rates'!$A:$AX,MATCH(M$5,[1]!ProposedHeader,0),FALSE) ->  | N7: =VLOOKUP($A7,'[1]Data Proposed Rates'!$A:$AX,MATCH(N$5,[1]!ProposedHeader,0),FALSE) -> -0.0039 | O7: =VLOOKUP($A7,'[1]Data Proposed Rates'!$A:$AX,MATCH(O$5,[1]!ProposedHeader,0),FALSE) -> -0.85 | P7: =VLOOKUP($A7,'[1]Data Proposed Rates'!$A:$AX,MATCH(P$5,[1]!ProposedHeader,0),FALSE) -> 0 | Q7: =VLOOKUP($A7,'[1]Data Proposed Rates'!$A:$AX,MATCH(Q$5,[1]!ProposedHeader,0),FALSE) -> 0.0082 | R7: =VLOOKUP($A7,'[1]Data Proposed Rates'!$A:$AX,MATCH(R$5,[1]!ProposedHeader,0),FALSE) -> 0.0073
A8: R2 | B8: =VLOOKUP($A8,'[1]Data Proposed Rates'!$A:$AX,MATCH(B$5,[1]!ProposedHeader,0),FALSE) -> 53.14 | C8: =VLOOKUP($A8,'[1]Data Proposed Rates'!$A:$AX,MATCH(C$5,[1]!ProposedHeader,0),FALSE) -> 0.0227 | D8: =VLOOKUP($A8,'[1]Data Proposed Rates'!$A:$AX,MATCH(D$5,[1]!ProposedHeader,0),FALSE) -> 0 | E8: =VLOOKUP($A8,'[1]Data Proposed Rates'!$A:$AX,MATCH(E$5,[1]!ProposedHeader,0),FALSE) -> 0 | F8: 53.14 | G8: 0.0227 | H8: 0 | I8: 0 | J8: =VLOOKUP($A8,'[1]Data Proposed Rates'!$A:$AX,MATCH(J$5,[1]!ProposedHeader,0),FALSE) -> -0.14 | K8: =VLOOKUP($A8,'[1]Data Proposed Rates'!$A:$AX,MATCH(K$5,[1]!ProposedHeader,0),FALSE) -> -0.0011 | L8: =VLOOKUP($A8,'[1]Data Proposed Rates'!$A:$AX,MATCH(L$5,[1]!ProposedHeader,0),FALSE) -> 0 | M8: =VLOOKUP($A8,'[1]Data Proposed Rates'!$A:$AX,MATCH(M$5,[1]!ProposedHeader,0),FALSE) ->  | N8: =VLOOKUP($A8,'[1]Data Proposed Rates'!$A:$AX,MATCH(N$5,[1]!ProposedHeader,0),FALSE) -> -0.0039 | O8: =VLOOKUP($A8,'[1]Data Proposed Rates'!$A:$AX,MATCH(O$5,[1]!ProposedHeader,0),FALSE) -> -1.92 | P8: =VLOOKUP($A8,'[1]Data Proposed Rates'!$A:$AX,MATCH(P$5,[1]!ProposedHeader,0),FALSE) -> 0 | Q8: =VLOOKUP($A8,'[1]Data Proposed Rates'!$A:$AX,MATCH(Q$5,[1]!ProposedHeader,0),FALSE) -> 0.0077 | R8: =VLOOKUP($A8,'[1]Data Proposed Rates'!$A:$AX,MATCH(R$5,[1]!ProposedHeader,0),FALSE) -> 0.0068
A9: Seasonal | B9: =VLOOKUP($A9,'[1]Data Proposed Rates'!$A:$AX,MATCH(B$5,[1]!ProposedHeader,0),FALSE) -> 50.72 | C9: =VLOOKUP($A9,'[1]Data Proposed Rates'!$A:$AX,MATCH(C$5,[1]!ProposedHeader,0),FALSE) -> 0.0441 | D9: =VLOOKUP($A9,'[1]Data Proposed Rates'!$A:$AX,MATCH(D$5,[1]!ProposedHeader,0),FALSE) -> 0 | E9: =VLOOKUP($A9,'[1]Data Proposed Rates'!$A:$AX,MATCH(E$5,[1]!ProposedHeader,0),FALSE) -> 0 | F9: 50.72 | G9: 0.0441 | H9: 0 | I9: 0 | J9: =VLOOKUP($A9,'[1]Data Proposed Rates'!$A:$AX,MATCH(J$5,[1]!ProposedHeader,0),FALSE) -> -0.14 | K9: =VLOOKUP($A9,'[1]Data Proposed Rates'!$A:$AX,MATCH(K$5,[1]!ProposedHeader,0),FALSE) -> -0.0023 | L9: =VLOOKUP($A9,'[1]Data Proposed Rates'!$A:$AX,MATCH(L$5,[1]!ProposedHeader,0),FALSE) -> 0 | M9: =VLOOKUP($A9,'[1]Data Proposed Rates'!$A:$AX,MATCH(M$5,[1]!ProposedHeader,0),FALSE) ->  | N9: =VLOOKUP($A9,'[1]Data Proposed Rates'!$A:$AX,MATCH(N$5,[1]!ProposedHeader,0),FALSE) -> -0.0039 | O9: =VLOOKUP($A9,'[1]Data Proposed Rates'!$A:$AX,MATCH(O$5,[1]!ProposedHeader,0),FALSE) -> -0.9 | P9: =VLOOKUP($A9,'[1]Data Proposed Rates'!$A:$AX,MATCH(P$5,[1]!ProposedHeader,0),FALSE) -> 0 | Q9: =VLOOKUP($A9,'[1]Data Proposed Rates'!$A:$AX,MATCH(Q$5,[1]!ProposedHeader,0),FALSE) -> 0.0064 | R9: =VLOOKUP($A9,'[1]Data Proposed Rates'!$A:$AX,MATCH(R$5,[1]!ProposedHeader,0),FALSE) -> 0.0061
A10: GSe | B10: =VLOOKUP($A10,'[1]Data Proposed Rates'!$A:$AX,MATCH(B$5,[1]!ProposedHeader,0),FALSE) -> 32.48 | C10: =VLOOKUP($A10,'[1]Data Proposed Rates'!$A:$AX,MATCH(C$5,[1]!ProposedHeader,0),FALSE) -> 0.0642 | D10: =VLOOKUP($A10,'[1]Data Proposed Rates'!$A:$AX,MATCH(D$5,[1]!ProposedHeader,0),FALSE) -> 0 | E10: =VLOOKUP($A10,'[1]Data Proposed Rates'!$A:$AX,MATCH(E$5,[1]!ProposedHeader,0),FALSE) -> 0 | F10: 32.48 | G10: 0.0642 | H10: 0 | I10: 0 | J10: =VLOOKUP($A10,'[1]Data Proposed Rates'!$A:$AX,MATCH(J$5,[1]!ProposedHeader,0),FALSE) -> -0.14 | K10: =VLOOKUP($A10,'[1]Data Proposed Rates'!$A:$AX,MATCH(K$5,[1]!ProposedHeader,0),FALSE) -> -0.0007 | L10: =VLOOKUP($A10,'[1]Data Proposed Rates'!$A:$AX,MATCH(L$5,[1]!ProposedHeader,0),FALSE) -> 0 | M10: =VLOOKUP($A10,'[1]Data Proposed Rates'!$A:$AX,MATCH(M$5,[1]!ProposedHeader,0),FALSE) ->  | N10: =VLOOKUP($A10,'[1]Data Proposed Rates'!$A:$AX,MATCH(N$5,[1]!ProposedHeader,0),FALSE) -> -0.0039 | O10: =VLOOKUP($A10,'[1]Data Proposed Rates'!$A:$AX,MATCH(O$5,[1]!ProposedHeader,0),FALSE) -> -0.45 | P10: =VLOOKUP($A10,'[1]Data Proposed Rates'!$A:$AX,MATCH(P$5,[1]!ProposedHeader,0),FALSE) -> -0.0009 | Q10: =VLOOKUP($A10,'[1]Data Proposed Rates'!$A:$AX,MATCH(Q$5,[1]!ProposedHeader,0),FALSE) -> 0.0065 | R10: =VLOOKUP($A10,'[1]Data Proposed Rates'!$A:$AX,MATCH(R$5,[1]!ProposedHeader,0),FALSE) -> 0.0056
A11: UGe | B11: =VLOOKUP($A11,'[1]Data Proposed Rates'!$A:$AX,MATCH(B$5,[1]!ProposedHeader,0),FALSE) -> 25.59 | C11: =VLOOKUP($A11,'[1]Data Proposed Rates'!$A:$AX,MATCH(C$5,[1]!ProposedHeader,0),FALSE) -> 0.0306 | D11: =VLOOKUP($A11,'[1]Data Proposed Rates'!$A:$AX,MATCH(D$5,[1]!ProposedHeader,0),FALSE) -> 0 | E11: =VLOOKUP($A11,'[1]Data Proposed Rates'!$A:$AX,MATCH(E$5,[1]!ProposedHeader,0),FALSE) -> 0 | F11: 25.59 | G11: 0.0306 | H11: 0 | I11: 0 | J11: =VLOOKUP($A11,'[1]Data Proposed Rates'!$A:$AX,MATCH(J$5,[1]!ProposedHeader,0),FALSE) -> -0.14 | K11: =VLOOKUP($A11,'[1]Data Proposed Rates'!$A:$AX,MATCH(K$5,[1]!ProposedHeader,0),FALSE) -> -0.0003 | L11: =VLOOKUP($A11,'[1]Data Proposed Rates'!$A:$AX,MATCH(L$5,[1]!ProposedHeader,0),FALSE) -> 0 | M11: =VLOOKUP($A11,'[1]Data Proposed Rates'!$A:$AX,MATCH(M$5,[1]!ProposedHeader,0),FALSE) ->  | N11: =VLOOKUP($A11,'[1]Data Proposed Rates'!$A:$AX,MATCH(N$5,[1]!ProposedHeader,0),FALSE) -> -0.0039 | O11: =VLOOKUP($A11,'[1]Data Proposed Rates'!$A:$AX,MATCH(O$5,[1]!ProposedHeader,0),FALSE) -> -0.36 | P11: =VLOOKUP($A11,'[1]Data Proposed Rates'!$A:$AX,MATCH(P$5,[1]!ProposedHeader,0),FALSE) -> -0.0004 | Q11: =VLOOKUP($A11,'[1]Data Proposed Rates'!$A:$AX,MATCH(Q$5,[1]!ProposedHeader,0),FALSE) -> 0.007 | R11: =VLOOKUP($A11,'[1]Data Proposed Rates'!$A:$AX,MATCH(R$5,[1]!ProposedHeader,0),FALSE) -> 0.0057
A12: St Lgt | B12: =VLOOKUP($A12,'[1]Data Proposed Rates'!$A:$AX,MATCH(B$5,[1]!ProposedHeader,0),FALSE) -> 3.5 | C12: =VLOOKUP($A12,'[1]Data Proposed Rates'!$A:$AX,MATCH(C$5,[1]!ProposedHeader,0),FALSE) -> 0.1071 | D12: =VLOOKUP($A12,'[1]Data Proposed Rates'!$A:$AX,MATCH(D$5,[1]!ProposedHeader,0),FALSE) -> 0 | E12: =VLOOKUP($A12,'[1]Data Proposed Rates'!$A:$AX,MATCH(E$5,[1]!ProposedHeader,0),FALSE) -> 0 | F12: 3.5 | G12: 0.1071 | H12: 0 | I12: 0 | J12: =VLOOKUP($A12,'[1]Data Proposed Rates'!$A:$AX,MATCH(J$5,[1]!ProposedHeader,0),FALSE) -> 0 | K12: =VLOOKUP($A12,'[1]Data Proposed Rates'!$A:$AX,MATCH(K$5,[1]!ProposedHeader,0),FALSE) -> -0.0009 | L12: =VLOOKUP($A12,'[1]Data Proposed Rates'!$A:$AX,MATCH(L$5,[1]!ProposedHeader,0),FALSE) -> 0 | M12: =VLOOKUP($A12,'[1]Data Proposed Rates'!$A:$AX,MATCH(M$5,[1]!ProposedHeader,0),FALSE) ->  | N12: =VLOOKUP($A12,'[1]Data Proposed Rates'!$A:$AX,MATCH(N$5,[1]!ProposedHeader,0),FALSE) -> -0.0039 | O12: =VLOOKUP($A12,'[1]Data Proposed Rates'!$A:$AX,MATCH(O$5,[1]!ProposedHeader,0),FALSE) -> -0.05 | P12: =VLOOKUP($A12,'[1]Data Proposed Rates'!$A:$AX,MATCH(P$5,[1]!ProposedHeader,0),FALSE) -> -0.0015 | Q12: =VLOOKUP($A12,'[1]Data Proposed Rates'!$A:$AX,MATCH(Q$5,[1]!ProposedHeader,0),FALSE) -> 0.0054 | R12: =VLOOKUP($A12,'[1]Data Proposed Rates'!$A:$AX,MATCH(R$5,[1]!ProposedHeader,0),FALSE) -> 0.0036
A13: Sen Lgt | B13: =VLOOKUP($A13,'[1]Data Proposed Rates'!$A:$AX,MATCH(B$5,[1]!ProposedHeader,0),FALSE) -> 2.86 | C13: =VLOOKUP($A13,'[1]Data Proposed Rates'!$A:$AX,MATCH(C$5,[1]!ProposedHeader,0),FALSE) -> 0.1556 | D13: =VLOOKUP($A13,'[1]Data Proposed Rates'!$A:$AX,MATCH(D$5,[1]!ProposedHeader,0),FALSE) -> 0 | E13: =VLOOKUP($A13,'[1]Data Proposed Rates'!$A:$AX,MATCH(E$5,[1]!ProposedHeader,0),FALSE) -> 0 | F13: 2.86 | G13: 0.1556 | H13: 0 | I13: 0 | J13: =VLOOKUP($A13,'[1]Data Proposed Rates'!$A:$AX,MATCH(J$5,[1]!ProposedHeader,0),FALSE) -> 0 | K13: =VLOOKUP($A13,'[1]Data Proposed Rates'!$A:$AX,MATCH(K$5,[1]!ProposedHeader,0),FALSE) -> -0.0021 | L13: =VLOOKUP($A13,'[1]Data Proposed Rates'!$A:$AX,MATCH(L$5,[1]!ProposedHeader,0),FALSE) -> 0 | M13: =VLOOKUP($A13,'[1]Data Proposed Rates'!$A:$AX,MATCH(M$5,[1]!ProposedHeader,0),FALSE) ->  | N13: =VLOOKUP($A13,'[1]Data Proposed Rates'!$A:$AX,MATCH(N$5,[1]!ProposedHeader,0),FALSE) -> -0.0039 | O13: =VLOOKUP($A13,'[1]Data Proposed Rates'!$A:$AX,MATCH(O$5,[1]!ProposedHeader,0),FALSE) -> -0.04 | P13: =VLOOKUP($A13,'[1]Data Proposed Rates'!$A:$AX,MATCH(P$5,[1]!ProposedHeader,0),FALSE) -> -0.0022 | Q13: =VLOOKUP($A13,'[1]Data Proposed Rates'!$A:$AX,MATCH(Q$5,[1]!ProposedHeader,0),FALSE) -> 0.0054 | R13: =VLOOKUP($A13,'[1]Data Proposed Rates'!$A:$AX,MATCH(R$5,[1]!ProposedHeader,0),FALSE) -> 0.0037
A14: USL | B14: =VLOOKUP($A14,'[1]Data Proposed Rates'!$A:$AX,MATCH(B$5,[1]!ProposedHeader,0),FALSE) -> 37.58 | C14: =VLOOKUP($A14,'[1]Data Proposed Rates'!$A:$AX,MATCH(C$5,[1]!ProposedHeader,0),FALSE) -> 0.0251 | D14: =VLOOKUP($A14,'[1]Data Proposed Rates'!$A:$AX,MATCH(D$5,[1]!ProposedHeader,0),FALSE) -> 0 | E14: =VLOOKUP($A14,'[1]Data Proposed Rates'!$A:$AX,MATCH(E$5,[1]!ProposedHeader,0),FALSE) -> 0 | F14: 37.58 | G14: 0.0251 | H14: 0 | I14: 0 | J14: =VLOOKUP($A14,'[1]Data Proposed Rates'!$A:$AX,MATCH(J$5,[1]!ProposedHeader,0),FALSE) -> 0 | K14: =VLOOKUP($A14,'[1]Data Proposed Rates'!$A:$AX,MATCH(K$5,[1]!ProposedHeader,0),FALSE) -> 0.0001 | L14: =VLOOKUP($A14,'[1]Data Proposed Rates'!$A:$AX,MATCH(L$5,[1]!ProposedHeader,0),FALSE) -> 0 | M14: =VLOOKUP($A14,'[1]Data Proposed Rates'!$A:$AX,MATCH(M$5,[1]!ProposedHeader,0),FALSE) ->  | N14: =VLOOKUP($A14,'[1]Data Proposed Rates'!$A:$AX,MATCH(N$5,[1]!ProposedHeader,0),FALSE) -> -0.0039 | O14: =VLOOKUP($A14,'[1]Data Proposed Rates'!$A:$AX,MATCH(O$5,[1]!ProposedHeader,0),FALSE) -> -0.53 | P14: =VLOOKUP($A14,'[1]Data Proposed Rates'!$A:$AX,MATCH(P$5,[1]!ProposedHeader,0),FALSE) -> -0.0004 | Q14: =VLOOKUP($A14,'[1]Data Proposed Rates'!$A:$AX,MATCH(Q$5,[1]!ProposedHeader,0),FALSE) -> 0.0054 | R14: =VLOOKUP($A14,'[1]Data Proposed Rates'!$A:$AX,MATCH(R$5,[1]!ProposedHeader,0),FALSE) -> 0.0046
A15: GSd | B15: =VLOOKUP($A15,'[1]Data Proposed Rates'!$A:$AX,MATCH(B$5,[1]!ProposedHeader,0),FALSE) -> 108.28 | C15: =VLOOKUP($A15,'[1]Data Proposed Rates'!$A:$AX,MATCH(C$5,[1]!ProposedHeader,0),FALSE) -> 18.3296 | D15: =VLOOKUP($A15,'[1]Data Proposed Rates'!$A:$AX,MATCH(D$5,[1]!ProposedHeader,0),FALSE) -> 0 | E15: =VLOOKUP($A15,'[1]Data Proposed Rates'!$A:$AX,MATCH(E$5,[1]!ProposedHeader,0),FALSE) -> 0 | F15: 108.28 | G15: 18.3296 | H15: 0 | I15: 0 | J15: =VLOOKUP($A15,'[1]Data Proposed Rates'!$A:$AX,MATCH(J$5,[1]!ProposedHeader,0),FALSE) -> 0 | K15: =VLOOKUP($A15,'[1]Data Proposed Rates'!$A:$AX,MATCH(K$5,[1]!ProposedHeader,0),FALSE) -> 0.0117 | L15: =VLOOKUP($A15,'[1]Data Proposed Rates'!$A:$AX,MATCH(L$5,[1]!ProposedHeader,0),FALSE) -> 0 | M15: =VLOOKUP($A15,'[1]Data Proposed Rates'!$A:$AX,MATCH(M$5,[1]!ProposedHeader,0),FALSE) ->  | N15: =VLOOKUP($A15,'[1]Data Proposed Rates'!$A:$AX,MATCH(N$5,[1]!ProposedHeader,0),FALSE) -> -0.0039 | O15: =VLOOKUP($A15,'[1]Data Proposed Rates'!$A:$AX,MATCH(O$5,[1]!ProposedHeader,0),FALSE) -> -1.52 | P15: =VLOOKUP($A15,'[1]Data Proposed Rates'!$A:$AX,MATCH(P$5,[1]!ProposedHeader,0),FALSE) -> -0.2555 | Q15: =VLOOKUP($A15,'[1]Data Proposed Rates'!$A:$AX,MATCH(Q$5,[1]!ProposedHeader,0),FALSE) -> 2.0421 | R15: =VLOOKUP($A15,'[1]Data Proposed Rates'!$A:$AX,MATCH(R$5,[1]!ProposedHeader,0),FALSE) -> 1.7006
A16: UGd | B16: =VLOOKUP($A16,'[1]Data Proposed Rates'!$A:$AX,MATCH(B$5,[1]!ProposedHeader,0),FALSE) -> 100.19 | C16: =VLOOKUP($A16,'[1]Data Proposed Rates'!$A:$AX,MATCH(C$5,[1]!ProposedHeader,0),FALSE) -> 10.5601 | D16: =VLOOKUP($A16,'[1]Data Proposed Rates'!$A:$AX,MATCH(D$5,[1]!ProposedHeader,0),FALSE) -> 0 | E16: =VLOOKUP($A16,'[1]Data Proposed Rates'!$A:$AX,MATCH(E$5,[1]!ProposedHeader,0),FALSE) -> 0 | F16: 100.19 | G16: 10.5601 | H16: 0 | I16: 0 | J16: =VLOOKUP($A16,'[1]Data Proposed Rates'!$A:$AX,MATCH(J$5,[1]!ProposedHeader,0),FALSE) -> 0 | K16: =VLOOKUP($A16,'[1]Data Proposed Rates'!$A:$AX,MATCH(K$5,[1]!ProposedHeader,0),FALSE) -> 0.1062 | L16: =VLOOKUP($A16,'[1]Data Proposed Rates'!$A:$AX,MATCH(L$5,[1]!ProposedHeader,0),FALSE) -> 0 | M16: =VLOOKUP($A16,'[1]Data Proposed Rates'!$A:$AX,MATCH(M$5,[1]!ProposedHeader,0),FALSE) ->  | N16: =VLOOKUP($A16,'[1]Data Proposed Rates'!$A:$AX,MATCH(N$5,[1]!ProposedHeader,0),FALSE) -> -0.0039 | O16: =VLOOKUP($A16,'[1]Data Proposed Rates'!$A:$AX,MATCH(O$5,[1]!ProposedHeader,0),FALSE) -> -1.4 | P16: =VLOOKUP($A16,'[1]Data Proposed Rates'!$A:$AX,MATCH(P$5,[1]!ProposedHeader,0),FALSE) -> -0.0004 | Q16: =VLOOKUP($A16,'[1]Data Proposed Rates'!$A:$AX,MATCH(Q$5,[1]!ProposedHeader,0),FALSE) -> 2.6172 | R16: =VLOOKUP($A16,'[1]Data Proposed Rates'!$A:$AX,MATCH(R$5,[1]!ProposedHeader,0),FALSE) -> 2.1608
A17: Dgen | B17: =VLOOKUP($A17,'[1]Data Proposed Rates'!$A:$AX,MATCH(B$5,[1]!ProposedHeader,0),FALSE) -> 195.54 | C17: =VLOOKUP($A17,'[1]Data Proposed Rates'!$A:$AX,MATCH(C$5,[1]!ProposedHeader,0),FALSE) -> 9.8163 | D17: =VLOOKUP($A17,'[1]Data Proposed Rates'!$A:$AX,MATCH(D$5,[1]!ProposedHeader,0),FALSE) -> 0 | E17: =VLOOKUP($A17,'[1]Data Proposed Rates'!$A:$AX,MATCH(E$5,[1]!ProposedHeader,0),FALSE) -> 0 | F17: 195.54 | G17: 9.8163 | H17: 0 | I17: 0 | J17: =VLOOKUP($A17,'[1]Data Proposed Rates'!$A:$AX,MATCH(J$5,[1]!ProposedHeader,0),FALSE) -> 0 | K17: =VLOOKUP($A17,'[1]Data Proposed Rates'!$A:$AX,MATCH(K$5,[1]!ProposedHeader,0),FALSE) -> -0.1359 | L17: =VLOOKUP($A17,'[1]Data Proposed Rates'!$A:$AX,MATCH(L$5,[1]!ProposedHeader,0),FALSE) -> 0 | M17: =VLOOKUP($A17,'[1]Data Proposed Rates'!$A:$AX,MATCH(M$5,[1]!ProposedHeader,0),FALSE) ->  | N17: =VLOOKUP($A17,'[1]Data Proposed Rates'!$A:$AX,MATCH(N$5,[1]!ProposedHeader,0),FALSE) -> -0.0039 | O17: =VLOOKUP($A17,'[1]Data Proposed Rates'!$A:$AX,MATCH(O$5,[1]!ProposedHeader,0),FALSE) -> -2.74 | P17: =VLOOKUP($A17,'[1]Data Proposed Rates'!$A:$AX,MATCH(P$5,[1]!ProposedHeader,0),FALSE) -> -0.1365 | Q17: =VLOOKUP($A17,'[1]Data Proposed Rates'!$A:$AX,MATCH(Q$5,[1]!ProposedHeader,0),FALSE) -> 0.9927 | R17: =VLOOKUP($A17,'[1]Data Proposed Rates'!$A:$AX,MATCH(R$5,[1]!ProposedHeader,0),FALSE) -> 0.8284
A18: ST | B18: =VLOOKUP($A18,'[1]Data Proposed Rates'!$A:$AX,MATCH(B$5,[1]!ProposedHeader,0),FALSE) -> 1312.3 | C18: =VLOOKUP($A18,'[1]Data Proposed Rates'!$A:$AX,MATCH(C$5,[1]!ProposedHeader,0),FALSE) -> 1.5335 | D18: =VLOOKUP($A18,'[1]Data Proposed Rates'!$A:$AX,MATCH(D$5,[1]!ProposedHeader,0),FALSE) -> 0 | E18: =VLOOKUP($A18,'[1]Data Proposed Rates'!$A:$AX,MATCH(E$5,[1]!ProposedHeader,0),FALSE) -> 0 | F18: 1312.3 | G18: 1.5335 | H18: 0 | I18: 0 | J18: =VLOOKUP($A18,'[1]Data Proposed Rates'!$A:$AX,MATCH(J$5,[1]!ProposedHeader,0),FALSE) -> 0 | K18: =VLOOKUP($A18,'[1]Data Proposed Rates'!$A:$AX,MATCH(K$5,[1]!ProposedHeader,0),FALSE) -> 0.9444 | L18: =VLOOKUP($A18,'[1]Data Proposed Rates'!$A:$AX,MATCH(L$5,[1]!ProposedHeader,0),FALSE) -> 0 | M18: =VLOOKUP($A18,'[1]Data Proposed Rates'!$A:$AX,MATCH(M$5,[1]!ProposedHeader,0),FALSE) ->  | N18: =VLOOKUP($A18,'[1]Data Proposed Rates'!$A:$AX,MATCH(N$5,[1]!ProposedHeader,0),FALSE) -> 0 | O18: =VLOOKUP($A18,'[1]Data Proposed Rates'!$A:$AX,MATCH(O$5,[1]!ProposedHeader,0),FALSE) -> -15.7 | P18: =VLOOKUP($A18,'[1]Data Proposed Rates'!$A:$AX,MATCH(P$5,[1]!ProposedHeader,0),FALSE) -> -0.0219 | Q18: =VLOOKUP($A18,'[1]Data Proposed Rates'!$A:$AX,MATCH(Q$5,[1]!ProposedHeader,0),FALSE) -> 3.596 | R18: =VLOOKUP($A18,'[1]Data Proposed Rates'!$A:$AX,MATCH(R$5,[1]!ProposedHeader,0),FALSE) -> 2.9558
A19: ST (NonWMP, NonRPP, NonLDC, ClassB) | B19: =VLOOKUP($A19,'[1]Data Proposed Rates'!$A:$AX,MATCH(B$5,[1]!ProposedHeader,0),FALSE) -> 1312.3 | C19: =VLOOKUP($A19,'[1]Data Proposed Rates'!$A:$AX,MATCH(C$5,[1]!ProposedHeader,0),FALSE) -> 1.5335 | D19: =VLOOKUP($A19,'[1]Data Proposed Rates'!$A:$AX,MATCH(D$5,[1]!ProposedHeader,0),FALSE) -> 0 | E19: =VLOOKUP($A19,'[1]Data Proposed Rates'!$A:$AX,MATCH(E$5,[1]!ProposedHeader,0),FALSE) -> 0 | F19: 1312.3 | G19: 1.5335 | H19: 0 | I19: 0 | J19: =VLOOKUP($A19,'[1]Data Proposed Rates'!$A:$AX,MATCH(J$5,[1]!ProposedHeader,0),FALSE) -> 0 | K19: =VLOOKUP($A19,'[1]Data Proposed Rates'!$A:$AX,MATCH(K$5,[1]!ProposedHeader,0),FALSE) -> 0.9444 | L19: =VLOOKUP($A19,'[1]Data Proposed Rates'!$A:$AX,MATCH(L$5,[1]!ProposedHeader,0),FALSE) -> -1.1389 | M19: =VLOOKUP($A19,'[1]Data Proposed Rates'!$A:$AX,MATCH(M$5,[1]!ProposedHeader,0),FALSE) ->  | N19: =VLOOKUP($A19,'[1]Data Proposed Rates'!$A:$AX,MATCH(N$5,[1]!ProposedHeader,0),FALSE) -> -0.0039 | O19: =VLOOKUP($A19,'[1]Data Proposed Rates'!$A:$AX,MATCH(O$5,[1]!ProposedHeader,0),FALSE) -> -15.7 | P19: =VLOOKUP($A19,'[1]Data Proposed Rates'!$A:$AX,MATCH(P$5,[1]!ProposedHeader,0),FALSE) -> -0.0219 | Q19: =VLOOKUP($A19,'[1]Data Proposed Rates'!$A:$AX,MATCH(Q$5,[1]!ProposedHeader,0),FALSE) -> 3.596 | R19: =VLOOKUP($A19,'[1]Data Proposed Rates'!$A:$AX,MATCH(R$5,[1]!ProposedHeader,0),FALSE) -> 2.9558
A20: ST (NonWMP, NonRPP, NonLDC, ClassB) Exclude GA Rider | B20: =VLOOKUP($A20,'[1]Data Proposed Rates'!$A:$AX,MATCH(B$5,[1]!ProposedHeader,0),FALSE) -> 1312.3 | C20: =VLOOKUP($A20,'[1]Data Proposed Rates'!$A:$AX,MATCH(C$5,[1]!ProposedHeader,0),FALSE) -> 1.5335 | D20: =VLOOKUP($A20,'[1]Data Proposed Rates'!$A:$AX,MATCH(D$5,[1]!ProposedHeader,0),FALSE) -> 0 | E20: =VLOOKUP($A20,'[1]Data Proposed Rates'!$A:$AX,MATCH(E$5,[1]!ProposedHeader,0),FALSE) -> 0 | F20: 1312.3 | G20: 1.5335 | H20: 0 | I20: 0 | J20: =VLOOKUP($A20,'[1]Data Proposed Rates'!$A:$AX,MATCH(J$5,[1]!ProposedHeader,0),FALSE) -> 0 | K20: =VLOOKUP($A20,'[1]Data Proposed Rates'!$A:$AX,MATCH(K$5,[1]!ProposedHeader,0),FALSE) -> 0.9444 | L20: =VLOOKUP($A20,'[1]Data Proposed Rates'!$A:$AX,MATCH(L$5,[1]!ProposedHeader,0),FALSE) -> -1.1389 | M20: =VLOOKUP($A20,'[1]Data Proposed Rates'!$A:$AX,MATCH(M$5,[1]!ProposedHeader,0),FALSE) ->  | N20: =VLOOKUP($A20,'[1]Data Proposed Rates'!$A:$AX,MATCH(N$5,[1]!ProposedHeader,0),FALSE) -> 0 | O20: =VLOOKUP($A20,'[1]Data Proposed Rates'!$A:$AX,MATCH(O$5,[1]!ProposedHeader,0),FALSE) -> -15.7 | P20: =VLOOKUP($A20,'[1]Data Proposed Rates'!$A:$AX,MATCH(P$5,[1]!ProposedHeader,0),FALSE) -> -0.0219 | Q20: =VLOOKUP($A20,'[1]Data Proposed Rates'!$A:$AX,MATCH(Q$5,[1]!ProposedHeader,0),FALSE) -> 3.596 | R20: =VLOOKUP($A20,'[1]Data Proposed Rates'!$A:$AX,MATCH(R$5,[1]!ProposedHeader,0),FALSE) -> 2.9558

Sheet Data Proposed Rates (hidden)
A1: 2021 Rates (Rounded)
A3: 1 | B3: 2 | C3: 3 | D3: 4 | E3: 5 | J3: 6 | K3: 7 | L3: 8 | M3: 9 | N3: 10 | Q3: 11 | R3: 12
A4: Rate Class | B4: Fixed Base Charge ($/month) | C4: Proposed Variable Charge ($/kWh or $/kW) | D4: Proposed Foregone Revenue Charge Fixed ($/month) | E4: Proposed Volumetric Foregone Revenue Charge | F4: Fixed Charge + Fixed Foregone | G4: Volumetric Charge + Volumetric Foregone | H4: Fixed DTA ($/month) | I4: Vol DTA ($/kWh or $/kW) | J4: Proposed Def/VA rate rider Fixed ($/month) | K4: Proposed Def/VA rate rider Volumetric($/kWh or $/kW) | L4: Vol VA Rider ($/kWh or $/kW) Non WMP | M4: Proposed Rate Rider for CBR (Non-WMP Class B) ($/kWh or $/kW) | N4: Proposed Rate Rider for Disposition of Global Adjustment (Non WMP, Non-RPP, Non-LDC, and Class B) ($/kWh) | Q4: Proposed RTSR-NW ($/kWh or $/kW) | R4: Proposed RTSR-CONN ($/kWh or $/kW)
A5: Rate as shown on Bill Impact Sheet | B5: Service Charge | C5: Distribution Volumetric Charge | D5: Fixed Foregone Revenue Charge | E5: Volumetric Foregone Revenue Charge | F5: Fixed Service Charge | G5: Dx Volumetric Charge | H5: Base Rate Adjustment to Recover Past Tax Amounts FIXED | I5: Base Rate Adjustment to Recover Past Tax Amounts VOL | J5: Fixed Deferral/Variance Account Rider (General) | K5: Volumetric Deferral/Variance Account Rider (General) | L5: Volumetric Deferral/Variance Account Rider (Sub-Account RSVA Wholesale Market Service Charge & RSVA Power) - ST only | M5: Volumetric Deferral/Variance Account Rider (Sub Account CBR-B) | N5: Volumetric Deferral/Variance Account Rider (Sub-Account Global Adjustment) | O5: Fixed ESM Rider | P5: Volumetric ESM Rider | Q5: Retail Transmission Rate – Network Service Rate | R5: Retail Transmission Rate – Line and Transformation Connection Service Rate
A6: Rounding Factor | B6: 2 | C6: 4 | D6: 2 | E6: 4 | H6: 2 | I6: 4 | J6: 2 | K6: 4 | L6: 4 | M6: 4 | N6: 4 | O6: 2 | P6: 4 | Q6: 4 | R6: 4
A7: UR | B7: =ROUND(VLOOKUP($A7,'[2]Proposed Rates'!$A:$AI,MATCH(B$5,'[2]Proposed Rates'!$4:$4,0),FALSE),B$6) -> 35.92 | C7: =ROUND(VLOOKUP($A7,'[2]Proposed Rates'!$A:$AI,MATCH(C$5,'[2]Proposed Rates'!$4:$4,0),FALSE),C$6) -> 0 | D7: =ROUND(VLOOKUP($A7,'[2]Proposed Rates'!$A:$AI,MATCH(D$5,'[2]Proposed Rates'!$4:$4,0),FALSE),D$6) -> 0 | E7: =ROUND(VLOOKUP($A7,'[2]Proposed Rates'!$A:$AI,MATCH(E$5,'[2]Proposed Rates'!$4:$4,0),FALSE),E$6) -> 0 | F7: =ROUND(SUM(B7,D7),2) -> 35.92 | G7: =ROUND(SUM(C7,E7),4) -> 0 | H7: =ROUND(VLOOKUP($A7,'[2]Proposed Rates'!$A:$AI,MATCH(H$4,'[2]Proposed Rates'!$1:$1,0),FALSE),H$6) -> 0.83 | I7: =ROUND(VLOOKUP($A7,'[2]Proposed Rates'!$A:$AI,MATCH(I$4,'[2]Proposed Rates'!$1:$1,0),FALSE),I$6) -> 0 | J7: =ROUND(VLOOKUP($A7,'[2]Proposed Rates'!$A:$AI,MATCH(J$5,'[2]Proposed Rates'!$4:$4,0),FALSE),J$6) -> -0.14 | K7: =ROUND(VLOOKUP($A7,'[2]Proposed Rates'!$A:$AI,MATCH(K$5,'[2]Proposed Rates'!$4:$4,0),FALSE),K$6) -> -0.0007 | M7: =ROUND(VLOOKUP($A7,'[2]Proposed Rates'!$A:$AI,MATCH(M$5,'[2]Proposed Rates'!$4:$4,0),FALSE),5) -> 0 | N7: =ROUND(VLOOKUP($A7,'[2]Proposed Rates'!$A:$AI,MATCH(N$5,'[2]Proposed Rates'!$4:$4,0),FALSE),N$6) -> -0.0039 | O7: =ROUND(VLOOKUP($A7,'[2]Proposed Rates'!$A:$AI,MATCH(O$5,'[2]Proposed Rates'!$4:$4,0),FALSE),O$6) -> -0.5 | P7: =ROUND(VLOOKUP($A7,'[2]Proposed Rates'!$A:$AI,MATCH(P$5,'[2]Proposed Rates'!$4:$4,0),FALSE),P$6) -> 0 | Q7: =ROUND(VLOOKUP($A7,'[2]Proposed Rates'!$A:$AI,MATCH(Q$5,'[2]Proposed Rates'!$4:$4,0),FALSE),Q$6) -> 0.0089 | R7: =ROUND(VLOOKUP($A7,'[2]Proposed Rates'!$A:$AI,MATCH(R$5,'[2]Proposed Rates'!$4:$4,0),FALSE),R$6) -> 0.0077
A8: R1 | B8: =ROUND(VLOOKUP($A8,'[2]Proposed Rates'!$A:$AI,MATCH(B$5,'[2]Proposed Rates'!$4:$4,0),FALSE),B$6) -> 49.04 | C8: =ROUND(VLOOKUP($A8,'[2]Proposed Rates'!$A:$AI,MATCH(C$5,'[2]Proposed Rates'!$4:$4,0),FALSE),C$6) -> 0.0141 | D8: =ROUND(VLOOKUP($A8,'[2]Proposed Rates'!$A:$AI,MATCH(D$5,'[2]Proposed Rates'!$4:$4,0),FALSE),D$6) -> 0 | E8: =ROUND(VLOOKUP($A8,'[2]Proposed Rates'!$A:$AI,MATCH(E$5,'[2]Proposed Rates'!$4:$4,0),FALSE),E$6) -> 0 | F8: =ROUND(SUM(B8,D8),2) -> 49.04 | G8: =ROUND(SUM(C8,E8),4) -> 0.0141 | H8: =ROUND(VLOOKUP($A8,'[2]Proposed Rates'!$A:$AI,MATCH(H$4,'[2]Proposed Rates'!$1:$1,0),FALSE),H$6) -> 1.56 | I8: =ROUND(VLOOKUP($A8,'[2]Proposed Rates'!$A:$AI,MATCH(I$4,'[2]Proposed Rates'!$1:$1,0),FALSE),I$6) -> 0 | J8: =ROUND(VLOOKUP($A8,'[2]Proposed Rates'!$A:$AI,MATCH(J$5,'[2]Proposed Rates'!$4:$4,0),FALSE),J$6) -> -0.14 | K8: =ROUND(VLOOKUP($A8,'[2]Proposed Rates'!$A:$AI,MATCH(K$5,'[2]Proposed Rates'!$4:$4,0),FALSE),K$6) -> -0.0008 | M8: =ROUND(VLOOKUP($A8,'[2]Proposed Rates'!$A:$AI,MATCH(M$5,'[2]Proposed Rates'!$4:$4,0),FALSE),5) -> 0 | N8: =ROUND(VLOOKUP($A8,'[2]Proposed Rates'!$A:$AI,MATCH(N$5,'[2]Proposed Rates'!$4:$4,0),FALSE),N$6) -> -0.0039 | O8: =ROUND(VLOOKUP($A8,'[2]Proposed Rates'!$A:$AI,MATCH(O$5,'[2]Proposed Rates'!$4:$4,0),FALSE),O$6) -> -0.85 | P8: =ROUND(VLOOKUP($A8,'[2]Proposed Rates'!$A:$AI,MATCH(P$5,'[2]Proposed Rates'!$4:$4,0),FALSE),P$6) -> 0 | Q8: =ROUND(VLOOKUP($A8,'[2]Proposed Rates'!$A:$AI,MATCH(Q$5,'[2]Proposed Rates'!$4:$4,0),FALSE),Q$6) -> 0.0082 | R8: =ROUND(VLOOKUP($A8,'[2]Proposed Rates'!$A:$AI,MATCH(R$5,'[2]Proposed Rates'!$4:$4,0),FALSE),R$6) -> 0.0073
A9: R2 | B9: =ROUND(VLOOKUP($A9,'[2]Proposed Rates'!$A:$AI,MATCH(B$5,'[2]Proposed Rates'!$4:$4,0),FALSE),B$6)-'Data Pass Through'!C4 -> 53.14 | C9: =ROUND(VLOOKUP($A9,'[2]Proposed Rates'!$A:$AI,MATCH(C$5,'[2]Proposed Rates'!$4:$4,0),FALSE),C$6) -> 0.0227 | D9: =ROUND(VLOOKUP($A9,'[2]Proposed Rates'!$A:$AI,MATCH(D$5,'[2]Proposed Rates'!$4:$4,0),FALSE),D$6) -> 0 | E9: =ROUND(VLOOKUP($A9,'[2]Proposed Rates'!$A:$AI,MATCH(E$5,'[2]Proposed Rates'!$4:$4,0),FALSE),E$6) -> 0 | F9: 53.14 | G9: 0.0227 | H9: =ROUND(VLOOKUP($A9,'[2]Proposed Rates'!$A:$AI,MATCH(H$4,'[2]Proposed Rates'!$1:$1,0),FALSE),H$6) -> 4.42 | I9: =ROUND(VLOOKUP($A9,'[2]Proposed Rates'!$A:$AI,MATCH(I$4,'[2]Proposed Rates'!$1:$1,0),FALSE),I$6) -> 0 | J9: =ROUND(VLOOKUP($A9,'[2]Proposed Rates'!$A:$AI,MATCH(J$5,'[2]Proposed Rates'!$4:$4,0),FALSE),J$6) -> -0.14 | K9: =ROUND(VLOOKUP($A9,'[2]Proposed Rates'!$A:$AI,MATCH(K$5,'[2]Proposed Rates'!$4:$4,0),FALSE),K$6) -> -0.0011 | M9: =ROUND(VLOOKUP($A9,'[2]Proposed Rates'!$A:$AI,MATCH(M$5,'[2]Proposed Rates'!$4:$4,0),FALSE),5) -> 0 | N9: =ROUND(VLOOKUP($A9,'[2]Proposed Rates'!$A:$AI,MATCH(N$5,'[2]Proposed Rates'!$4:$4,0),FALSE),N$6) -> -0.0039 | O9: =ROUND(VLOOKUP($A9,'[2]Proposed Rates'!$A:$AI,MATCH(O$5,'[2]Proposed Rates'!$4:$4,0),FALSE),O$6) -> -1.92 | P9: =ROUND(VLOOKUP($A9,'[2]Proposed Rates'!$A:$AI,MATCH(P$5,'[2]Proposed Rates'!$4:$4,0),FALSE),P$6) -> 0 | Q9: =ROUND(VLOOKUP($A9,'[2]Proposed Rates'!$A:$AI,MATCH(Q$5,'[2]Proposed Rates'!$4:$4,0),FALSE),Q$6) -> 0.0077 | R9: =ROUND(VLOOKUP($A9,'[2]Proposed Rates'!$A:$AI,MATCH(R$5,'[2]Proposed Rates'!$4:$4,0),FALSE),R$6) -> 0.0068
A10: Seasonal | B10: =ROUND(VLOOKUP($A10,'[2]Proposed Rates'!$A:$AI,MATCH(B$5,'[2]Proposed Rates'!$4:$4,0),FALSE),B$6) -> 50.72 | C10: =ROUND(VLOOKUP($A10,'[2]Proposed Rates'!$A:$AI,MATCH(C$5,'[2]Proposed Rates'!$4:$4,0),FALSE),C$6) -> 0.0441 | D10: =ROUND(VLOOKUP($A10,'[2]Proposed Rates'!$A:$AI,MATCH(D$5,'[2]Proposed Rates'!$4:$4,0),FALSE),D$6) -> 0 | E10: =ROUND(VLOOKUP($A10,'[2]Proposed Rates'!$A:$AI,MATCH(E$5,'[2]Proposed Rates'!$4:$4,0),FALSE),E$6) -> 0 | F10: 50.72 | G10: 0.0441 | H10: =ROUND(VLOOKUP($A10,'[2]Proposed Rates'!$A:$AI,MATCH(H$4,'[2]Proposed Rates'!$1:$1,0),FALSE),H$6) -> 1.79 | I10: =ROUND(VLOOKUP($A10,'[2]Proposed Rates'!$A:$AI,MATCH(I$4,'[2]Proposed Rates'!$1:$1,0),FALSE),I$6) -> 0 | J10: =ROUND(VLOOKUP($A10,'[2]Proposed Rates'!$A:$AI,MATCH(J$5,'[2]Proposed Rates'!$4:$4,0),FALSE),J$6) -> -0.14 | K10: =ROUND(VLOOKUP($A10,'[2]Proposed Rates'!$A:$AI,MATCH(K$5,'[2]Proposed Rates'!$4:$4,0),FALSE),K$6) -> -0.0023 | M10: =ROUND(VLOOKUP($A10,'[2]Proposed Rates'!$A:$AI,MATCH(M$5,'[2]Proposed Rates'!$4:$4,0),FALSE),5) -> 0 | N10: =ROUND(VLOOKUP($A10,'[2]Proposed Rates'!$A:$AI,MATCH(N$5,'[2]Proposed Rates'!$4:$4,0),FALSE),N$6) -> -0.0039 | O10: =ROUND(VLOOKUP($A10,'[2]Proposed Rates'!$A:$AI,MATCH(O$5,'[2]Proposed Rates'!$4:$4,0),FALSE),O$6) -> -0.9 | P10: =ROUND(VLOOKUP($A10,'[2]Proposed Rates'!$A:$AI,MATCH(P$5,'[2]Proposed Rates'!$4:$4,0),FALSE),P$6) -> 0 | Q10: =ROUND(VLOOKUP($A10,'[2]Proposed Rates'!$A:$AI,MATCH(Q$5,'[2]Proposed Rates'!$4:$4,0),FALSE),Q$6) -> 0.0064 | R10: =ROUND(VLOOKUP($A10,'[2]Proposed Rates'!$A:$AI,MATCH(R$5,'[2]Proposed Rates'!$4:$4,0),FALSE),R$6) -> 0.0061
A11: GSe | B11: =ROUND(VLOOKUP($A11,'[2]Proposed Rates'!$A:$AI,MATCH(B$5,'[2]Proposed Rates'!$4:$4,0),FALSE),B$6) -> 32.48 | C11: =ROUND(VLOOKUP($A11,'[2]Proposed Rates'!$A:$AI,MATCH(C$5,'[2]Proposed Rates'!$4:$4,0),FALSE),C$6) -> 0.0642 | D11: =ROUND(VLOOKUP($A11,'[2]Proposed Rates'!$A:$AI,MATCH(D$5,'[2]Proposed Rates'!$4:$4,0),FALSE),D$6) -> 0 | E11: =ROUND(VLOOKUP($A11,'[2]Proposed Rates'!$A:$AI,MATCH(E$5,'[2]Proposed Rates'!$4:$4,0),FALSE),E$6) -> 0 | F11: 32.48 | G11: 0.0642 | H11: =ROUND(VLOOKUP($A11,'[2]Proposed Rates'!$A:$AI,MATCH(H$4,'[2]Proposed Rates'!$1:$1,0),FALSE),H$6) -> 1.11 | I11: =ROUND(VLOOKUP($A11,'[2]Proposed Rates'!$A:$AI,MATCH(I$4,'[2]Proposed Rates'!$1:$1,0),FALSE),I$6) -> 0.0022 | J11: =ROUND(VLOOKUP($A11,'[2]Proposed Rates'!$A:$AI,MATCH(J$5,'[2]Proposed Rates'!$4:$4,0),FALSE),J$6) -> -0.14 | K11: =ROUND(VLOOKUP($A11,'[2]Proposed Rates'!$A:$AI,MATCH(K$5,'[2]Proposed Rates'!$4:$4,0),FALSE),K$6) -> -0.0007 | M11: =ROUND(VLOOKUP($A11,'[2]Proposed Rates'!$A:$AI,MATCH(M$5,'[2]Proposed Rates'!$4:$4,0),FALSE),5) -> 0 | N11: =ROUND(VLOOKUP($A11,'[2]Proposed Rates'!$A:$AI,MATCH(N$5,'[2]Proposed Rates'!$4:$4,0),FALSE),N$6) -> -0.0039 | O11: =ROUND(VLOOKUP($A11,'[2]Proposed Rates'!$A:$AI,MATCH(O$5,'[2]Proposed Rates'!$4:$4,0),FALSE),O$6) -> -0.45 | P11: =ROUND(VLOOKUP($A11,'[2]Proposed Rates'!$A:$AI,MATCH(P$5,'[2]Proposed Rates'!$4:$4,0),FALSE),P$6) -> -0.0009 | Q11: =ROUND(VLOOKUP($A11,'[2]Proposed Rates'!$A:$AI,MATCH(Q$5,'[2]Proposed Rates'!$4:$4,0),FALSE),Q$6) -> 0.0065 | R11: =ROUND(VLOOKUP($A11,'[2]Proposed Rates'!$A:$AI,MATCH(R$5,'[2]Proposed Rates'!$4:$4,0),FALSE),R$6) -> 0.0056
A12: UGe | B12: =ROUND(VLOOKUP($A12,'[2]Proposed Rates'!$A:$AI,MATCH(B$5,'[2]Proposed Rates'!$4:$4,0),FALSE),B$6) -> 25.59 | C12: =ROUND(VLOOKUP($A12,'[2]Proposed Rates'!$A:$AI,MATCH(C$5,'[2]Proposed Rates'!$4:$4,0),FALSE),C$6) -> 0.0306 | D12: =ROUND(VLOOKUP($A12,'[2]Proposed Rates'!$A:$AI,MATCH(D$5,'[2]Proposed Rates'!$4:$4,0),FALSE),D$6) -> 0 | E12: =ROUND(VLOOKUP($A12,'[2]Proposed Rates'!$A:$AI,MATCH(E$5,'[2]Proposed Rates'!$4:$4,0),FALSE),E$6) -> 0 | F12: 25.59 | G12: 0.0306 | H12: =ROUND(VLOOKUP($A12,'[2]Proposed Rates'!$A:$AI,MATCH(H$4,'[2]Proposed Rates'!$1:$1,0),FALSE),H$6) -> 0.81 | I12: =ROUND(VLOOKUP($A12,'[2]Proposed Rates'!$A:$AI,MATCH(I$4,'[2]Proposed Rates'!$1:$1,0),FALSE),I$6) -> 0.001 | J12: =ROUND(VLOOKUP($A12,'[2]Proposed Rates'!$A:$AI,MATCH(J$5,'[2]Proposed Rates'!$4:$4,0),FALSE),J$6) -> -0.14 | K12: =ROUND(VLOOKUP($A12,'[2]Proposed Rates'!$A:$AI,MATCH(K$5,'[2]Proposed Rates'!$4:$4,0),FALSE),K$6) -> -0.0003 | M12: =ROUND(VLOOKUP($A12,'[2]Proposed Rates'!$A:$AI,MATCH(M$5,'[2]Proposed Rates'!$4:$4,0),FALSE),5) -> 0 | N12: =ROUND(VLOOKUP($A12,'[2]Proposed Rates'!$A:$AI,MATCH(N$5,'[2]Proposed Rates'!$4:$4,0),FALSE),N$6) -> -0.0039 | O12: =ROUND(VLOOKUP($A12,'[2]Proposed Rates'!$A:$AI,MATCH(O$5,'[2]Proposed Rates'!$4:$4,0),FALSE),O$6) -> -0.36 | P12: =ROUND(VLOOKUP($A12,'[2]Proposed Rates'!$A:$AI,MATCH(P$5,'[2]Proposed Rates'!$4:$4,0),FALSE),P$6) -> -0.0004 | Q12: =ROUND(VLOOKUP($A12,'[2]Proposed Rates'!$A:$AI,MATCH(Q$5,'[2]Proposed Rates'!$4:$4,0),FALSE),Q$6) -> 0.007 | R12: =ROUND(VLOOKUP($A12,'[2]Proposed Rates'!$A:$AI,MATCH(R$5,'[2]Proposed Rates'!$4:$4,0),FALSE),R$6) -> 0.0057
A13: St Lgt | B13: =ROUND(VLOOKUP($A13,'[2]Proposed Rates'!$A:$AI,MATCH(B$5,'[2]Proposed Rates'!$4:$4,0),FALSE),B$6) -> 3.5 | C13: =ROUND(VLOOKUP($A13,'[2]Proposed Rates'!$A:$AI,MATCH(C$5,'[2]Proposed Rates'!$4:$4,0),FALSE),C$6) -> 0.1071 | D13: =ROUND(VLOOKUP($A13,'[2]Proposed Rates'!$A:$AI,MATCH(D$5,'[2]Proposed Rates'!$4:$4,0),FALSE),D$6) -> 0 | E13: =ROUND(VLOOKUP($A13,'[2]Proposed Rates'!$A:$AI,MATCH(E$5,'[2]Proposed Rates'!$4:$4,0),FALSE),E$6) -> 0 | F13: 3.5 | G13: 0.1071 | H13: =ROUND(VLOOKUP($A13,'[2]Proposed Rates'!$A:$AI,MATCH(H$4,'[2]Proposed Rates'!$1:$1,0),FALSE),H$6) -> 0.11 | I13: =ROUND(VLOOKUP($A13,'[2]Proposed Rates'!$A:$AI,MATCH(I$4,'[2]Proposed Rates'!$1:$1,0),FALSE),I$6) -> 0.0034 | J13: =ROUND(VLOOKUP($A13,'[2]Proposed Rates'!$A:$AI,MATCH(J$5,'[2]Proposed Rates'!$4:$4,0),FALSE),J$6) -> 0 | K13: =ROUND(VLOOKUP($A13,'[2]Proposed Rates'!$A:$AI,MATCH(K$5,'[2]Proposed Rates'!$4:$4,0),FALSE),K$6) -> -0.0009 | M13: =ROUND(VLOOKUP($A13,'[2]Proposed Rates'!$A:$AI,MATCH(M$5,'[2]Proposed Rates'!$4:$4,0),FALSE),5) -> 0 | N13: =ROUND(VLOOKUP($A13,'[2]Proposed Rates'!$A:$AI,MATCH(N$5,'[2]Proposed Rates'!$4:$4,0),FALSE),N$6) -> -0.0039 | O13: =ROUND(VLOOKUP($A13,'[2]Proposed Rates'!$A:$AI,MATCH(O$5,'[2]Proposed Rates'!$4:$4,0),FALSE),O$6) -> -0.05 | P13: =ROUND(VLOOKUP($A13,'[2]Proposed Rates'!$A:$AI,MATCH(P$5,'[2]Proposed Rates'!$4:$4,0),FALSE),P$6) -> -0.0015 | Q13: =ROUND(VLOOKUP($A13,'[2]Proposed Rates'!$A:$AI,MATCH(Q$5,'[2]Proposed Rates'!$4:$4,0),FALSE),Q$6) -> 0.0054 | R13: =ROUND(VLOOKUP($A13,'[2]Proposed Rates'!$A:$AI,MATCH(R$5,'[2]Proposed Rates'!$4:$4,0),FALSE),R$6) -> 0.0036
A14: Sen Lgt | B14: =ROUND(VLOOKUP($A14,'[2]Proposed Rates'!$A:$AI,MATCH(B$5,'[2]Proposed Rates'!$4:$4,0),FALSE),B$6) -> 2.86 | C14: =ROUND(VLOOKUP($A14,'[2]Proposed Rates'!$A:$AI,MATCH(C$5,'[2]Proposed Rates'!$4:$4,0),FALSE),C$6) -> 0.1556 | D14: =ROUND(VLOOKUP($A14,'[2]Proposed Rates'!$A:$AI,MATCH(D$5,'[2]Proposed Rates'!$4:$4,0),FALSE),D$6) -> 0 | E14: =ROUND(VLOOKUP($A14,'[2]Proposed Rates'!$A:$AI,MATCH(E$5,'[2]Proposed Rates'!$4:$4,0),FALSE),E$6) -> 0 | F14: 2.86 | G14: 0.1556 | H14: =ROUND(VLOOKUP($A14,'[2]Proposed Rates'!$A:$AI,MATCH(H$4,'[2]Proposed Rates'!$1:$1,0),FALSE),H$6) -> 0.14 | I14: =ROUND(VLOOKUP($A14,'[2]Proposed Rates'!$A:$AI,MATCH(I$4,'[2]Proposed Rates'!$1:$1,0),FALSE),I$6) -> 0.0078 | J14: =ROUND(VLOOKUP($A14,'[2]Proposed Rates'!$A:$AI,MATCH(J$5,'[2]Proposed Rates'!$4:$4,0),FALSE),J$6) -> 0 | K14: =ROUND(VLOOKUP($A14,'[2]Proposed Rates'!$A:$AI,MATCH(K$5,'[2]Proposed Rates'!$4:$4,0),FALSE),K$6) -> -0.0021 | M14: =ROUND(VLOOKUP($A14,'[2]Proposed Rates'!$A:$AI,MATCH(M$5,'[2]Proposed Rates'!$4:$4,0),FALSE),5) -> 0 | N14: =ROUND(VLOOKUP($A14,'[2]Proposed Rates'!$A:$AI,MATCH(N$5,'[2]Proposed Rates'!$4:$4,0),FALSE),N$6) -> -0.0039 | O14: =ROUND(VLOOKUP($A14,'[2]Proposed Rates'!$A:$AI,MATCH(O$5,'[2]Proposed Rates'!$4:$4,0),FALSE),O$6) -> -0.04 | P14: =ROUND(VLOOKUP($A14,'[2]Proposed Rates'!$A:$AI,MATCH(P$5,'[2]Proposed Rates'!$4:$4,0),FALSE),P$6) -> -0.0022 | Q14: =ROUND(VLOOKUP($A14,'[2]Proposed Rates'!$A:$AI,MATCH(Q$5,'[2]Proposed Rates'!$4:$4,0),FALSE),Q$6) -> 0.0054 | R14: =ROUND(VLOOKUP($A14,'[2]Proposed Rates'!$A:$AI,MATCH(R$5,'[2]Proposed Rates'!$4:$4,0),FALSE),R$6) -> 0.0037
A15: USL | B15: =ROUND(VLOOKUP($A15,'[2]Proposed Rates'!$A:$AI,MATCH(B$5,'[2]Proposed Rates'!$4:$4,0),FALSE),B$6) -> 37.58 | C15: =ROUND(VLOOKUP($A15,'[2]Proposed Rates'!$A:$AI,MATCH(C$5,'[2]Proposed Rates'!$4:$4,0),FALSE),C$6) -> 0.0251 | D15: =ROUND(VLOOKUP($A15,'[2]Proposed Rates'!$A:$AI,MATCH(D$5,'[2]Proposed Rates'!$4:$4,0),FALSE),D$6) -> 0 | E15: =ROUND(VLOOKUP($A15,'[2]Proposed Rates'!$A:$AI,MATCH(E$5,'[2]Proposed Rates'!$4:$4,0),FALSE),E$6) -> 0 | F15: 37.58 | G15: 0.0251 | H15: =ROUND(VLOOKUP($A15,'[2]Proposed Rates'!$A:$AI,MATCH(H$4,'[2]Proposed Rates'!$1:$1,0),FALSE),H$6) -> 0.89 | I15: =ROUND(VLOOKUP($A15,'[2]Proposed Rates'!$A:$AI,MATCH(I$4,'[2]Proposed Rates'!$1:$1,0),FALSE),I$6) -> 0.0006 | J15: =ROUND(VLOOKUP($A15,'[2]Proposed Rates'!$A:$AI,MATCH(J$5,'[2]Proposed Rates'!$4:$4,0),FALSE),J$6) -> 0 | K15: =ROUND(VLOOKUP($A15,'[2]Proposed Rates'!$A:$AI,MATCH(K$5,'[2]Proposed Rates'!$4:$4,0),FALSE),K$6) -> 0.0001 | M15: =ROUND(VLOOKUP($A15,'[2]Proposed Rates'!$A:$AI,MATCH(M$5,'[2]Proposed Rates'!$4:$4,0),FALSE),5) -> 0 | N15: =ROUND(VLOOKUP($A15,'[2]Proposed Rates'!$A:$AI,MATCH(N$5,'[2]Proposed Rates'!$4:$4,0),FALSE),N$6) -> -0.0039 | O15: =ROUND(VLOOKUP($A15,'[2]Proposed Rates'!$A:$AI,MATCH(O$5,'[2]Proposed Rates'!$4:$4,0),FALSE),O$6) -> -0.53 | P15: =ROUND(VLOOKUP($A15,'[2]Proposed Rates'!$A:$AI,MATCH(P$5,'[2]Proposed Rates'!$4:$4,0),FALSE),P$6) -> -0.0004 | Q15: =ROUND(VLOOKUP($A15,'[2]Proposed Rates'!$A:$AI,MATCH(Q$5,'[2]Proposed Rates'!$4:$4,0),FALSE),Q$6) -> 0.0054 | R15: =ROUND(VLOOKUP($A15,'[2]Proposed Rates'!$A:$AI,MATCH(R$5,'[2]Proposed Rates'!$4:$4,0),FALSE),R$6) -> 0.0046
A16: GSd | B16: =ROUND(VLOOKUP($A16,'[2]Proposed Rates'!$A:$AI,MATCH(B$5,'[2]Proposed Rates'!$4:$4,0),FALSE),B$6) -> 108.28 | C16: =ROUND(VLOOKUP($A16,'[2]Proposed Rates'!$A:$AI,MATCH(C$5,'[2]Proposed Rates'!$4:$4,0),FALSE),C$6) -> 18.3296 | D16: =ROUND(VLOOKUP($A16,'[2]Proposed Rates'!$A:$AI,MATCH(D$5,'[2]Proposed Rates'!$4:$4,0),FALSE),D$6) -> 0 | E16: =ROUND(VLOOKUP($A16,'[2]Proposed Rates'!$A:$AI,MATCH(E$5,'[2]Proposed Rates'!$4:$4,0),FALSE),E$6) -> 0 | F16: 108.28 | G16: 18.3296 | H16: =ROUND(VLOOKUP($A16,'[2]Proposed Rates'!$A:$AI,MATCH(H$4,'[2]Proposed Rates'!$1:$1,0),FALSE),H$6) -> 4.34 | I16: =ROUND(VLOOKUP($A16,'[2]Proposed Rates'!$A:$AI,MATCH(I$4,'[2]Proposed Rates'!$1:$1,0),FALSE),I$6) -> 0.7338 | J16: =ROUND(VLOOKUP($A16,'[2]Proposed Rates'!$A:$AI,MATCH(J$5,'[2]Proposed Rates'!$4:$4,0),FALSE),J$6) -> 0 | K16: =ROUND(VLOOKUP($A16,'[2]Proposed Rates'!$A:$AI,MATCH(K$5,'[2]Proposed Rates'!$4:$4,0),FALSE),K$6) -> 0.0117 | M16: =ROUND(VLOOKUP($A16,'[2]Proposed Rates'!$A:$AI,MATCH(M$5,'[2]Proposed Rates'!$4:$4,0),FALSE),M$6) -> 0 | N16: =ROUND(VLOOKUP($A16,'[2]Proposed Rates'!$A:$AI,MATCH(N$5,'[2]Proposed Rates'!$4:$4,0),FALSE),N$6) -> -0.0039 | O16: =ROUND(VLOOKUP($A16,'[2]Proposed Rates'!$A:$AI,MATCH(O$5,'[2]Proposed Rates'!$4:$4,0),FALSE),O$6) -> -1.52 | P16: =ROUND(VLOOKUP($A16,'[2]Proposed Rates'!$A:$AI,MATCH(P$5,'[2]Proposed Rates'!$4:$4,0),FALSE),P$6) -> -0.2555 | Q16: =ROUND(VLOOKUP($A16,'[2]Proposed Rates'!$A:$AI,MATCH(Q$5,'[2]Proposed Rates'!$4:$4,0),FALSE)*VLOOKUP($A16,'Data Billing Quantities'!$A:$B,2,FALSE),Q$6) -> 2.0421 | R16: =ROUND(VLOOKUP($A16,'[2]Proposed Rates'!$A:$AI,MATCH(R$5,'[2]Proposed Rates'!$4:$4,0),FALSE)*VLOOKUP($A16,'Data Billing Quantities'!$A:$B,2,FALSE),R$6) -> 1.7006
A17: UGd | B17: =ROUND(VLOOKUP($A17,'[2]Proposed Rates'!$A:$AI,MATCH(B$5,'[2]Proposed Rates'!$4:$4,0),FALSE),B$6) -> 100.19 | C17: =ROUND(VLOOKUP($A17,'[2]Proposed Rates'!$A:$AI,MATCH(C$5,'[2]Proposed Rates'!$4:$4,0),FALSE),C$6) -> 10.5601 | D17: =ROUND(VLOOKUP($A17,'[2]Proposed Rates'!$A:$AI,MATCH(D$5,'[2]Proposed Rates'!$4:$4,0),FALSE),D$6) -> 0 | E17: =ROUND(VLOOKUP($A17,'[2]Proposed Rates'!$A:$AI,MATCH(E$5,'[2]Proposed Rates'!$4:$4,0),FALSE),E$6) -> 0 | F17: 100.19 | G17: 10.5601 | H17: =ROUND(VLOOKUP($A17,'[2]Proposed Rates'!$A:$AI,MATCH(H$4,'[2]Proposed Rates'!$1:$1,0),FALSE),H$6) -> 3.92 | I17: =ROUND(VLOOKUP($A17,'[2]Proposed Rates'!$A:$AI,MATCH(I$4,'[2]Proposed Rates'!$1:$1,0),FALSE),I$6) -> 0.4134 | J17: =ROUND(VLOOKUP($A17,'[2]Proposed Rates'!$A:$AI,MATCH(J$5,'[2]Proposed Rates'!$4:$4,0),FALSE),J$6) -> 0 | K17: =ROUND(VLOOKUP($A17,'[2]Proposed Rates'!$A:$AI,MATCH(K$5,'[2]Proposed Rates'!$4:$4,0),FALSE),K$6) -> 0.1062 | M17: =ROUND(VLOOKUP($A17,'[2]Proposed Rates'!$A:$AI,MATCH(M$5,'[2]Proposed Rates'!$4:$4,0),FALSE),M$6) -> 0 | N17: =ROUND(VLOOKUP($A17,'[2]Proposed Rates'!$A:$AI,MATCH(N$5,'[2]Proposed Rates'!$4:$4,0),FALSE),N$6) -> -0.0039 | O17: =ROUND(VLOOKUP($A17,'[2]Proposed Rates'!$A:$AI,MATCH(O$5,'[2]Proposed Rates'!$4:$4,0),FALSE),O$6) -> -1.4 | P17: =ROUND(VLOOKUP($A17,'[2]Proposed Rates'!$A:$AI,MATCH(P$5,'[2]Proposed Rates'!$4:$4,0),FALSE),P$6) -> -0.0004 | Q17: =ROUND(VLOOKUP($A17,'[2]Proposed Rates'!$A:$AI,MATCH(Q$5,'[2]Proposed Rates'!$4:$4,0),FALSE)*VLOOKUP($A17,'Data Billing Quantities'!$A:$B,2,FALSE),Q$6) -> 2.6172 | R17: =ROUND(VLOOKUP($A17,'[2]Proposed Rates'!$A:$AI,MATCH(R$5,'[2]Proposed Rates'!$4:$4,0),FALSE)*VLOOKUP($A17,'Data Billing Quantities'!$A:$B,2,FALSE),R$6) -> 2.1608
A18: Dgen | B18: =ROUND(VLOOKUP($A18,'[2]Proposed Rates'!$A:$AI,MATCH(B$5,'[2]Proposed Rates'!$4:$4,0),FALSE),B$6) -> 195.54 | C18: =ROUND(VLOOKUP($A18,'[2]Proposed Rates'!$A:$AI,MATCH(C$5,'[2]Proposed Rates'!$4:$4,0),FALSE),C$6) -> 9.8163 | D18: =ROUND(VLOOKUP($A18,'[2]Proposed Rates'!$A:$AI,MATCH(D$5,'[2]Proposed Rates'!$4:$4,0),FALSE),D$6) -> 0 | E18: =ROUND(VLOOKUP($A18,'[2]Proposed Rates'!$A:$AI,MATCH(E$5,'[2]Proposed Rates'!$4:$4,0),FALSE),E$6) -> 0 | F18: 195.54 | G18: 9.8163 | H18: =ROUND(VLOOKUP($A18,'[2]Proposed Rates'!$A:$AI,MATCH(H$4,'[2]Proposed Rates'!$1:$1,0),FALSE),H$6) -> 1.74 | I18: =ROUND(VLOOKUP($A18,'[2]Proposed Rates'!$A:$AI,MATCH(I$4,'[2]Proposed Rates'!$1:$1,0),FALSE),I$6) -> 0.0883 | J18: =ROUND(VLOOKUP($A18,'[2]Proposed Rates'!$A:$AI,MATCH(J$5,'[2]Proposed Rates'!$4:$4,0),FALSE),J$6) -> 0 | K18: =ROUND(VLOOKUP($A18,'[2]Proposed Rates'!$A:$AI,MATCH(K$5,'[2]Proposed Rates'!$4:$4,0),FALSE),K$6) -> -0.1359 | M18: =ROUND(VLOOKUP($A18,'[2]Proposed Rates'!$A:$AI,MATCH(M$5,'[2]Proposed Rates'!$4:$4,0),FALSE),M$6) -> 0 | N18: =ROUND(VLOOKUP($A18,'[2]Proposed Rates'!$A:$AI,MATCH(N$5,'[2]Proposed Rates'!$4:$4,0),FALSE),N$6) -> -0.0039 | O18: =ROUND(VLOOKUP($A18,'[2]Proposed Rates'!$A:$AI,MATCH(O$5,'[2]Proposed Rates'!$4:$4,0),FALSE),O$6) -> -2.74 | P18: =ROUND(VLOOKUP($A18,'[2]Proposed Rates'!$A:$AI,MATCH(P$5,'[2]Proposed Rates'!$4:$4,0),FALSE),P$6) -> -0.1365 | Q18: =ROUND(VLOOKUP($A18,'[2]Proposed Rates'!$A:$AI,MATCH(Q$5,'[2]Proposed Rates'!$4:$4,0),FALSE)*VLOOKUP($A18,'Data Billing Quantities'!$A:$B,2,FALSE),Q$6) -> 0.9927 | R18: =ROUND(VLOOKUP($A18,'[2]Proposed Rates'!$A:$AI,MATCH(R$5,'[2]Proposed Rates'!$4:$4,0),FALSE)*VLOOKUP($A18,'Data Billing Quantities'!$A:$B,2,FALSE),R$6) -> 0.8284
A19: ST | B19: =ROUND(SUM('[2]Proposed Rates'!$B$17:$B$19),B$6) -> 1312.3 | C19: =ROUND(VLOOKUP("Common Line",'[2]Proposed Rates'!$A:$H,8,FALSE),C$6) -> 1.5335 | D19: =SUM('[2]Proposed Rates'!$I$17:$I$18) -> 0 | E19: ='[2]Proposed Rates'!$J$19 -> 0 | F19: 1312.3 | G19: 1.5335 | H19: =ROUND(VLOOKUP($A19,'[2]Proposed Rates'!$A:$AI,MATCH(H$4,'[2]Proposed Rates'!$1:$1,0),FALSE),H$6) -> 36.18 | I19: =ROUND(VLOOKUP($A19,'[2]Proposed Rates'!$A:$AI,MATCH(I$4,'[2]Proposed Rates'!$1:$1,0),FALSE),I$6) -> 0.054 | J19: =ROUND(VLOOKUP($A19,'[2]Proposed Rates'!$A:$AI,MATCH(J$5,'[2]Proposed Rates'!$4:$4,0),FALSE),J$6) -> 0 | K19: =ROUND(VLOOKUP($A19,'[2]Proposed Rates'!$A:$AI,MATCH(K$5,'[2]Proposed Rates'!$4:$4,0),FALSE),K$6) -> 0.9444 | O19: =ROUND(VLOOKUP($A19,'[2]Proposed Rates'!$A:$AI,MATCH(O$5,'[2]Proposed Rates'!$4:$4,0),FALSE),O$6) -> -15.7 | P19: =ROUND(VLOOKUP($A19,'[2]Proposed Rates'!$A:$AI,MATCH(P$5,'[2]Proposed Rates'!$4:$4,0),FALSE),P$6) -> -0.0219 | Q19: =ROUND(VLOOKUP($A19,'[2]Proposed Rates'!$A:$AI,MATCH(Q$5,'[2]Proposed Rates'!$4:$4,0),FALSE)*VLOOKUP($A19,'Data Billing Quantities'!$A:$B,2,FALSE),Q$6) -> 3.596 | R19: =ROUND(VLOOKUP($A19,'[2]Proposed Rates'!$A:$AI,MATCH(R$5,'[2]Proposed Rates'!$4:$4,0),FALSE)*VLOOKUP($A19,'Data Billing Quantities'!$A:$B,2,FALSE),R$6) -> 2.9558
A20: ST (NonWMP, NonRPP, NonLDC, ClassB) | B20: =B$19 -> 1312.3 | C20: =C$19 -> 1.5335 | D20: 0 | E20: 0 | F20: 1312.3 | G20: 1.5335 | H20: =H19 -> 36.18 | I20: =I19 -> 0.054 | J20: =ROUND(VLOOKUP("ST",'[2]Proposed Rates'!$A:$AI,MATCH(J$5,'[2]Proposed Rates'!$4:$4,0),FALSE),J$6) -> 0 | K20: =ROUND(VLOOKUP("ST",'[2]Proposed Rates'!$A:$AI,MATCH(K$5,'[2]Proposed Rates'!$4:$4,0),FALSE),K$6) -> 0.9444 | L20: =ROUND(VLOOKUP("ST",'[2]Proposed Rates'!$A:$AI,MATCH(L$5,'[2]Proposed Rates'!$4:$4,0),FALSE),L$6) -> -1.1389 | M20: =ROUND(VLOOKUP("ST",'[2]Proposed Rates'!$A:$AI,MATCH(M$5,'[2]Proposed Rates'!$4:$4,0),FALSE),M$6) -> 0 | N20: =ROUND(VLOOKUP("ST",'[2]Proposed Rates'!$A:$AI,MATCH(N$5,'[2]Proposed Rates'!$4:$4,0),FALSE),N$6) -> -0.0039 | O20: =ROUND(VLOOKUP("ST",'[2]Proposed Rates'!$A:$AI,MATCH(O$5,'[2]Proposed Rates'!$4:$4,0),FALSE),O$6) -> -15.7 | P20: =ROUND(VLOOKUP("ST",'[2]Proposed Rates'!$A:$AI,MATCH(P$5,'[2]Proposed Rates'!$4:$4,0),FALSE),P$6) -> -0.0219 | Q20: =ROUND(VLOOKUP("ST",'[2]Proposed Rates'!$A:$AI,MATCH(Q$5,'[2]Proposed Rates'!$4:$4,0),FALSE)*VLOOKUP($A20,'Data Billing Quantities'!$A:$B,2,FALSE),Q$6) -> 3.596 | R20: =ROUND(VLOOKUP("ST",'[2]Proposed Rates'!$A:$AI,MATCH(R$5,'[2]Proposed Rates'!$4:$4,0),FALSE)*VLOOKUP($A20,'Data Billing Quantities'!$A:$B,2,FALSE),R$6) -> 2.9558
A21: ST (NonWMP, NonRPP, NonLDC, ClassB) Exclude GA Rider | B21: =B$19 -> 1312.3 | C21: 1.5335 | D21: 0 | E21: 0 | F21: 1312.3 | G21: 1.5335 | H21: =H19 -> 36.18 | I21: =I19 -> 0.054 | J21: =ROUND(VLOOKUP("ST",'[2]Proposed Rates'!$A:$AI,MATCH(J$5,'[2]Proposed Rates'!$4:$4,0),FALSE),J$6) -> 0 | K21: =ROUND(VLOOKUP("ST",'[2]Proposed Rates'!$A:$AI,MATCH(K$5,'[2]Proposed Rates'!$4:$4,0),FALSE),K$6) -> 0.9444 | L21: =ROUND(VLOOKUP("ST",'[2]Proposed Rates'!$A:$AI,MATCH(L$5,'[2]Proposed Rates'!$4:$4,0),FALSE),L$6) -> -1.1389 | M21: =ROUND(VLOOKUP("ST",'[2]Proposed Rates'!$A:$AI,MATCH(M$5,'[2]Proposed Rates'!$4:$4,0),FALSE),M$6) -> 0 | O21: =ROUND(VLOOKUP("ST",'[2]Proposed Rates'!$A:$AI,MATCH(O$5,'[2]Proposed Rates'!$4:$4,0),FALSE),O$6) -> -15.7 | P21: =ROUND(VLOOKUP("ST",'[2]Proposed Rates'!$A:$AI,MATCH(P$5,'[2]Proposed Rates'!$4:$4,0),FALSE),P$6) -> -0.0219 | Q21: =ROUND(VLOOKUP("ST",'[2]Proposed Rates'!$A:$AI,MATCH(Q$5,'[2]Proposed Rates'!$4:$4,0),FALSE)*VLOOKUP($A21,'Data Billing Quantities'!$A:$B,2,FALSE),Q$6) -> 3.596 | R21: =ROUND(VLOOKUP("ST",'[2]Proposed Rates'!$A:$AI,MATCH(R$5,'[2]Proposed Rates'!$4:$4,0),FALSE)*VLOOKUP($A21,'Data Billing Quantities'!$A:$B,2,FALSE),R$6) -> 2.9558

Sheet Data Billing Quantities (hidden)
A1: Rate Class-Specific Billing Quantities (Applied to Current and Proposed Bill)
E3: Consumption (kWh) | I3: Peak (kW) | M3: TOU Split
A4: Rate Class | B4: Loss Factor | C4: Charge Determinant | D4: Commodity Threshold | E4: Low kWh | F4: Typical kWh | G4: Average kWh | H4: High kWh | I4: Low kW | J4: Typical kW | K4: Average kW | L4: High kW | M4: TOU-Off Peak | N4: TOU-Mid Peak | O4: TOU-On Peak
A5: UR | B5: 1.057 | C5: kWh | D5: 600 | E5: 350 | F5: 750 | G5: =VLOOKUP(A5,[3]Sheet1!$A$9:$I$22,8,FALSE) -> 755 | H5: 1400 | M5: 0.64 | N5: 0.18 | O5: 0.18
A6: R1 | B6: 1.076 | C6: kWh | D6: 600 | E6: 400 | F6: 750 | G6: =VLOOKUP(A6,[3]Sheet1!$A$10:$I$22,8,FALSE) -> 920 | H6: 1800 | M6: 0.64 | N6: 0.18 | O6: 0.18
A7: R2 | B7: 1.105 | C7: kWh | D7: 600 | E7: 450 | F7: 750 | G7: =VLOOKUP(A7,[3]Sheet1!$A$10:$I$22,8,FALSE) -> 1152 | H7: 2300 | M7: 0.64 | N7: 0.18 | O7: 0.18
A8: Seasonal | B8: 1.104 | C8: kWh | D8: 600 | E8: 50 | G8: =VLOOKUP(A8,[3]Sheet1!$A$10:$I$22,8,FALSE) -> 352 | H8: 1000 | M8: 0.64 | N8: 0.18 | O8: 0.18
A9: GSe | B9: 1.096 | C9: kWh | D9: 750 | E9: 1000 | F9: 2000 | G9: =VLOOKUP(A9,[3]Sheet1!$A$10:$I$22,8,FALSE) -> 1982 | H9: 15000 | M9: 0.64 | N9: 0.18 | O9: 0.18
A10: UGe | B10: 1.067 | C10: kWh | D10: 750 | E10: 1000 | F10: 2000 | G10: =VLOOKUP(A10,[3]Sheet1!$A$10:$I$22,8,FALSE) -> 2759 | H10: 15000 | M10: 0.64 | N10: 0.18 | O10: 0.18
A11: St Lgt | B11: 1.092 | C11: kWh | D11: 750 | E11: 100 | G11: =VLOOKUP(A11,[3]Sheet1!$A$10:$I$22,8,FALSE) -> 517 | H11: 2000
A12: Sen Lgt | B12: 1.092 | C12: kWh | D12: 750 | E12: 20 | G12: =VLOOKUP(A12,[3]Sheet1!$A$10:$I$22,8,FALSE) -> 71 | H12: 200
A13: USL | B13: 1.092 | C13: kWh | D13: 750 | E13: 100 | G13: =VLOOKUP(A13,[3]Sheet1!$A$10:$I$22,8,FALSE) -> 364 | H13: 1000
A14: GSd | B14: 1.061 | C14: kW | D14: 0 | E14: 15000 | G14: =VLOOKUP(A14,[3]Sheet1!$A$10:$I$22,8,FALSE) -> 36104 | H14: 175000 | I14: 60 | J14: 117 | K14: =VLOOKUP(A14,[3]Sheet1!$A$10:$I$22,9,FALSE) -> 124 | L14: 500
A15: UGd | B15: 1.05 | C15: kW | D15: 0 | E15: 15000 | G15: =VLOOKUP(A15,[3]Sheet1!$A$10:$I$22,8,FALSE) -> 50525 | H15: 175000 | I15: 60 | J15: 117 | K15: =VLOOKUP(A15,[3]Sheet1!$A$10:$I$22,9,FALSE) -> 135 | L15: 500
A16: Dgen | B16: 1.061 | C16: kW | D16: 0 | E16: 300 | G16: =VLOOKUP(A16,[3]Sheet1!$A$10:$I$22,8,FALSE) -> 1328 | H16: 5000 | I16: 10 | J16: 15 | K16: =VLOOKUP(A16,[3]Sheet1!$A$10:$I$22,9,FALSE) -> 13 | L16: 100
A17: ST | B17: 1.034 | C17: kW | D17: 0 | E17: 200000 | G17: =VLOOKUP(A17,[3]Sheet1!$A$10:$I$22,8,FALSE) -> 1601036 | H17: 4000000 | I17: 500 | J17: 117 | K17: =VLOOKUP(A17,[3]Sheet1!$A$10:$I$22,9,FALSE) -> 3091 | L17: 10000
A18: ST (NonWMP, NonRPP, NonLDC, ClassB) | B18: =B$17 -> 1.034 | C18: =C$17 -> kW | D18: 0 | G18: 1601036 | K18: 3091
A19: ST (NonWMP, NonRPP, NonLDC, ClassB) Exclude GA Rider | B19: =B$17 -> 1.034 | C19: kW | D19: 0 | G19: 1601036 | K19: 3091

Sheet Data Pass Through (hidden)
A1: 3. Pass Through Charges (maintain pass through charges effective during application period for 2021 annual update august 2020)
B2: Current Bill | C2: Proposed Bill
A3: Effective Date | B3: Feb 23 2021 | C3: Feb 23 2021 | D3: TOU % | E3: Notes
A4: R2 Credit | B4: 60.5 | C4: 60.5
A5: Energy (Non-RPP)* | B5: 0.1075 | C5: 0.1075 | E5: Provided by BCC Meg Atkinson Feb 2021
A6: Energy First Tier | B6: 0.101 | C6: 0.101 | E6: Effective Feb 23 2021
A7: Energy Second Tier | B7: 0.118 | C7: 0.118 | E7: Effective Feb 23 2021
A8: TOU-Off Peak | B8: 0.085 | C8: 0.085 | D8: 0.64 | E8: Effective Feb 23 2021
A9: TOU-Mid Peak | B9: 0.119 | C9: 0.119 | D9: 0.18 | E9: Effective Feb 23 2021
A10: TOU-On Peak | B10: 0.176 | C10: 0.176 | D10: 0.18 | E10: Effective Feb 23 2021
A11: Wholesale Market Service Rate (WMS) - not including CBR | B11: 0.003 | C11: 0.003 | E11: Effective May 1 2017, 0.0036 WMSC broken up between WMSC and CBR
A12: Capacity Based Recovery (CBR) - Applicable for Class B Customers | B12: 0.0004 | C12: 0.0004 | E12: Effective May 1 2017, 0.0036 WMSC broken up between WMSC and CBR
A13: Rural Rate Protection Charge | B13: 0.0005 | C13: 0.0005 | E13: RRRP charge reduced from $0.0021/kWh to $0.0003/kWh effective July 1, 2017; reduced to 0.0005 effective jan 1 2019
A14: Ontario Electricity Support Program Charge | B14: 0 | C14: 0 | E14: OESP charge removed for all rate classes effective May 1, 2017. ROW HIDDEN IN BILL IMPACT FILE
A15: Standard Supply Service – Administration Charge (if applicable) | B15: 0.25 | C15: 0.25
A16: Fair Hydro Plan - Distribution Rate Protection Savings* | B16: =IF('Bill Impact Summary'!M6="TOU",0,IF('Bill Impact Summary'!M6="TOU (DRP applied)",B17,"error")) -> 36.86 | C16: =IF('Bill Impact Summary'!M6="TOU",0,IF('Bill Impact Summary'!M6="TOU (DRP applied)",C17,"error")) -> 36.86 | E16: Highlighted cells are FORMULAS; do not overwrite with hard-entered values. Input DRP limit values in row 17 below
A17: DRP limit (applied when selected from Bill Impact Summary) | B17: 36.86 | C17: 36.86 | E17: Make change to FHP DRP limit here, but to apply DRP, must do in Bill Impact Summary sheet cell L6
A18: Smart Metering Entity Charge | B18: 0.57 | C18: 0.57 | E18: Change from 0.79 to 0.57 effective March 1 2018; only for metered energy-billed (UR, R1, R2, SEA, GSE, UGE)
A19: Debt Retirement Charge (DRC) | B19: 0 | C19: 0 | E19: DRC removed from all rate classes Apr 1 2018 ROW HIDDEN IN BILL IMPACT FILE
A20: OER | B20: -0.212 | C20: -0.212 | E20: Effective Jan 1 2021
A21: Customer Attributes - Assumptions
A22: ST customers are assumed to be WMP Class B; exclude NonWMP rider and Standard Supply Service

Sheet Data BI List (hidden)
A1: Template Name | B1: Bill Impact Worksheet Name | C1: Bill Impact Header
A2: BI Template_Energy | B2: BI_UR_Low | C2: 2021 Bill Impacts (Low Consumption Level) - UR
A3: BI Template_Energy | B3: BI_UR_Typical | C3: 2021 Bill Impacts (Typical Consumption Level) - UR
A4: BI Template_Energy | B4: BI_UR_Avg | C4: 2021 Bill Impacts (Average Consumption Level) - UR
A5: BI Template_Energy | B5: BI_UR_High | C5: 2021 Bill Impacts (High Consumption Level) - UR
A6: BI Template_Energy | B6: BI_R1_Low | C6: 2021 Bill Impacts (Low Consumption Level) - R1
A7: BI Template_Energy | B7: BI_R1_Typical | C7: 2021 Bill Impacts (Typical Consumption Level) - R1
A8: BI Template_Energy | B8: BI_R1_Avg | C8: 2021 Bill Impacts (Average Consumption Level) - R1
A9: BI Template_Energy | B9: BI_R1_High | C9: 2021 Bill Impacts (High Consumption Level) - R1
A10: BI Template_Energy | B10: BI_R2_Low | C10: 2021 Bill Impacts (Low Consumption Level) - R2
A11: BI Template_Energy | B11: BI_R2_Typical | C11: 2021 Bill Impacts (Typical Consumption Level) - R2
A12: BI Template_Energy | B12: BI_R2_Avg | C12: 2021 Bill Impacts (Average Consumption Level) - R2
A13: BI Template_Energy | B13: BI_R2_High | C13: 2021 Bill Impacts (High Consumption Level) - R2
A14: BI Template_Energy | B14: ExcludeDRP_BI_R1_Low | C14: 2021 Bill Impacts Excluding DRP (Low Consumption Level) - R1
A15: BI Template_Energy | B15: ExcludeDRP_BI_R1_Typical | C15: 2021 Bill Impacts Excluding DRP (Typical Consumption Level) - R1
A16: BI Template_Energy | B16: ExcludeDRP_BI_R1_Avg | C16: 2021 Bill Impacts Excluding DRP (Average Consumption Level) - R1
A17: BI Template_Energy | B17: ExcludeDRP_BI_R1_High | C17: 2021 Bill Impacts Excluding DRP (High Consumption Level) - R1
A18: BI Template_Energy | B18: ExcludeDRP_BI_R2_Low | C18: 2021 Bill Impacts Excluding DRP (Low Consumption Level) - R2
A19: BI Template_Energy | B19: ExcludeDRP_BI_R2_Typical | C19: 2021 Bill Impacts Excluding DRP (Typical Consumption Level) - R2
A20: BI Template_Energy | B20: ExcludeDRP_BI_R2_Avg | C20: 2021 Bill Impacts Excluding DRP (Average Consumption Level) - R2
A21: BI Template_Energy | B21: ExcludeDRP_BI_R2_High | C21: 2021 Bill Impacts Excluding DRP (High Consumption Level) - R2
A22: BI Template_Energy | B22: BI_Seas_Low | C22: 2021 Bill Impacts (Low Consumption Level) - Seasonal
A23: BI Template_Energy | B23: BI_Seas_Avg | C23: 2021 Bill Impacts (Average Consumption Level) - Seasonal
A24: BI Template_Energy | B24: BI_Seas_High | C24: 2021 Bill Impacts (High Consumption Level) - Seasonal
A25: BI Template_Energy | B25: BI_GSe_Low | C25: 2021 Bill Impacts (Low Consumption Level) - GSe
A26: BI Template_Energy | B26: BI_GSe_Typical | C26: 2021 Bill Impacts (Typical Consumption Level) - GSe
A27: BI Template_Energy | B27: BI_GSe_Avg | C27: 2021 Bill Impacts (Average Consumption Level) - GSe
A28: BI Template_Energy | B28: BI_GSe_High | C28: 2021 Bill Impacts (High Consumption Level) - GSe
A29: BI Template_Energy | B29: BI_UGe_Low | C29: 2021 Bill Impacts (Low Consumption Level) - UGe
A30: BI Template_Energy | B30: BI_UGe_Typical | C30: 2021 Bill Impacts (Typical Consumption Level) - UGe
A31: BI Template_Energy | B31: BI_UGe_Avg | C31: 2021 Bill Impacts (Average Consumption Level) - UGe
A32: BI Template_Energy | B32: BI_UGe_High | C32: 2021 Bill Impacts (High Consumption Level) - UGe
A33: BI Template_Demand | B33: BI_GSd_Low | C33: 2021 Bill Impacts (Low Consumption Level) - GSd
A34: BI Template_Demand | B34: BI_GSd_Avg | C34: 2021 Bill Impacts (Average Consumption Level) - GSd
A35: BI Template_Demand | B35: BI_GSd_High | C35: 2021 Bill Impacts (High Consumption Level) - GSd
A36: BI Template_Demand | B36: BI_UGd_Low | C36: 2021 Bill Impacts (Low Consumption Level) - UGd
A37: BI Template_Demand | B37: BI_UGd_Avg | C37: 2021 Bill Impacts (Average Consumption Level) - UGd
A38: BI Template_Demand | B38: BI_UGd_High | C38: 2021 Bill Impacts (High Consumption Level) - UGd
A39: BI Template_EnergyUNM | B39: BI_StLgt_Low | C39: 2021 Bill Impacts (Low Consumption Level) - St Lgt
A40: BI Template_EnergyUNM | B40: BI_StLgt_Avg | C40: 2021 Bill Impacts (Average Consumption Level) - St Lgt
A41: BI Template_EnergyUNM | B41: BI_StLgt_High | C41: 2021 Bill Impacts (High Consumption Level) - St Lgt
A42: BI Template_EnergyUNM | B42: BI_SenLgt_Low | C42: 2021 Bill Impacts (Low Consumption Level) - Sen Lgt
A43: BI Template_EnergyUNM | B43: BI_SenLgt_Avg | C43: 2021 Bill Impacts (Average Consumption Level) - Sen Lgt
A44: BI Template_EnergyUNM | B44: BI_SenLgt_High | C44: 2021 Bill Impacts (High Consumption Level) - Sen Lgt
A45: BI Template_EnergyUNM | B45: BI_USL_Low | C45: 2021 Bill Impacts (Low Consumption Level) - USL
A46: BI Template_EnergyUNM | B46: BI_USL_Avg | C46: 2021 Bill Impacts (Average Consumption Level) - USL
A47: BI Template_EnergyUNM | B47: BI_USL_High | C47: 2021 Bill Impacts (High Consumption Level) - USL
A48: BI Template_Demand | B48: BI_Dgen_Low | C48: 2021 Bill Impacts (Low Consumption Level) - Dgen
A49: BI Template_Demand | B49: BI_Dgen_Avg | C49: 2021 Bill Impacts (Average Consumption Level) - Dgen
A50: BI Template_Demand | B50: BI_Dgen_High | C50: 2021 Bill Impacts (High Consumption Level) - Dgen
A51: BI Template_Demand | B51: BI_ST_Low | C51: 2021 Bill Impacts (Low Consumption Level) - ST
A52: BI Template_Demand | B52: BI_ST_Avg | C52: 2021 Bill Impacts (Average Consumption Level) - ST
A53: BI Template_Demand | B53: BI_ST_High | C53: 2021 Bill Impacts (High Consumption Level) - ST
A54: BI Template_Demand | B54: BI_ST_Avg_NonWMP | C54: 2021 Bill Impacts (Average Consumption Level) - ST (NonWMP, NonRPP, NonLDC, ClassB)
A55: BI Template_Demand | B55: BI_ST_Avg_NonWMP_exclGA | C55: 2021 Bill Impacts (Average Consumption Level) - ST (NonWMP, NonRPP, NonLDC, ClassB) Exclude GA Rider

Sheet Data BI Summary (hidden)
A2: Summary Column | B2: Current Total Bill | C2: Change in DX Bill ($) | D2: Change in DX Bill (%) | E2: Change in Total Bill ($) | F2: Change in Total Bill (%) | G2: Change in RTSR
A3: BI Template_Energy | B3: Total Amount on TOU | C3: Sub-Total: Distribution (excluding pass through) | D3: Sub-Total: Distribution (excluding pass through) | E3: Total Amount on TOU | F3: Total Amount on TOU | G3: Sub-Total: Retail Transmission | H3: Fixed Deferral/Variance Account Rider (General)
A4: BI Template_EnergyUNM | B4: Total Amount on Two-Tier RPP | C4: Sub-Total: Distribution (excluding pass through) | D4: Sub-Total: Distribution (excluding pass through) | E4: Total Amount on Two-Tier RPP | F4: Total Amount on Two-Tier RPP | G4: Sub-Total: Retail Transmission | H4: Fixed Deferral/Variance Account Rider (General)
A5: BI Template_Demand | B5: Total Amount | C5: Sub-Total: Distribution | D5: Sub-Total: Distribution | E5: Total Amount | F5: Total Amount | G5: Sub-Total: Retail Transmission | H5: Fixed Deferral/Variance Account Rider (General)

Sheet Bill Impact Summary (hidden)
A1: Rate Class | B1: Consumption Level | C1: Monthly Consumption (kWh) | D1: Monthly Peak (kW) | E1: Monthly Consumption/Peak (kWh/kW) | F1: BI Worksheet | G1: Template | H1: Current Total Bill | I1: Change in DX Bill ($) | J1: Change in DX Bill (%) | K1: Change in Total Bill ($) | L1: Change in Total Bill (%) | M1: Commodity Price Used | O1: List for Data Validation of cell L6; do not remove | P1: RTSR Impact | Q1: Fixed Def/VA | R1: Vol Def/VA | S1: RTSR Impact | T1: Fixed Def/VA | U1: Vol Def/VA | V1: GA Rider | W1: RTSR Impact Range
A2: UR | B2: Low | C2: =VLOOKUP(A$2,'Data Billing Quantities'!A:P,MATCH(B2&" kWh",'Data Billing Quantities'!$4:$4,0),FALSE) -> 350 | E2: =C2 -> 350 | F2: BI_UR_Low | G2: BI Template_Energy | H2: =VLOOKUP(VLOOKUP($G2,'Data BI Summary'!$A:$F,MATCH(H$1,'Data BI Summary'!$2:$2,0),FALSE),INDIRECT("'"&$F2&"'!"&"$A:$K"),4,FALSE) -> 76.3854948 | I2: =VLOOKUP(VLOOKUP($G2,'Data BI Summary'!$A:$F,MATCH(I$1,'Data BI Summary'!$2:$2,0),FALSE),INDIRECT("'"&$F2&"'!"&"$A:$K"),8,FALSE) -> 0.83 | J2: =VLOOKUP(VLOOKUP($G2,'Data BI Summary'!$A:$F,MATCH(J$1,'Data BI Summary'!$2:$2,0),FALSE),INDIRECT("'"&$F2&"'!"&"$A:$K"),9,FALSE) -> 0.02369059512 | K2: =VLOOKUP(VLOOKUP($G2,'Data BI Summary'!$A:$F,MATCH(K$1,'Data BI Summary'!$2:$2,0),FALSE),INDIRECT("'"&$F2&"'!"&"$A:$K"),8,FALSE) -> 0.76194 | L2: =VLOOKUP(VLOOKUP($G2,'Data BI Summary'!$A:$F,MATCH(L$1,'Data BI Summary'!$2:$2,0),FALSE),INDIRECT("'"&$F2&"'!"&"$A:$K"),9,FALSE) -> 0.009974930476 | M2: TOU | P2: =VLOOKUP("Sub-Total: Retail Transmission ",INDIRECT("'"&$F2&"'!"&"$A:$K"),8,FALSE) -> 0 | Q2: =VLOOKUP("Fixed Deferral/Variance Account Rider (General)",INDIRECT("'"&$F2&"'!"&"$A:$K"),8,FALSE) -> 0 | R2: =VLOOKUP("Volumetric Deferral/Variance Account Rider (General)",INDIRECT("'"&$F2&"'!"&"$A:$K"),8,FALSE) -> 0 | S2: =VLOOKUP("Sub-Total: Retail Transmission ",INDIRECT("'"&$F2&"'!"&"$A:$K"),9,FALSE) -> 0 | T2: =VLOOKUP("Fixed Deferral/Variance Account Rider (General)",INDIRECT("'"&$F2&"'!"&"$A:$K"),9,FALSE) -> 0 | U2: =VLOOKUP("Volumetric Deferral/Variance Account Rider (General)",INDIRECT("'"&$F2&"'!"&"$A:$K"),9,FALSE) -> 0 | V2: =VLOOKUP("Volumetric Deferral/Variance Account Rider (Sub-Account Global Adjustment)",INDIRECT("'"&$F2&"'!"&"$A:$K"),9,FALSE) ->  | W2: =MIN(S:S) -> 
B3: Typical | C3: =VLOOKUP(A$2,'Data Billing Quantities'!A:P,MATCH(B3&" kWh",'Data Billing Quantities'!$4:$4,0),FALSE) -> 750 | E3: =C3 -> 750 | F3: BI_UR_Typical | G3: BI Template_Energy | H3: =VLOOKUP(VLOOKUP($G3,'Data BI Summary'!$A:$F,MATCH(H$1,'Data BI Summary'!$2:$2,0),FALSE),INDIRECT("'"&$F3&"'!"&"$A:$K"),4,FALSE) -> 125.809146 | I3: =VLOOKUP(VLOOKUP($G3,'Data BI Summary'!$A:$F,MATCH(I$1,'Data BI Summary'!$2:$2,0),FALSE),INDIRECT("'"&$F3&"'!"&"$A:$K"),8,FALSE) -> 0.83 | J3: =VLOOKUP(VLOOKUP($G3,'Data BI Summary'!$A:$F,MATCH(J$1,'Data BI Summary'!$2:$2,0),FALSE),INDIRECT("'"&$F3&"'!"&"$A:$K"),9,FALSE) -> 0.02388145591 | K3: =VLOOKUP(VLOOKUP($G3,'Data BI Summary'!$A:$F,MATCH(K$1,'Data BI Summary'!$2:$2,0),FALSE),INDIRECT("'"&$F3&"'!"&"$A:$K"),8,FALSE) -> 0.76194 | L3: =VLOOKUP(VLOOKUP($G3,'Data BI Summary'!$A:$F,MATCH(L$1,'Data BI Summary'!$2:$2,0),FALSE),INDIRECT("'"&$F3&"'!"&"$A:$K"),9,FALSE) -> 0.006056316446 | P3: =VLOOKUP("Sub-Total: Retail Transmission ",INDIRECT("'"&$F3&"'!"&"$A:$K"),8,FALSE) -> 0 | Q3: =VLOOKUP("Fixed Deferral/Variance Account Rider (General)",INDIRECT("'"&$F3&"'!"&"$A:$K"),8,FALSE) -> 0 | R3: =VLOOKUP("Volumetric Deferral/Variance Account Rider (General)",INDIRECT("'"&$F3&"'!"&"$A:$K"),8,FALSE) -> 0 | S3: =VLOOKUP("Sub-Total: Retail Transmission ",INDIRECT("'"&$F3&"'!"&"$A:$K"),9,FALSE) -> 0 | T3: =VLOOKUP("Fixed Deferral/Variance Account Rider (General)",INDIRECT("'"&$F3&"'!"&"$A:$K"),9,FALSE) -> 0 | U3: =VLOOKUP("Volumetric Deferral/Variance Account Rider (General)",INDIRECT("'"&$F3&"'!"&"$A:$K"),9,FALSE) -> 0 | V3: =VLOOKUP("Volumetric Deferral/Variance Account Rider (Sub-Account Global Adjustment)",INDIRECT("'"&$F3&"'!"&"$A:$K"),9,FALSE) ->  | W3: =MAX(S:S) -> 
B4: Average | C4: =VLOOKUP(A$2,'Data Billing Quantities'!A:P,MATCH(B4&" kWh",'Data Billing Quantities'!$4:$4,0),FALSE) -> 755 | E4: 755 | F4: BI_UR_Avg | G4: BI Template_Energy | H4: =VLOOKUP(VLOOKUP($G4,'Data BI Summary'!$A:$F,MATCH(H$1,'Data BI Summary'!$2:$2,0),FALSE),INDIRECT("'"&$F4&"'!"&"$A:$K"),4,FALSE) -> 126.4269416 | I4: =VLOOKUP(VLOOKUP($G4,'Data BI Summary'!$A:$F,MATCH(I$1,'Data BI Summary'!$2:$2,0),FALSE),INDIRECT("'"&$F4&"'!"&"$A:$K"),8,FALSE) -> 0.83 | J4: =VLOOKUP(VLOOKUP($G4,'Data BI Summary'!$A:$F,MATCH(J$1,'Data BI Summary'!$2:$2,0),FALSE),INDIRECT("'"&$F4&"'!"&"$A:$K"),9,FALSE) -> 0.02388386113 | K4: =VLOOKUP(VLOOKUP($G4,'Data BI Summary'!$A:$F,MATCH(K$1,'Data BI Summary'!$2:$2,0),FALSE),INDIRECT("'"&$F4&"'!"&"$A:$K"),8,FALSE) -> 0.76194 | L4: =VLOOKUP(VLOOKUP($G4,'Data BI Summary'!$A:$F,MATCH(L$1,'Data BI Summary'!$2:$2,0),FALSE),INDIRECT("'"&$F4&"'!"&"$A:$K"),9,FALSE) -> 0.006026721758 | P4: 0 | Q4: 0 | R4: 0 | S4: 0 | T4: 0 | U4: 0 | W4: =AVERAGE(S:S) -> 
B5: High | C5: =VLOOKUP(A$2,'Data Billing Quantities'!A:P,MATCH(B5&" kWh",'Data Billing Quantities'!$4:$4,0),FALSE) -> 1400 | E5: 1400 | F5: BI_UR_High | G5: BI Template_Energy | H5: =VLOOKUP(VLOOKUP($G5,'Data BI Summary'!$A:$F,MATCH(H$1,'Data BI Summary'!$2:$2,0),FALSE),INDIRECT("'"&$F5&"'!"&"$A:$K"),4,FALSE) -> 206.1225792 | I5: =VLOOKUP(VLOOKUP($G5,'Data BI Summary'!$A:$F,MATCH(I$1,'Data BI Summary'!$2:$2,0),FALSE),INDIRECT("'"&$F5&"'!"&"$A:$K"),8,FALSE) -> 0.83 | J5: =VLOOKUP(VLOOKUP($G5,'Data BI Summary'!$A:$F,MATCH(J$1,'Data BI Summary'!$2:$2,0),FALSE),INDIRECT("'"&$F5&"'!"&"$A:$K"),9,FALSE) -> 0.02419825073 | K5: =VLOOKUP(VLOOKUP($G5,'Data BI Summary'!$A:$F,MATCH(K$1,'Data BI Summary'!$2:$2,0),FALSE),INDIRECT("'"&$F5&"'!"&"$A:$K"),8,FALSE) -> 0.76194 | L5: =VLOOKUP(VLOOKUP($G5,'Data BI Summary'!$A:$F,MATCH(L$1,'Data BI Summary'!$2:$2,0),FALSE),INDIRECT("'"&$F5&"'!"&"$A:$K"),9,FALSE) -> 0.003696538259 | P5: 0 | Q5: 0 | R5: 0 | S5: 0 | T5: 0 | U5: 0
A6: R1 | B6: Low | C6: =VLOOKUP(A$6,'Data Billing Quantities'!A:P,MATCH(B6&" kWh",'Data Billing Quantities'!$4:$4,0),FALSE) -> 400 | E6: 400 | F6: BI_R1_Low | G6: BI Template_Energy | H6: =VLOOKUP(VLOOKUP($G6,'Data BI Summary'!$A:$F,MATCH(H$1,'Data BI Summary'!$2:$2,0),FALSE),INDIRECT("'"&$F6&"'!"&"$A:$K"),4,FALSE) -> 83.52676368 | I6: =VLOOKUP(VLOOKUP($G6,'Data BI Summary'!$A:$F,MATCH(I$1,'Data BI Summary'!$2:$2,0),FALSE),INDIRECT("'"&$F6&"'!"&"$A:$K"),8,FALSE) -> 0 | J6: =VLOOKUP(VLOOKUP($G6,'Data BI Summary'!$A:$F,MATCH(J$1,'Data BI Summary'!$2:$2,0),FALSE),INDIRECT("'"&$F6&"'!"&"$A:$K"),9,FALSE) -> 0 | K6: =VLOOKUP(VLOOKUP($G6,'Data BI Summary'!$A:$F,MATCH(K$1,'Data BI Summary'!$2:$2,0),FALSE),INDIRECT("'"&$F6&"'!"&"$A:$K"),8,FALSE) -> 0 | L6: =VLOOKUP(VLOOKUP($G6,'Data BI Summary'!$A:$F,MATCH(L$1,'Data BI Summary'!$2:$2,0),FALSE),INDIRECT("'"&$F6&"'!"&"$A:$K"),9,FALSE) -> 0 | M6: TOU (DRP applied) | O6: TOU | P6: 0 | Q6: 0 | R6: 0 | S6: 0 | T6: 0 | U6: 0
B7: Typical | C7: =VLOOKUP(A$6,'Data Billing Quantities'!A:P,MATCH(B7&" kWh",'Data Billing Quantities'!$4:$4,0),FALSE) -> 750 | E7: 750 | F7: BI_R1_Typical | G7: BI Template_Energy | H7: =VLOOKUP(VLOOKUP($G7,'Data BI Summary'!$A:$F,MATCH(H$1,'Data BI Summary'!$2:$2,0),FALSE),INDIRECT("'"&$F7&"'!"&"$A:$K"),4,FALSE) -> 127.1414394 | I7: =VLOOKUP(VLOOKUP($G7,'Data BI Summary'!$A:$F,MATCH(I$1,'Data BI Summary'!$2:$2,0),FALSE),INDIRECT("'"&$F7&"'!"&"$A:$K"),8,FALSE) -> 0 | J7: =VLOOKUP(VLOOKUP($G7,'Data BI Summary'!$A:$F,MATCH(J$1,'Data BI Summary'!$2:$2,0),FALSE),INDIRECT("'"&$F7&"'!"&"$A:$K"),9,FALSE) -> 0 | K7: =VLOOKUP(VLOOKUP($G7,'Data BI Summary'!$A:$F,MATCH(K$1,'Data BI Summary'!$2:$2,0),FALSE),INDIRECT("'"&$F7&"'!"&"$A:$K"),8,FALSE) -> 0 | L7: =VLOOKUP(VLOOKUP($G7,'Data BI Summary'!$A:$F,MATCH(L$1,'Data BI Summary'!$2:$2,0),FALSE),INDIRECT("'"&$F7&"'!"&"$A:$K"),9,FALSE) -> 0 | O7: TOU (DRP applied) | P7: 0 | Q7: 0 | R7: 0 | S7: 0 | T7: 0 | U7: 0
B8: Average | C8: =VLOOKUP(A$6,'Data Billing Quantities'!A:P,MATCH(B8&" kWh",'Data Billing Quantities'!$4:$4,0),FALSE) -> 920 | E8: 920 | F8: BI_R1_Avg | G8: BI Template_Energy | H8: =VLOOKUP(VLOOKUP($G8,'Data BI Summary'!$A:$F,MATCH(H$1,'Data BI Summary'!$2:$2,0),FALSE),INDIRECT("'"&$F8&"'!"&"$A:$K"),4,FALSE) -> 148.3257105 | I8: =VLOOKUP(VLOOKUP($G8,'Data BI Summary'!$A:$F,MATCH(I$1,'Data BI Summary'!$2:$2,0),FALSE),INDIRECT("'"&$F8&"'!"&"$A:$K"),8,FALSE) -> 0 | J8: =VLOOKUP(VLOOKUP($G8,'Data BI Summary'!$A:$F,MATCH(J$1,'Data BI Summary'!$2:$2,0),FALSE),INDIRECT("'"&$F8&"'!"&"$A:$K"),9,FALSE) -> 0 | K8: =VLOOKUP(VLOOKUP($G8,'Data BI Summary'!$A:$F,MATCH(K$1,'Data BI Summary'!$2:$2,0),FALSE),INDIRECT("'"&$F8&"'!"&"$A:$K"),8,FALSE) -> 0 | L8: =VLOOKUP(VLOOKUP($G8,'Data BI Summary'!$A:$F,MATCH(L$1,'Data BI Summary'!$2:$2,0),FALSE),INDIRECT("'"&$F8&"'!"&"$A:$K"),9,FALSE) -> 0 | P8: 0 | Q8: 0 | R8: 0 | S8: 0 | T8: 0 | U8: 0
B9: High | C9: =VLOOKUP(A$6,'Data Billing Quantities'!A:P,MATCH(B9&" kWh",'Data Billing Quantities'!$4:$4,0),FALSE) -> 1800 | E9: 1800 | F9: BI_R1_High | G9: BI Template_Energy | H9: =VLOOKUP(VLOOKUP($G9,'Data BI Summary'!$A:$F,MATCH(H$1,'Data BI Summary'!$2:$2,0),FALSE),INDIRECT("'"&$F9&"'!"&"$A:$K"),4,FALSE) -> 257.9854666 | I9: =VLOOKUP(VLOOKUP($G9,'Data BI Summary'!$A:$F,MATCH(I$1,'Data BI Summary'!$2:$2,0),FALSE),INDIRECT("'"&$F9&"'!"&"$A:$K"),8,FALSE) -> 0 | J9: =VLOOKUP(VLOOKUP($G9,'Data BI Summary'!$A:$F,MATCH(J$1,'Data BI Summary'!$2:$2,0),FALSE),INDIRECT("'"&$F9&"'!"&"$A:$K"),9,FALSE) -> 0 | K9: =VLOOKUP(VLOOKUP($G9,'Data BI Summary'!$A:$F,MATCH(K$1,'Data BI Summary'!$2:$2,0),FALSE),INDIRECT("'"&$F9&"'!"&"$A:$K"),8,FALSE) -> 0 | L9: =VLOOKUP(VLOOKUP($G9,'Data BI Summary'!$A:$F,MATCH(L$1,'Data BI Summary'!$2:$2,0),FALSE),INDIRECT("'"&$F9&"'!"&"$A:$K"),9,FALSE) -> 0 | P9: 0 | Q9: 0 | R9: 0 | S9: 0 | T9: 0 | U9: 0
A10: R2 | B10: Low | C10: =VLOOKUP(A$10,'Data Billing Quantities'!A:P,MATCH(B10&" kWh",'Data Billing Quantities'!$4:$4,0),FALSE) -> 450 | E10: 450 | F10: BI_R2_Low | G10: BI Template_Energy | H10: =VLOOKUP(VLOOKUP($G10,'Data BI Summary'!$A:$F,MATCH(H$1,'Data BI Summary'!$2:$2,0),FALSE),INDIRECT("'"&$F10&"'!"&"$A:$K"),4,FALSE) -> 89.71501545 | I10: =VLOOKUP(VLOOKUP($G10,'Data BI Summary'!$A:$F,MATCH(I$1,'Data BI Summary'!$2:$2,0),FALSE),INDIRECT("'"&$F10&"'!"&"$A:$K"),8,FALSE) -> 0 | J10: =VLOOKUP(VLOOKUP($G10,'Data BI Summary'!$A:$F,MATCH(J$1,'Data BI Summary'!$2:$2,0),FALSE),INDIRECT("'"&$F10&"'!"&"$A:$K"),9,FALSE) -> 0 | K10: =VLOOKUP(VLOOKUP($G10,'Data BI Summary'!$A:$F,MATCH(K$1,'Data BI Summary'!$2:$2,0),FALSE),INDIRECT("'"&$F10&"'!"&"$A:$K"),8,FALSE) -> 0 | L10: =VLOOKUP(VLOOKUP($G10,'Data BI Summary'!$A:$F,MATCH(L$1,'Data BI Summary'!$2:$2,0),FALSE),INDIRECT("'"&$F10&"'!"&"$A:$K"),9,FALSE) -> 0 | M10: =M6 -> TOU (DRP applied) | P10: 0 | Q10: 0 | R10: 0 | S10: 0 | T10: 0 | U10: 0
B11: Typical | C11: =VLOOKUP(A$10,'Data Billing Quantities'!A:P,MATCH(B11&" kWh",'Data Billing Quantities'!$4:$4,0),FALSE) -> 750 | E11: 750 | F11: BI_R2_Typical | G11: BI Template_Energy | H11: =VLOOKUP(VLOOKUP($G11,'Data BI Summary'!$A:$F,MATCH(H$1,'Data BI Summary'!$2:$2,0),FALSE),INDIRECT("'"&$F11&"'!"&"$A:$K"),4,FALSE) -> 127.7255857 | I11: =VLOOKUP(VLOOKUP($G11,'Data BI Summary'!$A:$F,MATCH(I$1,'Data BI Summary'!$2:$2,0),FALSE),INDIRECT("'"&$F11&"'!"&"$A:$K"),8,FALSE) -> 0 | J11: =VLOOKUP(VLOOKUP($G11,'Data BI Summary'!$A:$F,MATCH(J$1,'Data BI Summary'!$2:$2,0),FALSE),INDIRECT("'"&$F11&"'!"&"$A:$K"),9,FALSE) -> 0 | K11: =VLOOKUP(VLOOKUP($G11,'Data BI Summary'!$A:$F,MATCH(K$1,'Data BI Summary'!$2:$2,0),FALSE),INDIRECT("'"&$F11&"'!"&"$A:$K"),8,FALSE) -> 0 | L11: =VLOOKUP(VLOOKUP($G11,'Data BI Summary'!$A:$F,MATCH(L$1,'Data BI Summary'!$2:$2,0),FALSE),INDIRECT("'"&$F11&"'!"&"$A:$K"),9,FALSE) -> 0 | P11: 0 | Q11: 0 | R11: 0 | S11: 0 | T11: 0 | U11: 0
B12: Average | C12: =VLOOKUP(A$10,'Data Billing Quantities'!A:P,MATCH(B12&" kWh",'Data Billing Quantities'!$4:$4,0),FALSE) -> 1152 | E12: 1152 | F12: BI_R2_Avg | G12: BI Template_Energy | H12: =VLOOKUP(VLOOKUP($G12,'Data BI Summary'!$A:$F,MATCH(H$1,'Data BI Summary'!$2:$2,0),FALSE),INDIRECT("'"&$F12&"'!"&"$A:$K"),4,FALSE) -> 178.65975 | I12: =VLOOKUP(VLOOKUP($G12,'Data BI Summary'!$A:$F,MATCH(I$1,'Data BI Summary'!$2:$2,0),FALSE),INDIRECT("'"&$F12&"'!"&"$A:$K"),8,FALSE) -> 0 | J12: =VLOOKUP(VLOOKUP($G12,'Data BI Summary'!$A:$F,MATCH(J$1,'Data BI Summary'!$2:$2,0),FALSE),INDIRECT("'"&$F12&"'!"&"$A:$K"),9,FALSE) -> 0 | K12: =VLOOKUP(VLOOKUP($G12,'Data BI Summary'!$A:$F,MATCH(K$1,'Data BI Summary'!$2:$2,0),FALSE),INDIRECT("'"&$F12&"'!"&"$A:$K"),8,FALSE) -> 0 | L12: =VLOOKUP(VLOOKUP($G12,'Data BI Summary'!$A:$F,MATCH(L$1,'Data BI Summary'!$2:$2,0),FALSE),INDIRECT("'"&$F12&"'!"&"$A:$K"),9,FALSE) -> 0 | P12: 0 | Q12: 0 | R12: 0 | S12: 0 | T12: 0 | U12: 0
B13: High | C13: =VLOOKUP(A$10,'Data Billing Quantities'!A:P,MATCH(B13&" kWh",'Data Billing Quantities'!$4:$4,0),FALSE) -> 2300 | E13: 2300 | F13: BI_R2_High | G13: BI Template_Energy | H13: =VLOOKUP(VLOOKUP($G13,'Data BI Summary'!$A:$F,MATCH(H$1,'Data BI Summary'!$2:$2,0),FALSE),INDIRECT("'"&$F13&"'!"&"$A:$K"),4,FALSE) -> 324.1135323 | I13: =VLOOKUP(VLOOKUP($G13,'Data BI Summary'!$A:$F,MATCH(I$1,'Data BI Summary'!$2:$2,0),FALSE),INDIRECT("'"&$F13&"'!"&"$A:$K"),8,FALSE) -> 0 | J13: =VLOOKUP(VLOOKUP($G13,'Data BI Summary'!$A:$F,MATCH(J$1,'Data BI Summary'!$2:$2,0),FALSE),INDIRECT("'"&$F13&"'!"&"$A:$K"),9,FALSE) -> 0 | K13: =VLOOKUP(VLOOKUP($G13,'Data BI Summary'!$A:$F,MATCH(K$1,'Data BI Summary'!$2:$2,0),FALSE),INDIRECT("'"&$F13&"'!"&"$A:$K"),8,FALSE) -> 0 | L13: =VLOOKUP(VLOOKUP($G13,'Data BI Summary'!$A:$F,MATCH(L$1,'Data BI Summary'!$2:$2,0),FALSE),INDIRECT("'"&$F13&"'!"&"$A:$K"),9,FALSE) -> 0 | P13: 0 | Q13: 0 | R13: 0 | S13: 0 | T13: 0 | U13: 0
A14: R1 (Exclude DRP) | B14: Low | C14: =VLOOKUP("R1",'Data Billing Quantities'!A:P,MATCH(B14&" kWh",'Data Billing Quantities'!$4:$4,0),FALSE) -> 400 | E14: 400 | F14: ExcludeDRP_BI_R1_Low | G14: BI Template_Energy | H14: =VLOOKUP(VLOOKUP($G14,'Data BI Summary'!$A:$F,MATCH(H$1,'Data BI Summary'!$2:$2,0),FALSE),INDIRECT("'"&$F14&"'!"&"$A:$K"),4,FALSE) -> 99.88552368 | I14: =VLOOKUP(VLOOKUP($G14,'Data BI Summary'!$A:$F,MATCH(I$1,'Data BI Summary'!$2:$2,0),FALSE),INDIRECT("'"&$F14&"'!"&"$A:$K"),8,FALSE) -> 1.56 | J14: =VLOOKUP(VLOOKUP($G14,'Data BI Summary'!$A:$F,MATCH(J$1,'Data BI Summary'!$2:$2,0),FALSE),INDIRECT("'"&$F14&"'!"&"$A:$K"),9,FALSE) -> 0.02922990444 | K14: =VLOOKUP(VLOOKUP($G14,'Data BI Summary'!$A:$F,MATCH(K$1,'Data BI Summary'!$2:$2,0),FALSE),INDIRECT("'"&$F14&"'!"&"$A:$K"),8,FALSE) -> 1.43208 | L14: =VLOOKUP(VLOOKUP($G14,'Data BI Summary'!$A:$F,MATCH(L$1,'Data BI Summary'!$2:$2,0),FALSE),INDIRECT("'"&$F14&"'!"&"$A:$K"),9,FALSE) -> 0.01433721271 | M14: DRP manually excluded from Worksheet
B15: Typical | C15: =VLOOKUP("R1",'Data Billing Quantities'!A:P,MATCH(B15&" kWh",'Data Billing Quantities'!$4:$4,0),FALSE) -> 750 | E15: 750 | F15: ExcludeDRP_BI_R1_Typical | G15: BI Template_Energy | H15: =VLOOKUP(VLOOKUP($G15,'Data BI Summary'!$A:$F,MATCH(H$1,'Data BI Summary'!$2:$2,0),FALSE),INDIRECT("'"&$F15&"'!"&"$A:$K"),4,FALSE) -> 148.0305294 | I15: =VLOOKUP(VLOOKUP($G15,'Data BI Summary'!$A:$F,MATCH(I$1,'Data BI Summary'!$2:$2,0),FALSE),INDIRECT("'"&$F15&"'!"&"$A:$K"),8,FALSE) -> 1.56 | J15: =VLOOKUP(VLOOKUP($G15,'Data BI Summary'!$A:$F,MATCH(J$1,'Data BI Summary'!$2:$2,0),FALSE),INDIRECT("'"&$F15&"'!"&"$A:$K"),9,FALSE) -> 0.02688496338 | K15: =VLOOKUP(VLOOKUP($G15,'Data BI Summary'!$A:$F,MATCH(K$1,'Data BI Summary'!$2:$2,0),FALSE),INDIRECT("'"&$F15&"'!"&"$A:$K"),8,FALSE) -> 1.43208 | L15: =VLOOKUP(VLOOKUP($G15,'Data BI Summary'!$A:$F,MATCH(L$1,'Data BI Summary'!$2:$2,0),FALSE),INDIRECT("'"&$F15&"'!"&"$A:$K"),9,FALSE) -> 0.009674220621
B16: Average | C16: =VLOOKUP("R1",'Data Billing Quantities'!A:P,MATCH(B16&" kWh",'Data Billing Quantities'!$4:$4,0),FALSE) -> 920 | E16: 920 | F16: ExcludeDRP_BI_R1_Avg | G16: BI Template_Energy | H16: =VLOOKUP(VLOOKUP($G16,'Data BI Summary'!$A:$F,MATCH(H$1,'Data BI Summary'!$2:$2,0),FALSE),INDIRECT("'"&$F16&"'!"&"$A:$K"),4,FALSE) -> 171.4152465 | I16: =VLOOKUP(VLOOKUP($G16,'Data BI Summary'!$A:$F,MATCH(I$1,'Data BI Summary'!$2:$2,0),FALSE),INDIRECT("'"&$F16&"'!"&"$A:$K"),8,FALSE) -> 1.56 | J16: =VLOOKUP(VLOOKUP($G16,'Data BI Summary'!$A:$F,MATCH(J$1,'Data BI Summary'!$2:$2,0),FALSE),INDIRECT("'"&$F16&"'!"&"$A:$K"),9,FALSE) -> 0.02587665461 | K16: =VLOOKUP(VLOOKUP($G16,'Data BI Summary'!$A:$F,MATCH(K$1,'Data BI Summary'!$2:$2,0),FALSE),INDIRECT("'"&$F16&"'!"&"$A:$K"),8,FALSE) -> 1.43208 | L16: =VLOOKUP(VLOOKUP($G16,'Data BI Summary'!$A:$F,MATCH(L$1,'Data BI Summary'!$2:$2,0),FALSE),INDIRECT("'"&$F16&"'!"&"$A:$K"),9,FALSE) -> 0.008354449383
B17: High | C17: =VLOOKUP("R1",'Data Billing Quantities'!A:P,MATCH(B17&" kWh",'Data Billing Quantities'!$4:$4,0),FALSE) -> 1800 | E17: 1800 | F17: ExcludeDRP_BI_R1_High | G17: BI Template_Energy | H17: =VLOOKUP(VLOOKUP($G17,'Data BI Summary'!$A:$F,MATCH(H$1,'Data BI Summary'!$2:$2,0),FALSE),INDIRECT("'"&$F17&"'!"&"$A:$K"),4,FALSE) -> 292.4655466 | I17: =VLOOKUP(VLOOKUP($G17,'Data BI Summary'!$A:$F,MATCH(I$1,'Data BI Summary'!$2:$2,0),FALSE),INDIRECT("'"&$F17&"'!"&"$A:$K"),8,FALSE) -> 1.56 | J17: =VLOOKUP(VLOOKUP($G17,'Data BI Summary'!$A:$F,MATCH(J$1,'Data BI Summary'!$2:$2,0),FALSE),INDIRECT("'"&$F17&"'!"&"$A:$K"),9,FALSE) -> 0.02166967634 | K17: =VLOOKUP(VLOOKUP($G17,'Data BI Summary'!$A:$F,MATCH(K$1,'Data BI Summary'!$2:$2,0),FALSE),INDIRECT("'"&$F17&"'!"&"$A:$K"),8,FALSE) -> 1.43208 | L17: =VLOOKUP(VLOOKUP($G17,'Data BI Summary'!$A:$F,MATCH(L$1,'Data BI Summary'!$2:$2,0),FALSE),INDIRECT("'"&$F17&"'!"&"$A:$K"),9,FALSE) -> 0.004896576766
A18: R2 (Exclude DRP) | B18: Low | C18: =VLOOKUP("R2",'Data Billing Quantities'!A:P,MATCH(B18&" kWh",'Data Billing Quantities'!$4:$4,0),FALSE) -> 450 | E18: 450 | F18: ExcludeDRP_BI_R2_Low | G18: BI Template_Energy | H18: =VLOOKUP(VLOOKUP($G18,'Data BI Summary'!$A:$F,MATCH(H$1,'Data BI Summary'!$2:$2,0),FALSE),INDIRECT("'"&$F18&"'!"&"$A:$K"),4,FALSE) -> 114.0374255 | I18: =VLOOKUP(VLOOKUP($G18,'Data BI Summary'!$A:$F,MATCH(I$1,'Data BI Summary'!$2:$2,0),FALSE),INDIRECT("'"&$F18&"'!"&"$A:$K"),8,FALSE) -> 4.42 | J18: =VLOOKUP(VLOOKUP($G18,'Data BI Summary'!$A:$F,MATCH(J$1,'Data BI Summary'!$2:$2,0),FALSE),INDIRECT("'"&$F18&"'!"&"$A:$K"),9,FALSE) -> 0.07269736842 | K18: =VLOOKUP(VLOOKUP($G18,'Data BI Summary'!$A:$F,MATCH(K$1,'Data BI Summary'!$2:$2,0),FALSE),INDIRECT("'"&$F18&"'!"&"$A:$K"),8,FALSE) -> 4.05756 | L18: =VLOOKUP(VLOOKUP($G18,'Data BI Summary'!$A:$F,MATCH(L$1,'Data BI Summary'!$2:$2,0),FALSE),INDIRECT("'"&$F18&"'!"&"$A:$K"),9,FALSE) -> 0.03558095059 | M18: DRP manually excluded from Worksheet, RRRP remains
B19: Typical | C19: =VLOOKUP("R2",'Data Billing Quantities'!A:P,MATCH(B19&" kWh",'Data Billing Quantities'!$4:$4,0),FALSE) -> 750 | E19: 750 | F19: ExcludeDRP_BI_R2_Typical | G19: BI Template_Energy | H19: =VLOOKUP(VLOOKUP($G19,'Data BI Summary'!$A:$F,MATCH(H$1,'Data BI Summary'!$2:$2,0),FALSE),INDIRECT("'"&$F19&"'!"&"$A:$K"),4,FALSE) -> 158.2995757 | I19: =VLOOKUP(VLOOKUP($G19,'Data BI Summary'!$A:$F,MATCH(I$1,'Data BI Summary'!$2:$2,0),FALSE),INDIRECT("'"&$F19&"'!"&"$A:$K"),8,FALSE) -> 4.42 | J19: =VLOOKUP(VLOOKUP($G19,'Data BI Summary'!$A:$F,MATCH(J$1,'Data BI Summary'!$2:$2,0),FALSE),INDIRECT("'"&$F19&"'!"&"$A:$K"),9,FALSE) -> 0.06569560048 | K19: =VLOOKUP(VLOOKUP($G19,'Data BI Summary'!$A:$F,MATCH(K$1,'Data BI Summary'!$2:$2,0),FALSE),INDIRECT("'"&$F19&"'!"&"$A:$K"),8,FALSE) -> 4.05756 | L19: =VLOOKUP(VLOOKUP($G19,'Data BI Summary'!$A:$F,MATCH(L$1,'Data BI Summary'!$2:$2,0),FALSE),INDIRECT("'"&$F19&"'!"&"$A:$K"),9,FALSE) -> 0.02563215966
B20: Average | C20: =VLOOKUP("R2",'Data Billing Quantities'!A:P,MATCH(B20&" kWh",'Data Billing Quantities'!$4:$4,0),FALSE) -> 1152 | E20: 1152 | F20: ExcludeDRP_BI_R2_Avg | G20: BI Template_Energy | H20: =VLOOKUP(VLOOKUP($G20,'Data BI Summary'!$A:$F,MATCH(H$1,'Data BI Summary'!$2:$2,0),FALSE),INDIRECT("'"&$F20&"'!"&"$A:$K"),4,FALSE) -> 217.6108572 | I20: =VLOOKUP(VLOOKUP($G20,'Data BI Summary'!$A:$F,MATCH(I$1,'Data BI Summary'!$2:$2,0),FALSE),INDIRECT("'"&$F20&"'!"&"$A:$K"),8,FALSE) -> 4.42 | J20: =VLOOKUP(VLOOKUP($G20,'Data BI Summary'!$A:$F,MATCH(J$1,'Data BI Summary'!$2:$2,0),FALSE),INDIRECT("'"&$F20&"'!"&"$A:$K"),9,FALSE) -> 0.05818606904 | K20: =VLOOKUP(VLOOKUP($G20,'Data BI Summary'!$A:$F,MATCH(K$1,'Data BI Summary'!$2:$2,0),FALSE),INDIRECT("'"&$F20&"'!"&"$A:$K"),8,FALSE) -> 4.05756 | L20: =VLOOKUP(VLOOKUP($G20,'Data BI Summary'!$A:$F,MATCH(L$1,'Data BI Summary'!$2:$2,0),FALSE),INDIRECT("'"&$F20&"'!"&"$A:$K"),9,FALSE) -> 0.01864594466
B21: High | C21: =VLOOKUP("R2",'Data Billing Quantities'!A:P,MATCH(B21&" kWh",'Data Billing Quantities'!$4:$4,0),FALSE) -> 2300 | E21: 2300 | F21: ExcludeDRP_BI_R2_High | G21: BI Template_Energy | H21: =VLOOKUP(VLOOKUP($G21,'Data BI Summary'!$A:$F,MATCH(H$1,'Data BI Summary'!$2:$2,0),FALSE),INDIRECT("'"&$F21&"'!"&"$A:$K"),4,FALSE) -> 386.9873523 | I21: =VLOOKUP(VLOOKUP($G21,'Data BI Summary'!$A:$F,MATCH(I$1,'Data BI Summary'!$2:$2,0),FALSE),INDIRECT("'"&$F21&"'!"&"$A:$K"),8,FALSE) -> 4.42 | J21: =VLOOKUP(VLOOKUP($G21,'Data BI Summary'!$A:$F,MATCH(J$1,'Data BI Summary'!$2:$2,0),FALSE),INDIRECT("'"&$F21&"'!"&"$A:$K"),9,FALSE) -> 0.04386661374 | K21: =VLOOKUP(VLOOKUP($G21,'Data BI Summary'!$A:$F,MATCH(K$1,'Data BI Summary'!$2:$2,0),FALSE),INDIRECT("'"&$F21&"'!"&"$A:$K"),8,FALSE) -> 4.05756 | L21: =VLOOKUP(VLOOKUP($G21,'Data BI Summary'!$A:$F,MATCH(L$1,'Data BI Summary'!$2:$2,0),FALSE),INDIRECT("'"&$F21&"'!"&"$A:$K"),9,FALSE) -> 0.01048499383
A22: Seasonal | B22: Low | C22: =VLOOKUP(A$22,'Data Billing Quantities'!A:P,MATCH(B22&" kWh",'Data Billing Quantities'!$4:$4,0),FALSE) -> 50 | E22: 50 | F22: BI_Seas_Low | G22: BI Template_Energy | H22: =VLOOKUP(VLOOKUP($G22,'Data BI Summary'!$A:$F,MATCH(H$1,'Data BI Summary'!$2:$2,0),FALSE),INDIRECT("'"&$F22&"'!"&"$A:$K"),4,FALSE) -> 54.55607904 | I22: =VLOOKUP(VLOOKUP($G22,'Data BI Summary'!$A:$F,MATCH(I$1,'Data BI Summary'!$2:$2,0),FALSE),INDIRECT("'"&$F22&"'!"&"$A:$K"),8,FALSE) -> 1.79 | J22: =VLOOKUP(VLOOKUP($G22,'Data BI Summary'!$A:$F,MATCH(J$1,'Data BI Summary'!$2:$2,0),FALSE),INDIRECT("'"&$F22&"'!"&"$A:$K"),9,FALSE) -> 0.03457600927 | K22: =VLOOKUP(VLOOKUP($G22,'Data BI Summary'!$A:$F,MATCH(K$1,'Data BI Summary'!$2:$2,0),FALSE),INDIRECT("'"&$F22&"'!"&"$A:$K"),8,FALSE) -> 1.64322 | L22: =VLOOKUP(VLOOKUP($G22,'Data BI Summary'!$A:$F,MATCH(L$1,'Data BI Summary'!$2:$2,0),FALSE),INDIRECT("'"&$F22&"'!"&"$A:$K"),9,FALSE) -> 0.03011983319 | M22: TOU | P22: 0 | Q22: 0 | R22: 0 | S22: 0 | T22: 0 | U22: 0
B23: Average | C23: =VLOOKUP(A$22,'Data Billing Quantities'!A:P,MATCH(B23&" kWh",'Data Billing Quantities'!$4:$4,0),FALSE) -> 352 | E23: 352 | F23: BI_Seas_Avg | G23: BI Template_Energy | H23: =VLOOKUP(VLOOKUP($G23,'Data BI Summary'!$A:$F,MATCH(H$1,'Data BI Summary'!$2:$2,0),FALSE),INDIRECT("'"&$F23&"'!"&"$A:$K"),4,FALSE) -> 104.0664364 | I23: =VLOOKUP(VLOOKUP($G23,'Data BI Summary'!$A:$F,MATCH(I$1,'Data BI Summary'!$2:$2,0),FALSE),INDIRECT("'"&$F23&"'!"&"$A:$K"),8,FALSE) -> 1.79 | J23: =VLOOKUP(VLOOKUP($G23,'Data BI Summary'!$A:$F,MATCH(J$1,'Data BI Summary'!$2:$2,0),FALSE),INDIRECT("'"&$F23&"'!"&"$A:$K"),9,FALSE) -> 0.02779779357 | K23: =VLOOKUP(VLOOKUP($G23,'Data BI Summary'!$A:$F,MATCH(K$1,'Data BI Summary'!$2:$2,0),FALSE),INDIRECT("'"&$F23&"'!"&"$A:$K"),8,FALSE) -> 1.64322 | L23: =VLOOKUP(VLOOKUP($G23,'Data BI Summary'!$A:$F,MATCH(L$1,'Data BI Summary'!$2:$2,0),FALSE),INDIRECT("'"&$F23&"'!"&"$A:$K"),9,FALSE) -> 0.0157901054 | P23: 0 | Q23: 0 | R23: 0 | S23: 0 | T23: 0 | U23: 0
B24: High | C24: =VLOOKUP(A$22,'Data Billing Quantities'!A:P,MATCH(B24&" kWh",'Data Billing Quantities'!$4:$4,0),FALSE) -> 1000 | E24: 1000 | F24: BI_Seas_High | G24: BI Template_Energy | H24: =VLOOKUP(VLOOKUP($G24,'Data BI Summary'!$A:$F,MATCH(H$1,'Data BI Summary'!$2:$2,0),FALSE),INDIRECT("'"&$F24&"'!"&"$A:$K"),4,FALSE) -> 210.3005808 | I24: =VLOOKUP(VLOOKUP($G24,'Data BI Summary'!$A:$F,MATCH(I$1,'Data BI Summary'!$2:$2,0),FALSE),INDIRECT("'"&$F24&"'!"&"$A:$K"),8,FALSE) -> 1.79 | J24: =VLOOKUP(VLOOKUP($G24,'Data BI Summary'!$A:$F,MATCH(J$1,'Data BI Summary'!$2:$2,0),FALSE),INDIRECT("'"&$F24&"'!"&"$A:$K"),9,FALSE) -> 0.0195671185 | K24: =VLOOKUP(VLOOKUP($G24,'Data BI Summary'!$A:$F,MATCH(K$1,'Data BI Summary'!$2:$2,0),FALSE),INDIRECT("'"&$F24&"'!"&"$A:$K"),8,FALSE) -> 1.64322 | L24: =VLOOKUP(VLOOKUP($G24,'Data BI Summary'!$A:$F,MATCH(L$1,'Data BI Summary'!$2:$2,0),FALSE),INDIRECT("'"&$F24&"'!"&"$A:$K"),9,FALSE) -> 0.007813673142 | P24: 0 | Q24: 0 | R24: 0 | S24: 0 | T24: 0 | U24: 0
A25: GSe | B25: Low | C25: =VLOOKUP(A$25,'Data Billing Quantities'!A:P,MATCH(B25&" kWh",'Data Billing Quantities'!$4:$4,0),FALSE) -> 1000 | E25: 1000 | F25: BI_GSe_Low | G25: BI Template_Energy | H25: =VLOOKUP(VLOOKUP($G25,'Data BI Summary'!$A:$F,MATCH(H$1,'Data BI Summary'!$2:$2,0),FALSE),INDIRECT("'"&$F25&"'!"&"$A:$K"),4,FALSE) -> 211.751388 | I25: =VLOOKUP(VLOOKUP($G25,'Data BI Summary'!$A:$F,MATCH(I$1,'Data BI Summary'!$2:$2,0),FALSE),INDIRECT("'"&$F25&"'!"&"$A:$K"),8,FALSE) -> 3.31 | J25: =VLOOKUP(VLOOKUP($G25,'Data BI Summary'!$A:$F,MATCH(J$1,'Data BI Summary'!$2:$2,0),FALSE),INDIRECT("'"&$F25&"'!"&"$A:$K"),9,FALSE) -> 0.03503016192 | K25: =VLOOKUP(VLOOKUP($G25,'Data BI Summary'!$A:$F,MATCH(K$1,'Data BI Summary'!$2:$2,0),FALSE),INDIRECT("'"&$F25&"'!"&"$A:$K"),8,FALSE) -> 3.03858 | L25: =VLOOKUP(VLOOKUP($G25,'Data BI Summary'!$A:$F,MATCH(L$1,'Data BI Summary'!$2:$2,0),FALSE),INDIRECT("'"&$F25&"'!"&"$A:$K"),9,FALSE) -> 0.01434975246 | M25: TOU | P25: 0 | Q25: 0 | R25: 0 | S25: 0 | T25: 0 | U25: 0
B26: Typical | C26: =VLOOKUP(A$25,'Data Billing Quantities'!A:P,MATCH(B26&" kWh",'Data Billing Quantities'!$4:$4,0),FALSE) -> 2000 | E26: 2000 | F26: BI_GSe_Typical | G26: BI Template_Energy | H26: =VLOOKUP(VLOOKUP($G26,'Data BI Summary'!$A:$F,MATCH(H$1,'Data BI Summary'!$2:$2,0),FALSE),INDIRECT("'"&$F26&"'!"&"$A:$K"),4,FALSE) -> 393.474996 | I26: =VLOOKUP(VLOOKUP($G26,'Data BI Summary'!$A:$F,MATCH(I$1,'Data BI Summary'!$2:$2,0),FALSE),INDIRECT("'"&$F26&"'!"&"$A:$K"),8,FALSE) -> 5.51 | J26: =VLOOKUP(VLOOKUP($G26,'Data BI Summary'!$A:$F,MATCH(J$1,'Data BI Summary'!$2:$2,0),FALSE),INDIRECT("'"&$F26&"'!"&"$A:$K"),9,FALSE) -> 0.03507543446 | K26: =VLOOKUP(VLOOKUP($G26,'Data BI Summary'!$A:$F,MATCH(K$1,'Data BI Summary'!$2:$2,0),FALSE),INDIRECT("'"&$F26&"'!"&"$A:$K"),8,FALSE) -> 5.05818 | L26: =VLOOKUP(VLOOKUP($G26,'Data BI Summary'!$A:$F,MATCH(L$1,'Data BI Summary'!$2:$2,0),FALSE),INDIRECT("'"&$F26&"'!"&"$A:$K"),9,FALSE) -> 0.01285514976 | P26: 0 | Q26: 0 | R26: 0 | S26: 0 | T26: 0 | U26: 0
B27: Average | C27: =VLOOKUP(A$25,'Data Billing Quantities'!A:P,MATCH(B27&" kWh",'Data Billing Quantities'!$4:$4,0),FALSE) -> 1982 | E27: 1982 | F27: BI_GSe_Avg | G27: BI Template_Energy | H27: =VLOOKUP(VLOOKUP($G27,'Data BI Summary'!$A:$F,MATCH(H$1,'Data BI Summary'!$2:$2,0),FALSE),INDIRECT("'"&$F27&"'!"&"$A:$K"),4,FALSE) -> 390.2039711 | I27: =VLOOKUP(VLOOKUP($G27,'Data BI Summary'!$A:$F,MATCH(I$1,'Data BI Summary'!$2:$2,0),FALSE),INDIRECT("'"&$F27&"'!"&"$A:$K"),8,FALSE) -> 5.4704 | J27: =VLOOKUP(VLOOKUP($G27,'Data BI Summary'!$A:$F,MATCH(J$1,'Data BI Summary'!$2:$2,0),FALSE),INDIRECT("'"&$F27&"'!"&"$A:$K"),9,FALSE) -> 0.03507494076 | K27: =VLOOKUP(VLOOKUP($G27,'Data BI Summary'!$A:$F,MATCH(K$1,'Data BI Summary'!$2:$2,0),FALSE),INDIRECT("'"&$F27&"'!"&"$A:$K"),8,FALSE) -> 5.0218272 | L27: =VLOOKUP(VLOOKUP($G27,'Data BI Summary'!$A:$F,MATCH(L$1,'Data BI Summary'!$2:$2,0),FALSE),INDIRECT("'"&$F27&"'!"&"$A:$K"),9,FALSE) -> 0.01286974909 | P27: 0 | Q27: 0 | R27: 0 | S27: 0 | T27: 0 | U27: 0
B28: High | C28: =VLOOKUP(A$25,'Data Billing Quantities'!A:P,MATCH(B28&" kWh",'Data Billing Quantities'!$4:$4,0),FALSE) -> 15000 | E28: 15000 | F28: BI_GSe_High | G28: BI Template_Energy | H28: =VLOOKUP(VLOOKUP($G28,'Data BI Summary'!$A:$F,MATCH(H$1,'Data BI Summary'!$2:$2,0),FALSE),INDIRECT("'"&$F28&"'!"&"$A:$K"),4,FALSE) -> 2755.8819 | I28: =VLOOKUP(VLOOKUP($G28,'Data BI Summary'!$A:$F,MATCH(I$1,'Data BI Summary'!$2:$2,0),FALSE),INDIRECT("'"&$F28&"'!"&"$A:$K"),8,FALSE) -> 34.11 | J28: =VLOOKUP(VLOOKUP($G28,'Data BI Summary'!$A:$F,MATCH(J$1,'Data BI Summary'!$2:$2,0),FALSE),INDIRECT("'"&$F28&"'!"&"$A:$K"),9,FALSE) -> 0.03513271328 | K28: =VLOOKUP(VLOOKUP($G28,'Data BI Summary'!$A:$F,MATCH(K$1,'Data BI Summary'!$2:$2,0),FALSE),INDIRECT("'"&$F28&"'!"&"$A:$K"),8,FALSE) -> 31.31298 | L28: =VLOOKUP(VLOOKUP($G28,'Data BI Summary'!$A:$F,MATCH(L$1,'Data BI Summary'!$2:$2,0),FALSE),INDIRECT("'"&$F28&"'!"&"$A:$K"),9,FALSE) -> 0.01136223581 | P28: 0 | Q28: 0 | R28: 0 | S28: 0 | T28: 0 | U28: 0
A29: UGe | B29: Low | C29: =VLOOKUP(A$29,'Data Billing Quantities'!A:P,MATCH(B29&" kWh",'Data Billing Quantities'!$4:$4,0),FALSE) -> 1000 | E29: 1000 | F29: BI_UGe_Low | G29: BI Template_Energy | H29: =VLOOKUP(VLOOKUP($G29,'Data BI Summary'!$A:$F,MATCH(H$1,'Data BI Summary'!$2:$2,0),FALSE),INDIRECT("'"&$F29&"'!"&"$A:$K"),4,FALSE) -> 172.7902746 | I29: =VLOOKUP(VLOOKUP($G29,'Data BI Summary'!$A:$F,MATCH(I$1,'Data BI Summary'!$2:$2,0),FALSE),INDIRECT("'"&$F29&"'!"&"$A:$K"),8,FALSE) -> 1.81 | J29: =VLOOKUP(VLOOKUP($G29,'Data BI Summary'!$A:$F,MATCH(J$1,'Data BI Summary'!$2:$2,0),FALSE),INDIRECT("'"&$F29&"'!"&"$A:$K"),9,FALSE) -> 0.03291507547 | K29: =VLOOKUP(VLOOKUP($G29,'Data BI Summary'!$A:$F,MATCH(K$1,'Data BI Summary'!$2:$2,0),FALSE),INDIRECT("'"&$F29&"'!"&"$A:$K"),8,FALSE) -> 1.66158 | L29: =VLOOKUP(VLOOKUP($G29,'Data BI Summary'!$A:$F,MATCH(L$1,'Data BI Summary'!$2:$2,0),FALSE),INDIRECT("'"&$F29&"'!"&"$A:$K"),9,FALSE) -> 0.00961616621 | M29: TOU | P29: 0 | Q29: 0 | R29: 0 | S29: 0 | T29: 0 | U29: 0
B30: Typical | C30: =VLOOKUP(A$29,'Data Billing Quantities'!A:P,MATCH(B30&" kWh",'Data Billing Quantities'!$4:$4,0),FALSE) -> 2000 | E30: 2000 | F30: BI_UGe_Typical | G30: BI Template_Energy | H30: =VLOOKUP(VLOOKUP($G30,'Data BI Summary'!$A:$F,MATCH(H$1,'Data BI Summary'!$2:$2,0),FALSE),INDIRECT("'"&$F30&"'!"&"$A:$K"),4,FALSE) -> 321.7951692 | I30: =VLOOKUP(VLOOKUP($G30,'Data BI Summary'!$A:$F,MATCH(I$1,'Data BI Summary'!$2:$2,0),FALSE),INDIRECT("'"&$F30&"'!"&"$A:$K"),8,FALSE) -> 2.81 | J30: =VLOOKUP(VLOOKUP($G30,'Data BI Summary'!$A:$F,MATCH(J$1,'Data BI Summary'!$2:$2,0),FALSE),INDIRECT("'"&$F30&"'!"&"$A:$K"),9,FALSE) -> 0.03310166097 | K30: =VLOOKUP(VLOOKUP($G30,'Data BI Summary'!$A:$F,MATCH(K$1,'Data BI Summary'!$2:$2,0),FALSE),INDIRECT("'"&$F30&"'!"&"$A:$K"),8,FALSE) -> 2.57958 | L30: =VLOOKUP(VLOOKUP($G30,'Data BI Summary'!$A:$F,MATCH(L$1,'Data BI Summary'!$2:$2,0),FALSE),INDIRECT("'"&$F30&"'!"&"$A:$K"),9,FALSE) -> 0.008016217293 | P30: 0 | Q30: 0 | R30: 0 | S30: 0 | T30: 0 | U30: 0
B31: Average | C31: =VLOOKUP(A$29,'Data Billing Quantities'!A:P,MATCH(B31&" kWh",'Data Billing Quantities'!$4:$4,0),FALSE) -> 2759 | E31: 2759 | F31: BI_UGe_Avg | G31: BI Template_Energy | H31: =VLOOKUP(VLOOKUP($G31,'Data BI Summary'!$A:$F,MATCH(H$1,'Data BI Summary'!$2:$2,0),FALSE),INDIRECT("'"&$F31&"'!"&"$A:$K"),4,FALSE) -> 434.8898842 | I31: =VLOOKUP(VLOOKUP($G31,'Data BI Summary'!$A:$F,MATCH(I$1,'Data BI Summary'!$2:$2,0),FALSE),INDIRECT("'"&$F31&"'!"&"$A:$K"),8,FALSE) -> 3.569 | J31: =VLOOKUP(VLOOKUP($G31,'Data BI Summary'!$A:$F,MATCH(J$1,'Data BI Summary'!$2:$2,0),FALSE),INDIRECT("'"&$F31&"'!"&"$A:$K"),9,FALSE) -> 0.03317404709 | K31: =VLOOKUP(VLOOKUP($G31,'Data BI Summary'!$A:$F,MATCH(K$1,'Data BI Summary'!$2:$2,0),FALSE),INDIRECT("'"&$F31&"'!"&"$A:$K"),8,FALSE) -> 3.276342 | L31: =VLOOKUP(VLOOKUP($G31,'Data BI Summary'!$A:$F,MATCH(L$1,'Data BI Summary'!$2:$2,0),FALSE),INDIRECT("'"&$F31&"'!"&"$A:$K"),9,FALSE) -> 0.007533727776 | P31: 0 | Q31: 0 | R31: 0 | S31: 0 | T31: 0 | U31: 0
B32: High | C32: =VLOOKUP(A$29,'Data Billing Quantities'!A:P,MATCH(B32&" kWh",'Data Billing Quantities'!$4:$4,0),FALSE) -> 15000 | E32: 15000 | F32: BI_UGe_High | G32: BI Template_Energy | H32: =VLOOKUP(VLOOKUP($G32,'Data BI Summary'!$A:$F,MATCH(H$1,'Data BI Summary'!$2:$2,0),FALSE),INDIRECT("'"&$F32&"'!"&"$A:$K"),4,FALSE) -> 2258.858799 | I32: =VLOOKUP(VLOOKUP($G32,'Data BI Summary'!$A:$F,MATCH(I$1,'Data BI Summary'!$2:$2,0),FALSE),INDIRECT("'"&$F32&"'!"&"$A:$K"),8,FALSE) -> 15.81 | J32: =VLOOKUP(VLOOKUP($G32,'Data BI Summary'!$A:$F,MATCH(J$1,'Data BI Summary'!$2:$2,0),FALSE),INDIRECT("'"&$F32&"'!"&"$A:$K"),9,FALSE) -> 0.03338330624 | K32: =VLOOKUP(VLOOKUP($G32,'Data BI Summary'!$A:$F,MATCH(K$1,'Data BI Summary'!$2:$2,0),FALSE),INDIRECT("'"&$F32&"'!"&"$A:$K"),8,FALSE) -> 14.51358 | L32: =VLOOKUP(VLOOKUP($G32,'Data BI Summary'!$A:$F,MATCH(L$1,'Data BI Summary'!$2:$2,0),FALSE),INDIRECT("'"&$F32&"'!"&"$A:$K"),9,FALSE) -> 0.006425182489 | P32: 0 | Q32: 0 | R32: 0 | S32: 0 | T32: 0 | U32: 0
A33: GSd | B33: Low | C33: =VLOOKUP(A$33,'Data Billing Quantities'!A:P,MATCH(B33&" kWh",'Data Billing Quantities'!$4:$4,0),FALSE) -> 15000 | D33: =VLOOKUP(A$33,'Data Billing Quantities'!A:P,MATCH(B33&" kW",'Data Billing Quantities'!$4:$4,0),FALSE) -> 60 | E33: 15,000/60 | F33: BI_GSd_Low | G33: BI Template_Demand | H33: =VLOOKUP(VLOOKUP($G33,'Data BI Summary'!$A:$F,MATCH(H$1,'Data BI Summary'!$2:$2,0),FALSE),INDIRECT("'"&$F33&"'!"&"$A:$K"),4,FALSE) -> 3534.168225 | I33: =VLOOKUP(VLOOKUP($G33,'Data BI Summary'!$A:$F,MATCH(I$1,'Data BI Summary'!$2:$2,0),FALSE),INDIRECT("'"&$F33&"'!"&"$A:$K"),8,FALSE) -> 48.368 | J33: =VLOOKUP(VLOOKUP($G33,'Data BI Summary'!$A:$F,MATCH(J$1,'Data BI Summary'!$2:$2,0),FALSE),INDIRECT("'"&$F33&"'!"&"$A:$K"),9,FALSE) -> 0.0428096203 | K33: =VLOOKUP(VLOOKUP($G33,'Data BI Summary'!$A:$F,MATCH(K$1,'Data BI Summary'!$2:$2,0),FALSE),INDIRECT("'"&$F33&"'!"&"$A:$K"),8,FALSE) -> 54.65584 | L33: =VLOOKUP(VLOOKUP($G33,'Data BI Summary'!$A:$F,MATCH(L$1,'Data BI Summary'!$2:$2,0),FALSE),INDIRECT("'"&$F33&"'!"&"$A:$K"),9,FALSE) -> 0.01546497974 | M33: Non-RPP | P33: 0 | Q33: 0 | R33: 0 | S33: 0 | T33: N/A | U33: 0 | V33: 0
B34: Average | C34: =VLOOKUP(A$33,'Data Billing Quantities'!A:P,MATCH(B34&" kWh",'Data Billing Quantities'!$4:$4,0),FALSE) -> 36104 | D34: =VLOOKUP(A$33,'Data Billing Quantities'!A:P,MATCH(B34&" kW",'Data Billing Quantities'!$4:$4,0),FALSE) -> 124 | E34: 36,104/124 | F34: BI_GSd_Avg | G34: BI Template_Demand | H34: =VLOOKUP(VLOOKUP($G34,'Data BI Summary'!$A:$F,MATCH(H$1,'Data BI Summary'!$2:$2,0),FALSE),INDIRECT("'"&$F34&"'!"&"$A:$K"),4,FALSE) -> 7832.793857 | I34: =VLOOKUP(VLOOKUP($G34,'Data BI Summary'!$A:$F,MATCH(I$1,'Data BI Summary'!$2:$2,0),FALSE),INDIRECT("'"&$F34&"'!"&"$A:$K"),8,FALSE) -> 95.3312 | J34: =VLOOKUP(VLOOKUP($G34,'Data BI Summary'!$A:$F,MATCH(J$1,'Data BI Summary'!$2:$2,0),FALSE),INDIRECT("'"&$F34&"'!"&"$A:$K"),9,FALSE) -> 0.04333227582 | K34: =VLOOKUP(VLOOKUP($G34,'Data BI Summary'!$A:$F,MATCH(K$1,'Data BI Summary'!$2:$2,0),FALSE),INDIRECT("'"&$F34&"'!"&"$A:$K"),8,FALSE) -> 107.724256 | L34: =VLOOKUP(VLOOKUP($G34,'Data BI Summary'!$A:$F,MATCH(L$1,'Data BI Summary'!$2:$2,0),FALSE),INDIRECT("'"&$F34&"'!"&"$A:$K"),9,FALSE) -> 0.01375297984 | P34: 0 | Q34: 0 | R34: 0 | S34: 0 | T34: N/A | U34: 0 | V34: 0
B35: High | C35: =VLOOKUP(A$33,'Data Billing Quantities'!A:P,MATCH(B35&" kWh",'Data Billing Quantities'!$4:$4,0),FALSE) -> 175000 | D35: =VLOOKUP(A$33,'Data Billing Quantities'!A:P,MATCH(B35&" kW",'Data Billing Quantities'!$4:$4,0),FALSE) -> 500 | E35: 175,000/500 | F35: BI_GSd_High | G35: BI Template_Demand | H35: =VLOOKUP(VLOOKUP($G35,'Data BI Summary'!$A:$F,MATCH(H$1,'Data BI Summary'!$2:$2,0),FALSE),INDIRECT("'"&$F35&"'!"&"$A:$K"),4,FALSE) -> 35008.89442 | I35: =VLOOKUP(VLOOKUP($G35,'Data BI Summary'!$A:$F,MATCH(I$1,'Data BI Summary'!$2:$2,0),FALSE),INDIRECT("'"&$F35&"'!"&"$A:$K"),8,FALSE) -> 371.24 | J35: =VLOOKUP(VLOOKUP($G35,'Data BI Summary'!$A:$F,MATCH(J$1,'Data BI Summary'!$2:$2,0),FALSE),INDIRECT("'"&$F35&"'!"&"$A:$K"),9,FALSE) -> 0.04406133622 | K35: =VLOOKUP(VLOOKUP($G35,'Data BI Summary'!$A:$F,MATCH(K$1,'Data BI Summary'!$2:$2,0),FALSE),INDIRECT("'"&$F35&"'!"&"$A:$K"),8,FALSE) -> 419.5012 | L35: =VLOOKUP(VLOOKUP($G35,'Data BI Summary'!$A:$F,MATCH(L$1,'Data BI Summary'!$2:$2,0),FALSE),INDIRECT("'"&$F35&"'!"&"$A:$K"),9,FALSE) -> 0.01198270345 | P35: 0 | Q35: 0 | R35: 0 | S35: 0 | T35: N/A | U35: 0 | V35: 0
A36: UGd | B36: Low | C36: =VLOOKUP(A$36,'Data Billing Quantities'!A:P,MATCH(B36&" kWh",'Data Billing Quantities'!$4:$4,0),FALSE) -> 15000 | D36: =VLOOKUP(A$36,'Data Billing Quantities'!A:P,MATCH(B36&" kW",'Data Billing Quantities'!$4:$4,0),FALSE) -> 60 | E36: 15,000/60 | F36: BI_UGd_Low | G36: BI Template_Demand | H36: =VLOOKUP(VLOOKUP($G36,'Data BI Summary'!$A:$F,MATCH(H$1,'Data BI Summary'!$2:$2,0),FALSE),INDIRECT("'"&$F36&"'!"&"$A:$K"),4,FALSE) -> 3072.24287 | I36: =VLOOKUP(VLOOKUP($G36,'Data BI Summary'!$A:$F,MATCH(I$1,'Data BI Summary'!$2:$2,0),FALSE),INDIRECT("'"&$F36&"'!"&"$A:$K"),8,FALSE) -> 28.724 | J36: =VLOOKUP(VLOOKUP($G36,'Data BI Summary'!$A:$F,MATCH(J$1,'Data BI Summary'!$2:$2,0),FALSE),INDIRECT("'"&$F36&"'!"&"$A:$K"),9,FALSE) -> 0.04240837774 | K36: =VLOOKUP(VLOOKUP($G36,'Data BI Summary'!$A:$F,MATCH(K$1,'Data BI Summary'!$2:$2,0),FALSE),INDIRECT("'"&$F36&"'!"&"$A:$K"),8,FALSE) -> 32.45812 | L36: =VLOOKUP(VLOOKUP($G36,'Data BI Summary'!$A:$F,MATCH(L$1,'Data BI Summary'!$2:$2,0),FALSE),INDIRECT("'"&$F36&"'!"&"$A:$K"),9,FALSE) -> 0.01056495901 | M36: Non-RPP | P36: 0 | Q36: 0 | R36: 0 | S36: 0 | T36: N/A | U36: 0 | V36: 0
B37: Average | C37: =VLOOKUP(A$36,'Data Billing Quantities'!A:P,MATCH(B37&" kWh",'Data Billing Quantities'!$4:$4,0),FALSE) -> 50525 | D37: =VLOOKUP(A$36,'Data Billing Quantities'!A:P,MATCH(B37&" kW",'Data Billing Quantities'!$4:$4,0),FALSE) -> 135 | E37: 50,525/135 | F37: BI_UGd_Avg | G37: BI Template_Demand | H37: =VLOOKUP(VLOOKUP($G37,'Data BI Summary'!$A:$F,MATCH(H$1,'Data BI Summary'!$2:$2,0),FALSE),INDIRECT("'"&$F37&"'!"&"$A:$K"),4,FALSE) -> 8912.282739 | I37: =VLOOKUP(VLOOKUP($G37,'Data BI Summary'!$A:$F,MATCH(I$1,'Data BI Summary'!$2:$2,0),FALSE),INDIRECT("'"&$F37&"'!"&"$A:$K"),8,FALSE) -> 59.729 | J37: =VLOOKUP(VLOOKUP($G37,'Data BI Summary'!$A:$F,MATCH(J$1,'Data BI Summary'!$2:$2,0),FALSE),INDIRECT("'"&$F37&"'!"&"$A:$K"),9,FALSE) -> 0.04484877598 | K37: =VLOOKUP(VLOOKUP($G37,'Data BI Summary'!$A:$F,MATCH(K$1,'Data BI Summary'!$2:$2,0),FALSE),INDIRECT("'"&$F37&"'!"&"$A:$K"),8,FALSE) -> 67.49377 | L37: =VLOOKUP(VLOOKUP($G37,'Data BI Summary'!$A:$F,MATCH(L$1,'Data BI Summary'!$2:$2,0),FALSE),INDIRECT("'"&$F37&"'!"&"$A:$K"),9,FALSE) -> 0.007573118131 | P37: 0 | Q37: 0 | R37: 0 | S37: 0 | T37: N/A | U37: 0 | V37: 0
B38: High | C38: =VLOOKUP(A$36,'Data Billing Quantities'!A:P,MATCH(B38&" kWh",'Data Billing Quantities'!$4:$4,0),FALSE) -> 175000 | D38: =VLOOKUP(A$36,'Data Billing Quantities'!A:P,MATCH(B38&" kW",'Data Billing Quantities'!$4:$4,0),FALSE) -> 500 | E38: 175,000/500 | F38: BI_UGd_High | G38: BI Template_Demand | H38: =VLOOKUP(VLOOKUP($G38,'Data BI Summary'!$A:$F,MATCH(H$1,'Data BI Summary'!$2:$2,0),FALSE),INDIRECT("'"&$F38&"'!"&"$A:$K"),4,FALSE) -> 31158.74995 | I38: =VLOOKUP(VLOOKUP($G38,'Data BI Summary'!$A:$F,MATCH(I$1,'Data BI Summary'!$2:$2,0),FALSE),INDIRECT("'"&$F38&"'!"&"$A:$K"),8,FALSE) -> 210.62 | J38: =VLOOKUP(VLOOKUP($G38,'Data BI Summary'!$A:$F,MATCH(J$1,'Data BI Summary'!$2:$2,0),FALSE),INDIRECT("'"&$F38&"'!"&"$A:$K"),9,FALSE) -> 0.04466911199 | K38: =VLOOKUP(VLOOKUP($G38,'Data BI Summary'!$A:$F,MATCH(K$1,'Data BI Summary'!$2:$2,0),FALSE),INDIRECT("'"&$F38&"'!"&"$A:$K"),8,FALSE) -> 238.0006 | L38: =VLOOKUP(VLOOKUP($G38,'Data BI Summary'!$A:$F,MATCH(L$1,'Data BI Summary'!$2:$2,0),FALSE),INDIRECT("'"&$F38&"'!"&"$A:$K"),9,FALSE) -> 0.007638323116 | P38: 0 | Q38: 0 | R38: 0 | S38: 0 | T38: N/A | U38: 0 | V38: 0
A39: St Lgt | B39: Low | C39: =VLOOKUP(A$39,'Data Billing Quantities'!A:P,MATCH(B39&" kWh",'Data Billing Quantities'!$4:$4,0),FALSE) -> 100 | E39: 100 | F39: BI_StLgt_Low | G39: BI Template_EnergyUNM | H39: =VLOOKUP(VLOOKUP($G39,'Data BI Summary'!$A:$F,MATCH(H$1,'Data BI Summary'!$2:$2,0),FALSE),INDIRECT("'"&$F39&"'!"&"$A:$K"),4,FALSE) -> 24.42603384 | I39: =VLOOKUP(VLOOKUP($G39,'Data BI Summary'!$A:$F,MATCH(I$1,'Data BI Summary'!$2:$2,0),FALSE),INDIRECT("'"&$F39&"'!"&"$A:$K"),8,FALSE) -> 0.45 | J39: =VLOOKUP(VLOOKUP($G39,'Data BI Summary'!$A:$F,MATCH(J$1,'Data BI Summary'!$2:$2,0),FALSE),INDIRECT("'"&$F39&"'!"&"$A:$K"),9,FALSE) -> 0.03232758621 | K39: =VLOOKUP(VLOOKUP($G39,'Data BI Summary'!$A:$F,MATCH(K$1,'Data BI Summary'!$2:$2,0),FALSE),INDIRECT("'"&$F39&"'!"&"$A:$K"),8,FALSE) -> 0.4131 | L39: =VLOOKUP(VLOOKUP($G39,'Data BI Summary'!$A:$F,MATCH(L$1,'Data BI Summary'!$2:$2,0),FALSE),INDIRECT("'"&$F39&"'!"&"$A:$K"),9,FALSE) -> 0.01691228313 | M39: Two-tier RPP | P39: 0 | Q39: 0 | R39: 0 | S39: 0 | T39: N/A | U39: 0
B40: Average | C40: =VLOOKUP(A$39,'Data Billing Quantities'!A:P,MATCH(B40&" kWh",'Data Billing Quantities'!$4:$4,0),FALSE) -> 517 | E40: 517 | F40: BI_StLgt_Avg | G40: BI Template_EnergyUNM | H40: =VLOOKUP(VLOOKUP($G40,'Data BI Summary'!$A:$F,MATCH(H$1,'Data BI Summary'!$2:$2,0),FALSE),INDIRECT("'"&$F40&"'!"&"$A:$K"),4,FALSE) -> 112.118773 | I40: =VLOOKUP(VLOOKUP($G40,'Data BI Summary'!$A:$F,MATCH(I$1,'Data BI Summary'!$2:$2,0),FALSE),INDIRECT("'"&$F40&"'!"&"$A:$K"),8,FALSE) -> 1.8678 | J40: =VLOOKUP(VLOOKUP($G40,'Data BI Summary'!$A:$F,MATCH(J$1,'Data BI Summary'!$2:$2,0),FALSE),INDIRECT("'"&$F40&"'!"&"$A:$K"),9,FALSE) -> 0.03243840298 | K40: =VLOOKUP(VLOOKUP($G40,'Data BI Summary'!$A:$F,MATCH(K$1,'Data BI Summary'!$2:$2,0),FALSE),INDIRECT("'"&$F40&"'!"&"$A:$K"),8,FALSE) -> 1.7146404 | L40: =VLOOKUP(VLOOKUP($G40,'Data BI Summary'!$A:$F,MATCH(L$1,'Data BI Summary'!$2:$2,0),FALSE),INDIRECT("'"&$F40&"'!"&"$A:$K"),9,FALSE) -> 0.0152930714 | P40: 0 | Q40: 0 | R40: 0 | S40: 0 | T40: N/A | U40: 0
B41: High | C41: =VLOOKUP(A$39,'Data Billing Quantities'!A:P,MATCH(B41&" kWh",'Data Billing Quantities'!$4:$4,0),FALSE) -> 2000 | E41: 2000 | F41: BI_StLgt_High | G41: BI Template_EnergyUNM | H41: =VLOOKUP(VLOOKUP($G41,'Data BI Summary'!$A:$F,MATCH(H$1,'Data BI Summary'!$2:$2,0),FALSE),INDIRECT("'"&$F41&"'!"&"$A:$K"),4,FALSE) -> 446.3642808 | I41: =VLOOKUP(VLOOKUP($G41,'Data BI Summary'!$A:$F,MATCH(I$1,'Data BI Summary'!$2:$2,0),FALSE),INDIRECT("'"&$F41&"'!"&"$A:$K"),8,FALSE) -> 6.91 | J41: =VLOOKUP(VLOOKUP($G41,'Data BI Summary'!$A:$F,MATCH(J$1,'Data BI Summary'!$2:$2,0),FALSE),INDIRECT("'"&$F41&"'!"&"$A:$K"),9,FALSE) -> 0.03246417665 | K41: =VLOOKUP(VLOOKUP($G41,'Data BI Summary'!$A:$F,MATCH(K$1,'Data BI Summary'!$2:$2,0),FALSE),INDIRECT("'"&$F41&"'!"&"$A:$K"),8,FALSE) -> 6.34338 | L41: =VLOOKUP(VLOOKUP($G41,'Data BI Summary'!$A:$F,MATCH(L$1,'Data BI Summary'!$2:$2,0),FALSE),INDIRECT("'"&$F41&"'!"&"$A:$K"),9,FALSE) -> 0.01421121777 | P41: 0 | Q41: 0 | R41: 0 | S41: 0 | T41: N/A | U41: 0
A42: Sen Lgt | B42: Low | C42: =VLOOKUP(A$42,'Data Billing Quantities'!A:P,MATCH(B42&" kWh",'Data Billing Quantities'!$4:$4,0),FALSE) -> 20 | E42: 20 | F42: BI_SenLgt_Low | G42: BI Template_EnergyUNM | H42: =VLOOKUP(VLOOKUP($G42,'Data BI Summary'!$A:$F,MATCH(H$1,'Data BI Summary'!$2:$2,0),FALSE),INDIRECT("'"&$F42&"'!"&"$A:$K"),4,FALSE) -> 7.88172768 | I42: =VLOOKUP(VLOOKUP($G42,'Data BI Summary'!$A:$F,MATCH(I$1,'Data BI Summary'!$2:$2,0),FALSE),INDIRECT("'"&$F42&"'!"&"$A:$K"),8,FALSE) -> 0.296 | J42: =VLOOKUP(VLOOKUP($G42,'Data BI Summary'!$A:$F,MATCH(J$1,'Data BI Summary'!$2:$2,0),FALSE),INDIRECT("'"&$F42&"'!"&"$A:$K"),9,FALSE) -> 0.05063291139 | K42: =VLOOKUP(VLOOKUP($G42,'Data BI Summary'!$A:$F,MATCH(K$1,'Data BI Summary'!$2:$2,0),FALSE),INDIRECT("'"&$F42&"'!"&"$A:$K"),8,FALSE) -> 0.271728 | L42: =VLOOKUP(VLOOKUP($G42,'Data BI Summary'!$A:$F,MATCH(L$1,'Data BI Summary'!$2:$2,0),FALSE),INDIRECT("'"&$F42&"'!"&"$A:$K"),9,FALSE) -> 0.03447568998 | M42: Two-tier RPP | P42: 0 | Q42: 0 | R42: 0 | S42: 0 | T42: N/A | U42: 0
B43: Average | C43: =VLOOKUP(A$42,'Data Billing Quantities'!A:P,MATCH(B43&" kWh",'Data Billing Quantities'!$4:$4,0),FALSE) -> 71 | E43: 71 | F43: BI_SenLgt_Avg | G43: BI Template_EnergyUNM | H43: =VLOOKUP(VLOOKUP($G43,'Data BI Summary'!$A:$F,MATCH(H$1,'Data BI Summary'!$2:$2,0),FALSE),INDIRECT("'"&$F43&"'!"&"$A:$K"),4,FALSE) -> 20.79357026 | I43: =VLOOKUP(VLOOKUP($G43,'Data BI Summary'!$A:$F,MATCH(I$1,'Data BI Summary'!$2:$2,0),FALSE),INDIRECT("'"&$F43&"'!"&"$A:$K"),8,FALSE) -> 0.6938 | J43: =VLOOKUP(VLOOKUP($G43,'Data BI Summary'!$A:$F,MATCH(J$1,'Data BI Summary'!$2:$2,0),FALSE),INDIRECT("'"&$F43&"'!"&"$A:$K"),9,FALSE) -> 0.05115651475 | K43: =VLOOKUP(VLOOKUP($G43,'Data BI Summary'!$A:$F,MATCH(K$1,'Data BI Summary'!$2:$2,0),FALSE),INDIRECT("'"&$F43&"'!"&"$A:$K"),8,FALSE) -> 0.6369084 | L43: =VLOOKUP(VLOOKUP($G43,'Data BI Summary'!$A:$F,MATCH(L$1,'Data BI Summary'!$2:$2,0),FALSE),INDIRECT("'"&$F43&"'!"&"$A:$K"),9,FALSE) -> 0.03063006458 | P43: 0 | Q43: 0 | R43: 0 | S43: 0 | T43: N/A | U43: 0
B44: High | C44: =VLOOKUP(A$42,'Data Billing Quantities'!A:P,MATCH(B44&" kWh",'Data Billing Quantities'!$4:$4,0),FALSE) -> 200 | E44: 200 | F44: BI_SenLgt_High | G44: BI Template_EnergyUNM | H44: =VLOOKUP(VLOOKUP($G44,'Data BI Summary'!$A:$F,MATCH(H$1,'Data BI Summary'!$2:$2,0),FALSE),INDIRECT("'"&$F44&"'!"&"$A:$K"),4,FALSE) -> 53.4529368 | I44: =VLOOKUP(VLOOKUP($G44,'Data BI Summary'!$A:$F,MATCH(I$1,'Data BI Summary'!$2:$2,0),FALSE),INDIRECT("'"&$F44&"'!"&"$A:$K"),8,FALSE) -> 1.7 | J44: =VLOOKUP(VLOOKUP($G44,'Data BI Summary'!$A:$F,MATCH(J$1,'Data BI Summary'!$2:$2,0),FALSE),INDIRECT("'"&$F44&"'!"&"$A:$K"),9,FALSE) -> 0.05139056832 | K44: =VLOOKUP(VLOOKUP($G44,'Data BI Summary'!$A:$F,MATCH(K$1,'Data BI Summary'!$2:$2,0),FALSE),INDIRECT("'"&$F44&"'!"&"$A:$K"),8,FALSE) -> 1.5606 | L44: =VLOOKUP(VLOOKUP($G44,'Data BI Summary'!$A:$F,MATCH(L$1,'Data BI Summary'!$2:$2,0),FALSE),INDIRECT("'"&$F44&"'!"&"$A:$K"),9,FALSE) -> 0.02919577657 | P44: 0 | Q44: 0 | R44: 0 | S44: 0 | T44: N/A | U44: 0
A45: USL | B45: Low | C45: =VLOOKUP(A$45,'Data Billing Quantities'!A:P,MATCH(B45&" kWh",'Data Billing Quantities'!$4:$4,0),FALSE) -> 100 | E45: 100 | F45: BI_USL_Low | G45: BI Template_EnergyUNM | H45: =VLOOKUP(VLOOKUP($G45,'Data BI Summary'!$A:$F,MATCH(H$1,'Data BI Summary'!$2:$2,0),FALSE),INDIRECT("'"&$F45&"'!"&"$A:$K"),4,FALSE) -> 48.03625944 | I45: =VLOOKUP(VLOOKUP($G45,'Data BI Summary'!$A:$F,MATCH(I$1,'Data BI Summary'!$2:$2,0),FALSE),INDIRECT("'"&$F45&"'!"&"$A:$K"),8,FALSE) -> 0.95 | J45: =VLOOKUP(VLOOKUP($G45,'Data BI Summary'!$A:$F,MATCH(J$1,'Data BI Summary'!$2:$2,0),FALSE),INDIRECT("'"&$F45&"'!"&"$A:$K"),9,FALSE) -> 0.02403238047 | K45: =VLOOKUP(VLOOKUP($G45,'Data BI Summary'!$A:$F,MATCH(K$1,'Data BI Summary'!$2:$2,0),FALSE),INDIRECT("'"&$F45&"'!"&"$A:$K"),8,FALSE) -> 0.8721 | L45: =VLOOKUP(VLOOKUP($G45,'Data BI Summary'!$A:$F,MATCH(L$1,'Data BI Summary'!$2:$2,0),FALSE),INDIRECT("'"&$F45&"'!"&"$A:$K"),9,FALSE) -> 0.0181550356 | M45: Two-tier RPP | P45: 0 | Q45: 0 | R45: 0 | S45: 0 | T45: N/A | U45: 0
B46: Average | C46: =VLOOKUP(A$45,'Data Billing Quantities'!A:P,MATCH(B46&" kWh",'Data Billing Quantities'!$4:$4,0),FALSE) -> 364 | E46: 364 | F46: BI_USL_Avg | G46: BI Template_EnergyUNM | H46: =VLOOKUP(VLOOKUP($G46,'Data BI Summary'!$A:$F,MATCH(H$1,'Data BI Summary'!$2:$2,0),FALSE),INDIRECT("'"&$F46&"'!"&"$A:$K"),4,FALSE) -> 84.45468836 | I46: =VLOOKUP(VLOOKUP($G46,'Data BI Summary'!$A:$F,MATCH(I$1,'Data BI Summary'!$2:$2,0),FALSE),INDIRECT("'"&$F46&"'!"&"$A:$K"),8,FALSE) -> 1.1084 | J46: =VLOOKUP(VLOOKUP($G46,'Data BI Summary'!$A:$F,MATCH(J$1,'Data BI Summary'!$2:$2,0),FALSE),INDIRECT("'"&$F46&"'!"&"$A:$K"),9,FALSE) -> 0.02405528114 | K46: =VLOOKUP(VLOOKUP($G46,'Data BI Summary'!$A:$F,MATCH(K$1,'Data BI Summary'!$2:$2,0),FALSE),INDIRECT("'"&$F46&"'!"&"$A:$K"),8,FALSE) -> 1.0175112 | L46: =VLOOKUP(VLOOKUP($G46,'Data BI Summary'!$A:$F,MATCH(L$1,'Data BI Summary'!$2:$2,0),FALSE),INDIRECT("'"&$F46&"'!"&"$A:$K"),9,FALSE) -> 0.0120480132 | P46: 0 | Q46: 0 | R46: 0 | S46: 0 | T46: N/A | U46: 0
B47: High | C47: =VLOOKUP(A$45,'Data Billing Quantities'!A:P,MATCH(B47&" kWh",'Data Billing Quantities'!$4:$4,0),FALSE) -> 1000 | E47: 1000 | F47: BI_USL_High | G47: BI Template_EnergyUNM | H47: =VLOOKUP(VLOOKUP($G47,'Data BI Summary'!$A:$F,MATCH(H$1,'Data BI Summary'!$2:$2,0),FALSE),INDIRECT("'"&$F47&"'!"&"$A:$K"),4,FALSE) -> 177.5272464 | I47: =VLOOKUP(VLOOKUP($G47,'Data BI Summary'!$A:$F,MATCH(I$1,'Data BI Summary'!$2:$2,0),FALSE),INDIRECT("'"&$F47&"'!"&"$A:$K"),8,FALSE) -> 1.49 | J47: =VLOOKUP(VLOOKUP($G47,'Data BI Summary'!$A:$F,MATCH(J$1,'Data BI Summary'!$2:$2,0),FALSE),INDIRECT("'"&$F47&"'!"&"$A:$K"),9,FALSE) -> 0.02409054163 | K47: =VLOOKUP(VLOOKUP($G47,'Data BI Summary'!$A:$F,MATCH(K$1,'Data BI Summary'!$2:$2,0),FALSE),INDIRECT("'"&$F47&"'!"&"$A:$K"),8,FALSE) -> 1.36782 | L47: =VLOOKUP(VLOOKUP($G47,'Data BI Summary'!$A:$F,MATCH(L$1,'Data BI Summary'!$2:$2,0),FALSE),INDIRECT("'"&$F47&"'!"&"$A:$K"),9,FALSE) -> 0.007704845469 | P47: 0 | Q47: 0 | R47: 0 | S47: 0 | T47: N/A | U47: 0
A48: DGen | B48: Low | C48: =VLOOKUP(A$48,'Data Billing Quantities'!A:P,MATCH($B48&" kWh",'Data Billing Quantities'!$4:$4,0),FALSE) -> 300 | D48: =VLOOKUP(A$48,'Data Billing Quantities'!A:P,MATCH($B48&" kW",'Data Billing Quantities'!$4:$4,0),FALSE) -> 10 | E48: 300/10 | F48: BI_Dgen_Low | G48: BI Template_Demand | H48: =VLOOKUP(VLOOKUP($G48,'Data BI Summary'!$A:$F,MATCH(H$1,'Data BI Summary'!$2:$2,0),FALSE),INDIRECT("'"&$F48&"'!"&"$A:$K"),4,FALSE) -> 385.2364925 | I48: =VLOOKUP(VLOOKUP($G48,'Data BI Summary'!$A:$F,MATCH(I$1,'Data BI Summary'!$2:$2,0),FALSE),INDIRECT("'"&$F48&"'!"&"$A:$K"),8,FALSE) -> 2.623 | J48: =VLOOKUP(VLOOKUP($G48,'Data BI Summary'!$A:$F,MATCH(J$1,'Data BI Summary'!$2:$2,0),FALSE),INDIRECT("'"&$F48&"'!"&"$A:$K"),9,FALSE) -> 0.009139448294 | K48: =VLOOKUP(VLOOKUP($G48,'Data BI Summary'!$A:$F,MATCH(K$1,'Data BI Summary'!$2:$2,0),FALSE),INDIRECT("'"&$F48&"'!"&"$A:$K"),8,FALSE) -> 2.96399 | L48: =VLOOKUP(VLOOKUP($G48,'Data BI Summary'!$A:$F,MATCH(L$1,'Data BI Summary'!$2:$2,0),FALSE),INDIRECT("'"&$F48&"'!"&"$A:$K"),9,FALSE) -> 0.007693949191 | M48: Non-RPP | P48: 0 | Q48: 0 | R48: 0 | S48: 0 | T48: N/A | U48: 0 | V48: 0
B49: Average | C49: =VLOOKUP(A$48,'Data Billing Quantities'!A:P,MATCH($B49&" kWh",'Data Billing Quantities'!$4:$4,0),FALSE) -> 1328 | D49: =VLOOKUP(A$48,'Data Billing Quantities'!A:P,MATCH($B49&" kW",'Data Billing Quantities'!$4:$4,0),FALSE) -> 13 | E49: 1,328/13 | F49: BI_Dgen_Avg | G49: BI Template_Demand | H49: =VLOOKUP(VLOOKUP($G49,'Data BI Summary'!$A:$F,MATCH(H$1,'Data BI Summary'!$2:$2,0),FALSE),INDIRECT("'"&$F49&"'!"&"$A:$K"),4,FALSE) -> 556.2575968 | I49: =VLOOKUP(VLOOKUP($G49,'Data BI Summary'!$A:$F,MATCH(I$1,'Data BI Summary'!$2:$2,0),FALSE),INDIRECT("'"&$F49&"'!"&"$A:$K"),8,FALSE) -> 2.8879 | J49: =VLOOKUP(VLOOKUP($G49,'Data BI Summary'!$A:$F,MATCH(J$1,'Data BI Summary'!$2:$2,0),FALSE),INDIRECT("'"&$F49&"'!"&"$A:$K"),9,FALSE) -> 0.009274651865 | K49: =VLOOKUP(VLOOKUP($G49,'Data BI Summary'!$A:$F,MATCH(K$1,'Data BI Summary'!$2:$2,0),FALSE),INDIRECT("'"&$F49&"'!"&"$A:$K"),8,FALSE) -> 3.263327 | L49: =VLOOKUP(VLOOKUP($G49,'Data BI Summary'!$A:$F,MATCH(L$1,'Data BI Summary'!$2:$2,0),FALSE),INDIRECT("'"&$F49&"'!"&"$A:$K"),9,FALSE) -> 0.00586657516 | P49: 0 | Q49: 0 | R49: 0 | S49: 0 | T49: N/A | U49: 0 | V49: 0
B50: High | C50: =VLOOKUP(A$48,'Data Billing Quantities'!A:P,MATCH($B50&" kWh",'Data Billing Quantities'!$4:$4,0),FALSE) -> 5000 | D50: =VLOOKUP(A$48,'Data Billing Quantities'!A:P,MATCH($B50&" kW",'Data Billing Quantities'!$4:$4,0),FALSE) -> 100 | E50: 5,000/100 | F50: BI_Dgen_High | G50: BI Template_Demand | H50: =VLOOKUP(VLOOKUP($G50,'Data BI Summary'!$A:$F,MATCH(H$1,'Data BI Summary'!$2:$2,0),FALSE),INDIRECT("'"&$F50&"'!"&"$A:$K"),4,FALSE) -> 2146.816375 | I50: =VLOOKUP(VLOOKUP($G50,'Data BI Summary'!$A:$F,MATCH(I$1,'Data BI Summary'!$2:$2,0),FALSE),INDIRECT("'"&$F50&"'!"&"$A:$K"),8,FALSE) -> 10.57 | J50: =VLOOKUP(VLOOKUP($G50,'Data BI Summary'!$A:$F,MATCH(J$1,'Data BI Summary'!$2:$2,0),FALSE),INDIRECT("'"&$F50&"'!"&"$A:$K"),9,FALSE) -> 0.009383040664 | K50: =VLOOKUP(VLOOKUP($G50,'Data BI Summary'!$A:$F,MATCH(K$1,'Data BI Summary'!$2:$2,0),FALSE),INDIRECT("'"&$F50&"'!"&"$A:$K"),8,FALSE) -> 11.9441 | L50: =VLOOKUP(VLOOKUP($G50,'Data BI Summary'!$A:$F,MATCH(L$1,'Data BI Summary'!$2:$2,0),FALSE),INDIRECT("'"&$F50&"'!"&"$A:$K"),9,FALSE) -> 0.005563633732 | P50: 0 | Q50: 0 | R50: 0 | S50: 0 | T50: N/A | U50: 0 | V50: 0
A51: ST | B51: Low | C51: =VLOOKUP(A$51,'Data Billing Quantities'!A:P,MATCH($B51&" kWh",'Data Billing Quantities'!$4:$4,0),FALSE) -> 200000 | D51: =VLOOKUP(A$51,'Data Billing Quantities'!A:P,MATCH($B51&" kW",'Data Billing Quantities'!$4:$4,0),FALSE) -> 500 | E51: 200,000/500 | F51: BI_ST_Low | G51: BI Template_Demand | H51: =VLOOKUP(VLOOKUP($G51,'Data BI Summary'!$A:$F,MATCH(H$1,'Data BI Summary'!$2:$2,0),FALSE),INDIRECT("'"&$F51&"'!"&"$A:$K"),4,FALSE) -> 32587.2451 | I51: =VLOOKUP(VLOOKUP($G51,'Data BI Summary'!$A:$F,MATCH(I$1,'Data BI Summary'!$2:$2,0),FALSE),INDIRECT("'"&$F51&"'!"&"$A:$K"),8,FALSE) -> 63.18 | J51: =VLOOKUP(VLOOKUP($G51,'Data BI Summary'!$A:$F,MATCH(J$1,'Data BI Summary'!$2:$2,0),FALSE),INDIRECT("'"&$F51&"'!"&"$A:$K"),9,FALSE) -> 0.02502574665 | K51: =VLOOKUP(VLOOKUP($G51,'Data BI Summary'!$A:$F,MATCH(K$1,'Data BI Summary'!$2:$2,0),FALSE),INDIRECT("'"&$F51&"'!"&"$A:$K"),8,FALSE) -> 71.3934 | L51: =VLOOKUP(VLOOKUP($G51,'Data BI Summary'!$A:$F,MATCH(L$1,'Data BI Summary'!$2:$2,0),FALSE),INDIRECT("'"&$F51&"'!"&"$A:$K"),9,FALSE) -> 0.002190838771 | M51: Non-RPP | P51: 0 | Q51: 0 | R51: 0 | S51: 0 | T51: N/A | U51: 0 | V51: N/A
B52: Average | C52: =VLOOKUP(A$51,'Data Billing Quantities'!A:P,MATCH($B52&" kWh",'Data Billing Quantities'!$4:$4,0),FALSE) -> 1601036 | D52: =VLOOKUP(A$51,'Data Billing Quantities'!A:P,MATCH($B52&" kW",'Data Billing Quantities'!$4:$4,0),FALSE) -> 3091 | E52: 1,601,036/3,091 | F52: BI_ST_Avg | G52: BI Template_Demand | H52: =VLOOKUP(VLOOKUP($G52,'Data BI Summary'!$A:$F,MATCH(H$1,'Data BI Summary'!$2:$2,0),FALSE),INDIRECT("'"&$F52&"'!"&"$A:$K"),4,FALSE) -> 241322.1832 | I52: =VLOOKUP(VLOOKUP($G52,'Data BI Summary'!$A:$F,MATCH(I$1,'Data BI Summary'!$2:$2,0),FALSE),INDIRECT("'"&$F52&"'!"&"$A:$K"),8,FALSE) -> 203.094 | J52: =VLOOKUP(VLOOKUP($G52,'Data BI Summary'!$A:$F,MATCH(J$1,'Data BI Summary'!$2:$2,0),FALSE),INDIRECT("'"&$F52&"'!"&"$A:$K"),9,FALSE) -> 0.02285011323 | K52: =VLOOKUP(VLOOKUP($G52,'Data BI Summary'!$A:$F,MATCH(K$1,'Data BI Summary'!$2:$2,0),FALSE),INDIRECT("'"&$F52&"'!"&"$A:$K"),8,FALSE) -> 229.49622 | L52: =VLOOKUP(VLOOKUP($G52,'Data BI Summary'!$A:$F,MATCH(L$1,'Data BI Summary'!$2:$2,0),FALSE),INDIRECT("'"&$F52&"'!"&"$A:$K"),9,FALSE) -> 0.0009509951259 | P52: 0 | Q52: 0 | R52: 0 | S52: 0 | T52: N/A | U52: 0 | V52: N/A
B53: High | C53: =VLOOKUP(A$51,'Data Billing Quantities'!A:P,MATCH($B53&" kWh",'Data Billing Quantities'!$4:$4,0),FALSE) -> 4000000 | D53: =VLOOKUP(A$51,'Data Billing Quantities'!A:P,MATCH($B53&" kW",'Data Billing Quantities'!$4:$4,0),FALSE) -> 10000 | E53: 4,000,000/10,000 | F53: BI_ST_High | G53: BI Template_Demand | H53: =VLOOKUP(VLOOKUP($G53,'Data BI Summary'!$A:$F,MATCH(H$1,'Data BI Summary'!$2:$2,0),FALSE),INDIRECT("'"&$F53&"'!"&"$A:$K"),4,FALSE) -> 623901.5325 | I53: =VLOOKUP(VLOOKUP($G53,'Data BI Summary'!$A:$F,MATCH(I$1,'Data BI Summary'!$2:$2,0),FALSE),INDIRECT("'"&$F53&"'!"&"$A:$K"),8,FALSE) -> 576.18 | J53: =VLOOKUP(VLOOKUP($G53,'Data BI Summary'!$A:$F,MATCH(J$1,'Data BI Summary'!$2:$2,0),FALSE),INDIRECT("'"&$F53&"'!"&"$A:$K"),9,FALSE) -> 0.02228367225 | K53: =VLOOKUP(VLOOKUP($G53,'Data BI Summary'!$A:$F,MATCH(K$1,'Data BI Summary'!$2:$2,0),FALSE),INDIRECT("'"&$F53&"'!"&"$A:$K"),8,FALSE) -> 651.0834 | L53: =VLOOKUP(VLOOKUP($G53,'Data BI Summary'!$A:$F,MATCH(L$1,'Data BI Summary'!$2:$2,0),FALSE),INDIRECT("'"&$F53&"'!"&"$A:$K"),9,FALSE) -> 0.00104356756 | P53: 0 | Q53: 0 | R53: 0 | S53: 0 | T53: N/A | U53: 0 | V53: N/A
A54: ST (NonWMP, NonRPP, NonLDC, ClassB) | B54: Average | C54: =VLOOKUP(A$54,'Data Billing Quantities'!A:P,MATCH($B54&" kWh",'Data Billing Quantities'!$4:$4,0),FALSE) -> 1601036 | D54: =VLOOKUP(A$54,'Data Billing Quantities'!A:P,MATCH($B54&" kW",'Data Billing Quantities'!$4:$4,0),FALSE) -> 3091 | F54: BI_ST_Avg_NonWMP | G54: BI Template_Demand | H54: =VLOOKUP(VLOOKUP($G54,'Data BI Summary'!$A:$F,MATCH(H$1,'Data BI Summary'!$2:$2,0),FALSE),INDIRECT("'"&$F54&"'!"&"$A:$K"),4,FALSE) ->  | I54: =VLOOKUP(VLOOKUP($G54,'Data BI Summary'!$A:$F,MATCH(I$1,'Data BI Summary'!$2:$2,0),FALSE),INDIRECT("'"&$F54&"'!"&"$A:$K"),8,FALSE) ->  | J54: =VLOOKUP(VLOOKUP($G54,'Data BI Summary'!$A:$F,MATCH(J$1,'Data BI Summary'!$2:$2,0),FALSE),INDIRECT("'"&$F54&"'!"&"$A:$K"),9,FALSE) ->  | K54: =VLOOKUP(VLOOKUP($G54,'Data BI Summary'!$A:$F,MATCH(K$1,'Data BI Summary'!$2:$2,0),FALSE),INDIRECT("'"&$F54&"'!"&"$A:$K"),8,FALSE) ->  | L54: =VLOOKUP(VLOOKUP($G54,'Data BI Summary'!$A:$F,MATCH(L$1,'Data BI Summary'!$2:$2,0),FALSE),INDIRECT("'"&$F54&"'!"&"$A:$K"),9,FALSE) ->  | M54: Non-RPP
A55: ST (NonWMP, NonRPP, NonLDC, ClassB) Exclude GA Rider | B55: Average | C55: =VLOOKUP(A$55,'Data Billing Quantities'!A:P,MATCH($B55&" kWh",'Data Billing Quantities'!$4:$4,0),FALSE) -> 1601036 | D55: =VLOOKUP(A$55,'Data Billing Quantities'!A:P,MATCH($B55&" kW",'Data Billing Quantities'!$4:$4,0),FALSE) -> 3091 | F55: BI_ST_Avg_NonWMP_exclGA | G55: BI Template_Demand | H55: =VLOOKUP(VLOOKUP($G55,'Data BI Summary'!$A:$F,MATCH(H$1,'Data BI Summary'!$2:$2,0),FALSE),INDIRECT("'"&$F55&"'!"&"$A:$K"),4,FALSE) -> 241416.4172 | I55: =VLOOKUP(VLOOKUP($G55,'Data BI Summary'!$A:$F,MATCH(I$1,'Data BI Summary'!$2:$2,0),FALSE),INDIRECT("'"&$F55&"'!"&"$A:$K"),8,FALSE) -> -83.3929 | J55: =VLOOKUP(VLOOKUP($G55,'Data BI Summary'!$A:$F,MATCH(J$1,'Data BI Summary'!$2:$2,0),FALSE),INDIRECT("'"&$F55&"'!"&"$A:$K"),9,FALSE) -> -0.009295324436 | K55: =VLOOKUP(VLOOKUP($G55,'Data BI Summary'!$A:$F,MATCH(K$1,'Data BI Summary'!$2:$2,0),FALSE),INDIRECT("'"&$F55&"'!"&"$A:$K"),8,FALSE) -> -94.233977 | L55: =VLOOKUP(VLOOKUP($G55,'Data BI Summary'!$A:$F,MATCH(L$1,'Data BI Summary'!$2:$2,0),FALSE),INDIRECT("'"&$F55&"'!"&"$A:$K"),9,FALSE) -> -0.0003903378987 | M55: Non-RPP | P55: 0 | Q55: 0 | R55: 0 | S55: 0 | T55: N/A | U55: 0 | V55: N/A

Sheet BI Template_Energy (hidden)
A1: 2021 Bill Impacts (Average Consumption Level) - R1
A3: Rate Class | B3: =RIGHT(A1,LEN(A1)-FIND("- ",A1,1)-1) -> R1
A4: Monthly Consumption (kWh) | B4: =IF(COUNTIF(A1,"*Low*")>0,VLOOKUP(B3,'Data Billing Quantities'!$A:$Z,MATCH("Low kWh",'Data Billing Quantities'!4:4,0),FALSE),IF(COUNTIF(A1,"*Typical*")>0,VLOOKUP(B3,'Data Billing Quantities'!$A:$Z,MATCH("Typical kWh",'Data Billing Quantities'!4:4,0),FALSE),IF(COUNTIF(A1,"*Average*")>0,VLOOKUP(B3,'Data Billing Quantities'!$A:$Z,MATCH("Average kWh",'Data Billing Quantities'!4:4,0),FALSE),IF(COUNTIF(A1,"*High*")>0,VLOOKUP(B3,'Data Billing Quantities'!$A:$Z,MATCH("High kWh",'Data Billing Quantities'!4:4,0),FALSE),"error")))) -> 920
A5: Peak (kW) | B5: =IF(COUNTIF(A1,"*Low*")>0,VLOOKUP(B3,'Data Billing Quantities'!$A:$Z,MATCH("Low kW",'Data Billing Quantities'!4:4,0),FALSE),IF(COUNTIF(A1,"*Typical*")>0,VLOOKUP(B3,'Data Billing Quantities'!$A:$Z,MATCH("Typical kW",'Data Billing Quantities'!4:4,0),FALSE),IF(COUNTIF(A1,"*Average*")>0,VLOOKUP(B3,'Data Billing Quantities'!$A:$Z,MATCH("Average kW",'Data Billing Quantities'!4:4,0),FALSE),IF(COUNTIF(A1,"*High*")>0,VLOOKUP(B3,'Data Billing Quantities'!$A:$Z,MATCH("High kW",'Data Billing Quantities'!4:4,0),FALSE),"error")))) -> 0
A6: Loss factor | B6: =VLOOKUP(B3,'Data Billing Quantities'!A:D,MATCH(A6,'Data Billing Quantities'!4:4,0),FALSE) -> 1.076
A7: Commodity Threshold | B7: =VLOOKUP(B3,'Data Billing Quantities'!A:D,MATCH(A7,'Data Billing Quantities'!4:4,0),FALSE) -> 600
A8: Monthly Consumption (kWh) - Uplifted | B8: =B4*B6 -> 989.92
A9: Charge determinant | B9: =VLOOKUP(B3,'Data Billing Quantities'!A:D,MATCH(A9,'Data Billing Quantities'!4:4,0),FALSE) -> kWh
B11: Volume | C11: Current Rate ($) | D11: Current Charge ($) | E11: Volume | F11: Proposed Rate ($) | G11: Proposed Charge ($) | H11: Change ($) | I11: Change (%) | J11: % of Total Bill on RPP | K11: % of Total Bill on TOU
A12: Energy First Tier | B12: =IF(B4>B7,B7,B4) -> 600 | C12: =VLOOKUP($A12,'Data Pass Through'!$A:$D,2,FALSE) -> 0.101 | D12: =B12*C12 -> 60.6 | E12: =B12 -> 600 | F12: =VLOOKUP($A12,'Data Pass Through'!$A:$D,3,FALSE) -> 0.101 | G12: =E12*F12 -> 60.6 | H12: =G12-D12 -> 0 | I12: =IF(ISERROR(H12/ABS(D12)),"N/A",(H12/ABS(D12))) -> 0 | J12: =G12/$G$49 -> 0.4080699555
A13: Energy Second Tier | B13: =IF(B4>B7,(B4)-B7,0) -> 320 | C13: =VLOOKUP($A13,'Data Pass Through'!$A:$D,2,FALSE) -> 0.118 | D13: =B13*C13 -> 37.76 | E13: =B13 -> 320 | F13: =VLOOKUP($A13,'Data Pass Through'!$A:$D,3,FALSE) -> 0.118 | G13: =E13*F13 -> 37.76 | H13: 0 | I13: 0 | J13: =G13/$G$49 -> 0.254269332
A14: Sub-Total: Energy (RPP Tiered) | D14: =SUM(D12:D13) -> 98.36 | G14: =SUM(G12:G13) -> 98.36 | H14: 0 | I14: 0 | J14: =G14/$G$49 -> 0.6623392875
A15: TOU-Off Peak | B15: =B$4*VLOOKUP($B$3,'Data Billing Quantities'!$A:$O,MATCH('BI Template_Energy'!$A15,'Data Billing Quantities'!$4:$4,0),FALSE) -> 588.8 | C15: =VLOOKUP($A15,'Data Pass Through'!$A:$D,2,FALSE) -> 0.085 | D15: =B15*C15 -> 50.048 | E15: 588.8 | F15: =VLOOKUP($A15,'Data Pass Through'!$A:$D,3,FALSE) -> 0.085 | G15: =E15*F15 -> 50.048 | H15: 0 | I15: 0 | K15: =G15/$G$54 -> 0.3374195872
A16: TOU-Mid Peak | B16: =B$4*VLOOKUP($B$3,'Data Billing Quantities'!$A:$O,MATCH('BI Template_Energy'!$A16,'Data Billing Quantities'!$4:$4,0),FALSE) -> 165.6 | C16: =VLOOKUP($A16,'Data Pass Through'!$A:$D,2,FALSE) -> 0.119 | D16: =B16*C16 -> 19.7064 | E16: 165.6 | F16: =VLOOKUP($A16,'Data Pass Through'!$A:$D,3,FALSE) -> 0.119 | G16: =E16*F16 -> 19.7064 | H16: 0 | I16: 0 | K16: 0.1328589625
A17: TOU-On Peak | B17: =B$4*VLOOKUP($B$3,'Data Billing Quantities'!$A:$O,MATCH('BI Template_Energy'!$A17,'Data Billing Quantities'!$4:$4,0),FALSE) -> 165.6 | C17: =VLOOKUP($A17,'Data Pass Through'!$A:$D,2,FALSE) -> 0.176 | D17: =B17*C17 -> 29.1456 | E17: 165.6 | F17: =VLOOKUP($A17,'Data Pass Through'!$A:$D,3,FALSE) -> 0.176 | G17: =E17*F17 -> 29.1456 | H17: 0 | I17: 0 | K17: 0.196497289
A18: Sub-Total: Energy (RPP TOU) | D18: =SUM(D15:D17) -> 98.9 | G18: =SUM(G15:G17) -> 98.9 | H18: 0 | I18: 0 | J18: =G18/$G$49 -> 0.6659755544 | K18: 0.6667758387
A19: Service Charge | B19: 1 | C19: =IF(ISERROR(VLOOKUP($B$3,'Data Current Rates'!$A:$BE,MATCH('BI Template_Energy'!$A19,CurrentHeader,0),FALSE)),0,VLOOKUP($B$3,'Data Current Rates'!$A:$BE,MATCH('BI Template_Energy'!$A19,CurrentHeader,0),FALSE)) -> 49.04 | D19: =B19*C19 -> 49.04 | E19: 1 | F19: =VLOOKUP($B$3,'Data Proposed Rates'!$A:$BC,MATCH('BI Template_Energy'!$A19,ProposedHeader,0),FALSE) -> 49.04 | G19: =E19*F19 -> 49.04 | H19: 0 | I19: 0 | J19: 0.3302269079 | K19: 0.3306237324
A20: Base Rate Adjustment to Recover Past Tax Amounts FIXED | E20: 1 | F20: =VLOOKUP($B$3,'Data Proposed Rates'!$A:$BC,MATCH('BI Template_Energy'!$A20,ProposedHeader,0),FALSE) -> 1.56 | G20: =E20*F20 -> 1.56 | H20: =G20-D20 -> 1.56 | I20: =IF(ISERROR(H20/ABS(D20)),"N/A",(H20/ABS(D20))) -> N/A | J20: 0.01050477113 | K20: 0.01051739442
A21: Fixed Deferral/Variance Account Rider (General) | B21: 1 | C21: =IF(ISERROR(VLOOKUP($B$3,'Data Current Rates'!$A:$BE,MATCH('BI Template_Energy'!$A21,CurrentHeader,0),FALSE)),0,VLOOKUP($B$3,'Data Current Rates'!$A:$BE,MATCH('BI Template_Energy'!$A21,CurrentHeader,0),FALSE)) -> -0.14 | D21: -0.14 | E21: 1 | F21: =VLOOKUP($B$3,'Data Proposed Rates'!$A:$BC,MATCH('BI Template_Energy'!$A21,ProposedHeader,0),FALSE) -> -0.14 | G21: -0.14 | H21: 0 | I21: 0 | J21: -0.0009427358708 | K21: -0.0009438687303
A22: Fixed ESM Rider | B22: 1 | C22: =IF(ISERROR(VLOOKUP($B$3,'Data Current Rates'!$A:$BE,MATCH('BI Template_Energy'!$A22,CurrentHeader,0),FALSE)),0,VLOOKUP($B$3,'Data Current Rates'!$A:$BE,MATCH('BI Template_Energy'!$A22,CurrentHeader,0),FALSE)) -> -0.85 | D22: =B22*C22 -> -0.85 | E22: 1 | F22: =VLOOKUP($B$3,'Data Proposed Rates'!$A:$BC,MATCH('BI Template_Energy'!$A22,ProposedHeader,0),FALSE) -> -0.85 | G22: =E22*F22 -> -0.85 | H22: =G22-D22 -> 0 | I22: =IF(ISERROR(H22/ABS(D22)),"N/A",(H22/ABS(D22))) -> 0 | J22: -0.005723753501 | K22: -0.005730631577
A23: Distribution Volumetric Charge | B23: =IF($B$9="kWh",$B$4,$B$5) -> 920 | C23: =IF(ISERROR(VLOOKUP($B$3,'Data Current Rates'!$A:$BE,MATCH('BI Template_Energy'!$A23,CurrentHeader,0),FALSE)),0,VLOOKUP($B$3,'Data Current Rates'!$A:$BE,MATCH('BI Template_Energy'!$A23,CurrentHeader,0),FALSE)) -> 0.0141 | D23: 12.972 | E23: =IF($B$9="kWh",$B$4,$B$5) -> 920 | F23: =VLOOKUP($B$3,'Data Proposed Rates'!$A:$BC,MATCH('BI Template_Energy'!$A23,ProposedHeader,0),FALSE) -> 0.0141 | G23: 12.972 | H23: 0 | I23: 0 | J23: 0.08735121226 | K23: 0.08745617978
A24: Base Rate Adjustment to Recover Past Tax Amounts VOL | E24: =IF($B$9="kWh",$B$4,$B$5) -> 920 | F24: =VLOOKUP($B$3,'Data Proposed Rates'!$A:$BC,MATCH('BI Template_Energy'!$A24,ProposedHeader,0),FALSE) -> 0 | G24: =E24*F24 -> 0 | H24: =G24-D24 -> 0 | I24: =IF(ISERROR(H24/ABS(D24)),"N/A",(H24/ABS(D24))) -> N/A | J24: 0 | K24: 0
A25: Volumetric Deferral/Variance Account Rider (General) | B25: =IF($B$9="kWh",$B$4,$B$5) -> 920 | C25: =IF(ISERROR(VLOOKUP($B$3,'Data Current Rates'!$A:$BE,MATCH('BI Template_Energy'!$A25,CurrentHeader,0),FALSE)),0,VLOOKUP($B$3,'Data Current Rates'!$A:$BE,MATCH('BI Template_Energy'!$A25,CurrentHeader,0),FALSE)) -> -0.0008 | D25: -0.736 | E25: =IF($B$9="kWh",$B$4,$B$5) -> 920 | F25: =VLOOKUP($B$3,'Data Proposed Rates'!$A:$BC,MATCH('BI Template_Energy'!$A25,ProposedHeader,0),FALSE) -> -0.0008 | G25: -0.736 | H25: 0 | I25: 0 | J25: -0.004956097149 | K25: -0.004962052753
A26: Volumetric ESM Rider | B26: 920 | C26: =IF(ISERROR(VLOOKUP($B$3,'Data Current Rates'!$A:$BE,MATCH('BI Template_Energy'!$A26,CurrentHeader,0),FALSE)),0,VLOOKUP($B$3,'Data Current Rates'!$A:$BE,MATCH('BI Template_Energy'!$A26,CurrentHeader,0),FALSE)) -> 0 | D26: =B26*C26 -> 0 | E26: 920 | F26: =VLOOKUP($B$3,'Data Proposed Rates'!$A:$BC,MATCH('BI Template_Energy'!$A26,ProposedHeader,0),FALSE) -> 0 | G26: 0 | H26: 0 | I26: N/A | J26: 0 | K26: 0
A27: Fair Hydro Plan - Distribution Rate Protection Savings* | D27: =IF(AND(B3<>"R1",B3<>"R2"),0,IF(VLOOKUP($A27,'Data Pass Through'!$A:$D,2,FALSE)=0,0,IF(SUM(D19:D20,D23:D24)<VLOOKUP($A27,'Data Pass Through'!$A:$D,2,FALSE),0,VLOOKUP($A27,'Data Pass Through'!$A:$D,2,FALSE)-SUM(D19:D20,D23:D24)))) -> -25.152 | G27: =IF(AND(B3<>"R1",B3<>"R2"),0,IF(VLOOKUP($A27,'Data Pass Through'!$A:$D,2,FALSE)=0,0,IF(SUM(G19:G20,G23:G24)<VLOOKUP($A27,'Data Pass Through'!$A:$D,2,FALSE),0,VLOOKUP($A27,'Data Pass Through'!$A:$D,2,FALSE)-SUM(G19:G20,G23:G24)))) -> -26.712 | H27: -1.56 | I27: -0.06202290076 | J27: -0.1798740041 | K27: -0.1800901537
A28: Sub-Total: Distribution (excluding pass through) | D28: =SUM(INDIRECT("D19:D"&ROW()-1)) -> 35.134 | G28: =SUM(INDIRECT("g19:g"&ROW()-1)) -> 35.134 | H28: =G28-D28 -> 0 | I28: =IF(ISERROR(H28/ABS(D28)),"N/A",(H28/ABS(D28))) -> 0 | J28: 0.2365863006 | K28: 0.2368705998
A29: Smart Metering Entity Charge | B29: 1 | C29: =VLOOKUP($A29,'Data Pass Through'!$A:$D,2,FALSE) -> 0.57 | D29: =B29*C29 -> 0.57 | E29: 1 | F29: =VLOOKUP($A29,'Data Pass Through'!$A:$D,3,FALSE) -> 0.57 | G29: =E29*F29 -> 0.57 | H29: 0 | I29: 0 | J29: 0.00383828176 | K29: 0.003842894116
A30: Line Losses on Cost of Power (based on two-tier RPP prices) | B30: =B8-B4 -> 69.92 | C30: =IF(B4>B7,C13,C12) -> 0.118 | D30: =B30*C30 -> 8.25056 | E30: 69.92 | F30: =IF(B4>B7,F13,F12) -> 0.118 | G30: =E30*F30 -> 8.25056 | H30: 0 | I30: 0 | J30: 0.05555784904 | K30: 0.05562461137
A31: Line Losses on Cost of Power (based on TOU prices) | B31: =B8-B4 -> 69.92 | C31: =VLOOKUP($B$3,'Data Billing Quantities'!$A:$O,MATCH('BI Template_Energy'!$A15,'Data Billing Quantities'!$4:$4,0),FALSE)*C15+VLOOKUP($B$3,'Data Billing Quantities'!$A:$O,MATCH('BI Template_Energy'!$A16,'Data Billing Quantities'!$4:$4,0),FALSE)*C16+VLOOKUP($B$3,'Data Billing Quantities'!$A:$O,MATCH('BI Template_Energy'!$A17,'Data Billing Quantities'!$4:$4,0),FALSE)*C17 -> 0.1075 | D31: =B31*C31 -> 7.5164 | E31: 69.92 | F31: =VLOOKUP($B$3,'Data Billing Quantities'!$A:$O,MATCH('BI Template_Energy'!$A15,'Data Billing Quantities'!$4:$4,0),FALSE)*F15+VLOOKUP($B$3,'Data Billing Quantities'!$A:$O,MATCH('BI Template_Energy'!$A16,'Data Billing Quantities'!$4:$4,0),FALSE)*F16+VLOOKUP($B$3,'Data Billing Quantities'!$A:$O,MATCH('BI Template_Energy'!$A17,'Data Billing Quantities'!$4:$4,0),FALSE)*F17 -> 0.1075 | G31: =E31*F31 -> 7.5164 | H31: 0 | I31: 0 | J31: 0.05061414214 | K31: 0.05067496374
A32: Sub-Total: Distribution (based on two-tier RPP prices) | D32: =SUM(D28,D29:D30) -> 43.95456 | G32: =SUM(G28,G29:G30) -> 43.95456 | H32: 0 | I32: 0 | J32: 0.2959824314 | K32: 0.2963381053
A33: Sub-Total: Distribution (based on TOU prices) | D33: =SUM(D28,D29,D31) -> 43.2204 | G33: =SUM(G28,G29,G31) -> 43.2204 | H33: 0 | I33: 0 | J33: 0.2910387245 | K33: 0.2913884576
A34: Retail Transmission Rate – Network Service Rate | B34: =B8 -> 989.92 | C34: =VLOOKUP($B$3,'Data Current Rates'!$A:$BE,MATCH('BI Template_Energy'!$A34,CurrentHeader,0),FALSE) -> 0.0082 | D34: =B34*C34 -> 8.117344 | E34: 989.92 | F34: =VLOOKUP($B$3,'Data Proposed Rates'!$A:$BC,MATCH('BI Template_Energy'!$A34,ProposedHeader,0),FALSE) -> 0.0082 | G34: =E34*F34 -> 8.117344 | H34: =G34-D34 -> 0 | I34: 0 | J34: 0.05466079546 | K34: 0.05472647982
A35: Retail Transmission Rate – Line and Transformation Connection Service Rate | B35: =B8 -> 989.92 | C35: =VLOOKUP($B$3,'Data Current Rates'!$A:$BE,MATCH('BI Template_Energy'!$A35,CurrentHeader,0),FALSE) -> 0.0073 | D35: =B35*C35 -> 7.226416 | E35: 989.92 | F35: =VLOOKUP($B$3,'Data Proposed Rates'!$A:$BC,MATCH('BI Template_Energy'!$A35,ProposedHeader,0),FALSE) -> 0.0073 | G35: =E35*F35 -> 7.226416 | H35: =G35-D35 -> 0 | I35: 0 | J35: 0.04866143986 | K35: 0.04871991496
A36: Sub-Total: Retail Transmission | D36: =SUM(D34:D35) -> 15.34376 | G36: =SUM(G34:G35) -> 15.34376 | H36: =G36-D36 -> 0 | I36: 0 | J36: 0.1033222353 | K36: 0.1034463948
A37: Sub-Total: Delivery (based on two-tier RPP prices) | D37: =D32+D36 -> 59.29832 | G37: =G32+G36 -> 59.29832 | H37: =G37-D37 -> 0 | I37: 0 | J37: 0.3993046667 | K37: 0.3997845
A38: Sub-Total: Delivery (based on TOU prices) | D38: =D33+D36 -> 58.56416 | G38: =G33+G36 -> 58.56416 | H38: =G38-D38 -> 0 | I38: 0 | J38: 0.3943609598 | K38: 0.3948348524
A39: Wholesale Market Service Rate (WMS) - not including CBR | B39: =B8 -> 989.92 | C39: =VLOOKUP($A39,'Data Pass Through'!$A:$D,2,FALSE) -> 0.003 | D39: =B39*C39 -> 2.96976 | E39: =$B$8 -> 989.92 | F39: =VLOOKUP($A39,'Data Pass Through'!$A:$D,3,FALSE) -> 0.003 | G39: =E39*F39 -> 2.96976 | H39: 0 | I39: 0 | J39: 0.019997852 | K39: 0.02002188286
A40: Capacity Based Recovery (CBR) - Applicable for Class B Customers | B40: =B8 -> 989.92 | C40: =VLOOKUP($A40,'Data Pass Through'!$A:$D,2,FALSE) -> 0.0004 | D40: =B40*C40 -> 0.395968 | E40: =$B$8 -> 989.92 | F40: =VLOOKUP($A40,'Data Pass Through'!$A:$D,3,FALSE) -> 0.0004 | G40: =E40*F40 -> 0.395968 | H40: =G40-D40 -> 0 | I40: =IF(ISERROR(H40/ABS(D40)),"N/A",(H40/ABS(D40))) -> 0 | J40: 0.002666380266 | K40: 0.002669584381
A41: Rural Rate Protection Charge | B41: =B8 -> 989.92 | C41: =VLOOKUP($A41,'Data Pass Through'!$A:$D,2,FALSE) -> 0.0005 | D41: 0.49496 | E41: 989.92 | F41: =VLOOKUP($A41,'Data Pass Through'!$A:$D,3,FALSE) -> 0.0005 | G41: 0.49496 | H41: 0 | I41: 0 | J41: 0.003332975333 | K41: 0.003336980477
A42: Standard Supply Service – Administration Charge (if applicable) | B42: 1 | C42: =VLOOKUP($A42,'Data Pass Through'!$A:$D,2,FALSE) -> 0.25 | D42: =B42*C42 -> 0.25 | E42: 1 | F42: =VLOOKUP($A42,'Data Pass Through'!$A:$D,3,FALSE) -> 0.25 | G42: 0.25 | H42: 0 | I42: 0 | J42: 0.001683456912 | K42: 0.001685479875
A43: Sub-Total: Regulatory | D43: =SUM(D39:D42) -> 4.110688 | G43: =SUM(G39:G42) -> 4.110688 | H43: 0 | I43: 0 | J43: 0.02768066451 | K43: 0.02771392759
A44: Debt Retirement Charge (DRC) | B44: =B4 -> 920 | C44: =VLOOKUP($A44,'Data Pass Through'!$A:$D,2,FALSE) -> 0 | D44: =B44*C44 -> 0 | E44: 920 | F44: =VLOOKUP($A44,'Data Pass Through'!$A:$D,3,FALSE) -> 0 | G44: =E44*F44 -> 0 | H44: 0 | I44: N/A | J44: 0 | K44: 0
A45: Total Electricty Charge on Two-Tier RPP | D45: =SUM(D14,D28,D29,D30,D36,D43,D44) -> 161.769008 | G45: =SUM(G14,G28,G29,G30,G36,G43,G44) -> 161.769008 | H45: 0 | I45: 0 | J45: 1.089324619
A46: HST | C46: 0.13 | D46: =D45*C46 -> 21.02997104 | F46: =C46 -> 0.13 | G46: =G45*F46 -> 21.02997104 | H46: 0 | I46: 0 | J46: 0.1416122004
A47: Total Electricity Charge on Two-Tier RPP (including HST) | D47: =SUM(D45:D46) -> 182.798979 | G47: =SUM(G45:G46) -> 182.798979 | H47: 0 | I47: 0 | J47: 1.230936819
A48: Ontario Electricity Rebate (OER) | C48: ='Data Pass Through'!B20 -> -0.212 | D48: =D45*C48 -> -34.2950297 | F48: ='Data Pass Through'!C20 -> -0.212 | G48: =G45*F48 -> -34.2950297 | H48: 0 | I48: 0 | J48: -0.2309368192
A49: Total Amount on Two-Tier RPP | D49: =SUM(D47:D48) -> 148.5039493 | G49: =SUM(G47:G48) -> 148.5039493 | H49: 0 | I49: 0 | J49: 1
A50: Total Electricty Charge on TOU (before HST) | D50: =SUM(D18,D28,D29,D31,D36,D43,D44) -> 161.574848 | G50: =SUM(G18,G28,G29,G31,G36,G43,G44) -> 161.574848 | H50: 0 | I50: 0 | K50: =G50/$G$54 -> 1.089324619
A51: HST | C51: 0.13 | D51: =D50*C51 -> 21.00473024 | F51: =C51 -> 0.13 | G51: =G50*F51 -> 21.00473024 | H51: 0 | I51: 0 | K51: =G51/$G$54 -> 0.1416122004
A52: Total Electricity Charge on TOU (including HST) | D52: =SUM(D50:D51) -> 182.5795782 | G52: =SUM(G50:G51) -> 182.5795782 | H52: 0 | I52: 0 | K52: =G52/$G$54 -> 1.230936819
A53: Ontario Electricity Rebate (OER) | C53: ='Data Pass Through'!B20 -> -0.212 | D53: =D50*C53 -> -34.25386778 | F53: ='Data Pass Through'!C20 -> -0.212 | G53: =G50*F53 -> -34.25386778 | H53: 0 | I53: 0 | K53: =G53/$G$54 -> -0.2309368192
A54: Total Amount on TOU | D54: =SUM(D52:D53) -> 148.3257105 | G54: =SUM(G52:G53) -> 148.3257105 | H54: 0 | I54: 0 | K54: =G54/$G$54 -> 1
A55: * Distribution rate protection applies to R1 and R2 customers

Sheet BI Template_EnergyUNM (hidden)
A1: 2021 Bill Impacts (Average Consumption Level) - USL
A3: Rate Class | B3: =RIGHT(A1,LEN(A1)-FIND("- ",A1,1)-1) -> USL
A4: Monthly Consumption (kWh) | B4: =IF(COUNTIF(A1,"*Low*")>0,VLOOKUP(B3,'Data Billing Quantities'!$A:$Z,MATCH("Low kWh",'Data Billing Quantities'!4:4,0),FALSE),IF(COUNTIF(A1,"*Typical*")>0,VLOOKUP(B3,'Data Billing Quantities'!$A:$Z,MATCH("Typical kWh",'Data Billing Quantities'!4:4,0),FALSE),IF(COUNTIF(A1,"*Average*")>0,VLOOKUP(B3,'Data Billing Quantities'!$A:$Z,MATCH("Average kWh",'Data Billing Quantities'!4:4,0),FALSE),IF(COUNTIF(A1,"*High*")>0,VLOOKUP(B3,'Data Billing Quantities'!$A:$Z,MATCH("High kWh",'Data Billing Quantities'!4:4,0),FALSE),"error")))) -> 364
A5: Peak (kW) | B5: =IF(COUNTIF(A1,"*Low*")>0,VLOOKUP(B3,'Data Billing Quantities'!$A:$Z,MATCH("Low kW",'Data Billing Quantities'!4:4,0),FALSE),IF(COUNTIF(A1,"*Typical*")>0,VLOOKUP(B3,'Data Billing Quantities'!$A:$Z,MATCH("Typical kW",'Data Billing Quantities'!4:4,0),FALSE),IF(COUNTIF(A1,"*Average*")>0,VLOOKUP(B3,'Data Billing Quantities'!$A:$Z,MATCH("Average kW",'Data Billing Quantities'!4:4,0),FALSE),IF(COUNTIF(A1,"*High*")>0,VLOOKUP(B3,'Data Billing Quantities'!$A:$Z,MATCH("High kW",'Data Billing Quantities'!4:4,0),FALSE),"error")))) -> 0
A6: Loss factor | B6: =VLOOKUP(B3,'Data Billing Quantities'!A:D,MATCH(A6,'Data Billing Quantities'!4:4,0),FALSE) -> 1.092
A7: Commodity Threshold | B7: =VLOOKUP(B3,'Data Billing Quantities'!A:D,MATCH(A7,'Data Billing Quantities'!4:4,0),FALSE) -> 750
A8: Monthly Consumption (kWh) - Uplifted | B8: =B4*B6 -> 397.488
A9: Charge determinant | B9: =VLOOKUP(B3,'Data Billing Quantities'!A:D,MATCH(A9,'Data Billing Quantities'!4:4,0),FALSE) -> kWh
B11: Volume | C11: Current Rate ($) | D11: Current Charge ($) | E11: Volume | F11: Proposed Rate ($) | G11: Proposed Charge ($) | H11: Change ($) | I11: Change (%) | J11: % of Total Bill on RPP
A12: Energy First Tier | B12: =IF(B4>B7,B7,B4) -> 364 | C12: =VLOOKUP($A12,'Data Pass Through'!$A:$D,2,FALSE) -> 0.101 | D12: =B12*C12 -> 36.764 | E12: =B12 -> 364 | F12: =VLOOKUP($A12,'Data Pass Through'!$A:$D,3,FALSE) -> 0.101 | G12: =E12*F12 -> 36.764 | H12: =G12-D12 -> 0 | I12: =IF(ISERROR(H12/ABS(D12)),"N/A",(H12/ABS(D12))) -> 0 | J12: =G12/$G$41 -> 0.4301281608
A13: Energy Second Tier | B13: =IF(B4>B7,(B4)-B7,0) -> 0 | C13: =VLOOKUP($A13,'Data Pass Through'!$A:$D,2,FALSE) -> 0.118 | D13: =B13*C13 -> 0 | E13: =B13 -> 0 | F13: =VLOOKUP($A13,'Data Pass Through'!$A:$D,3,FALSE) -> 0.118 | G13: =E13*F13 -> 0 | H13: 0 | I13: N/A | J13: 0
A14: Sub-Total: Energy (RPP Tiered) | D14: =SUM(D12:D13) -> 36.764 | G14: =SUM(G12:G13) -> 36.764 | H14: 0 | I14: 0 | J14: 0.4301281608
A15: Service Charge | B15: 1 | C15: =VLOOKUP($B$3,'Data Current Rates'!$A:$BE,MATCH('BI Template_EnergyUNM'!$A15,CurrentHeader,0),FALSE) -> 37.58 | D15: =B15*C15 -> 37.58 | E15: 1 | F15: =VLOOKUP($B$3,'Data Proposed Rates'!$A:$BC,MATCH('BI Template_EnergyUNM'!$A15,ProposedHeader,0),FALSE) -> 37.58 | G15: =E15*F15 -> 37.58 | H15: 0 | I15: 0 | J15: 0.4396751247
A16: Base Rate Adjustment to Recover Past Tax Amounts FIXED | E16: 1 | F16: =VLOOKUP($B$3,'Data Proposed Rates'!$A:$BC,MATCH('BI Template_EnergyUNM'!$A16,ProposedHeader,0),FALSE) -> 0.89 | G16: =E16*F16 -> 0.89 | H16: =G16-D16 -> 0.89 | I16: =IF(ISERROR(H16/ABS(D16)),"N/A",(H16/ABS(D16))) -> N/A | J16: 0.01041274244
A17: Fixed Deferral/Variance Account Rider (General) | B17: 1 | C17: =VLOOKUP($B$3,'Data Current Rates'!$A:$BE,MATCH('BI Template_EnergyUNM'!$A17,CurrentHeader,0),FALSE) -> 0 | D17: =B17*C17 -> 0 | E17: 1 | F17: =VLOOKUP($B$3,'Data Proposed Rates'!$A:$BC,MATCH('BI Template_EnergyUNM'!$A17,ProposedHeader,0),FALSE) -> 0 | G17: 0 | H17: 0 | I17: N/A | J17: 0
A18: Fixed ESM Rider | B18: 1 | C18: =VLOOKUP($B$3,'Data Current Rates'!$A:$BE,MATCH('BI Template_EnergyUNM'!$A18,CurrentHeader,0),FALSE) -> -0.53 | D18: =B18*C18 -> -0.53 | E18: =B18 -> 1 | F18: =VLOOKUP($B$3,'Data Proposed Rates'!$A:$BC,MATCH('BI Template_EnergyUNM'!$A18,ProposedHeader,0),FALSE) -> -0.53 | G18: =E18*F18 -> -0.53 | H18: =G18-D18 -> 0 | I18: =IF(ISERROR(H18/ABS(D18)),"N/A",(H18/ABS(D18))) -> 0 | J18: -0.006200846623
A19: Distribution Volumetric Charge | B19: =IF($B$9="kWh",$B$4,$B$5) -> 364 | C19: =VLOOKUP($B$3,'Data Current Rates'!$A:$BE,MATCH('BI Template_EnergyUNM'!$A19,CurrentHeader,0),FALSE) -> 0.0251 | D19: 9.1364 | E19: =IF($B$9="kWh",$B$4,$B$5) -> 364 | F19: =VLOOKUP($B$3,'Data Proposed Rates'!$A:$BC,MATCH('BI Template_EnergyUNM'!$A19,ProposedHeader,0),FALSE) -> 0.0251 | G19: 9.1364 | H19: 0 | I19: 0 | J19: 0.106893236
A20: Base Rate Adjustment to Recover Past Tax Amounts VOL | E20: =IF($B$9="kWh",$B$4,$B$5) -> 364 | F20: =VLOOKUP($B$3,'Data Proposed Rates'!$A:$BC,MATCH('BI Template_EnergyUNM'!$A20,ProposedHeader,0),FALSE) -> 0.0006 | G20: =E20*F20 -> 0.2184 | H20: =G20-D20 -> 0.2184 | I20: =IF(ISERROR(H20/ABS(D20)),"N/A",(H20/ABS(D20))) -> N/A | J20: 0.002555216797
A21: Volumetric Deferral/Variance Account Rider (General) | B21: =IF($B$9="kWh",$B$4,$B$5) -> 364 | C21: =VLOOKUP($B$3,'Data Current Rates'!$A:$BE,MATCH('BI Template_EnergyUNM'!$A21,CurrentHeader,0),FALSE) -> 0.0001 | D21: 0.0364 | E21: 364 | F21: =VLOOKUP($B$3,'Data Proposed Rates'!$A:$BC,MATCH('BI Template_EnergyUNM'!$A21,ProposedHeader,0),FALSE) -> 0.0001 | G21: 0.0364 | H21: 0 | I21: 0 | J21: 0.0004258694662
A22: Volumetric ESM Rider | B22: 364 | C22: =VLOOKUP($B$3,'Data Current Rates'!$A:$BE,MATCH('BI Template_EnergyUNM'!$A22,CurrentHeader,0),FALSE) -> -0.0004 | D22: =B22*C22 -> -0.1456 | E22: =IF($B$9="kWh",$B$4,$B$5) -> 364 | F22: =VLOOKUP($B$3,'Data Proposed Rates'!$A:$BC,MATCH('BI Template_EnergyUNM'!$A22,ProposedHeader,0),FALSE) -> -0.0004 | G22: -0.1456 | H22: 0 | I22: 0 | J22: -0.001703477865
A23: Sub-Total: Distribution (excluding pass through) | D23: =SUM(INDIRECT("D15:D"&ROW()-1)) -> 46.0772 | G23: =SUM(INDIRECT("g15:g"&ROW()-1)) -> 47.1856 | H23: =G23-D23 -> 1.1084 | I23: 0.02405528114 | J23: 0.5520578649
A25: Line Losses on Cost of Power (based on two-tier RPP prices) | B25: =B8-B4 -> 33.488 | C25: =IF(B4>B7,C13,C12) -> 0.101 | D25: =B25*C25 -> 3.382288 | E25: 33.488 | F25: =IF(B4>B7,F13,F12) -> 0.101 | G25: =E25*F25 -> 3.382288 | H25: 0 | I25: 0 | J25: =G25/$G$41 -> 0.0395717908
A26: Sub-Total: Distribution (based on two-tier RPP prices) | D26: =SUM(D23,D24:D25) -> 49.459488 | G26: =SUM(G23,G24:G25) -> 50.567888 | H26: 1.1084 | I26: 0.02241026029 | J26: 0.5916296557
A27: Retail Transmission Rate – Network Service Rate | B27: =B8 -> 397.488 | C27: =VLOOKUP($B$3,'Data Current Rates'!$A:$BE,MATCH('BI Template_EnergyUNM'!$A27,CurrentHeader,0),FALSE) -> 0.0054 | D27: =B27*C27 -> 2.1464352 | E27: 397.488 | F27: =VLOOKUP($B$3,'Data Proposed Rates'!$A:$BC,MATCH('BI Template_EnergyUNM'!$A27,ProposedHeader,0),FALSE) -> 0.0054 | G27: =E27*F27 -> 2.1464352 | H27: =G27-D27 -> 0 | I27: 0 | J27: 0.02511267068
A28: Retail Transmission Rate – Line and Transformation Connection Service Rate | B28: =B8 -> 397.488 | C28: =VLOOKUP($B$3,'Data Current Rates'!$A:$BE,MATCH('BI Template_EnergyUNM'!$A28,CurrentHeader,0),FALSE) -> 0.0046 | D28: =B28*C28 -> 1.8284448 | E28: 397.488 | F28: =VLOOKUP($B$3,'Data Proposed Rates'!$A:$BC,MATCH('BI Template_EnergyUNM'!$A28,ProposedHeader,0),FALSE) -> 0.0046 | G28: =E28*F28 -> 1.8284448 | H28: =G28-D28 -> 0 | I28: 0 | J28: 0.02139227502
A29: Sub-Total: Retail Transmission | D29: =SUM(D27:D28) -> 3.97488 | G29: =SUM(G27:G28) -> 3.97488 | H29: =G29-D29 -> 0 | I29: 0 | J29: 0.04650494571
A30: Sub-Total: Delivery (based on two-tier RPP prices) | D30: =D26+D29 -> 53.434368 | G30: =G26+G29 -> 54.542768 | H30: =G30-D30 -> 1.1084 | I30: 0.02074320407 | J30: 0.6381346014
A31: Wholesale Market Service Rate (WMS) - not including CBR | B31: =B8 -> 397.488 | C31: =VLOOKUP($A31,'Data Pass Through'!$A:$D,2,FALSE) -> 0.003 | D31: =B31*C31 -> 1.192464 | E31: =$B$8 -> 397.488 | F31: =VLOOKUP($A31,'Data Pass Through'!$A:$D,3,FALSE) -> 0.003 | G31: =E31*F31 -> 1.192464 | H31: =G31-D31 -> 0 | I31: 0 | J31: 0.01395148371
A32: Capacity Based Recovery (CBR) - Applicable for Class B Customers | B32: =B8 -> 397.488 | C32: =VLOOKUP($A32,'Data Pass Through'!$A:$D,2,FALSE) -> 0.0004 | D32: =B32*C32 -> 0.1589952 | E32: =$B$8 -> 397.488 | F32: =VLOOKUP($A32,'Data Pass Through'!$A:$D,3,FALSE) -> 0.0004 | G32: =E32*F32 -> 0.1589952 | H32: 0 | I32: 0 | J32: 0.001860197828
A33: Rural Rate Protection Charge | B33: =B8 -> 397.488 | C33: =VLOOKUP($A33,'Data Pass Through'!$A:$D,2,FALSE) -> 0.0005 | D33: 0.198744 | E33: 397.488 | F33: =VLOOKUP($A33,'Data Pass Through'!$A:$D,3,FALSE) -> 0.0005 | G33: 0.198744 | H33: 0 | I33: 0 | J33: 0.002325247285
A34: Standard Supply Service – Administration Charge (if applicable) | B34: 1 | C34: =VLOOKUP($A34,'Data Pass Through'!$A:$D,2,FALSE) -> 0.25 | D34: =B34*C34 -> 0.25 | E34: 1 | F34: =VLOOKUP($A34,'Data Pass Through'!$A:$D,3,FALSE) -> 0.25 | G34: 0.25 | H34: 0 | I34: 0 | J34: 0.002924927652
A35: Sub-Total: Regulatory | D35: =SUM(D31:D34) -> 1.8002032 | G35: =SUM(G31:G34) -> 1.8002032 | H35: 0 | I35: 0 | J35: 0.02106185648
A36: Debt Retirement Charge (DRC) | B36: =B4 -> 364 | C36: =VLOOKUP($A36,'Data Pass Through'!$A:$D,2,FALSE) -> 0 | D36: =B36*C36 -> 0 | E36: 364 | F36: =VLOOKUP($A36,'Data Pass Through'!$A:$D,3,FALSE) -> 0 | G36: =E36*F36 -> 0 | H36: 0 | I36: N/A | J36: 0
A37: Total Electricty Charge on Two-Tier RPP | D37: =SUM(D14,D23,D24,D25,D29,D35,D36) -> 91.9985712 | G37: =SUM(G14,G23,G24,G25,G29,G35,G36) -> 93.1069712 | H37: 1.1084 | I37: 0.0120480132 | J37: 1.089324619
A38: HST | C38: 0.13 | D38: =D37*C38 -> 11.95981426 | F38: =C38 -> 0.13 | G38: =G37*F38 -> 12.10390626 | H38: 0.144092 | I38: 0.0120480132 | J38: 0.1416122004
A39: Total Electricity Charge on Two-Tier RPP (including HST) | D39: =SUM(D37:D38) -> 103.9583855 | G39: =SUM(G37:G38) -> 105.2108775 | H39: 1.252492 | I39: 0.0120480132 | J39: 1.230936819
A40: Ontario Electricity Rebate (OER) | C40: ='Data Pass Through'!B20 -> -0.212 | D40: =D37*C40 -> -19.50369709 | F40: ='Data Pass Through'!C20 -> -0.212 | G40: =G37*F40 -> -19.73867789 | H40: -0.2349808 | I40: -0.0120480132 | J40: -0.2309368192
A41: Total Amount on Two-Tier RPP | D41: =SUM(D39:D40) -> 84.45468836 | G41: =SUM(G39:G40) -> 85.47219956 | H41: 1.0175112 | I41: 0.0120480132 | J41: 1

Sheet BI Template_Demand (hidden)
A1: 2021 Bill Impacts (Average Consumption Level) - GSd
A3: Rate Class | B3: =RIGHT(A1,LEN(A1)-FIND("- ",A1,1)-1) -> GSd
A4: Monthly Consumption (kWh) | B4: =IF(COUNTIF(A1,"*Low*")>0,VLOOKUP(B3,'Data Billing Quantities'!$A:$Z,MATCH("Low kWh",'Data Billing Quantities'!4:4,0),FALSE),IF(COUNTIF(A1,"*Typical*")>0,VLOOKUP(B3,'Data Billing Quantities'!$A:$Z,MATCH("Typical kWh",'Data Billing Quantities'!4:4,0),FALSE),IF(COUNTIF(A1,"*Average*")>0,VLOOKUP(B3,'Data Billing Quantities'!$A:$Z,MATCH("Average kWh",'Data Billing Quantities'!4:4,0),FALSE),IF(COUNTIF(A1,"*High*")>0,VLOOKUP(B3,'Data Billing Quantities'!$A:$Z,MATCH("High kWh",'Data Billing Quantities'!4:4,0),FALSE),"error")))) -> 36104
A5: Peak (kW) | B5: =IF(COUNTIF(A1,"*Low*")>0,VLOOKUP(B3,'Data Billing Quantities'!$A:$Z,MATCH("Low kW",'Data Billing Quantities'!4:4,0),FALSE),IF(COUNTIF(A1,"*Typical*")>0,VLOOKUP(B3,'Data Billing Quantities'!$A:$Z,MATCH("Typical kW",'Data Billing Quantities'!4:4,0),FALSE),IF(COUNTIF(A1,"*Average*")>0,VLOOKUP(B3,'Data Billing Quantities'!$A:$Z,MATCH("Average kW",'Data Billing Quantities'!4:4,0),FALSE),IF(COUNTIF(A1,"*High*")>0,VLOOKUP(B3,'Data Billing Quantities'!$A:$Z,MATCH("High kW",'Data Billing Quantities'!4:4,0),FALSE),"error")))) -> 124
A6: Loss factor | B6: =VLOOKUP(B3,'Data Billing Quantities'!A:D,MATCH(A6,'Data Billing Quantities'!4:4,0),FALSE) -> 1.061
A7: Load factor | B7: =B4/(B5*730) -> 0.3988510826
A8: Monthly Consumption (kWh) - Uplifted | B8: =B4*B6 -> 38306.344
A9: Charge determinant | B9: =VLOOKUP(B3,'Data Billing Quantities'!A:D,MATCH(A9,'Data Billing Quantities'!4:4,0),FALSE) -> kW
B11: Volume | C11: Current Rate ($) | D11: Current Charge ($) | E11: Volume | F11: Proposed Rate ($) | G11: Proposed Charge ($) | H11: Change ($) | I11: Change (%) | J11: % of Total Bill
A12: Energy (Non-RPP)* | B12: =B8 -> 38306.344 | C12: =VLOOKUP($A12,'Data Pass Through'!A:E,2,FALSE) -> 0.1075 | D12: =B12*C12 -> 4117.93198 | E12: =B8 -> 38306.344 | F12: =VLOOKUP($A12,'Data Pass Through'!A:E,3,FALSE) -> 0.1075 | G12: =E12*F12 -> 4117.93198 | H12: =G12-D12 -> 0 | I12: =IF(ISERROR(H12/ABS(D12)),"N/A",(H12/ABS(D12))) -> 0 | J12: =G12/$G$37 -> 0.5185973914
A13: Service Charge | B13: 1 | C13: =VLOOKUP($B$3,'Data Current Rates'!$A:$BE,MATCH($A13,CurrentHeader,0),FALSE) -> 108.28 | D13: =B13*C13 -> 108.28 | E13: =B13 -> 1 | F13: =VLOOKUP($B$3,'Data Proposed Rates'!$A:$BC,MATCH($A13,ProposedHeader,0),FALSE) -> 108.28 | G13: =E13*F13 -> 108.28 | H13: 0 | I13: 0 | J13: 0.01363638977
A14: Base Rate Adjustment to Recover Past Tax Amounts FIXED | E14: 1 | F14: =VLOOKUP($B$3,'Data Proposed Rates'!$A:$BC,MATCH($A14,ProposedHeader,0),FALSE) -> 4.34 | G14: =E14*F14 -> 4.34 | H14: =G14-D14 -> 4.34 | I14: =IF(ISERROR(H14/ABS(D14)),"N/A",(H14/ABS(D14))) -> N/A | J14: 0.000546563831
A15: Fixed Deferral/Variance Account Rider (General) | B15: 1 | C15: =VLOOKUP($B$3,'Data Current Rates'!$A:$BE,MATCH($A15,CurrentHeader,0),FALSE) -> 0 | D15: =B15*C15 -> 0 | E15: 1 | F15: =VLOOKUP($B$3,'Data Proposed Rates'!$A:$BC,MATCH($A15,ProposedHeader,0),FALSE) -> 0 | G15: =E15*F15 -> 0 | H15: 0 | I15: N/A | J15: 0
A16: Fixed ESM Rider | B16: 1 | C16: =VLOOKUP($B$3,'Data Current Rates'!$A:$BE,MATCH($A16,CurrentHeader,0),FALSE) -> -1.52 | D16: =B16*C16 -> -1.52 | E16: 1 | F16: =VLOOKUP($B$3,'Data Proposed Rates'!$A:$BC,MATCH($A16,ProposedHeader,0),FALSE) -> -1.52 | G16: =E16*F16 -> -1.52 | H16: =G16-D16 -> 0 | I16: =IF(ISERROR(H16/ABS(D16)),"N/A",(H16/ABS(D16))) -> 0 | J16: -0.0001914232772
A17: Distribution Volumetric Charge | B17: =IF($B$9="kWh",$B$4,$B$5) -> 124 | C17: =VLOOKUP($B$3,'Data Current Rates'!$A:$BE,MATCH($A17,CurrentHeader,0),FALSE) -> 18.3296 | D17: 2272.8704 | E17: =$B$5 -> 124 | F17: =VLOOKUP($B$3,'Data Proposed Rates'!$A:$BC,MATCH($A17,ProposedHeader,0),FALSE) -> 18.3296 | G17: 2272.8704 | H17: 0 | I17: =IF(ISERROR(H17/ABS(D17)),"N/A",(H17/ABS(D17))) -> 0 | J17: 0.2862370399
A18: Base Rate Adjustment to Recover Past Tax Amounts VOL | E18: =$B$5 -> 124 | F18: =VLOOKUP($B$3,'Data Proposed Rates'!$A:$BC,MATCH($A18,ProposedHeader,0),FALSE) -> 0.7338 | G18: =E18*F18 -> 90.9912 | H18: =G18-D18 -> 90.9912 | I18: =IF(ISERROR(H18/ABS(D18)),"N/A",(H18/ABS(D18))) -> N/A | J18: 0.01145910112
A19: Volumetric Deferral/Variance Account Rider (General) | B19: =IF($B$9="kWh",$B$4,$B$5) -> 124 | C19: =VLOOKUP($B$3,'Data Current Rates'!$A:$BE,MATCH($A19,CurrentHeader,0),FALSE) -> 0.0117 | D19: 1.4508 | E19: =$B$5 -> 124 | F19: =VLOOKUP($B$3,'Data Proposed Rates'!$A:$BC,MATCH($A19,ProposedHeader,0),FALSE) -> 0.0117 | G19: 1.4508 | H19: 0 | I19: =IF(ISERROR(H19/ABS(D19)),"N/A",(H19/ABS(D19))) -> 0 | J19: 0.0001827084806
A20: Volumetric Deferral/Variance Account Rider (Sub-Account Global Adjustment) | B20: =B8 -> 38306.344 | C20: =VLOOKUP($B$3,'Data Current Rates'!$A:$BE,MATCH($A20,CurrentHeader,0),FALSE) -> -0.0039 | D20: -149.3947416 | E20: =B8 -> 38306.344 | F20: =VLOOKUP($B$3,'Data Proposed Rates'!$A:$BC,MATCH($A20,ProposedHeader,0),FALSE) -> -0.0039 | G20: -149.3947416 | H20: =G20-D20 -> 0 | I20: =IF(ISERROR(H20/ABS(D20)),"N/A",(H20/ABS(D20))) -> 0 | J20: -0.01881423094
A21: Volumetric ESM Rider | B21: =IF($B$9="kWh",$B$4,$B$5) -> 124 | C21: =VLOOKUP($B$3,'Data Current Rates'!$A:$BE,MATCH($A21,CurrentHeader,0),FALSE) -> -0.2555 | D21: =B21*C21 -> -31.682 | E21: =B5 -> 124 | F21: =VLOOKUP($B$3,'Data Proposed Rates'!$A:$BC,MATCH($A21,ProposedHeader,0),FALSE) -> -0.2555 | G21: =E21*F21 -> -31.682 | H21: =G21-D21 -> 0 | I21: =IF(ISERROR(H21/ABS(D21)),"N/A",(H21/ABS(D21))) -> 0 | J21: -0.003989915966
A22: Sub-Total: Distribution | D22: =SUM(INDIRECT("D13:D"&ROW()-1)) -> 2200.004458 | G22: =SUM(INDIRECT("g13:g"&ROW()-1)) -> 2295.335658 | H22: 95.3312 | I22: 0.04333227582 | J22: 0.2890662329
A23: Retail Transmission Rate – Network Service Rate | B23: =B5 -> 124 | C23: =VLOOKUP($B$3,'Data Current Rates'!$A:$BE,MATCH($A23,CurrentHeader,0),FALSE) -> 2.0421 | D23: =B23*C23 -> 253.2204 | E23: 124 | F23: =VLOOKUP($B$3,'Data Proposed Rates'!$A:$BC,MATCH($A23,ProposedHeader,0),FALSE) -> 2.0421 | G23: =E23*F23 -> 253.2204 | H23: 0 | I23: 0 | J23: 0.03188965712
A24: Retail Transmission Rate – Line and Transformation Connection Service Rate | B24: =B5 -> 124 | C24: =VLOOKUP($B$3,'Data Current Rates'!$A:$BE,MATCH($A24,CurrentHeader,0),FALSE) -> 1.7006 | D24: =B24*C24 -> 210.8744 | E24: 124 | F24: =VLOOKUP($B$3,'Data Proposed Rates'!$A:$BC,MATCH($A24,ProposedHeader,0),FALSE) -> 1.7006 | G24: =E24*F24 -> 210.8744 | H24: 0 | I24: 0 | J24: 0.02655675574
A25: Sub-Total: Retail Transmission | D25: =SUM(D23:D24) -> 464.0948 | G25: =SUM(G23:G24) -> 464.0948 | H25: 0 | I25: 0 | J25: 0.05844641286
A26: Sub-Total: Delivery | D26: =D22+D25 -> 2664.099258 | G26: =G22+G25 -> 2759.430458 | H26: 95.3312 | I26: 0.03578365172 | J26: 0.3475126458
A27: Wholesale Market Service Rate (WMS) - not including CBR | B27: =$B$8 -> 38306.344 | C27: =VLOOKUP($A27,'Data Pass Through'!$A:$D,2,FALSE) -> 0.003 | D27: =B27*C27 -> 114.919032 | E27: =$B$8 -> 38306.344 | F27: =VLOOKUP($A27,'Data Pass Through'!$A:$D,3,FALSE) -> 0.003 | G27: =E27*F27 -> 114.919032 | H27: 0 | I27: 0 | J27: 0.01447248534
A28: Capacity Based Recovery (CBR) - Applicable for Class B Customers | B28: =$B$8 -> 38306.344 | C28: =VLOOKUP($A28,'Data Pass Through'!$A:$D,2,FALSE) -> 0.0004 | D28: =B28*C28 -> 15.3225376 | E28: =$B$8 -> 38306.344 | F28: =VLOOKUP($A28,'Data Pass Through'!$A:$D,3,FALSE) -> 0.0004 | G28: =E28*F28 -> 15.3225376 | H28: =G28-D28 -> 0 | I28: 0 | J28: 0.001929664712
A29: Rural Rate Protection Charge | B29: =$B$8 -> 38306.344 | C29: =VLOOKUP($A29,'Data Pass Through'!$A:$D,2,FALSE) -> 0.0005 | D29: =B29*C29 -> 19.153172 | E29: =$B$8 -> 38306.344 | F29: =VLOOKUP($A29,'Data Pass Through'!$A:$D,3,FALSE) -> 0.0005 | G29: =E29*F29 -> 19.153172 | H29: =G29-D29 -> 0 | I29: 0 | J29: 0.00241208089
A30: Standard Supply Service – Administration Charge (if applicable) | B30: 1 | C30: =VLOOKUP($A30,'Data Pass Through'!$A:$D,2,FALSE) -> 0.25 | D30: =B30*C30 -> 0.25 | E30: 1 | F30: =VLOOKUP($A30,'Data Pass Through'!$A:$D,3,FALSE) -> 0.25 | G30: =E30*F30 -> 0.25 | H30: 0 | I30: 0 | J30: 3.148409165e-05
A31: Sub-Total: Regulatory | D31: =SUM(D27:D30) -> 149.6447416 | G31: =SUM(G27:G30) -> 149.6447416 | H31: 0 | I31: 0 | J31: 0.01884571504
A32: Debt Retirement Charge (DRC) | B32: =B4 -> 36104 | C32: =VLOOKUP($A32,'Data Pass Through'!$A:$D,2,FALSE) -> 0 | D32: =B32*C32 -> 0 | E32: =B4 -> 36104 | F32: =VLOOKUP($A32,'Data Pass Through'!$A:$D,3,FALSE) -> 0 | G32: =E32*F32 -> 0 | H32: 0 | I32: N/A | J32: 0
A33: Total Electricity Charge (before HST) | D33: =SUM(D12,D22,D25,D31,D32) -> 6931.67598 | G33: =SUM(G12,G22,G25,G31,G32) -> 7027.00718 | H33: 95.3312 | I33: 0.01375297984 | J33: 0.8849557522
A34: HST | C34: 0.13 | D34: =D33*C34 -> 901.1178774 | F34: =C34 -> 0.13 | G34: =G33*F34 -> 913.5109334 | H34: 12.393056 | I34: 0.01375297984 | J34: 0.1150442478
A35: Total Electricity Charge (including HST) | D35: =SUM(D33:D34) -> 7832.793857 | G35: =SUM(G33:G34) -> 7940.518113 | H35: 107.724256 | I35: 0.01375297984 | J35: 1
A36: Ontario Electricity Rebate (OER) | C36: 0 | D36: =D33*C36 -> 0 | F36: =C36 -> 0 | G36: =G33*F36 -> 0 | H36: 0 | I36: N/A | J36: 0
A37: Total Amount | D37: =SUM(D35:D36) -> 7832.793857 | G37: =SUM(G35:G36) -> 7940.518113 | H37: 107.724256 | I37: 0.01375297984 | J37: 1

Sheet BI_UR_Low
A1: 2021 Bill Impacts (Low Consumption Level) - UR
A3: Rate Class | B3: =RIGHT(A1,LEN(A1)-FIND("- ",A1,1)-1) -> UR
A4: Monthly Consumption (kWh) | B4: =IF(COUNTIF(A1,"*Low*")>0,VLOOKUP(B3,'Data Billing Quantities'!$A:$Z,MATCH("Low kWh",'Data Billing Quantities'!4:4,0),FALSE),IF(COUNTIF(A1,"*Typical*")>0,VLOOKUP(B3,'Data Billing Quantities'!$A:$Z,MATCH("Typical kWh",'Data Billing Quantities'!4:4,0),FALSE),IF(COUNTIF(A1,"*Average*")>0,VLOOKUP(B3,'Data Billing Quantities'!$A:$Z,MATCH("Average kWh",'Data Billing Quantities'!4:4,0),FALSE),IF(COUNTIF(A1,"*High*")>0,VLOOKUP(B3,'Data Billing Quantities'!$A:$Z,MATCH("High kWh",'Data Billing Quantities'!4:4,0),FALSE),"error")))) -> 350
A5: Peak (kW) | B5: =IF(COUNTIF(A1,"*Low*")>0,VLOOKUP(B3,'Data Billing Quantities'!$A:$Z,MATCH("Low kW",'Data Billing Quantities'!4:4,0),FALSE),IF(COUNTIF(A1,"*Typical*")>0,VLOOKUP(B3,'Data Billing Quantities'!$A:$Z,MATCH("Typical kW",'Data Billing Quantities'!4:4,0),FALSE),IF(COUNTIF(A1,"*Average*")>0,VLOOKUP(B3,'Data Billing Quantities'!$A:$Z,MATCH("Average kW",'Data Billing Quantities'!4:4,0),FALSE),IF(COUNTIF(A1,"*High*")>0,VLOOKUP(B3,'Data Billing Quantities'!$A:$Z,MATCH("High kW",'Data Billing Quantities'!4:4,0),FALSE),"error")))) -> 0
A6: Loss factor | B6: =VLOOKUP(B3,'Data Billing Quantities'!A:D,MATCH(A6,'Data Billing Quantities'!4:4,0),FALSE) -> 1.057
A7: Commodity Threshold | B7: =VLOOKUP(B3,'Data Billing Quantities'!A:D,MATCH(A7,'Data Billing Quantities'!4:4,0),FALSE) -> 600
A8: Monthly Consumption (kWh) - Uplifted | B8: =B4*B6 -> 369.95
A9: Charge determinant | B9: =VLOOKUP(B3,'Data Billing Quantities'!A:D,MATCH(A9,'Data Billing Quantities'!4:4,0),FALSE) -> kWh
B11: Volume | C11: Current Rate ($) | D11: Current Charge ($) | E11: Volume | F11: Proposed Rate ($) | G11: Proposed Charge ($) | H11: Change ($) | I11: Change (%) | J11: % of Total Bill on RPP | K11: % of Total Bill on TOU
A12: Energy First Tier | B12: =IF(B4>B7,B7,B4) -> 350 | C12: =VLOOKUP($A12,'Data Pass Through'!$A:$D,2,FALSE) -> 0.101 | D12: =B12*C12 -> 35.35 | E12: =B12 -> 350 | F12: =VLOOKUP($A12,'Data Pass Through'!$A:$D,3,FALSE) -> 0.101 | G12: =E12*F12 -> 35.35 | H12: =G12-D12 -> 0 | I12: =IF(ISERROR(H12/ABS(D12)),"N/A",(H12/ABS(D12))) -> 0 | J12: =G12/$G$49 -> 0.4717110597
A13: Energy Second Tier | B13: =IF(B4>B7,(B4)-B7,0) -> 0 | C13: =VLOOKUP($A13,'Data Pass Through'!$A:$D,2,FALSE) -> 0.118 | D13: =B13*C13 -> 0 | E13: =B13 -> 0 | F13: =VLOOKUP($A13,'Data Pass Through'!$A:$D,3,FALSE) -> 0.118 | G13: =E13*F13 -> 0 | H13: 0 | I13: N/A | J13: =G13/$G$49 -> 0
A14: Sub-Total: Energy (RPP Tiered) | D14: =SUM(D12:D13) -> 35.35 | G14: =SUM(G12:G13) -> 35.35 | H14: 0 | I14: 0 | J14: =G14/$G$49 -> 0.4717110597
A15: TOU-Off Peak | B15: =B$4*VLOOKUP($B$3,'Data Billing Quantities'!$A:$O,MATCH(BI_UR_Low!$A15,'Data Billing Quantities'!$4:$4,0),FALSE) -> 224 | C15: =VLOOKUP($A15,'Data Pass Through'!$A:$D,2,FALSE) -> 0.085 | D15: =B15*C15 -> 19.04 | E15: 224 | F15: =VLOOKUP($A15,'Data Pass Through'!$A:$D,3,FALSE) -> 0.085 | G15: =E15*F15 -> 19.04 | H15: 0 | I15: 0 | K15: =G15/$G$54 -> 0.2468001697
A16: TOU-Mid Peak | B16: =B$4*VLOOKUP($B$3,'Data Billing Quantities'!$A:$O,MATCH(BI_UR_Low!$A16,'Data Billing Quantities'!$4:$4,0),FALSE) -> 63 | C16: =VLOOKUP($A16,'Data Pass Through'!$A:$D,2,FALSE) -> 0.119 | D16: =B16*C16 -> 7.497 | E16: 63 | F16: =VLOOKUP($A16,'Data Pass Through'!$A:$D,3,FALSE) -> 0.119 | G16: =E16*F16 -> 7.497 | H16: 0 | I16: 0 | K16: 0.09717756682
A17: TOU-On Peak | B17: =B$4*VLOOKUP($B$3,'Data Billing Quantities'!$A:$O,MATCH(BI_UR_Low!$A17,'Data Billing Quantities'!$4:$4,0),FALSE) -> 63 | C17: =VLOOKUP($A17,'Data Pass Through'!$A:$D,2,FALSE) -> 0.176 | D17: =B17*C17 -> 11.088 | E17: 63 | F17: =VLOOKUP($A17,'Data Pass Through'!$A:$D,3,FALSE) -> 0.176 | G17: =E17*F17 -> 11.088 | H17: 0 | I17: 0 | K17: 0.1437248047
A18: Sub-Total: Energy (RPP TOU) | D18: =SUM(D15:D17) -> 37.625 | G18: =SUM(G15:G17) -> 37.625 | H18: 0 | I18: 0 | J18: =G18/$G$49 -> 0.5020687022 | K18: 0.4877025412
A19: Service Charge | B19: 1 | C19: =IF(ISERROR(VLOOKUP($B$3,'Data Current Rates'!$A:$BE,MATCH(BI_UR_Low!$A19,CurrentHeader,0),FALSE)),0,VLOOKUP($B$3,'Data Current Rates'!$A:$BE,MATCH(BI_UR_Low!$A19,CurrentHeader,0),FALSE)) -> 35.92 | D19: =B19*C19 -> 35.92 | E19: 1 | F19: =VLOOKUP($B$3,'Data Proposed Rates'!$A:$BC,MATCH(BI_UR_Low!$A19,ProposedHeader,0),FALSE) -> 35.92 | G19: =E19*F19 -> 35.92 | H19: 0 | I19: 0 | J19: 0.4793171504 | K19: 0.4656020008
A20: Base Rate Adjustment to Recover Past Tax Amounts FIXED | E20: 1 | F20: =VLOOKUP($B$3,'Data Proposed Rates'!$A:$BC,MATCH(BI_UR_Low!$A20,ProposedHeader,0),FALSE) -> 0.83 | G20: 0.83 | H20: 0.83 | I20: N/A | J20: 0.01107553549 | K20: 0.01075862084
A21: Fixed Deferral/Variance Account Rider (General) | B21: 1 | C21: =IF(ISERROR(VLOOKUP($B$3,'Data Current Rates'!$A:$BE,MATCH(BI_UR_Low!$A21,CurrentHeader,0),FALSE)),0,VLOOKUP($B$3,'Data Current Rates'!$A:$BE,MATCH(BI_UR_Low!$A21,CurrentHeader,0),FALSE)) -> -0.14 | D21: -0.14 | E21: 1 | F21: =VLOOKUP($B$3,'Data Proposed Rates'!$A:$BC,MATCH(BI_UR_Low!$A21,ProposedHeader,0),FALSE) -> -0.14 | G21: -0.14 | H21: 0 | I21: 0 | J21: -0.001868162613 | K21: -0.00181470713
A22: Fixed ESM Rider | B22: 1 | C22: =IF(ISERROR(VLOOKUP($B$3,'Data Current Rates'!$A:$BE,MATCH(BI_UR_Low!$A22,CurrentHeader,0),FALSE)),0,VLOOKUP($B$3,'Data Current Rates'!$A:$BE,MATCH(BI_UR_Low!$A22,CurrentHeader,0),FALSE)) -> -0.5 | D22: -0.5 | E22: 1 | F22: =VLOOKUP($B$3,'Data Proposed Rates'!$A:$BC,MATCH(BI_UR_Low!$A22,ProposedHeader,0),FALSE) -> -0.5 | G22: -0.5 | H22: 0 | I22: 0 | J22: -0.006672009332 | K22: -0.006481096893
A23: Distribution Volumetric Charge | B23: =IF($B$9="kWh",$B$4,$B$5) -> 350 | C23: =IF(ISERROR(VLOOKUP($B$3,'Data Current Rates'!$A:$BE,MATCH(BI_UR_Low!$A23,CurrentHeader,0),FALSE)),0,VLOOKUP($B$3,'Data Current Rates'!$A:$BE,MATCH(BI_UR_Low!$A23,CurrentHeader,0),FALSE)) -> 0 | D23: 0 | E23: =IF($B$9="kWh",$B$4,$B$5) -> 350 | F23: =VLOOKUP($B$3,'Data Proposed Rates'!$A:$BC,MATCH(BI_UR_Low!$A23,ProposedHeader,0),FALSE) -> 0 | G23: 0 | H23: 0 | I23: N/A | J23: 0 | K23: 0
A24: Base Rate Adjustment to Recover Past Tax Amounts VOL
A25: Volumetric Deferral/Variance Account Rider (General) | B25: =IF($B$9="kWh",$B$4,$B$5) -> 350 | C25: =IF(ISERROR(VLOOKUP($B$3,'Data Current Rates'!$A:$BE,MATCH(BI_UR_Low!$A25,CurrentHeader,0),FALSE)),0,VLOOKUP($B$3,'Data Current Rates'!$A:$BE,MATCH(BI_UR_Low!$A25,CurrentHeader,0),FALSE)) -> -0.0007 | D25: -0.245 | E25: =IF($B$9="kWh",$B$4,$B$5) -> 350 | F25: =VLOOKUP($B$3,'Data Proposed Rates'!$A:$BC,MATCH(BI_UR_Low!$A25,ProposedHeader,0),FALSE) -> -0.0007 | G25: -0.245 | H25: 0 | I25: 0 | J25: -0.003269284572 | K25: -0.003175737478
A26: Volumetric ESM Rider | B26: 350 | C26: =IF(ISERROR(VLOOKUP($B$3,'Data Current Rates'!$A:$BE,MATCH(BI_UR_Low!$A26,CurrentHeader,0),FALSE)),0,VLOOKUP($B$3,'Data Current Rates'!$A:$BE,MATCH(BI_UR_Low!$A26,CurrentHeader,0),FALSE)) -> 0 | D26: 0 | E26: 350 | F26: =VLOOKUP($B$3,'Data Proposed Rates'!$A:$BC,MATCH(BI_UR_Low!$A26,ProposedHeader,0),FALSE) -> 0 | G26: 0 | H26: 0 | I26: N/A | J26: 0 | K26: 0
A27: Fair Hydro Plan - Distribution Rate Protection Savings* | D27: =IF(AND(B3<>"R1",B3<>"R2"),0,IF(VLOOKUP($A27,'Data Pass Through'!$A:$D,2,FALSE)=0,0,IF(SUM(D19:D20,D23:D24)<VLOOKUP($A27,'Data Pass Through'!$A:$D,2,FALSE),0,VLOOKUP($A27,'Data Pass Through'!$A:$D,2,FALSE)-SUM(D19:D20,D23:D24)))) -> 0 | G27: =IF(AND(B3<>"R1",B3<>"R2"),0,IF(VLOOKUP($A27,'Data Pass Through'!$A:$D,2,FALSE)=0,0,IF(SUM(G19:G20,G23:G24)<VLOOKUP($A27,'Data Pass Through'!$A:$D,2,FALSE),0,VLOOKUP($A27,'Data Pass Through'!$A:$D,2,FALSE)-SUM(G19:G20,G23:G24)))) -> 0 | H27: 0 | I27: N/A | J27: 0 | K27: 0
A28: Sub-Total: Distribution (excluding pass through) | D28: =SUM(INDIRECT("D19:D"&ROW()-1)) -> 35.035 | G28: =SUM(INDIRECT("g19:g"&ROW()-1)) -> 35.865 | H28: =G28-D28 -> 0.83 | I28: 0.02369059512 | J28: 0.4785832293 | K28: 0.4648890801
A29: Smart Metering Entity Charge | B29: 1 | C29: =VLOOKUP($A29,'Data Pass Through'!$A:$D,2,FALSE) -> 0.57 | D29: =B29*C29 -> 0.57 | E29: 1 | F29: =VLOOKUP($A29,'Data Pass Through'!$A:$D,3,FALSE) -> 0.57 | G29: =E29*F29 -> 0.57 | H29: 0 | I29: 0 | J29: 0.007606090638 | K29: 0.007388450458
A30: Line Losses on Cost of Power (based on two-tier RPP prices) | B30: =B8-B4 -> 19.95 | C30: =IF(B4>B7,C13,C12) -> 0.101 | D30: =B30*C30 -> 2.01495 | E30: 19.95 | F30: =IF(B4>B7,F13,F12) -> 0.101 | G30: =E30*F30 -> 2.01495 | H30: 0 | I30: 0 | J30: 0.02688753041 | K30: 0.02611817237
A31: Line Losses on Cost of Power (based on TOU prices) | B31: =B8-B4 -> 19.95 | C31: =VLOOKUP($B$3,'Data Billing Quantities'!$A:$O,MATCH(BI_UR_Low!$A15,'Data Billing Quantities'!$4:$4,0),FALSE)*C15+VLOOKUP($B$3,'Data Billing Quantities'!$A:$O,MATCH(BI_UR_Low!$A16,'Data Billing Quantities'!$4:$4,0),FALSE)*C16+VLOOKUP($B$3,'Data Billing Quantities'!$A:$O,MATCH(BI_UR_Low!$A17,'Data Billing Quantities'!$4:$4,0),FALSE)*C17 -> 0.1075 | D31: =B31*C31 -> 2.144625 | E31: 19.95 | F31: =VLOOKUP($B$3,'Data Billing Quantities'!$A:$O,MATCH(BI_UR_Low!$A15,'Data Billing Quantities'!$4:$4,0),FALSE)*F15+VLOOKUP($B$3,'Data Billing Quantities'!$A:$O,MATCH(BI_UR_Low!$A16,'Data Billing Quantities'!$4:$4,0),FALSE)*F16+VLOOKUP($B$3,'Data Billing Quantities'!$A:$O,MATCH(BI_UR_Low!$A17,'Data Billing Quantities'!$4:$4,0),FALSE)*F17 -> 0.1075 | G31: =E31*F31 -> 2.144625 | H31: 0 | I31: 0 | J31: 0.02861791603 | K31: 0.02779904485
A32: Sub-Total: Distribution (based on two-tier RPP prices) | D32: =SUM(D28,D29:D30) -> 37.61995 | G32: =SUM(G28,G29:G30) -> 38.44995 | H32: 0.83 | I32: 0.02206276191 | J32: 0.5130768504 | K32: 0.498395703
A33: Sub-Total: Distribution (based on TOU prices) | D33: =SUM(D28,D29,D31) -> 37.749625 | G33: =SUM(G28,G29,G31) -> 38.579625 | H33: 0.83 | I33: 0.02198697338 | J33: 0.514807236 | K33: 0.5000765755
A34: Retail Transmission Rate – Network Service Rate | B34: =B8 -> 369.95 | C34: =VLOOKUP($B$3,'Data Current Rates'!$A:$BE,MATCH(BI_UR_Low!$A34,CurrentHeader,0),FALSE) -> 0.0089 | D34: =B34*C34 -> 3.292555 | E34: 369.95 | F34: =VLOOKUP($B$3,'Data Proposed Rates'!$A:$BC,MATCH(BI_UR_Low!$A34,ProposedHeader,0),FALSE) -> 0.0089 | G34: =E34*F34 -> 3.292555 | H34: =G34-D34 -> 0 | I34: 0 | J34: 0.04393591537 | K34: 0.04267873596
A35: Retail Transmission Rate – Line and Transformation Connection Service Rate | B35: =B8 -> 369.95 | C35: =VLOOKUP($B$3,'Data Current Rates'!$A:$BE,MATCH(BI_UR_Low!$A35,CurrentHeader,0),FALSE) -> 0.0077 | D35: =B35*C35 -> 2.848615 | E35: 369.95 | F35: =VLOOKUP($B$3,'Data Proposed Rates'!$A:$BC,MATCH(BI_UR_Low!$A35,ProposedHeader,0),FALSE) -> 0.0077 | G35: =E35*F35 -> 2.848615 | H35: =G35-D35 -> 0 | I35: 0 | J35: 0.03801197172 | K35: 0.03692429965
A36: Sub-Total: Retail Transmission | D36: =SUM(D34:D35) -> 6.14117 | G36: =SUM(G34:G35) -> 6.14117 | H36: =G36-D36 -> 0 | I36: 0 | J36: 0.08194788709 | K36: 0.07960303562
A37: Sub-Total: Delivery (based on two-tier RPP prices) | D37: =D32+D36 -> 43.76112 | G37: =G32+G36 -> 44.59112 | H37: =G37-D37 -> 0.83 | I37: 0.0189666078 | J37: 0.5950247375 | K37: 0.5779987386
A38: Sub-Total: Delivery (based on TOU prices) | D38: =D33+D36 -> 43.890795 | G38: =G33+G36 -> 44.720795 | H38: =G38-D38 -> 0.83 | I38: 0.01891057111 | J38: 0.5967551231 | K38: 0.5796796111
A39: Wholesale Market Service Rate (WMS) - not including CBR | B39: =B8 -> 369.95 | C39: =VLOOKUP($A39,'Data Pass Through'!$A:$D,2,FALSE) -> 0.003 | D39: =B39*C39 -> 1.10985 | E39: =$B$8 -> 369.95 | F39: =VLOOKUP($A39,'Data Pass Through'!$A:$D,3,FALSE) -> 0.003 | G39: =E39*F39 -> 1.10985 | H39: 0 | I39: 0 | J39: 0.01480985911 | K39: 0.01438609077
A40: Capacity Based Recovery (CBR) - Applicable for Class B Customers | B40: =B8 -> 369.95 | C40: =VLOOKUP($A40,'Data Pass Through'!$A:$D,2,FALSE) -> 0.0004 | D40: =B40*C40 -> 0.14798 | E40: =$B$8 -> 369.95 | F40: =VLOOKUP($A40,'Data Pass Through'!$A:$D,3,FALSE) -> 0.0004 | G40: =E40*F40 -> 0.14798 | H40: 0 | I40: 0 | J40: 0.001974647882 | K40: 0.001918145437
A41: Rural Rate Protection Charge | B41: =B8 -> 369.95 | C41: =VLOOKUP($A41,'Data Pass Through'!$A:$D,2,FALSE) -> 0.0005 | D41: 0.184975 | E41: 369.95 | F41: =VLOOKUP($A41,'Data Pass Through'!$A:$D,3,FALSE) -> 0.0005 | G41: 0.184975 | H41: 0 | I41: 0 | J41: 0.002468309852 | K41: 0.002397681796
A42: Standard Supply Service – Administration Charge (if applicable) | B42: 1 | C42: =VLOOKUP($A42,'Data Pass Through'!$A:$D,2,FALSE) -> 0.25 | D42: =B42*C42 -> 0.25 | E42: 1 | F42: =VLOOKUP($A42,'Data Pass Through'!$A:$D,3,FALSE) -> 0.25 | G42: 0.25 | H42: 0 | I42: 0 | J42: 0.003336004666 | K42: 0.003240548447
A43: Sub-Total: Regulatory | D43: =SUM(D39:D42) -> 1.692805 | G43: =SUM(G39:G42) -> 1.692805 | H43: 0 | I43: 0 | J43: 0.02258882151 | K43: 0.02194246645
A44: Debt Retirement Charge (DRC) | B44: =B4 -> 350 | C44: =VLOOKUP($A44,'Data Pass Through'!$A:$D,2,FALSE) -> 0 | D44: =B44*C44 -> 0 | E44: 350 | F44: =VLOOKUP($A44,'Data Pass Through'!$A:$D,3,FALSE) -> 0 | G44: =E44*F44 -> 0 | H44: 0 | I44: N/A | J44: 0 | K44: 0
A45: Total Electricty Charge on Two-Tier RPP | D45: =SUM(D14,D28,D29,D30,D36,D43,D44) -> 80.803925 | G45: =SUM(G14,G28,G29,G30,G36,G43,G44) -> 81.633925 | H45: 0.83 | I45: 0.01027177826 | J45: 1.089324619
A46: HST | C46: 0.13 | D46: =D45*C46 -> 10.50451025 | F46: =C46 -> 0.13 | G46: =G45*F46 -> 10.61241025 | H46: 0.1079 | I46: 0.01027177826 | J46: 0.1416122004
A47: Total Electricity Charge on Two-Tier RPP (including HST) | D47: =SUM(D45:D46) -> 91.30843525 | G47: =SUM(G45:G46) -> 92.24633525 | H47: 0.9379 | I47: 0.01027177826 | J47: 1.230936819
A48: Ontario Electricity Rebate (OER) | C48: ='Data Pass Through'!B20 -> -0.212 | D48: =D45*C48 -> -17.1304321 | F48: ='Data Pass Through'!C20 -> -0.212 | G48: =G45*F48 -> -17.3063921 | H48: -0.17596 | I48: -0.01027177826 | J48: -0.2309368192
A49: Total Amount on Two-Tier RPP | D49: =SUM(D47:D48) -> 74.17800315 | G49: =SUM(G47:G48) -> 74.93994315 | H49: 0.76194 | I49: 0.01027177826 | J49: 1
A50: Total Electricty Charge on TOU (before HST) | D50: =SUM(D18,D28,D29,D31,D36,D43,D44) -> 83.2086 | G50: =SUM(G18,G28,G29,G31,G36,G43,G44) -> 84.0386 | H50: 0.83 | I50: 0.009974930476 | K50: =G50/$G$54 -> 1.089324619
A51: HST | C51: 0.13 | D51: =D50*C51 -> 10.817118 | F51: =C51 -> 0.13 | G51: =G50*F51 -> 10.925018 | H51: 0.1079 | I51: 0.009974930476 | K51: =G51/$G$54 -> 0.1416122004
A52: Total Electricity Charge on TOU (including HST) | D52: =SUM(D50:D51) -> 94.025718 | G52: =SUM(G50:G51) -> 94.963618 | H52: 0.9379 | I52: 0.009974930476 | K52: =G52/$G$54 -> 1.230936819
A53: Ontario Electricity Rebate (OER) | C53: ='Data Pass Through'!B20 -> -0.212 | D53: =D50*C53 -> -17.6402232 | F53: ='Data Pass Through'!C20 -> -0.212 | G53: =G50*F53 -> -17.8161832 | H53: -0.17596 | I53: -0.009974930476 | K53: =G53/$G$54 -> -0.2309368192
A54: Total Amount on TOU | D54: =SUM(D52:D53) -> 76.3854948 | G54: =SUM(G52:G53) -> 77.1474348 | H54: 0.76194 | I54: 0.009974930476 | K54: =G54/$G$54 -> 1
A55: * Distribution rate protection applies to R1 and R2 customers

Sheet BI_UR_Typical
A1: 2021 Bill Impacts (Typical Consumption Level) - UR
A3: Rate Class | B3: =RIGHT(A1,LEN(A1)-FIND("- ",A1,1)-1) -> UR
A4: Monthly Consumption (kWh) | B4: =IF(COUNTIF(A1,"*Low*")>0,VLOOKUP(B3,'Data Billing Quantities'!$A:$Z,MATCH("Low kWh",'Data Billing Quantities'!4:4,0),FALSE),IF(COUNTIF(A1,"*Typical*")>0,VLOOKUP(B3,'Data Billing Quantities'!$A:$Z,MATCH("Typical kWh",'Data Billing Quantities'!4:4,0),FALSE),IF(COUNTIF(A1,"*Average*")>0,VLOOKUP(B3,'Data Billing Quantities'!$A:$Z,MATCH("Average kWh",'Data Billing Quantities'!4:4,0),FALSE),IF(COUNTIF(A1,"*High*")>0,VLOOKUP(B3,'Data Billing Quantities'!$A:$Z,MATCH("High kWh",'Data Billing Quantities'!4:4,0),FALSE),"error")))) -> 750
A5: Peak (kW) | B5: =IF(COUNTIF(A1,"*Low*")>0,VLOOKUP(B3,'Data Billing Quantities'!$A:$Z,MATCH("Low kW",'Data Billing Quantities'!4:4,0),FALSE),IF(COUNTIF(A1,"*Typical*")>0,VLOOKUP(B3,'Data Billing Quantities'!$A:$Z,MATCH("Typical kW",'Data Billing Quantities'!4:4,0),FALSE),IF(COUNTIF(A1,"*Average*")>0,VLOOKUP(B3,'Data Billing Quantities'!$A:$Z,MATCH("Average kW",'Data Billing Quantities'!4:4,0),FALSE),IF(COUNTIF(A1,"*High*")>0,VLOOKUP(B3,'Data Billing Quantities'!$A:$Z,MATCH("High kW",'Data Billing Quantities'!4:4,0),FALSE),"error")))) -> 0
A6: Loss factor | B6: =VLOOKUP(B3,'Data Billing Quantities'!A:D,MATCH(A6,'Data Billing Quantities'!4:4,0),FALSE) -> 1.057
A7: Commodity Threshold | B7: =VLOOKUP(B3,'Data Billing Quantities'!A:D,MATCH(A7,'Data Billing Quantities'!4:4,0),FALSE) -> 600
A8: Monthly Consumption (kWh) - Uplifted | B8: =B4*B6 -> 792.75
A9: Charge determinant | B9: =VLOOKUP(B3,'Data Billing Quantities'!A:D,MATCH(A9,'Data Billing Quantities'!4:4,0),FALSE) -> kWh
B11: Volume | C11: Current Rate ($) | D11: Current Charge ($) | E11: Volume | F11: Proposed Rate ($) | G11: Proposed Charge ($) | H11: Change ($) | I11: Change (%) | J11: % of Total Bill on RPP | K11: % of Total Bill on TOU
A12: Energy First Tier | B12: =IF(B4>B7,B7,B4) -> 600 | C12: =VLOOKUP($A12,'Data Pass Through'!$A:$D,2,FALSE) -> 0.101 | D12: =B12*C12 -> 60.6 | E12: =B12 -> 600 | F12: =VLOOKUP($A12,'Data Pass Through'!$A:$D,3,FALSE) -> 0.101 | G12: =E12*F12 -> 60.6 | H12: =G12-D12 -> 0 | I12: =IF(ISERROR(H12/ABS(D12)),"N/A",(H12/ABS(D12))) -> 0 | J12: =G12/$G$49 -> 0.4853871116
A13: Energy Second Tier | B13: =IF(B4>B7,(B4)-B7,0) -> 150 | C13: =VLOOKUP($A13,'Data Pass Through'!$A:$D,2,FALSE) -> 0.118 | D13: =B13*C13 -> 17.7 | E13: =B13 -> 150 | F13: =VLOOKUP($A13,'Data Pass Through'!$A:$D,3,FALSE) -> 0.118 | G13: =E13*F13 -> 17.7 | H13: 0 | I13: 0 | J13: =G13/$G$49 -> 0.1417714831
A14: Sub-Total: Energy (RPP Tiered) | D14: =SUM(D12:D13) -> 78.3 | G14: =SUM(G12:G13) -> 78.3 | H14: 0 | I14: 0 | J14: =G14/$G$49 -> 0.6271585947
A15: TOU-Off Peak | B15: =B$4*VLOOKUP($B$3,'Data Billing Quantities'!$A:$O,MATCH(BI_UR_Typical!$A15,'Data Billing Quantities'!$4:$4,0),FALSE) -> 480 | C15: =VLOOKUP($A15,'Data Pass Through'!$A:$D,2,FALSE) -> 0.085 | D15: =B15*C15 -> 40.8 | E15: 480 | F15: =VLOOKUP($A15,'Data Pass Through'!$A:$D,3,FALSE) -> 0.085 | G15: =E15*F15 -> 40.8 | H15: 0 | I15: 0 | K15: =G15/$G$54 -> 0.3223485022
A16: TOU-Mid Peak | B16: =B$4*VLOOKUP($B$3,'Data Billing Quantities'!$A:$O,MATCH(BI_UR_Typical!$A16,'Data Billing Quantities'!$4:$4,0),FALSE) -> 135 | C16: =VLOOKUP($A16,'Data Pass Through'!$A:$D,2,FALSE) -> 0.119 | D16: =B16*C16 -> 16.065 | E16: 135 | F16: =VLOOKUP($A16,'Data Pass Through'!$A:$D,3,FALSE) -> 0.119 | G16: =E16*F16 -> 16.065 | H16: 0 | I16: 0 | K16: 0.1269247228
A17: TOU-On Peak | B17: =B$4*VLOOKUP($B$3,'Data Billing Quantities'!$A:$O,MATCH(BI_UR_Typical!$A17,'Data Billing Quantities'!$4:$4,0),FALSE) -> 135 | C17: =VLOOKUP($A17,'Data Pass Through'!$A:$D,2,FALSE) -> 0.176 | D17: =B17*C17 -> 23.76 | E17: 135 | F17: =VLOOKUP($A17,'Data Pass Through'!$A:$D,3,FALSE) -> 0.176 | G17: =E17*F17 -> 23.76 | H17: 0 | I17: 0 | K17: 0.1877205984
A18: Sub-Total: Energy (RPP TOU) | D18: =SUM(D15:D17) -> 80.625 | G18: =SUM(G15:G17) -> 80.625 | H18: 0 | I18: 0 | J18: =G18/$G$49 -> 0.6457811201 | K18: 0.6369938234
A19: Service Charge | B19: 1 | C19: =IF(ISERROR(VLOOKUP($B$3,'Data Current Rates'!$A:$BE,MATCH(BI_UR_Typical!$A19,CurrentHeader,0),FALSE)),0,VLOOKUP($B$3,'Data Current Rates'!$A:$BE,MATCH(BI_UR_Typical!$A19,CurrentHeader,0),FALSE)) -> 35.92 | D19: =B19*C19 -> 35.92 | E19: 1 | F19: =VLOOKUP($B$3,'Data Proposed Rates'!$A:$BC,MATCH(BI_UR_Typical!$A19,ProposedHeader,0),FALSE) -> 35.92 | G19: =E19*F19 -> 35.92 | H19: 0 | I19: 0 | J19: 0.2877080041 | K19: 0.2837930932
A20: Base Rate Adjustment to Recover Past Tax Amounts FIXED | E20: 1 | F20: =VLOOKUP($B$3,'Data Proposed Rates'!$A:$BC,MATCH(BI_UR_Typical!$A20,ProposedHeader,0),FALSE) -> 0.83 | G20: 0.83 | H20: 0.83 | I20: N/A | J20: 0.006648041298 | K20: 0.006557579825
A21: Fixed Deferral/Variance Account Rider (General) | B21: 1 | C21: =IF(ISERROR(VLOOKUP($B$3,'Data Current Rates'!$A:$BE,MATCH(BI_UR_Typical!$A21,CurrentHeader,0),FALSE)),0,VLOOKUP($B$3,'Data Current Rates'!$A:$BE,MATCH(BI_UR_Typical!$A21,CurrentHeader,0),FALSE)) -> -0.14 | D21: -0.14 | E21: 1 | F21: =VLOOKUP($B$3,'Data Proposed Rates'!$A:$BC,MATCH(BI_UR_Typical!$A21,ProposedHeader,0),FALSE) -> -0.14 | G21: -0.14 | H21: 0 | I21: 0 | J21: -0.001121356364 | K21: -0.001106097802
A22: Fixed ESM Rider | B22: 1 | C22: =IF(ISERROR(VLOOKUP($B$3,'Data Current Rates'!$A:$BE,MATCH(BI_UR_Typical!$A22,CurrentHeader,0),FALSE)),0,VLOOKUP($B$3,'Data Current Rates'!$A:$BE,MATCH(BI_UR_Typical!$A22,CurrentHeader,0),FALSE)) -> -0.5 | D22: -0.5 | E22: 1 | F22: =VLOOKUP($B$3,'Data Proposed Rates'!$A:$BC,MATCH(BI_UR_Typical!$A22,ProposedHeader,0),FALSE) -> -0.5 | G22: -0.5 | H22: 0 | I22: 0 | J22: -0.004004844155 | K22: -0.003950349292
A23: Distribution Volumetric Charge | B23: =IF($B$9="kWh",$B$4,$B$5) -> 750 | C23: =IF(ISERROR(VLOOKUP($B$3,'Data Current Rates'!$A:$BE,MATCH(BI_UR_Typical!$A23,CurrentHeader,0),FALSE)),0,VLOOKUP($B$3,'Data Current Rates'!$A:$BE,MATCH(BI_UR_Typical!$A23,CurrentHeader,0),FALSE)) -> 0 | D23: 0 | E23: =IF($B$9="kWh",$B$4,$B$5) -> 750 | F23: =VLOOKUP($B$3,'Data Proposed Rates'!$A:$BC,MATCH(BI_UR_Typical!$A23,ProposedHeader,0),FALSE) -> 0 | G23: 0 | H23: 0 | I23: N/A | J23: 0 | K23: 0
A24: Base Rate Adjustment to Recover Past Tax Amounts VOL
A25: Volumetric Deferral/Variance Account Rider (General) | B25: =IF($B$9="kWh",$B$4,$B$5) -> 750 | C25: =IF(ISERROR(VLOOKUP($B$3,'Data Current Rates'!$A:$BE,MATCH(BI_UR_Typical!$A25,CurrentHeader,0),FALSE)),0,VLOOKUP($B$3,'Data Current Rates'!$A:$BE,MATCH(BI_UR_Typical!$A25,CurrentHeader,0),FALSE)) -> -0.0007 | D25: -0.525 | E25: =IF($B$9="kWh",$B$4,$B$5) -> 750 | F25: =VLOOKUP($B$3,'Data Proposed Rates'!$A:$BC,MATCH(BI_UR_Typical!$A25,ProposedHeader,0),FALSE) -> -0.0007 | G25: -0.525 | H25: 0 | I25: 0 | J25: -0.004205086363 | K25: -0.004147866757
A26: Volumetric ESM Rider | B26: 750 | C26: =IF(ISERROR(VLOOKUP($B$3,'Data Current Rates'!$A:$BE,MATCH(BI_UR_Typical!$A26,CurrentHeader,0),FALSE)),0,VLOOKUP($B$3,'Data Current Rates'!$A:$BE,MATCH(BI_UR_Typical!$A26,CurrentHeader,0),FALSE)) -> 0 | D26: 0 | E26: 750 | F26: =VLOOKUP($B$3,'Data Proposed Rates'!$A:$BC,MATCH(BI_UR_Typical!$A26,ProposedHeader,0),FALSE) -> 0 | G26: 0 | H26: 0 | I26: N/A | J26: 0 | K26: 0
A27: Fair Hydro Plan - Distribution Rate Protection Savings* | D27: =IF(AND(B3<>"R1",B3<>"R2"),0,IF(VLOOKUP($A27,'Data Pass Through'!$A:$D,2,FALSE)=0,0,IF(SUM(D19:D20,D23:D24)<VLOOKUP($A27,'Data Pass Through'!$A:$D,2,FALSE),0,VLOOKUP($A27,'Data Pass Through'!$A:$D,2,FALSE)-SUM(D19:D20,D23:D24)))) -> 0 | G27: =IF(AND(B3<>"R1",B3<>"R2"),0,IF(VLOOKUP($A27,'Data Pass Through'!$A:$D,2,FALSE)=0,0,IF(SUM(G19:G20,G23:G24)<VLOOKUP($A27,'Data Pass Through'!$A:$D,2,FALSE),0,VLOOKUP($A27,'Data Pass Through'!$A:$D,2,FALSE)-SUM(G19:G20,G23:G24)))) -> 0 | H27: 0 | I27: N/A | J27: 0 | K27: 0
A28: Sub-Total: Distribution (excluding pass through) | D28: =SUM(INDIRECT("D19:D"&ROW()-1)) -> 34.755 | G28: =SUM(INDIRECT("g19:g"&ROW()-1)) -> 35.585 | H28: =G28-D28 -> 0.83 | I28: 0.02388145591 | J28: 0.2850247585 | K28: 0.2811463591
A29: Smart Metering Entity Charge | B29: 1 | C29: =VLOOKUP($A29,'Data Pass Through'!$A:$D,2,FALSE) -> 0.57 | D29: =B29*C29 -> 0.57 | E29: 1 | F29: =VLOOKUP($A29,'Data Pass Through'!$A:$D,3,FALSE) -> 0.57 | G29: =E29*F29 -> 0.57 | H29: 0 | I29: 0 | J29: 0.004565522337 | K29: 0.004503398193
A30: Line Losses on Cost of Power (based on two-tier RPP prices) | B30: =B8-B4 -> 42.75 | C30: =IF(B4>B7,C13,C12) -> 0.118 | D30: =B30*C30 -> 5.0445 | E30: 42.75 | F30: =IF(B4>B7,F13,F12) -> 0.118 | G30: =E30*F30 -> 5.0445 | H30: 0 | I30: 0 | J30: 0.04040487268 | K30: 0.03985507401
A31: Line Losses on Cost of Power (based on TOU prices) | B31: =B8-B4 -> 42.75 | C31: =VLOOKUP($B$3,'Data Billing Quantities'!$A:$O,MATCH(BI_UR_Typical!$A15,'Data Billing Quantities'!$4:$4,0),FALSE)*C15+VLOOKUP($B$3,'Data Billing Quantities'!$A:$O,MATCH(BI_UR_Typical!$A16,'Data Billing Quantities'!$4:$4,0),FALSE)*C16+VLOOKUP($B$3,'Data Billing Quantities'!$A:$O,MATCH(BI_UR_Typical!$A17,'Data Billing Quantities'!$4:$4,0),FALSE)*C17 -> 0.1075 | D31: =B31*C31 -> 4.595625 | E31: 42.75 | F31: =VLOOKUP($B$3,'Data Billing Quantities'!$A:$O,MATCH(BI_UR_Typical!$A15,'Data Billing Quantities'!$4:$4,0),FALSE)*F15+VLOOKUP($B$3,'Data Billing Quantities'!$A:$O,MATCH(BI_UR_Typical!$A16,'Data Billing Quantities'!$4:$4,0),FALSE)*F16+VLOOKUP($B$3,'Data Billing Quantities'!$A:$O,MATCH(BI_UR_Typical!$A17,'Data Billing Quantities'!$4:$4,0),FALSE)*F17 -> 0.1075 | G31: =E31*F31 -> 4.595625 | H31: 0 | I31: 0 | J31: 0.03680952384 | K31: 0.03630864793
A32: Sub-Total: Distribution (based on two-tier RPP prices) | D32: =SUM(D28,D29:D30) -> 40.3695 | G32: =SUM(G28,G29:G30) -> 41.1995 | H32: 0.83 | I32: 0.0205600763 | J32: 0.3299951536 | K32: 0.3255048313
A33: Sub-Total: Distribution (based on TOU prices) | D33: =SUM(D28,D29,D31) -> 39.920625 | G33: =SUM(G28,G29,G31) -> 40.750625 | H33: 0.83 | I33: 0.02079125765 | J33: 0.3263998047 | K33: 0.3219584053
A34: Retail Transmission Rate – Network Service Rate | B34: =B8 -> 792.75 | C34: =VLOOKUP($B$3,'Data Current Rates'!$A:$BE,MATCH(BI_UR_Typical!$A34,CurrentHeader,0),FALSE) -> 0.0089 | D34: =B34*C34 -> 7.055475 | E34: 792.75 | F34: =VLOOKUP($B$3,'Data Proposed Rates'!$A:$BC,MATCH(BI_UR_Typical!$A34,ProposedHeader,0),FALSE) -> 0.0089 | G34: =E34*F34 -> 7.055475 | H34: =G34-D34 -> 0 | I34: 0 | J34: 0.05651215563 | K34: 0.05574318135
A35: Retail Transmission Rate – Line and Transformation Connection Service Rate | B35: =B8 -> 792.75 | C35: =VLOOKUP($B$3,'Data Current Rates'!$A:$BE,MATCH(BI_UR_Typical!$A35,CurrentHeader,0),FALSE) -> 0.0077 | D35: =B35*C35 -> 6.104175 | E35: 792.75 | F35: =VLOOKUP($B$3,'Data Proposed Rates'!$A:$BC,MATCH(BI_UR_Typical!$A35,ProposedHeader,0),FALSE) -> 0.0077 | G35: =E35*F35 -> 6.104175 | H35: =G35-D35 -> 0 | I35: 0 | J35: 0.04889253914 | K35: 0.04822724678
A36: Sub-Total: Retail Transmission | D36: =SUM(D34:D35) -> 13.15965 | G36: =SUM(G34:G35) -> 13.15965 | H36: =G36-D36 -> 0 | I36: 0 | J36: 0.1054046948 | K36: 0.1039704281
A37: Sub-Total: Delivery (based on two-tier RPP prices) | D37: =D32+D36 -> 53.52915 | G37: =G32+G36 -> 54.35915 | H37: =G37-D37 -> 0.83 | I37: 0.01550557033 | J37: 0.4353998483 | K37: 0.4294752595
A38: Sub-Total: Delivery (based on TOU prices) | D38: =D33+D36 -> 53.080275 | G38: =G33+G36 -> 53.910275 | H38: =G38-D38 -> 0.83 | I38: 0.01563669367 | J38: 0.4318044995 | K38: 0.4259288334
A39: Wholesale Market Service Rate (WMS) - not including CBR | B39: =B8 -> 792.75 | C39: =VLOOKUP($A39,'Data Pass Through'!$A:$D,2,FALSE) -> 0.003 | D39: =B39*C39 -> 2.37825 | E39: =$B$8 -> 792.75 | F39: =VLOOKUP($A39,'Data Pass Through'!$A:$D,3,FALSE) -> 0.003 | G39: =E39*F39 -> 2.37825 | H39: 0 | I39: 0 | J39: 0.01904904122 | K39: 0.01878983641
A40: Capacity Based Recovery (CBR) - Applicable for Class B Customers | B40: =B8 -> 792.75 | C40: =VLOOKUP($A40,'Data Pass Through'!$A:$D,2,FALSE) -> 0.0004 | D40: =B40*C40 -> 0.3171 | E40: =$B$8 -> 792.75 | F40: =VLOOKUP($A40,'Data Pass Through'!$A:$D,3,FALSE) -> 0.0004 | G40: =E40*F40 -> 0.3171 | H40: 0 | I40: 0 | J40: 0.002539872163 | K40: 0.002505311521
A41: Rural Rate Protection Charge | B41: =B8 -> 792.75 | C41: =VLOOKUP($A41,'Data Pass Through'!$A:$D,2,FALSE) -> 0.0005 | D41: 0.396375 | E41: 792.75 | F41: =VLOOKUP($A41,'Data Pass Through'!$A:$D,3,FALSE) -> 0.0005 | G41: 0.396375 | H41: 0 | I41: 0 | J41: 0.003174840204 | K41: 0.003131639401
A42: Standard Supply Service – Administration Charge (if applicable) | B42: 1 | C42: =VLOOKUP($A42,'Data Pass Through'!$A:$D,2,FALSE) -> 0.25 | D42: =B42*C42 -> 0.25 | E42: 1 | F42: =VLOOKUP($A42,'Data Pass Through'!$A:$D,3,FALSE) -> 0.25 | G42: 0.25 | H42: 0 | I42: 0 | J42: 0.002002422078 | K42: 0.001975174646
A43: Sub-Total: Regulatory | D43: =SUM(D39:D42) -> 3.341725 | G43: =SUM(G39:G42) -> 3.341725 | H43: 0 | I43: 0 | J43: 0.02676617567 | K43: 0.02640196198
A44: Debt Retirement Charge (DRC) | B44: =B4 -> 750 | C44: =VLOOKUP($A44,'Data Pass Through'!$A:$D,2,FALSE) -> 0 | D44: =B44*C44 -> 0 | E44: 750 | F44: =VLOOKUP($A44,'Data Pass Through'!$A:$D,3,FALSE) -> 0 | G44: =E44*F44 -> 0 | H44: 0 | I44: N/A | J44: 0 | K44: 0
A45: Total Electricty Charge on Two-Tier RPP | D45: =SUM(D14,D28,D29,D30,D36,D43,D44) -> 135.170875 | G45: =SUM(G14,G28,G29,G30,G36,G43,G44) -> 136.000875 | H45: 0.83 | I45: 0.006140376024 | J45: 1.089324619
A46: HST | C46: 0.13 | D46: =D45*C46 -> 17.57221375 | F46: =C46 -> 0.13 | G46: =G45*F46 -> 17.68011375 | H46: 0.1079 | I46: 0.006140376024 | J46: 0.1416122004
A47: Total Electricity Charge on Two-Tier RPP (including HST) | D47: =SUM(D45:D46) -> 152.7430887 | G47: =SUM(G45:G46) -> 153.6809887 | H47: 0.9379 | I47: 0.006140376024 | J47: 1.230936819
A48: Ontario Electricity Rebate (OER) | C48: ='Data Pass Through'!B20 -> -0.212 | D48: =D45*C48 -> -28.6562255 | F48: ='Data Pass Through'!C20 -> -0.212 | G48: =G45*F48 -> -28.8321855 | H48: -0.17596 | I48: -0.006140376024 | J48: -0.2309368192
A49: Total Amount on Two-Tier RPP | D49: =SUM(D47:D48) -> 124.0868632 | G49: =SUM(G47:G48) -> 124.8488032 | H49: 0.76194 | I49: 0.006140376024 | J49: 1
A50: Total Electricty Charge on TOU (before HST) | D50: =SUM(D18,D28,D29,D31,D36,D43,D44) -> 137.047 | G50: =SUM(G18,G28,G29,G31,G36,G43,G44) -> 137.877 | H50: 0.83 | I50: 0.006056316446 | K50: =G50/$G$54 -> 1.089324619
A51: HST | C51: 0.13 | D51: =D50*C51 -> 17.81611 | F51: =C51 -> 0.13 | G51: =G50*F51 -> 17.92401 | H51: 0.1079 | I51: 0.006056316446 | K51: =G51/$G$54 -> 0.1416122004
A52: Total Electricity Charge on TOU (including HST) | D52: =SUM(D50:D51) -> 154.86311 | G52: =SUM(G50:G51) -> 155.80101 | H52: 0.9379 | I52: 0.006056316446 | K52: =G52/$G$54 -> 1.230936819
A53: Ontario Electricity Rebate (OER) | C53: ='Data Pass Through'!B20 -> -0.212 | D53: =D50*C53 -> -29.053964 | F53: ='Data Pass Through'!C20 -> -0.212 | G53: =G50*F53 -> -29.229924 | H53: -0.17596 | I53: -0.006056316446 | K53: =G53/$G$54 -> -0.2309368192
A54: Total Amount on TOU | D54: =SUM(D52:D53) -> 125.809146 | G54: =SUM(G52:G53) -> 126.571086 | H54: 0.76194 | I54: 0.006056316446 | K54: =G54/$G$54 -> 1
A55: * Distribution rate protection applies to R1 and R2 customers

Sheet BI_UR_Avg
A1: 2021 Bill Impacts (Average Consumption Level) - UR
A3: Rate Class | B3: =RIGHT(A1,LEN(A1)-FIND("- ",A1,1)-1) -> UR
A4: Monthly Consumption (kWh) | B4: =IF(COUNTIF(A1,"*Low*")>0,VLOOKUP(B3,'Data Billing Quantities'!$A:$Z,MATCH("Low kWh",'Data Billing Quantities'!4:4,0),FALSE),IF(COUNTIF(A1,"*Typical*")>0,VLOOKUP(B3,'Data Billing Quantities'!$A:$Z,MATCH("Typical kWh",'Data Billing Quantities'!4:4,0),FALSE),IF(COUNTIF(A1,"*Average*")>0,VLOOKUP(B3,'Data Billing Quantities'!$A:$Z,MATCH("Average kWh",'Data Billing Quantities'!4:4,0),FALSE),IF(COUNTIF(A1,"*High*")>0,VLOOKUP(B3,'Data Billing Quantities'!$A:$Z,MATCH("High kWh",'Data Billing Quantities'!4:4,0),FALSE),"error")))) -> 755
A5: Peak (kW) | B5: =IF(COUNTIF(A1,"*Low*")>0,VLOOKUP(B3,'Data Billing Quantities'!$A:$Z,MATCH("Low kW",'Data Billing Quantities'!4:4,0),FALSE),IF(COUNTIF(A1,"*Typical*")>0,VLOOKUP(B3,'Data Billing Quantities'!$A:$Z,MATCH("Typical kW",'Data Billing Quantities'!4:4,0),FALSE),IF(COUNTIF(A1,"*Average*")>0,VLOOKUP(B3,'Data Billing Quantities'!$A:$Z,MATCH("Average kW",'Data Billing Quantities'!4:4,0),FALSE),IF(COUNTIF(A1,"*High*")>0,VLOOKUP(B3,'Data Billing Quantities'!$A:$Z,MATCH("High kW",'Data Billing Quantities'!4:4,0),FALSE),"error")))) -> 0
A6: Loss factor | B6: =VLOOKUP(B3,'Data Billing Quantities'!A:D,MATCH(A6,'Data Billing Quantities'!4:4,0),FALSE) -> 1.057
A7: Commodity Threshold | B7: =VLOOKUP(B3,'Data Billing Quantities'!A:D,MATCH(A7,'Data Billing Quantities'!4:4,0),FALSE) -> 600
A8: Monthly Consumption (kWh) - Uplifted | B8: =B4*B6 -> 798.035
A9: Charge determinant | B9: =VLOOKUP(B3,'Data Billing Quantities'!A:D,MATCH(A9,'Data Billing Quantities'!4:4,0),FALSE) -> kWh
B11: Volume | C11: Current Rate ($) | D11: Current Charge ($) | E11: Volume | F11: Proposed Rate ($) | G11: Proposed Charge ($) | H11: Change ($) | I11: Change (%) | J11: % of Total Bill on RPP | K11: % of Total Bill on TOU
A12: Energy First Tier | B12: =IF(B4>B7,B7,B4) -> 600 | C12: =VLOOKUP($A12,'Data Pass Through'!$A:$D,2,FALSE) -> 0.101 | D12: =B12*C12 -> 60.6 | E12: =B12 -> 600 | F12: =VLOOKUP($A12,'Data Pass Through'!$A:$D,3,FALSE) -> 0.101 | G12: =E12*F12 -> 60.6 | H12: =G12-D12 -> 0 | I12: =IF(ISERROR(H12/ABS(D12)),"N/A",(H12/ABS(D12))) -> 0 | J12: =G12/$G$49 -> 0.4828010453
A13: Energy Second Tier | B13: =IF(B4>B7,(B4)-B7,0) -> 155 | C13: =VLOOKUP($A13,'Data Pass Through'!$A:$D,2,FALSE) -> 0.118 | D13: =B13*C13 -> 18.29 | E13: =B13 -> 155 | F13: =VLOOKUP($A13,'Data Pass Through'!$A:$D,3,FALSE) -> 0.118 | G13: =E13*F13 -> 18.29 | H13: 0 | I13: 0 | J13: =G13/$G$49 -> 0.1457166851
A14: Sub-Total: Energy (RPP Tiered) | D14: =SUM(D12:D13) -> 78.89 | G14: =SUM(G12:G13) -> 78.89 | H14: 0 | I14: 0 | J14: =G14/$G$49 -> 0.6285177304
A15: TOU-Off Peak | B15: =B$4*VLOOKUP($B$3,'Data Billing Quantities'!$A:$O,MATCH(BI_UR_Avg!$A15,'Data Billing Quantities'!$4:$4,0),FALSE) -> 483.2 | C15: =VLOOKUP($A15,'Data Pass Through'!$A:$D,2,FALSE) -> 0.085 | D15: =B15*C15 -> 41.072 | E15: 483.2 | F15: =VLOOKUP($A15,'Data Pass Through'!$A:$D,3,FALSE) -> 0.085 | G15: =E15*F15 -> 41.072 | H15: 0 | I15: 0 | K15: =G15/$G$54 -> 0.3229213078
A16: TOU-Mid Peak | B16: =B$4*VLOOKUP($B$3,'Data Billing Quantities'!$A:$O,MATCH(BI_UR_Avg!$A16,'Data Billing Quantities'!$4:$4,0),FALSE) -> 135.9 | C16: =VLOOKUP($A16,'Data Pass Through'!$A:$D,2,FALSE) -> 0.119 | D16: =B16*C16 -> 16.1721 | E16: 135.9 | F16: =VLOOKUP($A16,'Data Pass Through'!$A:$D,3,FALSE) -> 0.119 | G16: =E16*F16 -> 16.1721 | H16: 0 | I16: 0 | K16: 0.127150265
A17: TOU-On Peak | B17: =B$4*VLOOKUP($B$3,'Data Billing Quantities'!$A:$O,MATCH(BI_UR_Avg!$A17,'Data Billing Quantities'!$4:$4,0),FALSE) -> 135.9 | C17: =VLOOKUP($A17,'Data Pass Through'!$A:$D,2,FALSE) -> 0.176 | D17: =B17*C17 -> 23.9184 | E17: 135.9 | F17: =VLOOKUP($A17,'Data Pass Through'!$A:$D,3,FALSE) -> 0.176 | G17: =E17*F17 -> 23.9184 | H17: 0 | I17: 0 | K17: 0.1880541734
A18: Sub-Total: Energy (RPP TOU) | D18: =SUM(D15:D17) -> 81.1625 | G18: =SUM(G15:G17) -> 81.1625 | H18: 0 | I18: 0 | J18: =G18/$G$49 -> 0.6466227696 | K18: 0.6381257462
A19: Service Charge | B19: 1 | C19: =IF(ISERROR(VLOOKUP($B$3,'Data Current Rates'!$A:$BE,MATCH(BI_UR_Avg!$A19,CurrentHeader,0),FALSE)),0,VLOOKUP($B$3,'Data Current Rates'!$A:$BE,MATCH(BI_UR_Avg!$A19,CurrentHeader,0),FALSE)) -> 35.92 | D19: =B19*C19 -> 35.92 | E19: 1 | F19: =VLOOKUP($B$3,'Data Proposed Rates'!$A:$BC,MATCH(BI_UR_Avg!$A19,ProposedHeader,0),FALSE) -> 35.92 | G19: =E19*F19 -> 35.92 | H19: 0 | I19: 0 | J19: 0.286175141 | K19: 0.2824146225
A20: Base Rate Adjustment to Recover Past Tax Amounts FIXED | E20: 1 | F20: =VLOOKUP($B$3,'Data Proposed Rates'!$A:$BC,MATCH(BI_UR_Avg!$A20,ProposedHeader,0),FALSE) -> 0.83 | G20: 0.83 | H20: 0.83 | I20: N/A | J20: 0.006612621577 | K20: 0.006525727637
A21: Fixed Deferral/Variance Account Rider (General) | B21: 1 | C21: =IF(ISERROR(VLOOKUP($B$3,'Data Current Rates'!$A:$BE,MATCH(BI_UR_Avg!$A21,CurrentHeader,0),FALSE)),0,VLOOKUP($B$3,'Data Current Rates'!$A:$BE,MATCH(BI_UR_Avg!$A21,CurrentHeader,0),FALSE)) -> -0.14 | D21: -0.14 | E21: 1 | F21: =VLOOKUP($B$3,'Data Proposed Rates'!$A:$BC,MATCH(BI_UR_Avg!$A21,ProposedHeader,0),FALSE) -> -0.14 | G21: -0.14 | H21: 0 | I21: 0 | J21: -0.001115381953 | K21: -0.001100725144
A22: Fixed ESM Rider | B22: 1 | C22: =IF(ISERROR(VLOOKUP($B$3,'Data Current Rates'!$A:$BE,MATCH(BI_UR_Avg!$A22,CurrentHeader,0),FALSE)),0,VLOOKUP($B$3,'Data Current Rates'!$A:$BE,MATCH(BI_UR_Avg!$A22,CurrentHeader,0),FALSE)) -> -0.5 | D22: -0.5 | E22: 1 | F22: =VLOOKUP($B$3,'Data Proposed Rates'!$A:$BC,MATCH(BI_UR_Avg!$A22,ProposedHeader,0),FALSE) -> -0.5 | G22: -0.5 | H22: 0 | I22: 0 | J22: -0.003983506974 | K22: -0.003931161227
A23: Distribution Volumetric Charge | B23: =IF($B$9="kWh",$B$4,$B$5) -> 755 | C23: =IF(ISERROR(VLOOKUP($B$3,'Data Current Rates'!$A:$BE,MATCH(BI_UR_Avg!$A23,CurrentHeader,0),FALSE)),0,VLOOKUP($B$3,'Data Current Rates'!$A:$BE,MATCH(BI_UR_Avg!$A23,CurrentHeader,0),FALSE)) -> 0 | D23: 0 | E23: =IF($B$9="kWh",$B$4,$B$5) -> 755 | F23: =VLOOKUP($B$3,'Data Proposed Rates'!$A:$BC,MATCH(BI_UR_Avg!$A23,ProposedHeader,0),FALSE) -> 0 | G23: 0 | H23: 0 | I23: N/A | J23: 0 | K23: 0
A24: Base Rate Adjustment to Recover Past Tax Amounts VOL
A25: Volumetric Deferral/Variance Account Rider (General) | B25: =IF($B$9="kWh",$B$4,$B$5) -> 755 | C25: =IF(ISERROR(VLOOKUP($B$3,'Data Current Rates'!$A:$BE,MATCH(BI_UR_Avg!$A25,CurrentHeader,0),FALSE)),0,VLOOKUP($B$3,'Data Current Rates'!$A:$BE,MATCH(BI_UR_Avg!$A25,CurrentHeader,0),FALSE)) -> -0.0007 | D25: -0.5285 | E25: =IF($B$9="kWh",$B$4,$B$5) -> 755 | F25: =VLOOKUP($B$3,'Data Proposed Rates'!$A:$BC,MATCH(BI_UR_Avg!$A25,ProposedHeader,0),FALSE) -> -0.0007 | G25: -0.5285 | H25: 0 | I25: 0 | J25: -0.004210566872 | K25: -0.004155237417
A26: Volumetric ESM Rider | B26: 755 | C26: =IF(ISERROR(VLOOKUP($B$3,'Data Current Rates'!$A:$BE,MATCH(BI_UR_Avg!$A26,CurrentHeader,0),FALSE)),0,VLOOKUP($B$3,'Data Current Rates'!$A:$BE,MATCH(BI_UR_Avg!$A26,CurrentHeader,0),FALSE)) -> 0 | D26: 0 | E26: 755 | F26: =VLOOKUP($B$3,'Data Proposed Rates'!$A:$BC,MATCH(BI_UR_Avg!$A26,ProposedHeader,0),FALSE) -> 0 | G26: 0 | H26: 0 | I26: N/A | J26: 0 | K26: 0
A27: Fair Hydro Plan - Distribution Rate Protection Savings* | D27: =IF(AND(B3<>"R1",B3<>"R2"),0,IF(VLOOKUP($A27,'Data Pass Through'!$A:$D,2,FALSE)=0,0,IF(SUM(D19:D20,D23:D24)<VLOOKUP($A27,'Data Pass Through'!$A:$D,2,FALSE),0,VLOOKUP($A27,'Data Pass Through'!$A:$D,2,FALSE)-SUM(D19:D20,D23:D24)))) -> 0 | G27: =IF(AND(B3<>"R1",B3<>"R2"),0,IF(VLOOKUP($A27,'Data Pass Through'!$A:$D,2,FALSE)=0,0,IF(SUM(G19:G20,G23:G24)<VLOOKUP($A27,'Data Pass Through'!$A:$D,2,FALSE),0,VLOOKUP($A27,'Data Pass Through'!$A:$D,2,FALSE)-SUM(G19:G20,G23:G24)))) -> 0 | H27: 0 | I27: N/A | J27: 0 | K27: 0
A28: Sub-Total: Distribution (excluding pass through) | D28: =SUM(INDIRECT("D19:D"&ROW()-1)) -> 34.7515 | G28: =SUM(INDIRECT("g19:g"&ROW()-1)) -> 35.5815 | H28: =G28-D28 -> 0.83 | I28: 0.02388386113 | J28: 0.2834783068 | K28: 0.2797532264
A29: Smart Metering Entity Charge | B29: 1 | C29: =VLOOKUP($A29,'Data Pass Through'!$A:$D,2,FALSE) -> 0.57 | D29: =B29*C29 -> 0.57 | E29: 1 | F29: =VLOOKUP($A29,'Data Pass Through'!$A:$D,3,FALSE) -> 0.57 | G29: =E29*F29 -> 0.57 | H29: 0 | I29: 0 | J29: 0.004541197951 | K29: 0.004481523799
A30: Line Losses on Cost of Power (based on two-tier RPP prices) | B30: =B8-B4 -> 43.035 | C30: =IF(B4>B7,C13,C12) -> 0.118 | D30: =B30*C30 -> 5.07813 | E30: 43.035 | F30: =IF(B4>B7,F13,F12) -> 0.118 | G30: =E30*F30 -> 5.07813 | H30: 0 | I30: 0 | J30: 0.04045753254 | K30: 0.03992589552
A31: Line Losses on Cost of Power (based on TOU prices) | B31: =B8-B4 -> 43.035 | C31: =VLOOKUP($B$3,'Data Billing Quantities'!$A:$O,MATCH(BI_UR_Avg!$A15,'Data Billing Quantities'!$4:$4,0),FALSE)*C15+VLOOKUP($B$3,'Data Billing Quantities'!$A:$O,MATCH(BI_UR_Avg!$A16,'Data Billing Quantities'!$4:$4,0),FALSE)*C16+VLOOKUP($B$3,'Data Billing Quantities'!$A:$O,MATCH(BI_UR_Avg!$A17,'Data Billing Quantities'!$4:$4,0),FALSE)*C17 -> 0.1075 | D31: =B31*C31 -> 4.6262625 | E31: 43.035 | F31: =VLOOKUP($B$3,'Data Billing Quantities'!$A:$O,MATCH(BI_UR_Avg!$A15,'Data Billing Quantities'!$4:$4,0),FALSE)*F15+VLOOKUP($B$3,'Data Billing Quantities'!$A:$O,MATCH(BI_UR_Avg!$A16,'Data Billing Quantities'!$4:$4,0),FALSE)*F16+VLOOKUP($B$3,'Data Billing Quantities'!$A:$O,MATCH(BI_UR_Avg!$A17,'Data Billing Quantities'!$4:$4,0),FALSE)*F17 -> 0.1075 | G31: =E31*F31 -> 4.6262625 | H31: 0 | I31: 0 | J31: 0.03685749787 | K31: 0.03637316753
A32: Sub-Total: Distribution (based on two-tier RPP prices) | D32: =SUM(D28,D29:D30) -> 40.39963 | G32: =SUM(G28,G29:G30) -> 41.22963 | H32: 0.83 | I32: 0.02054474261 | J32: 0.3284770373 | K32: 0.3241606457
A33: Sub-Total: Distribution (based on TOU prices) | D33: =SUM(D28,D29,D31) -> 39.9477625 | G33: =SUM(G28,G29,G31) -> 40.7777625 | H33: 0.83 | I33: 0.02077713364 | J33: 0.3248770026 | K33: 0.3206079177
A34: Retail Transmission Rate – Network Service Rate | B34: =B8 -> 798.035 | C34: =VLOOKUP($B$3,'Data Current Rates'!$A:$BE,MATCH(BI_UR_Avg!$A34,CurrentHeader,0),FALSE) -> 0.0089 | D34: =B34*C34 -> 7.1025115 | E34: 798.035 | F34: =VLOOKUP($B$3,'Data Proposed Rates'!$A:$BC,MATCH(BI_UR_Avg!$A34,ProposedHeader,0),FALSE) -> 0.0089 | G34: =E34*F34 -> 7.1025115 | H34: =G34-D34 -> 0 | I34: 0 | J34: 0.05658580819 | K34: 0.05584223565
A35: Retail Transmission Rate – Line and Transformation Connection Service Rate | B35: =B8 -> 798.035 | C35: =VLOOKUP($B$3,'Data Current Rates'!$A:$BE,MATCH(BI_UR_Avg!$A35,CurrentHeader,0),FALSE) -> 0.0077 | D35: =B35*C35 -> 6.1448695 | E35: 798.035 | F35: =VLOOKUP($B$3,'Data Proposed Rates'!$A:$BC,MATCH(BI_UR_Avg!$A35,ProposedHeader,0),FALSE) -> 0.0077 | G35: =E35*F35 -> 6.1448695 | H35: =G35-D35 -> 0 | I35: 0 | J35: 0.04895626102 | K35: 0.04831294545
A36: Sub-Total: Retail Transmission | D36: =SUM(D34:D35) -> 13.247381 | G36: =SUM(G34:G35) -> 13.247381 | H36: =G36-D36 -> 0 | I36: 0 | J36: 0.1055420692 | K36: 0.1041551811
A37: Sub-Total: Delivery (based on two-tier RPP prices) | D37: =D32+D36 -> 53.647011 | G37: =G32+G36 -> 54.477011 | H37: =G37-D37 -> 0.83 | I37: 0.01547150502 | J37: 0.4340191065 | K37: 0.4283158268
A38: Sub-Total: Delivery (based on TOU prices) | D38: =D33+D36 -> 53.1951435 | G38: =G33+G36 -> 54.0251435 | H38: =G38-D38 -> 0.83 | I38: 0.01560292811 | J38: 0.4304190718 | K38: 0.4247630988
A39: Wholesale Market Service Rate (WMS) - not including CBR | B39: =B8 -> 798.035 | C39: =VLOOKUP($A39,'Data Pass Through'!$A:$D,2,FALSE) -> 0.003 | D39: =B39*C39 -> 2.394105 | E39: =$B$8 -> 798.035 | F39: =VLOOKUP($A39,'Data Pass Through'!$A:$D,3,FALSE) -> 0.003 | G39: =E39*F39 -> 2.394105 | H39: 0 | I39: 0 | J39: 0.01907386793 | K39: 0.0188232255
A40: Capacity Based Recovery (CBR) - Applicable for Class B Customers | B40: =B8 -> 798.035 | C40: =VLOOKUP($A40,'Data Pass Through'!$A:$D,2,FALSE) -> 0.0004 | D40: =B40*C40 -> 0.319214 | E40: =$B$8 -> 798.035 | F40: =VLOOKUP($A40,'Data Pass Through'!$A:$D,3,FALSE) -> 0.0004 | G40: =E40*F40 -> 0.319214 | H40: 0 | I40: 0 | J40: 0.002543182391 | K40: 0.0025097634
A41: Rural Rate Protection Charge | B41: =B8 -> 798.035 | C41: =VLOOKUP($A41,'Data Pass Through'!$A:$D,2,FALSE) -> 0.0005 | D41: 0.3990175 | E41: 798.035 | F41: =VLOOKUP($A41,'Data Pass Through'!$A:$D,3,FALSE) -> 0.0005 | G41: 0.3990175 | H41: 0 | I41: 0 | J41: 0.003178977988 | K41: 0.00313720425
A42: Standard Supply Service – Administration Charge (if applicable) | B42: 1 | C42: =VLOOKUP($A42,'Data Pass Through'!$A:$D,2,FALSE) -> 0.25 | D42: =B42*C42 -> 0.25 | E42: 1 | F42: =VLOOKUP($A42,'Data Pass Through'!$A:$D,3,FALSE) -> 0.25 | G42: 0.25 | H42: 0 | I42: 0 | J42: 0.001991753487 | K42: 0.001965580613
A43: Sub-Total: Regulatory | D43: =SUM(D39:D42) -> 3.3623365 | G43: =SUM(G39:G42) -> 3.3623365 | H43: 0 | I43: 0 | J43: 0.0267877818 | K43: 0.02643577376
A44: Debt Retirement Charge (DRC) | B44: =B4 -> 755 | C44: =VLOOKUP($A44,'Data Pass Through'!$A:$D,2,FALSE) -> 0 | D44: =B44*C44 -> 0 | E44: 755 | F44: =VLOOKUP($A44,'Data Pass Through'!$A:$D,3,FALSE) -> 0 | G44: =E44*F44 -> 0 | H44: 0 | I44: N/A | J44: 0 | K44: 0
A45: Total Electricty Charge on Two-Tier RPP | D45: =SUM(D14,D28,D29,D30,D36,D43,D44) -> 135.8993475 | G45: =SUM(G14,G28,G29,G30,G36,G43,G44) -> 136.7293475 | H45: 0.83 | I45: 0.006107461259 | J45: 1.089324619
A46: HST | C46: 0.13 | D46: =D45*C46 -> 17.66691517 | F46: =C46 -> 0.13 | G46: =G45*F46 -> 17.77481518 | H46: 0.1079 | I46: 0.006107461259 | J46: 0.1416122004
A47: Total Electricity Charge on Two-Tier RPP (including HST) | D47: =SUM(D45:D46) -> 153.5662627 | G47: =SUM(G45:G46) -> 154.5041627 | H47: 0.9379 | I47: 0.006107461259 | J47: 1.230936819
A48: Ontario Electricity Rebate (OER) | C48: ='Data Pass Through'!B20 -> -0.212 | D48: =D45*C48 -> -28.81066167 | F48: ='Data Pass Through'!C20 -> -0.212 | G48: =G45*F48 -> -28.98662167 | H48: -0.17596 | I48: -0.006107461259 | J48: -0.2309368192
A49: Total Amount on Two-Tier RPP | D49: =SUM(D47:D48) -> 124.755601 | G49: =SUM(G47:G48) -> 125.517541 | H49: 0.76194 | I49: 0.006107461259 | J49: 1
A50: Total Electricty Charge on TOU (before HST) | D50: =SUM(D18,D28,D29,D31,D36,D43,D44) -> 137.71998 | G50: =SUM(G18,G28,G29,G31,G36,G43,G44) -> 138.54998 | H50: 0.83 | I50: 0.006026721758 | K50: =G50/$G$54 -> 1.089324619
A51: HST | C51: 0.13 | D51: =D50*C51 -> 17.9035974 | F51: =C51 -> 0.13 | G51: =G50*F51 -> 18.0114974 | H51: 0.1079 | I51: 0.006026721758 | K51: =G51/$G$54 -> 0.1416122004
A52: Total Electricity Charge on TOU (including HST) | D52: =SUM(D50:D51) -> 155.6235774 | G52: =SUM(G50:G51) -> 156.5614774 | H52: 0.9379 | I52: 0.006026721758 | K52: =G52/$G$54 -> 1.230936819
A53: Ontario Electricity Rebate (OER) | C53: ='Data Pass Through'!B20 -> -0.212 | D53: =D50*C53 -> -29.19663576 | F53: ='Data Pass Through'!C20 -> -0.212 | G53: =G50*F53 -> -29.37259576 | H53: -0.17596 | I53: -0.006026721758 | K53: =G53/$G$54 -> -0.2309368192
A54: Total Amount on TOU | D54: =SUM(D52:D53) -> 126.4269416 | G54: =SUM(G52:G53) -> 127.1888816 | H54: 0.76194 | I54: 0.006026721758 | K54: =G54/$G$54 -> 1
A55: * Distribution rate protection applies to R1 and R2 customers

Sheet BI_UR_High
A1: 2021 Bill Impacts (High Consumption Level) - UR
A3: Rate Class | B3: =RIGHT(A1,LEN(A1)-FIND("- ",A1,1)-1) -> UR
A4: Monthly Consumption (kWh) | B4: =IF(COUNTIF(A1,"*Low*")>0,VLOOKUP(B3,'Data Billing Quantities'!$A:$Z,MATCH("Low kWh",'Data Billing Quantities'!4:4,0),FALSE),IF(COUNTIF(A1,"*Typical*")>0,VLOOKUP(B3,'Data Billing Quantities'!$A:$Z,MATCH("Typical kWh",'Data Billing Quantities'!4:4,0),FALSE),IF(COUNTIF(A1,"*Average*")>0,VLOOKUP(B3,'Data Billing Quantities'!$A:$Z,MATCH("Average kWh",'Data Billing Quantities'!4:4,0),FALSE),IF(COUNTIF(A1,"*High*")>0,VLOOKUP(B3,'Data Billing Quantities'!$A:$Z,MATCH("High kWh",'Data Billing Quantities'!4:4,0),FALSE),"error")))) -> 1400
A5: Peak (kW) | B5: =IF(COUNTIF(A1,"*Low*")>0,VLOOKUP(B3,'Data Billing Quantities'!$A:$Z,MATCH("Low kW",'Data Billing Quantities'!4:4,0),FALSE),IF(COUNTIF(A1,"*Typical*")>0,VLOOKUP(B3,'Data Billing Quantities'!$A:$Z,MATCH("Typical kW",'Data Billing Quantities'!4:4,0),FALSE),IF(COUNTIF(A1,"*Average*")>0,VLOOKUP(B3,'Data Billing Quantities'!$A:$Z,MATCH("Average kW",'Data Billing Quantities'!4:4,0),FALSE),IF(COUNTIF(A1,"*High*")>0,VLOOKUP(B3,'Data Billing Quantities'!$A:$Z,MATCH("High kW",'Data Billing Quantities'!4:4,0),FALSE),"error")))) -> 0
A6: Loss factor | B6: =VLOOKUP(B3,'Data Billing Quantities'!A:D,MATCH(A6,'Data Billing Quantities'!4:4,0),FALSE) -> 1.057
A7: Commodity Threshold | B7: =VLOOKUP(B3,'Data Billing Quantities'!A:D,MATCH(A7,'Data Billing Quantities'!4:4,0),FALSE) -> 600
A8: Monthly Consumption (kWh) - Uplifted | B8: =B4*B6 -> 1479.8
A9: Charge determinant | B9: =VLOOKUP(B3,'Data Billing Quantities'!A:D,MATCH(A9,'Data Billing Quantities'!4:4,0),FALSE) -> kWh
B11: Volume | C11: Current Rate ($) | D11: Current Charge ($) | E11: Volume | F11: Proposed Rate ($) | G11: Proposed Charge ($) | H11: Change ($) | I11: Change (%) | J11: % of Total Bill on RPP | K11: % of Total Bill on TOU
A12: Energy First Tier | B12: =IF(B4>B7,B7,B4) -> 600 | C12: =VLOOKUP($A12,'Data Pass Through'!$A:$D,2,FALSE) -> 0.101 | D12: =B12*C12 -> 60.6 | E12: =B12 -> 600 | F12: =VLOOKUP($A12,'Data Pass Through'!$A:$D,3,FALSE) -> 0.101 | G12: =E12*F12 -> 60.6 | H12: =G12-D12 -> 0 | I12: =IF(ISERROR(H12/ABS(D12)),"N/A",(H12/ABS(D12))) -> 0 | J12: =G12/$G$49 -> 0.2861396349
A13: Energy Second Tier | B13: =IF(B4>B7,(B4)-B7,0) -> 800 | C13: =VLOOKUP($A13,'Data Pass Through'!$A:$D,2,FALSE) -> 0.118 | D13: =B13*C13 -> 94.4 | E13: =B13 -> 800 | F13: =VLOOKUP($A13,'Data Pass Through'!$A:$D,3,FALSE) -> 0.118 | G13: =E13*F13 -> 94.4 | H13: 0 | I13: 0 | J13: =G13/$G$49 -> 0.4457356689
A14: Sub-Total: Energy (RPP Tiered) | D14: =SUM(D12:D13) -> 155 | G14: =SUM(G12:G13) -> 155 | H14: 0 | I14: 0 | J14: =G14/$G$49 -> 0.7318753038
A15: TOU-Off Peak | B15: =B$4*VLOOKUP($B$3,'Data Billing Quantities'!$A:$O,MATCH(BI_UR_High!$A15,'Data Billing Quantities'!$4:$4,0),FALSE) -> 896 | C15: =VLOOKUP($A15,'Data Pass Through'!$A:$D,2,FALSE) -> 0.085 | D15: =B15*C15 -> 76.16 | E15: 896 | F15: =VLOOKUP($A15,'Data Pass Through'!$A:$D,3,FALSE) -> 0.085 | G15: =E15*F15 -> 76.16 | H15: 0 | I15: 0 | K15: =G15/$G$54 -> 0.368128076
A16: TOU-Mid Peak | B16: =B$4*VLOOKUP($B$3,'Data Billing Quantities'!$A:$O,MATCH(BI_UR_High!$A16,'Data Billing Quantities'!$4:$4,0),FALSE) -> 252 | C16: =VLOOKUP($A16,'Data Pass Through'!$A:$D,2,FALSE) -> 0.119 | D16: =B16*C16 -> 29.988 | E16: 252 | F16: =VLOOKUP($A16,'Data Pass Through'!$A:$D,3,FALSE) -> 0.119 | G16: =E16*F16 -> 29.988 | H16: 0 | I16: 0 | K16: 0.1449504299
A17: TOU-On Peak | B17: =B$4*VLOOKUP($B$3,'Data Billing Quantities'!$A:$O,MATCH(BI_UR_High!$A17,'Data Billing Quantities'!$4:$4,0),FALSE) -> 252 | C17: =VLOOKUP($A17,'Data Pass Through'!$A:$D,2,FALSE) -> 0.176 | D17: =B17*C17 -> 44.352 | E17: 252 | F17: =VLOOKUP($A17,'Data Pass Through'!$A:$D,3,FALSE) -> 0.176 | G17: =E17*F17 -> 44.352 | H17: 0 | I17: 0 | K17: 0.2143804678
A18: Sub-Total: Energy (RPP TOU) | D18: =SUM(D15:D17) -> 150.5 | G18: =SUM(G15:G17) -> 150.5 | H18: 0 | I18: 0 | J18: =G18/$G$49 -> 0.7106273111 | K18: 0.7274589736
A19: Service Charge | B19: 1 | C19: =IF(ISERROR(VLOOKUP($B$3,'Data Current Rates'!$A:$BE,MATCH(BI_UR_High!$A19,CurrentHeader,0),FALSE)),0,VLOOKUP($B$3,'Data Current Rates'!$A:$BE,MATCH(BI_UR_High!$A19,CurrentHeader,0),FALSE)) -> 35.92 | D19: =B19*C19 -> 35.92 | E19: 1 | F19: =VLOOKUP($B$3,'Data Proposed Rates'!$A:$BC,MATCH(BI_UR_High!$A19,ProposedHeader,0),FALSE) -> 35.92 | G19: =E19*F19 -> 35.92 | H19: 0 | I19: 0 | J19: 0.1696061994 | K19: 0.1736234308
A20: Base Rate Adjustment to Recover Past Tax Amounts FIXED | E20: 1 | F20: =VLOOKUP($B$3,'Data Proposed Rates'!$A:$BC,MATCH(BI_UR_High!$A20,ProposedHeader,0),FALSE) -> 0.83 | G20: 0.83 | H20: 0.83 | I20: N/A | J20: 0.003919074208 | K20: 0.004011899988
A21: Fixed Deferral/Variance Account Rider (General) | B21: 1 | C21: =IF(ISERROR(VLOOKUP($B$3,'Data Current Rates'!$A:$BE,MATCH(BI_UR_High!$A21,CurrentHeader,0),FALSE)),0,VLOOKUP($B$3,'Data Current Rates'!$A:$BE,MATCH(BI_UR_High!$A21,CurrentHeader,0),FALSE)) -> -0.14 | D21: -0.14 | E21: 1 | F21: =VLOOKUP($B$3,'Data Proposed Rates'!$A:$BC,MATCH(BI_UR_High!$A21,ProposedHeader,0),FALSE) -> -0.14 | G21: -0.14 | H21: 0 | I21: 0 | J21: -0.0006610486615 | K21: -0.000676706022
A22: Fixed ESM Rider | B22: 1 | C22: =IF(ISERROR(VLOOKUP($B$3,'Data Current Rates'!$A:$BE,MATCH(BI_UR_High!$A22,CurrentHeader,0),FALSE)),0,VLOOKUP($B$3,'Data Current Rates'!$A:$BE,MATCH(BI_UR_High!$A22,CurrentHeader,0),FALSE)) -> -0.5 | D22: -0.5 | E22: 1 | F22: =VLOOKUP($B$3,'Data Proposed Rates'!$A:$BC,MATCH(BI_UR_High!$A22,ProposedHeader,0),FALSE) -> -0.5 | G22: -0.5 | H22: 0 | I22: 0 | J22: -0.002360888077 | K22: -0.002416807221
A23: Distribution Volumetric Charge | B23: =IF($B$9="kWh",$B$4,$B$5) -> 1400 | C23: =IF(ISERROR(VLOOKUP($B$3,'Data Current Rates'!$A:$BE,MATCH(BI_UR_High!$A23,CurrentHeader,0),FALSE)),0,VLOOKUP($B$3,'Data Current Rates'!$A:$BE,MATCH(BI_UR_High!$A23,CurrentHeader,0),FALSE)) -> 0 | D23: 0 | E23: =IF($B$9="kWh",$B$4,$B$5) -> 1400 | F23: =VLOOKUP($B$3,'Data Proposed Rates'!$A:$BC,MATCH(BI_UR_High!$A23,ProposedHeader,0),FALSE) -> 0 | G23: 0 | H23: 0 | I23: N/A | J23: 0 | K23: 0
A24: Base Rate Adjustment to Recover Past Tax Amounts VOL
A25: Volumetric Deferral/Variance Account Rider (General) | B25: =IF($B$9="kWh",$B$4,$B$5) -> 1400 | C25: =IF(ISERROR(VLOOKUP($B$3,'Data Current Rates'!$A:$BE,MATCH(BI_UR_High!$A25,CurrentHeader,0),FALSE)),0,VLOOKUP($B$3,'Data Current Rates'!$A:$BE,MATCH(BI_UR_High!$A25,CurrentHeader,0),FALSE)) -> -0.0007 | D25: -0.98 | E25: =IF($B$9="kWh",$B$4,$B$5) -> 1400 | F25: =VLOOKUP($B$3,'Data Proposed Rates'!$A:$BC,MATCH(BI_UR_High!$A25,ProposedHeader,0),FALSE) -> -0.0007 | G25: -0.98 | H25: 0 | I25: 0 | J25: -0.004627340631 | K25: -0.004736942154
A26: Volumetric ESM Rider | B26: 1400 | C26: =IF(ISERROR(VLOOKUP($B$3,'Data Current Rates'!$A:$BE,MATCH(BI_UR_High!$A26,CurrentHeader,0),FALSE)),0,VLOOKUP($B$3,'Data Current Rates'!$A:$BE,MATCH(BI_UR_High!$A26,CurrentHeader,0),FALSE)) -> 0 | D26: 0 | E26: 1400 | F26: =VLOOKUP($B$3,'Data Proposed Rates'!$A:$BC,MATCH(BI_UR_High!$A26,ProposedHeader,0),FALSE) -> 0 | G26: 0 | H26: 0 | I26: N/A | J26: 0 | K26: 0
A27: Fair Hydro Plan - Distribution Rate Protection Savings* | D27: =IF(AND(B3<>"R1",B3<>"R2"),0,IF(VLOOKUP($A27,'Data Pass Through'!$A:$D,2,FALSE)=0,0,IF(SUM(D19:D20,D23:D24)<VLOOKUP($A27,'Data Pass Through'!$A:$D,2,FALSE),0,VLOOKUP($A27,'Data Pass Through'!$A:$D,2,FALSE)-SUM(D19:D20,D23:D24)))) -> 0 | G27: =IF(AND(B3<>"R1",B3<>"R2"),0,IF(VLOOKUP($A27,'Data Pass Through'!$A:$D,2,FALSE)=0,0,IF(SUM(G19:G20,G23:G24)<VLOOKUP($A27,'Data Pass Through'!$A:$D,2,FALSE),0,VLOOKUP($A27,'Data Pass Through'!$A:$D,2,FALSE)-SUM(G19:G20,G23:G24)))) -> 0 | H27: 0 | I27: N/A | J27: 0 | K27: 0
A28: Sub-Total: Distribution (excluding pass through) | D28: =SUM(INDIRECT("D19:D"&ROW()-1)) -> 34.3 | G28: =SUM(INDIRECT("g19:g"&ROW()-1)) -> 35.13 | H28: =G28-D28 -> 0.83 | I28: 0.02419825073 | J28: 0.1658759963 | K28: 0.1698048754
A29: Smart Metering Entity Charge | B29: 1 | C29: =VLOOKUP($A29,'Data Pass Through'!$A:$D,2,FALSE) -> 0.57 | D29: =B29*C29 -> 0.57 | E29: 1 | F29: =VLOOKUP($A29,'Data Pass Through'!$A:$D,3,FALSE) -> 0.57 | G29: =E29*F29 -> 0.57 | H29: 0 | I29: 0 | J29: 0.002691412408 | K29: 0.002755160232
A30: Line Losses on Cost of Power (based on two-tier RPP prices) | B30: =B8-B4 -> 79.8 | C30: =IF(B4>B7,C13,C12) -> 0.118 | D30: =B30*C30 -> 9.4164 | E30: 79.8 | F30: =IF(B4>B7,F13,F12) -> 0.118 | G30: =E30*F30 -> 9.4164 | H30: 0 | I30: 0 | J30: 0.04446213297 | K30: 0.04551524704
A31: Line Losses on Cost of Power (based on TOU prices) | B31: =B8-B4 -> 79.8 | C31: =VLOOKUP($B$3,'Data Billing Quantities'!$A:$O,MATCH(BI_UR_High!$A15,'Data Billing Quantities'!$4:$4,0),FALSE)*C15+VLOOKUP($B$3,'Data Billing Quantities'!$A:$O,MATCH(BI_UR_High!$A16,'Data Billing Quantities'!$4:$4,0),FALSE)*C16+VLOOKUP($B$3,'Data Billing Quantities'!$A:$O,MATCH(BI_UR_High!$A17,'Data Billing Quantities'!$4:$4,0),FALSE)*C17 -> 0.1075 | D31: =B31*C31 -> 8.5785 | E31: 79.8 | F31: =VLOOKUP($B$3,'Data Billing Quantities'!$A:$O,MATCH(BI_UR_High!$A15,'Data Billing Quantities'!$4:$4,0),FALSE)*F15+VLOOKUP($B$3,'Data Billing Quantities'!$A:$O,MATCH(BI_UR_High!$A16,'Data Billing Quantities'!$4:$4,0),FALSE)*F16+VLOOKUP($B$3,'Data Billing Quantities'!$A:$O,MATCH(BI_UR_High!$A17,'Data Billing Quantities'!$4:$4,0),FALSE)*F17 -> 0.1075 | G31: =E31*F31 -> 8.5785 | H31: 0 | I31: 0 | J31: 0.04050575673 | K31: 0.0414651615
A32: Sub-Total: Distribution (based on two-tier RPP prices) | D32: =SUM(D28,D29:D30) -> 44.2864 | G32: =SUM(G28,G29:G30) -> 45.1164 | H32: 0.83 | I32: 0.01874164529 | J32: 0.2130295417 | K32: 0.2180752826
A33: Sub-Total: Distribution (based on TOU prices) | D33: =SUM(D28,D29,D31) -> 43.4485 | G33: =SUM(G28,G29,G31) -> 44.2785 | H33: 0.83 | I33: 0.01910307606 | J33: 0.2090731654 | K33: 0.2140251971
A34: Retail Transmission Rate – Network Service Rate | B34: =B8 -> 1479.8 | C34: =VLOOKUP($B$3,'Data Current Rates'!$A:$BE,MATCH(BI_UR_High!$A34,CurrentHeader,0),FALSE) -> 0.0089 | D34: =B34*C34 -> 13.17022 | E34: 1479.8 | F34: =VLOOKUP($B$3,'Data Proposed Rates'!$A:$BC,MATCH(BI_UR_High!$A34,ProposedHeader,0),FALSE) -> 0.0089 | G34: =E34*F34 -> 13.17022 | H34: =G34-D34 -> 0 | I34: 0 | J34: 0.06218683073 | K34: 0.06365976561
A35: Retail Transmission Rate – Line and Transformation Connection Service Rate | B35: =B8 -> 1479.8 | C35: =VLOOKUP($B$3,'Data Current Rates'!$A:$BE,MATCH(BI_UR_High!$A35,CurrentHeader,0),FALSE) -> 0.0077 | D35: =B35*C35 -> 11.39446 | E35: 1479.8 | F35: =VLOOKUP($B$3,'Data Proposed Rates'!$A:$BC,MATCH(BI_UR_High!$A35,ProposedHeader,0),FALSE) -> 0.0077 | G35: =E35*F35 -> 11.39446 | H35: =G35-D35 -> 0 | I35: 0 | J35: 0.05380208951 | K35: 0.05507642642
A36: Sub-Total: Retail Transmission | D36: =SUM(D34:D35) -> 24.56468 | G36: =SUM(G34:G35) -> 24.56468 | H36: =G36-D36 -> 0 | I36: 0 | J36: 0.1159889202 | K36: 0.118736192
A37: Sub-Total: Delivery (based on two-tier RPP prices) | D37: =D32+D36 -> 68.85108 | G37: =G32+G36 -> 69.68108 | H37: =G37-D37 -> 0.83 | I37: 0.01205500335 | J37: 0.3290184619 | K37: 0.3368114747
A38: Sub-Total: Delivery (based on TOU prices) | D38: =D33+D36 -> 68.01318 | G38: =G33+G36 -> 68.84318 | H38: =G38-D38 -> 0.83 | I38: 0.01220351702 | J38: 0.3250620857 | K38: 0.3327613891
A39: Wholesale Market Service Rate (WMS) - not including CBR | B39: =B8 -> 1479.8 | C39: =VLOOKUP($A39,'Data Pass Through'!$A:$D,2,FALSE) -> 0.003 | D39: =B39*C39 -> 4.4394 | E39: =$B$8 -> 1479.8 | F39: =VLOOKUP($A39,'Data Pass Through'!$A:$D,3,FALSE) -> 0.003 | G39: =E39*F39 -> 4.4394 | H39: 0 | I39: 0 | J39: 0.02096185306 | K39: 0.02145834796
A40: Capacity Based Recovery (CBR) - Applicable for Class B Customers | B40: =B8 -> 1479.8 | C40: =VLOOKUP($A40,'Data Pass Through'!$A:$D,2,FALSE) -> 0.0004 | D40: =B40*C40 -> 0.59192 | E40: =$B$8 -> 1479.8 | F40: =VLOOKUP($A40,'Data Pass Through'!$A:$D,3,FALSE) -> 0.0004 | G40: =E40*F40 -> 0.59192 | H40: 0 | I40: 0 | J40: 0.002794913741 | K40: 0.002861113061
A41: Rural Rate Protection Charge | B41: =B8 -> 1479.8 | C41: =VLOOKUP($A41,'Data Pass Through'!$A:$D,2,FALSE) -> 0.0005 | D41: 0.7399 | E41: 1479.8 | F41: =VLOOKUP($A41,'Data Pass Through'!$A:$D,3,FALSE) -> 0.0005 | G41: 0.7399 | H41: 0 | I41: 0 | J41: 0.003493642176 | K41: 0.003576391326
A42: Standard Supply Service – Administration Charge (if applicable) | B42: 1 | C42: =VLOOKUP($A42,'Data Pass Through'!$A:$D,2,FALSE) -> 0.25 | D42: =B42*C42 -> 0.25 | E42: 1 | F42: =VLOOKUP($A42,'Data Pass Through'!$A:$D,3,FALSE) -> 0.25 | G42: 0.25 | H42: 0 | I42: 0 | J42: 0.001180444038 | K42: 0.001208403611
A43: Sub-Total: Regulatory | D43: =SUM(D39:D42) -> 6.02122 | G43: =SUM(G39:G42) -> 6.02122 | H43: 0 | I43: 0 | J43: 0.02843085301 | K43: 0.02910425596
A44: Debt Retirement Charge (DRC) | B44: =B4 -> 1400 | C44: =VLOOKUP($A44,'Data Pass Through'!$A:$D,2,FALSE) -> 0 | D44: =B44*C44 -> 0 | E44: 1400 | F44: =VLOOKUP($A44,'Data Pass Through'!$A:$D,3,FALSE) -> 0 | G44: =E44*F44 -> 0 | H44: 0 | I44: N/A | J44: 0 | K44: 0
A45: Total Electricty Charge on Two-Tier RPP | D45: =SUM(D14,D28,D29,D30,D36,D43,D44) -> 229.8723 | G45: =SUM(G14,G28,G29,G30,G36,G43,G44) -> 230.7023 | H45: 0.83 | I45: 0.003610700376 | J45: 1.089324619
A46: HST | C46: 0.13 | D46: =D45*C46 -> 29.883399 | F46: =C46 -> 0.13 | G46: =G45*F46 -> 29.991299 | H46: 0.1079 | I46: 0.003610700376 | J46: 0.1416122004
A47: Total Electricity Charge on Two-Tier RPP (including HST) | D47: =SUM(D45:D46) -> 259.755699 | G47: =SUM(G45:G46) -> 260.693599 | H47: 0.9379 | I47: 0.003610700376 | J47: 1.230936819
A48: Ontario Electricity Rebate (OER) | C48: ='Data Pass Through'!B20 -> -0.212 | D48: =D45*C48 -> -48.7329276 | F48: ='Data Pass Through'!C20 -> -0.212 | G48: =G45*F48 -> -48.9088876 | H48: -0.17596 | I48: -0.003610700376 | J48: -0.2309368192
A49: Total Amount on Two-Tier RPP | D49: =SUM(D47:D48) -> 211.0227714 | G49: =SUM(G47:G48) -> 211.7847114 | H49: 0.76194 | I49: 0.003610700376 | J49: 1
A50: Total Electricty Charge on TOU (before HST) | D50: =SUM(D18,D28,D29,D31,D36,D43,D44) -> 224.5344 | G50: =SUM(G18,G28,G29,G31,G36,G43,G44) -> 225.3644 | H50: 0.83 | I50: 0.003696538259 | K50: =G50/$G$54 -> 1.089324619
A51: HST | C51: 0.13 | D51: =D50*C51 -> 29.189472 | F51: =C51 -> 0.13 | G51: =G50*F51 -> 29.297372 | H51: 0.1079 | I51: 0.003696538259 | K51: =G51/$G$54 -> 0.1416122004
A52: Total Electricity Charge on TOU (including HST) | D52: =SUM(D50:D51) -> 253.723872 | G52: =SUM(G50:G51) -> 254.661772 | H52: 0.9379 | I52: 0.003696538259 | K52: =G52/$G$54 -> 1.230936819
A53: Ontario Electricity Rebate (OER) | C53: ='Data Pass Through'!B20 -> -0.212 | D53: =D50*C53 -> -47.6012928 | F53: ='Data Pass Through'!C20 -> -0.212 | G53: =G50*F53 -> -47.7772528 | H53: -0.17596 | I53: -0.003696538259 | K53: =G53/$G$54 -> -0.2309368192
A54: Total Amount on TOU | D54: =SUM(D52:D53) -> 206.1225792 | G54: =SUM(G52:G53) -> 206.8845192 | H54: 0.76194 | I54: 0.003696538259 | K54: =G54/$G$54 -> 1
A55: * Distribution rate protection applies to R1 and R2 customers

Sheet BI_R1_Low
A1: 2021 Bill Impacts (Low Consumption Level) - R1
A3: Rate Class | B3: =RIGHT(A1,LEN(A1)-FIND("- ",A1,1)-1) -> R1
A4: Monthly Consumption (kWh) | B4: =IF(COUNTIF(A1,"*Low*")>0,VLOOKUP(B3,'Data Billing Quantities'!$A:$Z,MATCH("Low kWh",'Data Billing Quantities'!4:4,0),FALSE),IF(COUNTIF(A1,"*Typical*")>0,VLOOKUP(B3,'Data Billing Quantities'!$A:$Z,MATCH("Typical kWh",'Data Billing Quantities'!4:4,0),FALSE),IF(COUNTIF(A1,"*Average*")>0,VLOOKUP(B3,'Data Billing Quantities'!$A:$Z,MATCH("Average kWh",'Data Billing Quantities'!4:4,0),FALSE),IF(COUNTIF(A1,"*High*")>0,VLOOKUP(B3,'Data Billing Quantities'!$A:$Z,MATCH("High kWh",'Data Billing Quantities'!4:4,0),FALSE),"error")))) -> 400
A5: Peak (kW) | B5: =IF(COUNTIF(A1,"*Low*")>0,VLOOKUP(B3,'Data Billing Quantities'!$A:$Z,MATCH("Low kW",'Data Billing Quantities'!4:4,0),FALSE),IF(COUNTIF(A1,"*Typical*")>0,VLOOKUP(B3,'Data Billing Quantities'!$A:$Z,MATCH("Typical kW",'Data Billing Quantities'!4:4,0),FALSE),IF(COUNTIF(A1,"*Average*")>0,VLOOKUP(B3,'Data Billing Quantities'!$A:$Z,MATCH("Average kW",'Data Billing Quantities'!4:4,0),FALSE),IF(COUNTIF(A1,"*High*")>0,VLOOKUP(B3,'Data Billing Quantities'!$A:$Z,MATCH("High kW",'Data Billing Quantities'!4:4,0),FALSE),"error")))) -> 0
A6: Loss factor | B6: =VLOOKUP(B3,'Data Billing Quantities'!A:D,MATCH(A6,'Data Billing Quantities'!4:4,0),FALSE) -> 1.076
A7: Commodity Threshold | B7: =VLOOKUP(B3,'Data Billing Quantities'!A:D,MATCH(A7,'Data Billing Quantities'!4:4,0),FALSE) -> 600
A8: Monthly Consumption (kWh) - Uplifted | B8: =B4*B6 -> 430.4
A9: Charge determinant | B9: =VLOOKUP(B3,'Data Billing Quantities'!A:D,MATCH(A9,'Data Billing Quantities'!4:4,0),FALSE) -> kWh
B11: Volume | C11: Current Rate ($) | D11: Current Charge ($) | E11: Volume | F11: Proposed Rate ($) | G11: Proposed Charge ($) | H11: Change ($) | I11: Change (%) | J11: % of Total Bill on RPP | K11: % of Total Bill on TOU
A12: Energy First Tier | B12: =IF(B4>B7,B7,B4) -> 400 | C12: =VLOOKUP($A12,'Data Pass Through'!$A:$D,2,FALSE) -> 0.101 | D12: =B12*C12 -> 40.4 | E12: =B12 -> 400 | F12: =VLOOKUP($A12,'Data Pass Through'!$A:$D,3,FALSE) -> 0.101 | G12: =E12*F12 -> 40.4 | H12: =G12-D12 -> 0 | I12: =IF(ISERROR(H12/ABS(D12)),"N/A",(H12/ABS(D12))) -> 0 | J12: =G12/$G$49 -> 0.4990206912
A13: Energy Second Tier | B13: =IF(B4>B7,(B4)-B7,0) -> 0 | C13: =VLOOKUP($A13,'Data Pass Through'!$A:$D,2,FALSE) -> 0.118 | D13: =B13*C13 -> 0 | E13: =B13 -> 0 | F13: =VLOOKUP($A13,'Data Pass Through'!$A:$D,3,FALSE) -> 0.118 | G13: =E13*F13 -> 0 | H13: 0 | I13: N/A | J13: =G13/$G$49 -> 0
A14: Sub-Total: Energy (RPP Tiered) | D14: =SUM(D12:D13) -> 40.4 | G14: =SUM(G12:G13) -> 40.4 | H14: 0 | I14: 0 | J14: =G14/$G$49 -> 0.4990206912
A15: TOU-Off Peak | B15: =B$4*VLOOKUP($B$3,'Data Billing Quantities'!$A:$O,MATCH(BI_R1_Low!$A15,'Data Billing Quantities'!$4:$4,0),FALSE) -> 256 | C15: =VLOOKUP($A15,'Data Pass Through'!$A:$D,2,FALSE) -> 0.085 | D15: =B15*C15 -> 21.76 | E15: 256 | F15: =VLOOKUP($A15,'Data Pass Through'!$A:$D,3,FALSE) -> 0.085 | G15: =E15*F15 -> 21.76 | H15: 0 | I15: 0 | K15: =G15/$G$54 -> 0.2605153012
A16: TOU-Mid Peak | B16: =B$4*VLOOKUP($B$3,'Data Billing Quantities'!$A:$O,MATCH(BI_R1_Low!$A16,'Data Billing Quantities'!$4:$4,0),FALSE) -> 72 | C16: =VLOOKUP($A16,'Data Pass Through'!$A:$D,2,FALSE) -> 0.119 | D16: =B16*C16 -> 8.568 | E16: 72 | F16: =VLOOKUP($A16,'Data Pass Through'!$A:$D,3,FALSE) -> 0.119 | G16: =E16*F16 -> 8.568 | H16: 0 | I16: 0 | K16: 0.1025778999
A17: TOU-On Peak | B17: =B$4*VLOOKUP($B$3,'Data Billing Quantities'!$A:$O,MATCH(BI_R1_Low!$A17,'Data Billing Quantities'!$4:$4,0),FALSE) -> 72 | C17: =VLOOKUP($A17,'Data Pass Through'!$A:$D,2,FALSE) -> 0.176 | D17: =B17*C17 -> 12.672 | E17: 72 | F17: =VLOOKUP($A17,'Data Pass Through'!$A:$D,3,FALSE) -> 0.176 | G17: =E17*F17 -> 12.672 | H17: 0 | I17: 0 | K17: 0.1517118519
A18: Sub-Total: Energy (RPP TOU) | D18: =SUM(D15:D17) -> 43 | G18: =SUM(G15:G17) -> 43 | H18: 0 | I18: 0 | J18: =G18/$G$49 -> 0.5311358842 | K18: 0.514805053
A19: Service Charge | B19: 1 | C19: =IF(ISERROR(VLOOKUP($B$3,'Data Current Rates'!$A:$BE,MATCH(BI_R1_Low!$A19,CurrentHeader,0),FALSE)),0,VLOOKUP($B$3,'Data Current Rates'!$A:$BE,MATCH(BI_R1_Low!$A19,CurrentHeader,0),FALSE)) -> 49.04 | D19: =B19*C19 -> 49.04 | E19: 1 | F19: =VLOOKUP($B$3,'Data Proposed Rates'!$A:$BC,MATCH(BI_R1_Low!$A19,ProposedHeader,0),FALSE) -> 49.04 | G19: =E19*F19 -> 49.04 | H19: 0 | I19: 0 | J19: 0.6057419479 | K19: 0.5871172046
A20: Base Rate Adjustment to Recover Past Tax Amounts FIXED | E20: 1 | F20: =VLOOKUP($B$3,'Data Proposed Rates'!$A:$BC,MATCH(BI_R1_Low!$A20,ProposedHeader,0),FALSE) -> 1.56 | G20: 1.56 | H20: 1.56 | I20: N/A | J20: 0.0192691158 | K20: 0.01867664843
A21: Fixed Deferral/Variance Account Rider (General) | B21: 1 | C21: =IF(ISERROR(VLOOKUP($B$3,'Data Current Rates'!$A:$BE,MATCH(BI_R1_Low!$A21,CurrentHeader,0),FALSE)),0,VLOOKUP($B$3,'Data Current Rates'!$A:$BE,MATCH(BI_R1_Low!$A21,CurrentHeader,0),FALSE)) -> -0.14 | D21: -0.14 | E21: 1 | F21: =VLOOKUP($B$3,'Data Proposed Rates'!$A:$BC,MATCH(BI_R1_Low!$A21,ProposedHeader,0),FALSE) -> -0.14 | G21: -0.14 | H21: 0 | I21: 0 | J21: -0.001729279623 | K21: -0.001676109475
A22: Fixed ESM Rider | B22: 1 | C22: =IF(ISERROR(VLOOKUP($B$3,'Data Current Rates'!$A:$BE,MATCH(BI_R1_Low!$A22,CurrentHeader,0),FALSE)),0,VLOOKUP($B$3,'Data Current Rates'!$A:$BE,MATCH(BI_R1_Low!$A22,CurrentHeader,0),FALSE)) -> -0.85 | D22: -0.85 | E22: 1 | F22: =VLOOKUP($B$3,'Data Proposed Rates'!$A:$BC,MATCH(BI_R1_Low!$A22,ProposedHeader,0),FALSE) -> -0.85 | G22: -0.85 | H22: 0 | I22: 0 | J22: -0.01049919771 | K22: -0.01017637895
A23: Distribution Volumetric Charge | B23: =IF($B$9="kWh",$B$4,$B$5) -> 400 | C23: =IF(ISERROR(VLOOKUP($B$3,'Data Current Rates'!$A:$BE,MATCH(BI_R1_Low!$A23,CurrentHeader,0),FALSE)),0,VLOOKUP($B$3,'Data Current Rates'!$A:$BE,MATCH(BI_R1_Low!$A23,CurrentHeader,0),FALSE)) -> 0.0141 | D23: 5.64 | E23: =IF($B$9="kWh",$B$4,$B$5) -> 400 | F23: =VLOOKUP($B$3,'Data Proposed Rates'!$A:$BC,MATCH(BI_R1_Low!$A23,ProposedHeader,0),FALSE) -> 0.0141 | G23: 5.64 | H23: 0 | I23: 0 | J23: 0.06966526481 | K23: 0.06752326741
A24: Base Rate Adjustment to Recover Past Tax Amounts VOL
A25: Volumetric Deferral/Variance Account Rider (General) | B25: =IF($B$9="kWh",$B$4,$B$5) -> 400 | C25: =IF(ISERROR(VLOOKUP($B$3,'Data Current Rates'!$A:$BE,MATCH(BI_R1_Low!$A25,CurrentHeader,0),FALSE)),0,VLOOKUP($B$3,'Data Current Rates'!$A:$BE,MATCH(BI_R1_Low!$A25,CurrentHeader,0),FALSE)) -> -0.0008 | D25: -0.32 | E25: =IF($B$9="kWh",$B$4,$B$5) -> 400 | F25: =VLOOKUP($B$3,'Data Proposed Rates'!$A:$BC,MATCH(BI_R1_Low!$A25,ProposedHeader,0),FALSE) -> -0.0008 | G25: -0.32 | H25: 0 | I25: 0 | J25: -0.003952639138 | K25: -0.003831107371
A26: Volumetric ESM Rider | B26: 400 | C26: =IF(ISERROR(VLOOKUP($B$3,'Data Current Rates'!$A:$BE,MATCH(BI_R1_Low!$A26,CurrentHeader,0),FALSE)),0,VLOOKUP($B$3,'Data Current Rates'!$A:$BE,MATCH(BI_R1_Low!$A26,CurrentHeader,0),FALSE)) -> 0 | D26: 0 | E26: 400 | F26: =VLOOKUP($B$3,'Data Proposed Rates'!$A:$BC,MATCH(BI_R1_Low!$A26,ProposedHeader,0),FALSE) -> 0 | G26: 0 | H26: 0 | I26: N/A | J26: 0 | K26: 0
A27: Fair Hydro Plan - Distribution Rate Protection Savings* | D27: =IF(AND(B3<>"R1",B3<>"R2"),0,IF(VLOOKUP($A27,'Data Pass Through'!$A:$D,2,FALSE)=0,0,IF(SUM(D19:D20,D23:D24)<VLOOKUP($A27,'Data Pass Through'!$A:$D,2,FALSE),0,VLOOKUP($A27,'Data Pass Through'!$A:$D,2,FALSE)-SUM(D19:D20,D23:D24)))) -> -17.82 | G27: =IF(AND(B3<>"R1",B3<>"R2"),0,IF(VLOOKUP($A27,'Data Pass Through'!$A:$D,2,FALSE)=0,0,IF(SUM(G19:G20,G23:G24)<VLOOKUP($A27,'Data Pass Through'!$A:$D,2,FALSE),0,VLOOKUP($A27,'Data Pass Through'!$A:$D,2,FALSE)-SUM(G19:G20,G23:G24)))) -> -19.38 | H27: -1.56 | I27: -0.08754208754 | J27: -0.2393817078 | K27: -0.2320214401
A28: Sub-Total: Distribution (excluding pass through) | D28: =SUM(INDIRECT("D19:D"&ROW()-1)) -> 35.55 | G28: =SUM(INDIRECT("g19:g"&ROW()-1)) -> 35.55 | H28: =G28-D28 -> 0 | I28: 0 | J28: 0.4391135042 | K28: 0.4256120845
A29: Smart Metering Entity Charge | B29: 1 | C29: =VLOOKUP($A29,'Data Pass Through'!$A:$D,2,FALSE) -> 0.57 | D29: =B29*C29 -> 0.57 | E29: 1 | F29: =VLOOKUP($A29,'Data Pass Through'!$A:$D,3,FALSE) -> 0.57 | G29: =E29*F29 -> 0.57 | H29: 0 | I29: 0 | J29: 0.007040638464 | K29: 0.006824160004
A30: Line Losses on Cost of Power (based on two-tier RPP prices) | B30: =B8-B4 -> 30.4 | C30: =IF(B4>B7,C13,C12) -> 0.101 | D30: =B30*C30 -> 3.0704 | E30: 30.4 | F30: =IF(B4>B7,F13,F12) -> 0.101 | G30: =E30*F30 -> 3.0704 | H30: 0 | I30: 0 | J30: 0.03792557253 | K30: 0.03675947522
A31: Line Losses on Cost of Power (based on TOU prices) | B31: =B8-B4 -> 30.4 | C31: =VLOOKUP($B$3,'Data Billing Quantities'!$A:$O,MATCH(BI_R1_Low!$A15,'Data Billing Quantities'!$4:$4,0),FALSE)*C15+VLOOKUP($B$3,'Data Billing Quantities'!$A:$O,MATCH(BI_R1_Low!$A16,'Data Billing Quantities'!$4:$4,0),FALSE)*C16+VLOOKUP($B$3,'Data Billing Quantities'!$A:$O,MATCH(BI_R1_Low!$A17,'Data Billing Quantities'!$4:$4,0),FALSE)*C17 -> 0.1075 | D31: =B31*C31 -> 3.268 | E31: 30.4 | F31: =VLOOKUP($B$3,'Data Billing Quantities'!$A:$O,MATCH(BI_R1_Low!$A15,'Data Billing Quantities'!$4:$4,0),FALSE)*F15+VLOOKUP($B$3,'Data Billing Quantities'!$A:$O,MATCH(BI_R1_Low!$A16,'Data Billing Quantities'!$4:$4,0),FALSE)*F16+VLOOKUP($B$3,'Data Billing Quantities'!$A:$O,MATCH(BI_R1_Low!$A17,'Data Billing Quantities'!$4:$4,0),FALSE)*F17 -> 0.1075 | G31: =E31*F31 -> 3.268 | H31: 0 | I31: 0 | J31: 0.0403663272 | K31: 0.03912518403
A32: Sub-Total: Distribution (based on two-tier RPP prices) | D32: =SUM(D28,D29:D30) -> 39.1904 | G32: =SUM(G28,G29:G30) -> 39.1904 | H32: 0 | I32: 0 | J32: 0.4840797152 | K32: 0.4691957197
A33: Sub-Total: Distribution (based on TOU prices) | D33: =SUM(D28,D29,D31) -> 39.388 | G33: =SUM(G28,G29,G31) -> 39.388 | H33: 0 | I33: 0 | J33: 0.4865204699 | K33: 0.4715614285
A34: Retail Transmission Rate – Network Service Rate | B34: =B8 -> 430.4 | C34: =VLOOKUP($B$3,'Data Current Rates'!$A:$BE,MATCH(BI_R1_Low!$A34,CurrentHeader,0),FALSE) -> 0.0082 | D34: =B34*C34 -> 3.52928 | E34: 430.4 | F34: =VLOOKUP($B$3,'Data Proposed Rates'!$A:$BC,MATCH(BI_R1_Low!$A34,ProposedHeader,0),FALSE) -> 0.0082 | G34: =E34*F34 -> 3.52928 | H34: =G34-D34 -> 0 | I34: 0 | J34: 0.04359365705 | K34: 0.04225328319
A35: Retail Transmission Rate – Line and Transformation Connection Service Rate | B35: =B8 -> 430.4 | C35: =VLOOKUP($B$3,'Data Current Rates'!$A:$BE,MATCH(BI_R1_Low!$A35,CurrentHeader,0),FALSE) -> 0.0073 | D35: =B35*C35 -> 3.14192 | E35: 430.4 | F35: =VLOOKUP($B$3,'Data Proposed Rates'!$A:$BC,MATCH(BI_R1_Low!$A35,ProposedHeader,0),FALSE) -> 0.0073 | G35: =E35*F35 -> 3.14192 | H35: =G35-D35 -> 0 | I35: 0 | J35: 0.03880898738 | K35: 0.03761572772
A36: Sub-Total: Retail Transmission | D36: =SUM(D34:D35) -> 6.6712 | G36: =SUM(G34:G35) -> 6.6712 | H36: =G36-D36 -> 0 | I36: 0 | J36: 0.08240264443 | K36: 0.07986901091
A37: Sub-Total: Delivery (based on two-tier RPP prices) | D37: =D32+D36 -> 45.8616 | G37: =G32+G36 -> 45.8616 | H37: =G37-D37 -> 0 | I37: 0 | J37: 0.5664823596 | K37: 0.5490647306
A38: Sub-Total: Delivery (based on TOU prices) | D38: =D33+D36 -> 46.0592 | G38: =G33+G36 -> 46.0592 | H38: =G38-D38 -> 0 | I38: 0 | J38: 0.5689231143 | K38: 0.5514304394
A39: Wholesale Market Service Rate (WMS) - not including CBR | B39: =B8 -> 430.4 | C39: =VLOOKUP($A39,'Data Pass Through'!$A:$D,2,FALSE) -> 0.003 | D39: =B39*C39 -> 1.2912 | E39: =$B$8 -> 430.4 | F39: =VLOOKUP($A39,'Data Pass Through'!$A:$D,3,FALSE) -> 0.003 | G39: =E39*F39 -> 1.2912 | H39: 0 | I39: 0 | J39: 0.01594889892 | K39: 0.01545851824
A40: Capacity Based Recovery (CBR) - Applicable for Class B Customers | B40: =B8 -> 430.4 | C40: =VLOOKUP($A40,'Data Pass Through'!$A:$D,2,FALSE) -> 0.0004 | D40: =B40*C40 -> 0.17216 | E40: =$B$8 -> 430.4 | F40: =VLOOKUP($A40,'Data Pass Through'!$A:$D,3,FALSE) -> 0.0004 | G40: =E40*F40 -> 0.17216 | H40: 0 | I40: 0 | J40: 0.002126519856 | K40: 0.002061135766
A41: Rural Rate Protection Charge | B41: =B8 -> 430.4 | C41: =VLOOKUP($A41,'Data Pass Through'!$A:$D,2,FALSE) -> 0.0005 | D41: 0.2152 | E41: 430.4 | F41: =VLOOKUP($A41,'Data Pass Through'!$A:$D,3,FALSE) -> 0.0005 | G41: 0.2152 | H41: 0 | I41: 0 | J41: 0.00265814982 | K41: 0.002576419707
A42: Standard Supply Service – Administration Charge (if applicable) | B42: 1 | C42: =VLOOKUP($A42,'Data Pass Through'!$A:$D,2,FALSE) -> 0.25 | D42: =B42*C42 -> 0.25 | E42: 1 | F42: =VLOOKUP($A42,'Data Pass Through'!$A:$D,3,FALSE) -> 0.25 | G42: 0.25 | H42: 0 | I42: 0 | J42: 0.003087999327 | K42: 0.002993052633
A43: Sub-Total: Regulatory | D43: =SUM(D39:D42) -> 1.92856 | G43: =SUM(G39:G42) -> 1.92856 | H43: 0 | I43: 0 | J43: 0.02382156792 | K43: 0.02308912635
A44: Debt Retirement Charge (DRC) | B44: =B4 -> 400 | C44: =VLOOKUP($A44,'Data Pass Through'!$A:$D,2,FALSE) -> 0 | D44: =B44*C44 -> 0 | E44: 400 | F44: =VLOOKUP($A44,'Data Pass Through'!$A:$D,3,FALSE) -> 0 | G44: =E44*F44 -> 0 | H44: 0 | I44: N/A | J44: 0 | K44: 0
A45: Total Electricty Charge on Two-Tier RPP | D45: =SUM(D14,D28,D29,D30,D36,D43,D44) -> 88.19016 | G45: =SUM(G14,G28,G29,G30,G36,G43,G44) -> 88.19016 | H45: 0 | I45: 0 | J45: 1.089324619
A46: HST | C46: 0.13 | D46: =D45*C46 -> 11.4647208 | F46: =C46 -> 0.13 | G46: =G45*F46 -> 11.4647208 | H46: 0 | I46: 0 | J46: 0.1416122004
A47: Total Electricity Charge on Two-Tier RPP (including HST) | D47: =SUM(D45:D46) -> 99.6548808 | G47: =SUM(G45:G46) -> 99.6548808 | H47: 0 | I47: 0 | J47: 1.230936819
A48: Ontario Electricity Rebate (OER) | C48: ='Data Pass Through'!B20 -> -0.212 | D48: =D45*C48 -> -18.69631392 | F48: ='Data Pass Through'!C20 -> -0.212 | G48: =G45*F48 -> -18.69631392 | H48: 0 | I48: 0 | J48: -0.2309368192
A49: Total Amount on Two-Tier RPP | D49: =SUM(D47:D48) -> 80.95856688 | G49: =SUM(G47:G48) -> 80.95856688 | H49: 0 | I49: 0 | J49: 1
A50: Total Electricty Charge on TOU (before HST) | D50: =SUM(D18,D28,D29,D31,D36,D43,D44) -> 90.98776 | G50: =SUM(G18,G28,G29,G31,G36,G43,G44) -> 90.98776 | H50: 0 | I50: 0 | K50: =G50/$G$54 -> 1.089324619
A51: HST | C51: 0.13 | D51: =D50*C51 -> 11.8284088 | F51: =C51 -> 0.13 | G51: =G50*F51 -> 11.8284088 | H51: 0 | I51: 0 | K51: =G51/$G$54 -> 0.1416122004
A52: Total Electricity Charge on TOU (including HST) | D52: =SUM(D50:D51) -> 102.8161688 | G52: =SUM(G50:G51) -> 102.8161688 | H52: 0 | I52: 0 | K52: =G52/$G$54 -> 1.230936819
A53: Ontario Electricity Rebate (OER) | C53: ='Data Pass Through'!B20 -> -0.212 | D53: =D50*C53 -> -19.28940512 | F53: ='Data Pass Through'!C20 -> -0.212 | G53: =G50*F53 -> -19.28940512 | H53: 0 | I53: 0 | K53: =G53/$G$54 -> -0.2309368192
A54: Total Amount on TOU | D54: =SUM(D52:D53) -> 83.52676368 | G54: =SUM(G52:G53) -> 83.52676368 | H54: 0 | I54: 0 | K54: =G54/$G$54 -> 1
A55: * Distribution rate protection applies to R1 and R2 customers

Sheet BI_R1_Typical
A1: 2021 Bill Impacts (Typical Consumption Level) - R1
A3: Rate Class | B3: =RIGHT(A1,LEN(A1)-FIND("- ",A1,1)-1) -> R1
A4: Monthly Consumption (kWh) | B4: =IF(COUNTIF(A1,"*Low*")>0,VLOOKUP(B3,'Data Billing Quantities'!$A:$Z,MATCH("Low kWh",'Data Billing Quantities'!4:4,0),FALSE),IF(COUNTIF(A1,"*Typical*")>0,VLOOKUP(B3,'Data Billing Quantities'!$A:$Z,MATCH("Typical kWh",'Data Billing Quantities'!4:4,0),FALSE),IF(COUNTIF(A1,"*Average*")>0,VLOOKUP(B3,'Data Billing Quantities'!$A:$Z,MATCH("Average kWh",'Data Billing Quantities'!4:4,0),FALSE),IF(COUNTIF(A1,"*High*")>0,VLOOKUP(B3,'Data Billing Quantities'!$A:$Z,MATCH("High kWh",'Data Billing Quantities'!4:4,0),FALSE),"error")))) -> 750
A5: Peak (kW) | B5: =IF(COUNTIF(A1,"*Low*")>0,VLOOKUP(B3,'Data Billing Quantities'!$A:$Z,MATCH("Low kW",'Data Billing Quantities'!4:4,0),FALSE),IF(COUNTIF(A1,"*Typical*")>0,VLOOKUP(B3,'Data Billing Quantities'!$A:$Z,MATCH("Typical kW",'Data Billing Quantities'!4:4,0),FALSE),IF(COUNTIF(A1,"*Average*")>0,VLOOKUP(B3,'Data Billing Quantities'!$A:$Z,MATCH("Average kW",'Data Billing Quantities'!4:4,0),FALSE),IF(COUNTIF(A1,"*High*")>0,VLOOKUP(B3,'Data Billing Quantities'!$A:$Z,MATCH("High kW",'Data Billing Quantities'!4:4,0),FALSE),"error")))) -> 0
A6: Loss factor | B6: =VLOOKUP(B3,'Data Billing Quantities'!A:D,MATCH(A6,'Data Billing Quantities'!4:4,0),FALSE) -> 1.076
A7: Commodity Threshold | B7: =VLOOKUP(B3,'Data Billing Quantities'!A:D,MATCH(A7,'Data Billing Quantities'!4:4,0),FALSE) -> 600
A8: Monthly Consumption (kWh) - Uplifted | B8: =B4*B6 -> 807
A9: Charge determinant | B9: =VLOOKUP(B3,'Data Billing Quantities'!A:D,MATCH(A9,'Data Billing Quantities'!4:4,0),FALSE) -> kWh
B11: Volume | C11: Current Rate ($) | D11: Current Charge ($) | E11: Volume | F11: Proposed Rate ($) | G11: Proposed Charge ($) | H11: Change ($) | I11: Change (%) | J11: % of Total Bill on RPP | K11: % of Total Bill on TOU
A12: Energy First Tier | B12: =IF(B4>B7,B7,B4) -> 600 | C12: =VLOOKUP($A12,'Data Pass Through'!$A:$D,2,FALSE) -> 0.101 | D12: =B12*C12 -> 60.6 | E12: =B12 -> 600 | F12: =VLOOKUP($A12,'Data Pass Through'!$A:$D,3,FALSE) -> 0.101 | G12: =E12*F12 -> 60.6 | H12: =G12-D12 -> 0 | I12: =IF(ISERROR(H12/ABS(D12)),"N/A",(H12/ABS(D12))) -> 0 | J12: =G12/$G$49 -> 0.482651189
A13: Energy Second Tier | B13: =IF(B4>B7,(B4)-B7,0) -> 150 | C13: =VLOOKUP($A13,'Data Pass Through'!$A:$D,2,FALSE) -> 0.118 | D13: =B13*C13 -> 17.7 | E13: =B13 -> 150 | F13: =VLOOKUP($A13,'Data Pass Through'!$A:$D,3,FALSE) -> 0.118 | G13: =E13*F13 -> 17.7 | H13: 0 | I13: 0 | J13: =G13/$G$49 -> 0.140972377
A14: Sub-Total: Energy (RPP Tiered) | D14: =SUM(D12:D13) -> 78.3 | G14: =SUM(G12:G13) -> 78.3 | H14: 0 | I14: 0 | J14: =G14/$G$49 -> 0.623623566
A15: TOU-Off Peak | B15: =B$4*VLOOKUP($B$3,'Data Billing Quantities'!$A:$O,MATCH(BI_R1_Typical!$A15,'Data Billing Quantities'!$4:$4,0),FALSE) -> 480 | C15: =VLOOKUP($A15,'Data Pass Through'!$A:$D,2,FALSE) -> 0.085 | D15: =B15*C15 -> 40.8 | E15: 480 | F15: =VLOOKUP($A15,'Data Pass Through'!$A:$D,3,FALSE) -> 0.085 | G15: =E15*F15 -> 40.8 | H15: 0 | I15: 0 | K15: =G15/$G$54 -> 0.3209024547
A16: TOU-Mid Peak | B16: =B$4*VLOOKUP($B$3,'Data Billing Quantities'!$A:$O,MATCH(BI_R1_Typical!$A16,'Data Billing Quantities'!$4:$4,0),FALSE) -> 135 | C16: =VLOOKUP($A16,'Data Pass Through'!$A:$D,2,FALSE) -> 0.119 | D16: =B16*C16 -> 16.065 | E16: 135 | F16: =VLOOKUP($A16,'Data Pass Through'!$A:$D,3,FALSE) -> 0.119 | G16: =E16*F16 -> 16.065 | H16: 0 | I16: 0 | K16: 0.1263553415
A17: TOU-On Peak | B17: =B$4*VLOOKUP($B$3,'Data Billing Quantities'!$A:$O,MATCH(BI_R1_Typical!$A17,'Data Billing Quantities'!$4:$4,0),FALSE) -> 135 | C17: =VLOOKUP($A17,'Data Pass Through'!$A:$D,2,FALSE) -> 0.176 | D17: =B17*C17 -> 23.76 | E17: 135 | F17: =VLOOKUP($A17,'Data Pass Through'!$A:$D,3,FALSE) -> 0.176 | G17: =E17*F17 -> 23.76 | H17: 0 | I17: 0 | K17: 0.1868784883
A18: Sub-Total: Energy (RPP TOU) | D18: =SUM(D15:D17) -> 80.625 | G18: =SUM(G15:G17) -> 80.625 | H18: 0 | I18: 0 | J18: =G18/$G$49 -> 0.642141124 | K18: 0.6341362846
A19: Service Charge | B19: 1 | C19: =IF(ISERROR(VLOOKUP($B$3,'Data Current Rates'!$A:$BE,MATCH(BI_R1_Typical!$A19,CurrentHeader,0),FALSE)),0,VLOOKUP($B$3,'Data Current Rates'!$A:$BE,MATCH(BI_R1_Typical!$A19,CurrentHeader,0),FALSE)) -> 49.04 | D19: =B19*C19 -> 49.04 | E19: 1 | F19: =VLOOKUP($B$3,'Data Proposed Rates'!$A:$BC,MATCH(BI_R1_Typical!$A19,ProposedHeader,0),FALSE) -> 49.04 | G19: =E19*F19 -> 49.04 | H19: 0 | I19: 0 | J19: 0.3905810942 | K19: 0.3857121662
A20: Base Rate Adjustment to Recover Past Tax Amounts FIXED | E20: 1 | F20: =VLOOKUP($B$3,'Data Proposed Rates'!$A:$BC,MATCH(BI_R1_Typical!$A20,ProposedHeader,0),FALSE) -> 1.56 | G20: 1.56 | H20: 1.56 | I20: N/A | J20: 0.01242468407 | K20: 0.01226979974
A21: Fixed Deferral/Variance Account Rider (General) | B21: 1 | C21: =IF(ISERROR(VLOOKUP($B$3,'Data Current Rates'!$A:$BE,MATCH(BI_R1_Typical!$A21,CurrentHeader,0),FALSE)),0,VLOOKUP($B$3,'Data Current Rates'!$A:$BE,MATCH(BI_R1_Typical!$A21,CurrentHeader,0),FALSE)) -> -0.14 | D21: -0.14 | E21: 1 | F21: =VLOOKUP($B$3,'Data Proposed Rates'!$A:$BC,MATCH(BI_R1_Typical!$A21,ProposedHeader,0),FALSE) -> -0.14 | G21: -0.14 | H21: 0 | I21: 0 | J21: -0.00111503575 | K21: -0.001101135874
A22: Fixed ESM Rider | B22: 1 | C22: =IF(ISERROR(VLOOKUP($B$3,'Data Current Rates'!$A:$BE,MATCH(BI_R1_Typical!$A22,CurrentHeader,0),FALSE)),0,VLOOKUP($B$3,'Data Current Rates'!$A:$BE,MATCH(BI_R1_Typical!$A22,CurrentHeader,0),FALSE)) -> -0.85 | D22: -0.85 | E22: 1 | F22: =VLOOKUP($B$3,'Data Proposed Rates'!$A:$BC,MATCH(BI_R1_Typical!$A22,ProposedHeader,0),FALSE) -> -0.85 | G22: -0.85 | H22: 0 | I22: 0 | J22: -0.006769859912 | K22: -0.006685467807
A23: Distribution Volumetric Charge | B23: =IF($B$9="kWh",$B$4,$B$5) -> 750 | C23: =IF(ISERROR(VLOOKUP($B$3,'Data Current Rates'!$A:$BE,MATCH(BI_R1_Typical!$A23,CurrentHeader,0),FALSE)),0,VLOOKUP($B$3,'Data Current Rates'!$A:$BE,MATCH(BI_R1_Typical!$A23,CurrentHeader,0),FALSE)) -> 0.0141 | D23: 10.575 | E23: =IF($B$9="kWh",$B$4,$B$5) -> 750 | F23: =VLOOKUP($B$3,'Data Proposed Rates'!$A:$BC,MATCH(BI_R1_Typical!$A23,ProposedHeader,0),FALSE) -> 0.0141 | G23: 10.575 | H23: 0 | I23: 0 | J23: 0.08422502185 | K23: 0.08317508477
A24: Base Rate Adjustment to Recover Past Tax Amounts VOL
A25: Volumetric Deferral/Variance Account Rider (General) | B25: =IF($B$9="kWh",$B$4,$B$5) -> 750 | C25: =IF(ISERROR(VLOOKUP($B$3,'Data Current Rates'!$A:$BE,MATCH(BI_R1_Typical!$A25,CurrentHeader,0),FALSE)),0,VLOOKUP($B$3,'Data Current Rates'!$A:$BE,MATCH(BI_R1_Typical!$A25,CurrentHeader,0),FALSE)) -> -0.0008 | D25: -0.6 | E25: =IF($B$9="kWh",$B$4,$B$5) -> 750 | F25: =VLOOKUP($B$3,'Data Proposed Rates'!$A:$BC,MATCH(BI_R1_Typical!$A25,ProposedHeader,0),FALSE) -> -0.0008 | G25: -0.6 | H25: 0 | I25: 0 | J25: -0.004778724644 | K25: -0.004719153746
A26: Volumetric ESM Rider | B26: 750 | C26: =IF(ISERROR(VLOOKUP($B$3,'Data Current Rates'!$A:$BE,MATCH(BI_R1_Typical!$A26,CurrentHeader,0),FALSE)),0,VLOOKUP($B$3,'Data Current Rates'!$A:$BE,MATCH(BI_R1_Typical!$A26,CurrentHeader,0),FALSE)) -> 0 | D26: 0 | E26: 750 | F26: =VLOOKUP($B$3,'Data Proposed Rates'!$A:$BC,MATCH(BI_R1_Typical!$A26,ProposedHeader,0),FALSE) -> 0 | G26: 0 | H26: 0 | I26: N/A | J26: 0 | K26: 0
A27: Fair Hydro Plan - Distribution Rate Protection Savings* | D27: =IF(AND(B3<>"R1",B3<>"R2"),0,IF(VLOOKUP($A27,'Data Pass Through'!$A:$D,2,FALSE)=0,0,IF(SUM(D19:D20,D23:D24)<VLOOKUP($A27,'Data Pass Through'!$A:$D,2,FALSE),0,VLOOKUP($A27,'Data Pass Through'!$A:$D,2,FALSE)-SUM(D19:D20,D23:D24)))) -> -22.755 | G27: =IF(AND(B3<>"R1",B3<>"R2"),0,IF(VLOOKUP($A27,'Data Pass Through'!$A:$D,2,FALSE)=0,0,IF(SUM(G19:G20,G23:G24)<VLOOKUP($A27,'Data Pass Through'!$A:$D,2,FALSE),0,VLOOKUP($A27,'Data Pass Through'!$A:$D,2,FALSE)-SUM(G19:G20,G23:G24)))) -> -24.315 | H27: -1.56 | I27: -0.06855636124 | J27: -0.1936578162 | K27: -0.1912437056
A28: Sub-Total: Distribution (excluding pass through) | D28: =SUM(INDIRECT("D19:D"&ROW()-1)) -> 35.27 | G28: =SUM(INDIRECT("g19:g"&ROW()-1)) -> 35.27 | H28: =G28-D28 -> 0 | I28: 0 | J28: 0.2809093636 | K28: 0.2774075877
A29: Smart Metering Entity Charge | B29: 1 | C29: =VLOOKUP($A29,'Data Pass Through'!$A:$D,2,FALSE) -> 0.57 | D29: =B29*C29 -> 0.57 | E29: 1 | F29: =VLOOKUP($A29,'Data Pass Through'!$A:$D,3,FALSE) -> 0.57 | G29: =E29*F29 -> 0.57 | H29: 0 | I29: 0 | J29: 0.004539788412 | K29: 0.004483196059
A30: Line Losses on Cost of Power (based on two-tier RPP prices) | B30: =B8-B4 -> 57 | C30: =IF(B4>B7,C13,C12) -> 0.118 | D30: =B30*C30 -> 6.726 | E30: 57 | F30: =IF(B4>B7,F13,F12) -> 0.118 | G30: =E30*F30 -> 6.726 | H30: 0 | I30: 0 | J30: 0.05356950326 | K30: 0.05290171349
A31: Line Losses on Cost of Power (based on TOU prices) | B31: =B8-B4 -> 57 | C31: =VLOOKUP($B$3,'Data Billing Quantities'!$A:$O,MATCH(BI_R1_Typical!$A15,'Data Billing Quantities'!$4:$4,0),FALSE)*C15+VLOOKUP($B$3,'Data Billing Quantities'!$A:$O,MATCH(BI_R1_Typical!$A16,'Data Billing Quantities'!$4:$4,0),FALSE)*C16+VLOOKUP($B$3,'Data Billing Quantities'!$A:$O,MATCH(BI_R1_Typical!$A17,'Data Billing Quantities'!$4:$4,0),FALSE)*C17 -> 0.1075 | D31: =B31*C31 -> 6.1275 | E31: 57 | F31: =VLOOKUP($B$3,'Data Billing Quantities'!$A:$O,MATCH(BI_R1_Typical!$A15,'Data Billing Quantities'!$4:$4,0),FALSE)*F15+VLOOKUP($B$3,'Data Billing Quantities'!$A:$O,MATCH(BI_R1_Typical!$A16,'Data Billing Quantities'!$4:$4,0),FALSE)*F16+VLOOKUP($B$3,'Data Billing Quantities'!$A:$O,MATCH(BI_R1_Typical!$A17,'Data Billing Quantities'!$4:$4,0),FALSE)*F17 -> 0.1075 | G31: =E31*F31 -> 6.1275 | H31: 0 | I31: 0 | J31: 0.04880272543 | K31: 0.04819435763
A32: Sub-Total: Distribution (based on two-tier RPP prices) | D32: =SUM(D28,D29:D30) -> 42.566 | G32: =SUM(G28,G29:G30) -> 42.566 | H32: 0 | I32: 0 | J32: 0.3390186553 | K32: 0.3347924972
A33: Sub-Total: Distribution (based on TOU prices) | D33: =SUM(D28,D29,D31) -> 41.9675 | G33: =SUM(G28,G29,G31) -> 41.9675 | H33: 0 | I33: 0 | J33: 0.3342518775 | K33: 0.3300851414
A34: Retail Transmission Rate – Network Service Rate | B34: =B8 -> 807 | C34: =VLOOKUP($B$3,'Data Current Rates'!$A:$BE,MATCH(BI_R1_Typical!$A34,CurrentHeader,0),FALSE) -> 0.0082 | D34: =B34*C34 -> 6.6174 | E34: 807 | F34: =VLOOKUP($B$3,'Data Proposed Rates'!$A:$BC,MATCH(BI_R1_Typical!$A34,ProposedHeader,0),FALSE) -> 0.0082 | G34: =E34*F34 -> 6.6174 | H34: =G34-D34 -> 0 | I34: 0 | J34: 0.0527045541 | K34: 0.05204754666
A35: Retail Transmission Rate – Line and Transformation Connection Service Rate | B35: =B8 -> 807 | C35: =VLOOKUP($B$3,'Data Current Rates'!$A:$BE,MATCH(BI_R1_Typical!$A35,CurrentHeader,0),FALSE) -> 0.0073 | D35: =B35*C35 -> 5.8911 | E35: 807 | F35: =VLOOKUP($B$3,'Data Proposed Rates'!$A:$BC,MATCH(BI_R1_Typical!$A35,ProposedHeader,0),FALSE) -> 0.0073 | G35: =E35*F35 -> 5.8911 | H35: =G35-D35 -> 0 | I35: 0 | J35: 0.04691990792 | K35: 0.04633501105
A36: Sub-Total: Retail Transmission | D36: =SUM(D34:D35) -> 12.5085 | G36: =SUM(G34:G35) -> 12.5085 | H36: =G36-D36 -> 0 | I36: 0 | J36: 0.09962446201 | K36: 0.09838255772
A37: Sub-Total: Delivery (based on two-tier RPP prices) | D37: =D32+D36 -> 55.0745 | G37: =G32+G36 -> 55.0745 | H37: =G37-D37 -> 0 | I37: 0 | J37: 0.4386431173 | K37: 0.433175055
A38: Sub-Total: Delivery (based on TOU prices) | D38: =D33+D36 -> 54.476 | G38: =G33+G36 -> 54.476 | H38: =G38-D38 -> 0 | I38: 0 | J38: 0.4338763395 | K38: 0.4284676991
A39: Wholesale Market Service Rate (WMS) - not including CBR | B39: =B8 -> 807 | C39: =VLOOKUP($A39,'Data Pass Through'!$A:$D,2,FALSE) -> 0.003 | D39: =B39*C39 -> 2.421 | E39: =$B$8 -> 807 | F39: =VLOOKUP($A39,'Data Pass Through'!$A:$D,3,FALSE) -> 0.003 | G39: =E39*F39 -> 2.421 | H39: 0 | I39: 0 | J39: 0.01928215394 | K39: 0.01904178536
A40: Capacity Based Recovery (CBR) - Applicable for Class B Customers | B40: =B8 -> 807 | C40: =VLOOKUP($A40,'Data Pass Through'!$A:$D,2,FALSE) -> 0.0004 | D40: =B40*C40 -> 0.3228 | E40: =$B$8 -> 807 | F40: =VLOOKUP($A40,'Data Pass Through'!$A:$D,3,FALSE) -> 0.0004 | G40: =E40*F40 -> 0.3228 | H40: 0 | I40: 0 | J40: 0.002570953858 | K40: 0.002538904715
A41: Rural Rate Protection Charge | B41: =B8 -> 807 | C41: =VLOOKUP($A41,'Data Pass Through'!$A:$D,2,FALSE) -> 0.0005 | D41: 0.4035 | E41: 807 | F41: =VLOOKUP($A41,'Data Pass Through'!$A:$D,3,FALSE) -> 0.0005 | G41: 0.4035 | H41: 0 | I41: 0 | J41: 0.003213692323 | K41: 0.003173630894
A42: Standard Supply Service – Administration Charge (if applicable) | B42: 1 | C42: =VLOOKUP($A42,'Data Pass Through'!$A:$D,2,FALSE) -> 0.25 | D42: =B42*C42 -> 0.25 | E42: 1 | F42: =VLOOKUP($A42,'Data Pass Through'!$A:$D,3,FALSE) -> 0.25 | G42: 0.25 | H42: 0 | I42: 0 | J42: 0.001991135268 | K42: 0.001966314061
A43: Sub-Total: Regulatory | D43: =SUM(D39:D42) -> 3.3973 | G43: =SUM(G39:G42) -> 3.3973 | H43: 0 | I43: 0 | J43: 0.02705793539 | K43: 0.02672063503
A44: Debt Retirement Charge (DRC) | B44: =B4 -> 750 | C44: =VLOOKUP($A44,'Data Pass Through'!$A:$D,2,FALSE) -> 0 | D44: =B44*C44 -> 0 | E44: 750 | F44: =VLOOKUP($A44,'Data Pass Through'!$A:$D,3,FALSE) -> 0 | G44: =E44*F44 -> 0 | H44: 0 | I44: N/A | J44: 0 | K44: 0
A45: Total Electricty Charge on Two-Tier RPP | D45: =SUM(D14,D28,D29,D30,D36,D43,D44) -> 136.7718 | G45: =SUM(G14,G28,G29,G30,G36,G43,G44) -> 136.7718 | H45: 0 | I45: 0 | J45: 1.089324619
A46: HST | C46: 0.13 | D46: =D45*C46 -> 17.780334 | F46: =C46 -> 0.13 | G46: =G45*F46 -> 17.780334 | H46: 0 | I46: 0 | J46: 0.1416122004
A47: Total Electricity Charge on Two-Tier RPP (including HST) | D47: =SUM(D45:D46) -> 154.552134 | G47: =SUM(G45:G46) -> 154.552134 | H47: 0 | I47: 0 | J47: 1.230936819
A48: Ontario Electricity Rebate (OER) | C48: ='Data Pass Through'!B20 -> -0.212 | D48: =D45*C48 -> -28.9956216 | F48: ='Data Pass Through'!C20 -> -0.212 | G48: =G45*F48 -> -28.9956216 | H48: 0 | I48: 0 | J48: -0.2309368192
A49: Total Amount on Two-Tier RPP | D49: =SUM(D47:D48) -> 125.5565124 | G49: =SUM(G47:G48) -> 125.5565124 | H49: 0 | I49: 0 | J49: 1
A50: Total Electricty Charge on TOU (before HST) | D50: =SUM(D18,D28,D29,D31,D36,D43,D44) -> 138.4983 | G50: =SUM(G18,G28,G29,G31,G36,G43,G44) -> 138.4983 | H50: 0 | I50: 0 | K50: =G50/$G$54 -> 1.089324619
A51: HST | C51: 0.13 | D51: =D50*C51 -> 18.004779 | F51: =C51 -> 0.13 | G51: =G50*F51 -> 18.004779 | H51: 0 | I51: 0 | K51: =G51/$G$54 -> 0.1416122004
A52: Total Electricity Charge on TOU (including HST) | D52: =SUM(D50:D51) -> 156.503079 | G52: =SUM(G50:G51) -> 156.503079 | H52: 0 | I52: 0 | K52: =G52/$G$54 -> 1.230936819
A53: Ontario Electricity Rebate (OER) | C53: ='Data Pass Through'!B20 -> -0.212 | D53: =D50*C53 -> -29.3616396 | F53: ='Data Pass Through'!C20 -> -0.212 | G53: =G50*F53 -> -29.3616396 | H53: 0 | I53: 0 | K53: =G53/$G$54 -> -0.2309368192
A54: Total Amount on TOU | D54: =SUM(D52:D53) -> 127.1414394 | G54: =SUM(G52:G53) -> 127.1414394 | H54: 0 | I54: 0 | K54: =G54/$G$54 -> 1
A55: * Distribution rate protection applies to R1 and R2 customers

Sheet BI_R1_Avg
A1: 2021 Bill Impacts (Average Consumption Level) - R1
A3: Rate Class | B3: =RIGHT(A1,LEN(A1)-FIND("- ",A1,1)-1) -> R1
A4: Monthly Consumption (kWh) | B4: =IF(COUNTIF(A1,"*Low*")>0,VLOOKUP(B3,'Data Billing Quantities'!$A:$Z,MATCH("Low kWh",'Data Billing Quantities'!4:4,0),FALSE),IF(COUNTIF(A1,"*Typical*")>0,VLOOKUP(B3,'Data Billing Quantities'!$A:$Z,MATCH("Typical kWh",'Data Billing Quantities'!4:4,0),FALSE),IF(COUNTIF(A1,"*Average*")>0,VLOOKUP(B3,'Data Billing Quantities'!$A:$Z,MATCH("Average kWh",'Data Billing Quantities'!4:4,0),FALSE),IF(COUNTIF(A1,"*High*")>0,VLOOKUP(B3,'Data Billing Quantities'!$A:$Z,MATCH("High kWh",'Data Billing Quantities'!4:4,0),FALSE),"error")))) -> 920
A5: Peak (kW) | B5: =IF(COUNTIF(A1,"*Low*")>0,VLOOKUP(B3,'Data Billing Quantities'!$A:$Z,MATCH("Low kW",'Data Billing Quantities'!4:4,0),FALSE),IF(COUNTIF(A1,"*Typical*")>0,VLOOKUP(B3,'Data Billing Quantities'!$A:$Z,MATCH("Typical kW",'Data Billing Quantities'!4:4,0),FALSE),IF(COUNTIF(A1,"*Average*")>0,VLOOKUP(B3,'Data Billing Quantities'!$A:$Z,MATCH("Average kW",'Data Billing Quantities'!4:4,0),FALSE),IF(COUNTIF(A1,"*High*")>0,VLOOKUP(B3,'Data Billing Quantities'!$A:$Z,MATCH("High kW",'Data Billing Quantities'!4:4,0),FALSE),"error")))) -> 0
A6: Loss factor | B6: =VLOOKUP(B3,'Data Billing Quantities'!A:D,MATCH(A6,'Data Billing Quantities'!4:4,0),FALSE) -> 1.076
A7: Commodity Threshold | B7: =VLOOKUP(B3,'Data Billing Quantities'!A:D,MATCH(A7,'Data Billing Quantities'!4:4,0),FALSE) -> 600
A8: Monthly Consumption (kWh) - Uplifted | B8: =B4*B6 -> 989.92
A9: Charge determinant | B9: =VLOOKUP(B3,'Data Billing Quantities'!A:D,MATCH(A9,'Data Billing Quantities'!4:4,0),FALSE) -> kWh
B11: Volume | C11: Current Rate ($) | D11: Current Charge ($) | E11: Volume | F11: Proposed Rate ($) | G11: Proposed Charge ($) | H11: Change ($) | I11: Change (%) | J11: % of Total Bill on RPP | K11: % of Total Bill on TOU
A12: Energy First Tier | B12: =IF(B4>B7,B7,B4) -> 600 | C12: =VLOOKUP($A12,'Data Pass Through'!$A:$D,2,FALSE) -> 0.101 | D12: =B12*C12 -> 60.6 | E12: =B12 -> 600 | F12: =VLOOKUP($A12,'Data Pass Through'!$A:$D,3,FALSE) -> 0.101 | G12: =E12*F12 -> 60.6 | H12: =G12-D12 -> 0 | I12: =IF(ISERROR(H12/ABS(D12)),"N/A",(H12/ABS(D12))) -> 0 | J12: =G12/$G$49 -> 0.4080699555
A13: Energy Second Tier | B13: =IF(B4>B7,(B4)-B7,0) -> 320 | C13: =VLOOKUP($A13,'Data Pass Through'!$A:$D,2,FALSE) -> 0.118 | D13: =B13*C13 -> 37.76 | E13: =B13 -> 320 | F13: =VLOOKUP($A13,'Data Pass Through'!$A:$D,3,FALSE) -> 0.118 | G13: =E13*F13 -> 37.76 | H13: 0 | I13: 0 | J13: =G13/$G$49 -> 0.254269332
A14: Sub-Total: Energy (RPP Tiered) | D14: =SUM(D12:D13) -> 98.36 | G14: =SUM(G12:G13) -> 98.36 | H14: 0 | I14: 0 | J14: =G14/$G$49 -> 0.6623392875
A15: TOU-Off Peak | B15: =B$4*VLOOKUP($B$3,'Data Billing Quantities'!$A:$O,MATCH(BI_R1_Avg!$A15,'Data Billing Quantities'!$4:$4,0),FALSE) -> 588.8 | C15: =VLOOKUP($A15,'Data Pass Through'!$A:$D,2,FALSE) -> 0.085 | D15: =B15*C15 -> 50.048 | E15: 588.8 | F15: =VLOOKUP($A15,'Data Pass Through'!$A:$D,3,FALSE) -> 0.085 | G15: =E15*F15 -> 50.048 | H15: 0 | I15: 0 | K15: =G15/$G$54 -> 0.3374195872
A16: TOU-Mid Peak | B16: =B$4*VLOOKUP($B$3,'Data Billing Quantities'!$A:$O,MATCH(BI_R1_Avg!$A16,'Data Billing Quantities'!$4:$4,0),FALSE) -> 165.6 | C16: =VLOOKUP($A16,'Data Pass Through'!$A:$D,2,FALSE) -> 0.119 | D16: =B16*C16 -> 19.7064 | E16: 165.6 | F16: =VLOOKUP($A16,'Data Pass Through'!$A:$D,3,FALSE) -> 0.119 | G16: =E16*F16 -> 19.7064 | H16: 0 | I16: 0 | K16: 0.1328589625
A17: TOU-On Peak | B17: =B$4*VLOOKUP($B$3,'Data Billing Quantities'!$A:$O,MATCH(BI_R1_Avg!$A17,'Data Billing Quantities'!$4:$4,0),FALSE) -> 165.6 | C17: =VLOOKUP($A17,'Data Pass Through'!$A:$D,2,FALSE) -> 0.176 | D17: =B17*C17 -> 29.1456 | E17: 165.6 | F17: =VLOOKUP($A17,'Data Pass Through'!$A:$D,3,FALSE) -> 0.176 | G17: =E17*F17 -> 29.1456 | H17: 0 | I17: 0 | K17: 0.196497289
A18: Sub-Total: Energy (RPP TOU) | D18: =SUM(D15:D17) -> 98.9 | G18: =SUM(G15:G17) -> 98.9 | H18: 0 | I18: 0 | J18: =G18/$G$49 -> 0.6659755544 | K18: 0.6667758387
A19: Service Charge | B19: 1 | C19: =IF(ISERROR(VLOOKUP($B$3,'Data Current Rates'!$A:$BE,MATCH(BI_R1_Avg!$A19,CurrentHeader,0),FALSE)),0,VLOOKUP($B$3,'Data Current Rates'!$A:$BE,MATCH(BI_R1_Avg!$A19,CurrentHeader,0),FALSE)) -> 49.04 | D19: =B19*C19 -> 49.04 | E19: 1 | F19: =VLOOKUP($B$3,'Data Proposed Rates'!$A:$BC,MATCH(BI_R1_Avg!$A19,ProposedHeader,0),FALSE) -> 49.04 | G19: =E19*F19 -> 49.04 | H19: 0 | I19: 0 | J19: 0.3302269079 | K19: 0.3306237324
A20: Base Rate Adjustment to Recover Past Tax Amounts FIXED | E20: 1 | F20: =VLOOKUP($B$3,'Data Proposed Rates'!$A:$BC,MATCH(BI_R1_Avg!$A20,ProposedHeader,0),FALSE) -> 1.56 | G20: 1.56 | H20: 1.56 | I20: N/A | J20: 0.01050477113 | K20: 0.01051739442
A21: Fixed Deferral/Variance Account Rider (General) | B21: 1 | C21: =IF(ISERROR(VLOOKUP($B$3,'Data Current Rates'!$A:$BE,MATCH(BI_R1_Avg!$A21,CurrentHeader,0),FALSE)),0,VLOOKUP($B$3,'Data Current Rates'!$A:$BE,MATCH(BI_R1_Avg!$A21,CurrentHeader,0),FALSE)) -> -0.14 | D21: -0.14 | E21: 1 | F21: =VLOOKUP($B$3,'Data Proposed Rates'!$A:$BC,MATCH(BI_R1_Avg!$A21,ProposedHeader,0),FALSE) -> -0.14 | G21: -0.14 | H21: 0 | I21: 0 | J21: -0.0009427358708 | K21: -0.0009438687303
A22: Fixed ESM Rider | B22: 1 | C22: =IF(ISERROR(VLOOKUP($B$3,'Data Current Rates'!$A:$BE,MATCH(BI_R1_Avg!$A22,CurrentHeader,0),FALSE)),0,VLOOKUP($B$3,'Data Current Rates'!$A:$BE,MATCH(BI_R1_Avg!$A22,CurrentHeader,0),FALSE)) -> -0.85 | D22: -0.85 | E22: 1 | F22: =VLOOKUP($B$3,'Data Proposed Rates'!$A:$BC,MATCH(BI_R1_Avg!$A22,ProposedHeader,0),FALSE) -> -0.85 | G22: -0.85 | H22: 0 | I22: 0 | J22: -0.005723753501 | K22: -0.005730631577
A23: Distribution Volumetric Charge | B23: =IF($B$9="kWh",$B$4,$B$5) -> 920 | C23: =IF(ISERROR(VLOOKUP($B$3,'Data Current Rates'!$A:$BE,MATCH(BI_R1_Avg!$A23,CurrentHeader,0),FALSE)),0,VLOOKUP($B$3,'Data Current Rates'!$A:$BE,MATCH(BI_R1_Avg!$A23,CurrentHeader,0),FALSE)) -> 0.0141 | D23: 12.972 | E23: =IF($B$9="kWh",$B$4,$B$5) -> 920 | F23: =VLOOKUP($B$3,'Data Proposed Rates'!$A:$BC,MATCH(BI_R1_Avg!$A23,ProposedHeader,0),FALSE) -> 0.0141 | G23: 12.972 | H23: 0 | I23: 0 | J23: 0.08735121226 | K23: 0.08745617978
A24: Base Rate Adjustment to Recover Past Tax Amounts VOL
A25: Volumetric Deferral/Variance Account Rider (General) | B25: =IF($B$9="kWh",$B$4,$B$5) -> 920 | C25: =IF(ISERROR(VLOOKUP($B$3,'Data Current Rates'!$A:$BE,MATCH(BI_R1_Avg!$A25,CurrentHeader,0),FALSE)),0,VLOOKUP($B$3,'Data Current Rates'!$A:$BE,MATCH(BI_R1_Avg!$A25,CurrentHeader,0),FALSE)) -> -0.0008 | D25: -0.736 | E25: =IF($B$9="kWh",$B$4,$B$5) -> 920 | F25: =VLOOKUP($B$3,'Data Proposed Rates'!$A:$BC,MATCH(BI_R1_Avg!$A25,ProposedHeader,0),FALSE) -> -0.0008 | G25: -0.736 | H25: 0 | I25: 0 | J25: -0.004956097149 | K25: -0.004962052753
A26: Volumetric ESM Rider | B26: 920 | C26: =IF(ISERROR(VLOOKUP($B$3,'Data Current Rates'!$A:$BE,MATCH(BI_R1_Avg!$A26,CurrentHeader,0),FALSE)),0,VLOOKUP($B$3,'Data Current Rates'!$A:$BE,MATCH(BI_R1_Avg!$A26,CurrentHeader,0),FALSE)) -> 0 | D26: 0 | E26: 920 | F26: =VLOOKUP($B$3,'Data Proposed Rates'!$A:$BC,MATCH(BI_R1_Avg!$A26,ProposedHeader,0),FALSE) -> 0 | G26: 0 | H26: 0 | I26: N/A | J26: 0 | K26: 0
A27: Fair Hydro Plan - Distribution Rate Protection Savings* | D27: =IF(AND(B3<>"R1",B3<>"R2"),0,IF(VLOOKUP($A27,'Data Pass Through'!$A:$D,2,FALSE)=0,0,IF(SUM(D19:D20,D23:D24)<VLOOKUP($A27,'Data Pass Through'!$A:$D,2,FALSE),0,VLOOKUP($A27,'Data Pass Through'!$A:$D,2,FALSE)-SUM(D19:D20,D23:D24)))) -> -25.152 | G27: =IF(AND(B3<>"R1",B3<>"R2"),0,IF(VLOOKUP($A27,'Data Pass Through'!$A:$D,2,FALSE)=0,0,IF(SUM(G19:G20,G23:G24)<VLOOKUP($A27,'Data Pass Through'!$A:$D,2,FALSE),0,VLOOKUP($A27,'Data Pass Through'!$A:$D,2,FALSE)-SUM(G19:G20,G23:G24)))) -> -26.712 | H27: -1.56 | I27: -0.06202290076 | J27: -0.1798740041 | K27: -0.1800901537
A28: Sub-Total: Distribution (excluding pass through) | D28: =SUM(INDIRECT("D19:D"&ROW()-1)) -> 35.134 | G28: =SUM(INDIRECT("g19:g"&ROW()-1)) -> 35.134 | H28: =G28-D28 -> 0 | I28: 0 | J28: 0.2365863006 | K28: 0.2368705998
A29: Smart Metering Entity Charge | B29: 1 | C29: =VLOOKUP($A29,'Data Pass Through'!$A:$D,2,FALSE) -> 0.57 | D29: =B29*C29 -> 0.57 | E29: 1 | F29: =VLOOKUP($A29,'Data Pass Through'!$A:$D,3,FALSE) -> 0.57 | G29: =E29*F29 -> 0.57 | H29: 0 | I29: 0 | J29: 0.00383828176 | K29: 0.003842894116
A30: Line Losses on Cost of Power (based on two-tier RPP prices) | B30: =B8-B4 -> 69.92 | C30: =IF(B4>B7,C13,C12) -> 0.118 | D30: =B30*C30 -> 8.25056 | E30: 69.92 | F30: =IF(B4>B7,F13,F12) -> 0.118 | G30: =E30*F30 -> 8.25056 | H30: 0 | I30: 0 | J30: 0.05555784904 | K30: 0.05562461137
A31: Line Losses on Cost of Power (based on TOU prices) | B31: =B8-B4 -> 69.92 | C31: =VLOOKUP($B$3,'Data Billing Quantities'!$A:$O,MATCH(BI_R1_Avg!$A15,'Data Billing Quantities'!$4:$4,0),FALSE)*C15+VLOOKUP($B$3,'Data Billing Quantities'!$A:$O,MATCH(BI_R1_Avg!$A16,'Data Billing Quantities'!$4:$4,0),FALSE)*C16+VLOOKUP($B$3,'Data Billing Quantities'!$A:$O,MATCH(BI_R1_Avg!$A17,'Data Billing Quantities'!$4:$4,0),FALSE)*C17 -> 0.1075 | D31: =B31*C31 -> 7.5164 | E31: 69.92 | F31: =VLOOKUP($B$3,'Data Billing Quantities'!$A:$O,MATCH(BI_R1_Avg!$A15,'Data Billing Quantities'!$4:$4,0),FALSE)*F15+VLOOKUP($B$3,'Data Billing Quantities'!$A:$O,MATCH(BI_R1_Avg!$A16,'Data Billing Quantities'!$4:$4,0),FALSE)*F16+VLOOKUP($B$3,'Data Billing Quantities'!$A:$O,MATCH(BI_R1_Avg!$A17,'Data Billing Quantities'!$4:$4,0),FALSE)*F17 -> 0.1075 | G31: =E31*F31 -> 7.5164 | H31: 0 | I31: 0 | J31: 0.05061414214 | K31: 0.05067496374
A32: Sub-Total: Distribution (based on two-tier RPP prices) | D32: =SUM(D28,D29:D30) -> 43.95456 | G32: =SUM(G28,G29:G30) -> 43.95456 | H32: 0 | I32: 0 | J32: 0.2959824314 | K32: 0.2963381053
A33: Sub-Total: Distribution (based on TOU prices) | D33: =SUM(D28,D29,D31) -> 43.2204 | G33: =SUM(G28,G29,G31) -> 43.2204 | H33: 0 | I33: 0 | J33: 0.2910387245 | K33: 0.2913884576
A34: Retail Transmission Rate – Network Service Rate | B34: =B8 -> 989.92 | C34: =VLOOKUP($B$3,'Data Current Rates'!$A:$BE,MATCH(BI_R1_Avg!$A34,CurrentHeader,0),FALSE) -> 0.0082 | D34: =B34*C34 -> 8.117344 | E34: 989.92 | F34: =VLOOKUP($B$3,'Data Proposed Rates'!$A:$BC,MATCH(BI_R1_Avg!$A34,ProposedHeader,0),FALSE) -> 0.0082 | G34: =E34*F34 -> 8.117344 | H34: =G34-D34 -> 0 | I34: 0 | J34: 0.05466079546 | K34: 0.05472647982
A35: Retail Transmission Rate – Line and Transformation Connection Service Rate | B35: =B8 -> 989.92 | C35: =VLOOKUP($B$3,'Data Current Rates'!$A:$BE,MATCH(BI_R1_Avg!$A35,CurrentHeader,0),FALSE) -> 0.0073 | D35: =B35*C35 -> 7.226416 | E35: 989.92 | F35: =VLOOKUP($B$3,'Data Proposed Rates'!$A:$BC,MATCH(BI_R1_Avg!$A35,ProposedHeader,0),FALSE) -> 0.0073 | G35: =E35*F35 -> 7.226416 | H35: =G35-D35 -> 0 | I35: 0 | J35: 0.04866143986 | K35: 0.04871991496
A36: Sub-Total: Retail Transmission | D36: =SUM(D34:D35) -> 15.34376 | G36: =SUM(G34:G35) -> 15.34376 | H36: =G36-D36 -> 0 | I36: 0 | J36: 0.1033222353 | K36: 0.1034463948
A37: Sub-Total: Delivery (based on two-tier RPP prices) | D37: =D32+D36 -> 59.29832 | G37: =G32+G36 -> 59.29832 | H37: =G37-D37 -> 0 | I37: 0 | J37: 0.3993046667 | K37: 0.3997845
A38: Sub-Total: Delivery (based on TOU prices) | D38: =D33+D36 -> 58.56416 | G38: =G33+G36 -> 58.56416 | H38: =G38-D38 -> 0 | I38: 0 | J38: 0.3943609598 | K38: 0.3948348524
A39: Wholesale Market Service Rate (WMS) - not including CBR | B39: =B8 -> 989.92 | C39: =VLOOKUP($A39,'Data Pass Through'!$A:$D,2,FALSE) -> 0.003 | D39: =B39*C39 -> 2.96976 | E39: =$B$8 -> 989.92 | F39: =VLOOKUP($A39,'Data Pass Through'!$A:$D,3,FALSE) -> 0.003 | G39: =E39*F39 -> 2.96976 | H39: 0 | I39: 0 | J39: 0.019997852 | K39: 0.02002188286
A40: Capacity Based Recovery (CBR) - Applicable for Class B Customers | B40: =B8 -> 989.92 | C40: =VLOOKUP($A40,'Data Pass Through'!$A:$D,2,FALSE) -> 0.0004 | D40: =B40*C40 -> 0.395968 | E40: =$B$8 -> 989.92 | F40: =VLOOKUP($A40,'Data Pass Through'!$A:$D,3,FALSE) -> 0.0004 | G40: =E40*F40 -> 0.395968 | H40: 0 | I40: 0 | J40: 0.002666380266 | K40: 0.002669584381
A41: Rural Rate Protection Charge | B41: =B8 -> 989.92 | C41: =VLOOKUP($A41,'Data Pass Through'!$A:$D,2,FALSE) -> 0.0005 | D41: 0.49496 | E41: 989.92 | F41: =VLOOKUP($A41,'Data Pass Through'!$A:$D,3,FALSE) -> 0.0005 | G41: 0.49496 | H41: 0 | I41: 0 | J41: 0.003332975333 | K41: 0.003336980477
A42: Standard Supply Service – Administration Charge (if applicable) | B42: 1 | C42: =VLOOKUP($A42,'Data Pass Through'!$A:$D,2,FALSE) -> 0.25 | D42: =B42*C42 -> 0.25 | E42: 1 | F42: =VLOOKUP($A42,'Data Pass Through'!$A:$D,3,FALSE) -> 0.25 | G42: 0.25 | H42: 0 | I42: 0 | J42: 0.001683456912 | K42: 0.001685479875
A43: Sub-Total: Regulatory | D43: =SUM(D39:D42) -> 4.110688 | G43: =SUM(G39:G42) -> 4.110688 | H43: 0 | I43: 0 | J43: 0.02768066451 | K43: 0.02771392759
A44: Debt Retirement Charge (DRC) | B44: =B4 -> 920 | C44: =VLOOKUP($A44,'Data Pass Through'!$A:$D,2,FALSE) -> 0 | D44: =B44*C44 -> 0 | E44: 920 | F44: =VLOOKUP($A44,'Data Pass Through'!$A:$D,3,FALSE) -> 0 | G44: =E44*F44 -> 0 | H44: 0 | I44: N/A | J44: 0 | K44: 0
A45: Total Electricty Charge on Two-Tier RPP | D45: =SUM(D14,D28,D29,D30,D36,D43,D44) -> 161.769008 | G45: =SUM(G14,G28,G29,G30,G36,G43,G44) -> 161.769008 | H45: 0 | I45: 0 | J45: 1.089324619
A46: HST | C46: 0.13 | D46: =D45*C46 -> 21.02997104 | F46: =C46 -> 0.13 | G46: =G45*F46 -> 21.02997104 | H46: 0 | I46: 0 | J46: 0.1416122004
A47: Total Electricity Charge on Two-Tier RPP (including HST) | D47: =SUM(D45:D46) -> 182.798979 | G47: =SUM(G45:G46) -> 182.798979 | H47: 0 | I47: 0 | J47: 1.230936819
A48: Ontario Electricity Rebate (OER) | C48: ='Data Pass Through'!B20 -> -0.212 | D48: =D45*C48 -> -34.2950297 | F48: ='Data Pass Through'!C20 -> -0.212 | G48: =G45*F48 -> -34.2950297 | H48: 0 | I48: 0 | J48: -0.2309368192
A49: Total Amount on Two-Tier RPP | D49: =SUM(D47:D48) -> 148.5039493 | G49: =SUM(G47:G48) -> 148.5039493 | H49: 0 | I49: 0 | J49: 1
A50: Total Electricty Charge on TOU (before HST) | D50: =SUM(D18,D28,D29,D31,D36,D43,D44) -> 161.574848 | G50: =SUM(G18,G28,G29,G31,G36,G43,G44) -> 161.574848 | H50: 0 | I50: 0 | K50: =G50/$G$54 -> 1.089324619
A51: HST | C51: 0.13 | D51: =D50*C51 -> 21.00473024 | F51: =C51 -> 0.13 | G51: =G50*F51 -> 21.00473024 | H51: 0 | I51: 0 | K51: =G51/$G$54 -> 0.1416122004
A52: Total Electricity Charge on TOU (including HST) | D52: =SUM(D50:D51) -> 182.5795782 | G52: =SUM(G50:G51) -> 182.5795782 | H52: 0 | I52: 0 | K52: =G52/$G$54 -> 1.230936819
A53: Ontario Electricity Rebate (OER) | C53: ='Data Pass Through'!B20 -> -0.212 | D53: =D50*C53 -> -34.25386778 | F53: ='Data Pass Through'!C20 -> -0.212 | G53: =G50*F53 -> -34.25386778 | H53: 0 | I53: 0 | K53: =G53/$G$54 -> -0.2309368192
A54: Total Amount on TOU | D54: =SUM(D52:D53) -> 148.3257105 | G54: =SUM(G52:G53) -> 148.3257105 | H54: 0 | I54: 0 | K54: =G54/$G$54 -> 1
A55: * Distribution rate protection applies to R1 and R2 customers

Sheet BI_R1_High
A1: 2021 Bill Impacts (High Consumption Level) - R1
A3: Rate Class | B3: =RIGHT(A1,LEN(A1)-FIND("- ",A1,1)-1) -> R1
A4: Monthly Consumption (kWh) | B4: =IF(COUNTIF(A1,"*Low*")>0,VLOOKUP(B3,'Data Billing Quantities'!$A:$Z,MATCH("Low kWh",'Data Billing Quantities'!4:4,0),FALSE),IF(COUNTIF(A1,"*Typical*")>0,VLOOKUP(B3,'Data Billing Quantities'!$A:$Z,MATCH("Typical kWh",'Data Billing Quantities'!4:4,0),FALSE),IF(COUNTIF(A1,"*Average*")>0,VLOOKUP(B3,'Data Billing Quantities'!$A:$Z,MATCH("Average kWh",'Data Billing Quantities'!4:4,0),FALSE),IF(COUNTIF(A1,"*High*")>0,VLOOKUP(B3,'Data Billing Quantities'!$A:$Z,MATCH("High kWh",'Data Billing Quantities'!4:4,0),FALSE),"error")))) -> 1800
A5: Peak (kW) | B5: =IF(COUNTIF(A1,"*Low*")>0,VLOOKUP(B3,'Data Billing Quantities'!$A:$Z,MATCH("Low kW",'Data Billing Quantities'!4:4,0),FALSE),IF(COUNTIF(A1,"*Typical*")>0,VLOOKUP(B3,'Data Billing Quantities'!$A:$Z,MATCH("Typical kW",'Data Billing Quantities'!4:4,0),FALSE),IF(COUNTIF(A1,"*Average*")>0,VLOOKUP(B3,'Data Billing Quantities'!$A:$Z,MATCH("Average kW",'Data Billing Quantities'!4:4,0),FALSE),IF(COUNTIF(A1,"*High*")>0,VLOOKUP(B3,'Data Billing Quantities'!$A:$Z,MATCH("High kW",'Data Billing Quantities'!4:4,0),FALSE),"error")))) -> 0
A6: Loss factor | B6: =VLOOKUP(B3,'Data Billing Quantities'!A:D,MATCH(A6,'Data Billing Quantities'!4:4,0),FALSE) -> 1.076
A7: Commodity Threshold | B7: =VLOOKUP(B3,'Data Billing Quantities'!A:D,MATCH(A7,'Data Billing Quantities'!4:4,0),FALSE) -> 600
A8: Monthly Consumption (kWh) - Uplifted | B8: =B4*B6 -> 1936.8
A9: Charge determinant | B9: =VLOOKUP(B3,'Data Billing Quantities'!A:D,MATCH(A9,'Data Billing Quantities'!4:4,0),FALSE) -> kWh
B11: Volume | C11: Current Rate ($) | D11: Current Charge ($) | E11: Volume | F11: Proposed Rate ($) | G11: Proposed Charge ($) | H11: Change ($) | I11: Change (%) | J11: % of Total Bill on RPP | K11: % of Total Bill on TOU
A12: Energy First Tier | B12: =IF(B4>B7,B7,B4) -> 600 | C12: =VLOOKUP($A12,'Data Pass Through'!$A:$D,2,FALSE) -> 0.101 | D12: =B12*C12 -> 60.6 | E12: =B12 -> 600 | F12: =VLOOKUP($A12,'Data Pass Through'!$A:$D,3,FALSE) -> 0.101 | G12: =E12*F12 -> 60.6 | H12: =G12-D12 -> 0 | I12: =IF(ISERROR(H12/ABS(D12)),"N/A",(H12/ABS(D12))) -> 0 | J12: =G12/$G$49 -> 0.2267194636
A13: Energy Second Tier | B13: =IF(B4>B7,(B4)-B7,0) -> 1200 | C13: =VLOOKUP($A13,'Data Pass Through'!$A:$D,2,FALSE) -> 0.118 | D13: =B13*C13 -> 141.6 | E13: =B13 -> 1200 | F13: =VLOOKUP($A13,'Data Pass Through'!$A:$D,3,FALSE) -> 0.118 | G13: =E13*F13 -> 141.6 | H13: 0 | I13: 0 | J13: =G13/$G$49 -> 0.5297603308
A14: Sub-Total: Energy (RPP Tiered) | D14: =SUM(D12:D13) -> 202.2 | G14: =SUM(G12:G13) -> 202.2 | H14: 0 | I14: 0 | J14: =G14/$G$49 -> 0.7564797945
A15: TOU-Off Peak | B15: =B$4*VLOOKUP($B$3,'Data Billing Quantities'!$A:$O,MATCH(BI_R1_High!$A15,'Data Billing Quantities'!$4:$4,0),FALSE) -> 1152 | C15: =VLOOKUP($A15,'Data Pass Through'!$A:$D,2,FALSE) -> 0.085 | D15: =B15*C15 -> 97.92 | E15: 1152 | F15: =VLOOKUP($A15,'Data Pass Through'!$A:$D,3,FALSE) -> 0.085 | G15: =E15*F15 -> 97.92 | H15: 0 | I15: 0 | K15: =G15/$G$54 -> 0.3795562646
A16: TOU-Mid Peak | B16: =B$4*VLOOKUP($B$3,'Data Billing Quantities'!$A:$O,MATCH(BI_R1_High!$A16,'Data Billing Quantities'!$4:$4,0),FALSE) -> 324 | C16: =VLOOKUP($A16,'Data Pass Through'!$A:$D,2,FALSE) -> 0.119 | D16: =B16*C16 -> 38.556 | E16: 324 | F16: =VLOOKUP($A16,'Data Pass Through'!$A:$D,3,FALSE) -> 0.119 | G16: =E16*F16 -> 38.556 | H16: 0 | I16: 0 | K16: 0.1494502792
A17: TOU-On Peak | B17: =B$4*VLOOKUP($B$3,'Data Billing Quantities'!$A:$O,MATCH(BI_R1_High!$A17,'Data Billing Quantities'!$4:$4,0),FALSE) -> 324 | C17: =VLOOKUP($A17,'Data Pass Through'!$A:$D,2,FALSE) -> 0.176 | D17: =B17*C17 -> 57.024 | E17: 324 | F17: =VLOOKUP($A17,'Data Pass Through'!$A:$D,3,FALSE) -> 0.176 | G17: =E17*F17 -> 57.024 | H17: 0 | I17: 0 | K17: 0.221035707
A18: Sub-Total: Energy (RPP TOU) | D18: =SUM(D15:D17) -> 193.5 | G18: =SUM(G15:G17) -> 193.5 | H18: 0 | I18: 0 | J18: =G18/$G$49 -> 0.7239309606 | K18: 0.7500422508
A19: Service Charge | B19: 1 | C19: =IF(ISERROR(VLOOKUP($B$3,'Data Current Rates'!$A:$BE,MATCH(BI_R1_High!$A19,CurrentHeader,0),FALSE)),0,VLOOKUP($B$3,'Data Current Rates'!$A:$BE,MATCH(BI_R1_High!$A19,CurrentHeader,0),FALSE)) -> 49.04 | D19: =B19*C19 -> 49.04 | E19: 1 | F19: =VLOOKUP($B$3,'Data Proposed Rates'!$A:$BC,MATCH(BI_R1_High!$A19,ProposedHeader,0),FALSE) -> 49.04 | G19: =E19*F19 -> 49.04 | H19: 0 | I19: 0 | J19: 0.1834706683 | K19: 0.1900882273
A20: Base Rate Adjustment to Recover Past Tax Amounts FIXED | E20: 1 | F20: =VLOOKUP($B$3,'Data Proposed Rates'!$A:$BC,MATCH(BI_R1_High!$A20,ProposedHeader,0),FALSE) -> 1.56 | G20: 1.56 | H20: 1.56 | I20: N/A | J20: 0.005836342628 | K20: 0.006046852254
A21: Fixed Deferral/Variance Account Rider (General) | B21: 1 | C21: =IF(ISERROR(VLOOKUP($B$3,'Data Current Rates'!$A:$BE,MATCH(BI_R1_High!$A21,CurrentHeader,0),FALSE)),0,VLOOKUP($B$3,'Data Current Rates'!$A:$BE,MATCH(BI_R1_High!$A21,CurrentHeader,0),FALSE)) -> -0.14 | D21: -0.14 | E21: 1 | F21: =VLOOKUP($B$3,'Data Proposed Rates'!$A:$BC,MATCH(BI_R1_High!$A21,ProposedHeader,0),FALSE) -> -0.14 | G21: -0.14 | H21: 0 | I21: 0 | J21: -0.0005237743384 | K21: -0.0005426662279
A22: Fixed ESM Rider | B22: 1 | C22: =IF(ISERROR(VLOOKUP($B$3,'Data Current Rates'!$A:$BE,MATCH(BI_R1_High!$A22,CurrentHeader,0),FALSE)),0,VLOOKUP($B$3,'Data Current Rates'!$A:$BE,MATCH(BI_R1_High!$A22,CurrentHeader,0),FALSE)) -> -0.85 | D22: -0.85 | E22: 1 | F22: =VLOOKUP($B$3,'Data Proposed Rates'!$A:$BC,MATCH(BI_R1_High!$A22,ProposedHeader,0),FALSE) -> -0.85 | G22: -0.85 | H22: 0 | I22: 0 | J22: -0.003180058483 | K22: -0.003294759241
A23: Distribution Volumetric Charge | B23: =IF($B$9="kWh",$B$4,$B$5) -> 1800 | C23: =IF(ISERROR(VLOOKUP($B$3,'Data Current Rates'!$A:$BE,MATCH(BI_R1_High!$A23,CurrentHeader,0),FALSE)),0,VLOOKUP($B$3,'Data Current Rates'!$A:$BE,MATCH(BI_R1_High!$A23,CurrentHeader,0),FALSE)) -> 0.0141 | D23: 25.38 | E23: =IF($B$9="kWh",$B$4,$B$5) -> 1800 | F23: =VLOOKUP($B$3,'Data Proposed Rates'!$A:$BC,MATCH(BI_R1_High!$A23,ProposedHeader,0),FALSE) -> 0.0141 | G23: 25.38 | H23: 0 | I23: 0 | J23: 0.09495280506 | K23: 0.09837763475
A24: Base Rate Adjustment to Recover Past Tax Amounts VOL
A25: Volumetric Deferral/Variance Account Rider (General) | B25: =IF($B$9="kWh",$B$4,$B$5) -> 1800 | C25: =IF(ISERROR(VLOOKUP($B$3,'Data Current Rates'!$A:$BE,MATCH(BI_R1_High!$A25,CurrentHeader,0),FALSE)),0,VLOOKUP($B$3,'Data Current Rates'!$A:$BE,MATCH(BI_R1_High!$A25,CurrentHeader,0),FALSE)) -> -0.0008 | D25: -1.44 | E25: =IF($B$9="kWh",$B$4,$B$5) -> 1800 | F25: =VLOOKUP($B$3,'Data Proposed Rates'!$A:$BC,MATCH(BI_R1_High!$A25,ProposedHeader,0),FALSE) -> -0.0008 | G25: -1.44 | H25: 0 | I25: 0 | J25: -0.005387393195 | K25: -0.005581709773
A26: Volumetric ESM Rider | B26: 1800 | C26: =IF(ISERROR(VLOOKUP($B$3,'Data Current Rates'!$A:$BE,MATCH(BI_R1_High!$A26,CurrentHeader,0),FALSE)),0,VLOOKUP($B$3,'Data Current Rates'!$A:$BE,MATCH(BI_R1_High!$A26,CurrentHeader,0),FALSE)) -> 0 | D26: 0 | E26: 1800 | F26: =VLOOKUP($B$3,'Data Proposed Rates'!$A:$BC,MATCH(BI_R1_High!$A26,ProposedHeader,0),FALSE) -> 0 | G26: 0 | H26: 0 | I26: N/A | J26: 0 | K26: 0
A27: Fair Hydro Plan - Distribution Rate Protection Savings* | D27: =IF(AND(B3<>"R1",B3<>"R2"),0,IF(VLOOKUP($A27,'Data Pass Through'!$A:$D,2,FALSE)=0,0,IF(SUM(D19:D20,D23:D24)<VLOOKUP($A27,'Data Pass Through'!$A:$D,2,FALSE),0,VLOOKUP($A27,'Data Pass Through'!$A:$D,2,FALSE)-SUM(D19:D20,D23:D24)))) -> -37.56 | G27: =IF(AND(B3<>"R1",B3<>"R2"),0,IF(VLOOKUP($A27,'Data Pass Through'!$A:$D,2,FALSE)=0,0,IF(SUM(G19:G20,G23:G24)<VLOOKUP($A27,'Data Pass Through'!$A:$D,2,FALSE),0,VLOOKUP($A27,'Data Pass Through'!$A:$D,2,FALSE)-SUM(G19:G20,G23:G24)))) -> -39.12 | H27: -1.56 | I27: -0.04153354633 | J27: -0.1463575151 | K27: -0.1516364488
A28: Sub-Total: Distribution (excluding pass through) | D28: =SUM(INDIRECT("D19:D"&ROW()-1)) -> 34.43 | G28: =SUM(INDIRECT("g19:g"&ROW()-1)) -> 34.43 | H28: =G28-D28 -> 0 | I28: 0 | J28: 0.1288110748 | K28: 0.1334571302
A29: Smart Metering Entity Charge | B29: 1 | C29: =VLOOKUP($A29,'Data Pass Through'!$A:$D,2,FALSE) -> 0.57 | D29: =B29*C29 -> 0.57 | E29: 1 | F29: =VLOOKUP($A29,'Data Pass Through'!$A:$D,3,FALSE) -> 0.57 | G29: =E29*F29 -> 0.57 | H29: 0 | I29: 0 | J29: 0.002132509806 | K29: 0.002209426785
A30: Line Losses on Cost of Power (based on two-tier RPP prices) | B30: =B8-B4 -> 136.8 | C30: =IF(B4>B7,C13,C12) -> 0.118 | D30: =B30*C30 -> 16.1424 | E30: 136.8 | F30: =IF(B4>B7,F13,F12) -> 0.118 | G30: =E30*F30 -> 16.1424 | H30: 0 | I30: 0 | J30: 0.06039267772 | K30: 0.06257096656
A31: Line Losses on Cost of Power (based on TOU prices) | B31: =B8-B4 -> 136.8 | C31: =VLOOKUP($B$3,'Data Billing Quantities'!$A:$O,MATCH(BI_R1_High!$A15,'Data Billing Quantities'!$4:$4,0),FALSE)*C15+VLOOKUP($B$3,'Data Billing Quantities'!$A:$O,MATCH(BI_R1_High!$A16,'Data Billing Quantities'!$4:$4,0),FALSE)*C16+VLOOKUP($B$3,'Data Billing Quantities'!$A:$O,MATCH(BI_R1_High!$A17,'Data Billing Quantities'!$4:$4,0),FALSE)*C17 -> 0.1075 | D31: =B31*C31 -> 14.706 | E31: 136.8 | F31: =VLOOKUP($B$3,'Data Billing Quantities'!$A:$O,MATCH(BI_R1_High!$A15,'Data Billing Quantities'!$4:$4,0),FALSE)*F15+VLOOKUP($B$3,'Data Billing Quantities'!$A:$O,MATCH(BI_R1_High!$A16,'Data Billing Quantities'!$4:$4,0),FALSE)*F16+VLOOKUP($B$3,'Data Billing Quantities'!$A:$O,MATCH(BI_R1_High!$A17,'Data Billing Quantities'!$4:$4,0),FALSE)*F17 -> 0.1075 | G31: =E31*F31 -> 14.706 | H31: 0 | I31: 0 | J31: 0.055018753 | K31: 0.05700321106
A32: Sub-Total: Distribution (based on two-tier RPP prices) | D32: =SUM(D28,D29:D30) -> 51.1424 | G32: =SUM(G28,G29:G30) -> 51.1424 | H32: 0 | I32: 0 | J32: 0.1913362623 | K32: 0.1982375235
A33: Sub-Total: Distribution (based on TOU prices) | D33: =SUM(D28,D29,D31) -> 49.706 | G33: =SUM(G28,G29,G31) -> 49.706 | H33: 0 | I33: 0 | J33: 0.1859623376 | K33: 0.192669768
A34: Retail Transmission Rate – Network Service Rate | B34: =B8 -> 1936.8 | C34: =VLOOKUP($B$3,'Data Current Rates'!$A:$BE,MATCH(BI_R1_High!$A34,CurrentHeader,0),FALSE) -> 0.0082 | D34: =B34*C34 -> 15.88176 | E34: 1936.8 | F34: =VLOOKUP($B$3,'Data Proposed Rates'!$A:$BC,MATCH(BI_R1_High!$A34,ProposedHeader,0),FALSE) -> 0.0082 | G34: =E34*F34 -> 15.88176 | H34: =G34-D34 -> 0 | I34: 0 | J34: 0.05941755955 | K34: 0.06156067709
A35: Retail Transmission Rate – Line and Transformation Connection Service Rate | B35: =B8 -> 1936.8 | C35: =VLOOKUP($B$3,'Data Current Rates'!$A:$BE,MATCH(BI_R1_High!$A35,CurrentHeader,0),FALSE) -> 0.0073 | D35: =B35*C35 -> 14.13864 | E35: 1936.8 | F35: =VLOOKUP($B$3,'Data Proposed Rates'!$A:$BC,MATCH(BI_R1_High!$A35,ProposedHeader,0),FALSE) -> 0.0073 | G35: =E35*F35 -> 14.13864 | H35: =G35-D35 -> 0 | I35: 0 | J35: 0.05289612009 | K35: 0.05480401741
A36: Sub-Total: Retail Transmission | D36: =SUM(D34:D35) -> 30.0204 | G36: =SUM(G34:G35) -> 30.0204 | H36: =G36-D36 -> 0 | I36: 0 | J36: 0.1123136796 | K36: 0.1163646945
A37: Sub-Total: Delivery (based on two-tier RPP prices) | D37: =D32+D36 -> 81.1628 | G37: =G32+G36 -> 81.1628 | H37: =G37-D37 -> 0 | I37: 0 | J37: 0.3036499419 | K37: 0.314602218
A38: Sub-Total: Delivery (based on TOU prices) | D38: =D33+D36 -> 79.7264 | G38: =G33+G36 -> 79.7264 | H38: =G38-D38 -> 0 | I38: 0 | J38: 0.2982760172 | K38: 0.3090344625
A39: Wholesale Market Service Rate (WMS) - not including CBR | B39: =B8 -> 1936.8 | C39: =VLOOKUP($A39,'Data Pass Through'!$A:$D,2,FALSE) -> 0.003 | D39: =B39*C39 -> 5.8104 | E39: =$B$8 -> 1936.8 | F39: =VLOOKUP($A39,'Data Pass Through'!$A:$D,3,FALSE) -> 0.003 | G39: =E39*F39 -> 5.8104 | H39: 0 | I39: 0 | J39: 0.02173813154 | K39: 0.02252219893
A40: Capacity Based Recovery (CBR) - Applicable for Class B Customers | B40: =B8 -> 1936.8 | C40: =VLOOKUP($A40,'Data Pass Through'!$A:$D,2,FALSE) -> 0.0004 | D40: =B40*C40 -> 0.77472 | E40: =$B$8 -> 1936.8 | F40: =VLOOKUP($A40,'Data Pass Through'!$A:$D,3,FALSE) -> 0.0004 | G40: =E40*F40 -> 0.77472 | H40: 0 | I40: 0 | J40: 0.002898417539 | K40: 0.003002959858
A41: Rural Rate Protection Charge | B41: =B8 -> 1936.8 | C41: =VLOOKUP($A41,'Data Pass Through'!$A:$D,2,FALSE) -> 0.0005 | D41: 0.9684 | E41: 1936.8 | F41: =VLOOKUP($A41,'Data Pass Through'!$A:$D,3,FALSE) -> 0.0005 | G41: 0.9684 | H41: 0 | I41: 0 | J41: 0.003623021924 | K41: 0.003753699822
A42: Standard Supply Service – Administration Charge (if applicable) | B42: 1 | C42: =VLOOKUP($A42,'Data Pass Through'!$A:$D,2,FALSE) -> 0.25 | D42: =B42*C42 -> 0.25 | E42: 1 | F42: =VLOOKUP($A42,'Data Pass Through'!$A:$D,3,FALSE) -> 0.25 | G42: 0.25 | H42: 0 | I42: 0 | J42: 0.0009353113186 | K42: 0.0009690468356
A43: Sub-Total: Regulatory | D43: =SUM(D39:D42) -> 7.80352 | G43: =SUM(G39:G42) -> 7.80352 | H43: 0 | I43: 0 | J43: 0.02919488232 | K43: 0.03024790545
A44: Debt Retirement Charge (DRC) | B44: =B4 -> 1800 | C44: =VLOOKUP($A44,'Data Pass Through'!$A:$D,2,FALSE) -> 0 | D44: =B44*C44 -> 0 | E44: 1800 | F44: =VLOOKUP($A44,'Data Pass Through'!$A:$D,3,FALSE) -> 0 | G44: =E44*F44 -> 0 | H44: 0 | I44: N/A | J44: 0 | K44: 0
A45: Total Electricty Charge on Two-Tier RPP | D45: =SUM(D14,D28,D29,D30,D36,D43,D44) -> 291.16632 | G45: =SUM(G14,G28,G29,G30,G36,G43,G44) -> 291.16632 | H45: 0 | I45: 0 | J45: 1.089324619
A46: HST | C46: 0.13 | D46: =D45*C46 -> 37.8516216 | F46: =C46 -> 0.13 | G46: =G45*F46 -> 37.8516216 | H46: 0 | I46: 0 | J46: 0.1416122004
A47: Total Electricity Charge on Two-Tier RPP (including HST) | D47: =SUM(D45:D46) -> 329.0179416 | G47: =SUM(G45:G46) -> 329.0179416 | H47: 0 | I47: 0 | J47: 1.230936819
A48: Ontario Electricity Rebate (OER) | C48: ='Data Pass Through'!B20 -> -0.212 | D48: =D45*C48 -> -61.72725984 | F48: ='Data Pass Through'!C20 -> -0.212 | G48: =G45*F48 -> -61.72725984 | H48: 0 | I48: 0 | J48: -0.2309368192
A49: Total Amount on Two-Tier RPP | D49: =SUM(D47:D48) -> 267.2906818 | G49: =SUM(G47:G48) -> 267.2906818 | H49: 0 | I49: 0 | J49: 1
A50: Total Electricty Charge on TOU (before HST) | D50: =SUM(D18,D28,D29,D31,D36,D43,D44) -> 281.02992 | G50: =SUM(G18,G28,G29,G31,G36,G43,G44) -> 281.02992 | H50: 0 | I50: 0 | K50: =G50/$G$54 -> 1.089324619
A51: HST | C51: 0.13 | D51: =D50*C51 -> 36.5338896 | F51: =C51 -> 0.13 | G51: =G50*F51 -> 36.5338896 | H51: 0 | I51: 0 | K51: =G51/$G$54 -> 0.1416122004
A52: Total Electricity Charge on TOU (including HST) | D52: =SUM(D50:D51) -> 317.5638096 | G52: =SUM(G50:G51) -> 317.5638096 | H52: 0 | I52: 0 | K52: =G52/$G$54 -> 1.230936819
A53: Ontario Electricity Rebate (OER) | C53: ='Data Pass Through'!B20 -> -0.212 | D53: =D50*C53 -> -59.57834304 | F53: ='Data Pass Through'!C20 -> -0.212 | G53: =G50*F53 -> -59.57834304 | H53: 0 | I53: 0 | K53: =G53/$G$54 -> -0.2309368192
A54: Total Amount on TOU | D54: =SUM(D52:D53) -> 257.9854666 | G54: =SUM(G52:G53) -> 257.9854666 | H54: 0 | I54: 0 | K54: =G54/$G$54 -> 1
A55: * Distribution rate protection applies to R1 and R2 customers

Sheet BI_R2_Low
A1: 2021 Bill Impacts (Low Consumption Level) - R2
A3: Rate Class | B3: =RIGHT(A1,LEN(A1)-FIND("- ",A1,1)-1) -> R2
A4: Monthly Consumption (kWh) | B4: =IF(COUNTIF(A1,"*Low*")>0,VLOOKUP(B3,'Data Billing Quantities'!$A:$Z,MATCH("Low kWh",'Data Billing Quantities'!4:4,0),FALSE),IF(COUNTIF(A1,"*Typical*")>0,VLOOKUP(B3,'Data Billing Quantities'!$A:$Z,MATCH("Typical kWh",'Data Billing Quantities'!4:4,0),FALSE),IF(COUNTIF(A1,"*Average*")>0,VLOOKUP(B3,'Data Billing Quantities'!$A:$Z,MATCH("Average kWh",'Data Billing Quantities'!4:4,0),FALSE),IF(COUNTIF(A1,"*High*")>0,VLOOKUP(B3,'Data Billing Quantities'!$A:$Z,MATCH("High kWh",'Data Billing Quantities'!4:4,0),FALSE),"error")))) -> 450
A5: Peak (kW) | B5: =IF(COUNTIF(A1,"*Low*")>0,VLOOKUP(B3,'Data Billing Quantities'!$A:$Z,MATCH("Low kW",'Data Billing Quantities'!4:4,0),FALSE),IF(COUNTIF(A1,"*Typical*")>0,VLOOKUP(B3,'Data Billing Quantities'!$A:$Z,MATCH("Typical kW",'Data Billing Quantities'!4:4,0),FALSE),IF(COUNTIF(A1,"*Average*")>0,VLOOKUP(B3,'Data Billing Quantities'!$A:$Z,MATCH("Average kW",'Data Billing Quantities'!4:4,0),FALSE),IF(COUNTIF(A1,"*High*")>0,VLOOKUP(B3,'Data Billing Quantities'!$A:$Z,MATCH("High kW",'Data Billing Quantities'!4:4,0),FALSE),"error")))) -> 0
A6: Loss factor | B6: =VLOOKUP(B3,'Data Billing Quantities'!A:D,MATCH(A6,'Data Billing Quantities'!4:4,0),FALSE) -> 1.105
A7: Commodity Threshold | B7: =VLOOKUP(B3,'Data Billing Quantities'!A:D,MATCH(A7,'Data Billing Quantities'!4:4,0),FALSE) -> 600
A8: Monthly Consumption (kWh) - Uplifted | B8: =B4*B6 -> 497.25
A9: Charge determinant | B9: =VLOOKUP(B3,'Data Billing Quantities'!A:D,MATCH(A9,'Data Billing Quantities'!4:4,0),FALSE) -> kWh
B11: Volume | C11: Current Rate ($) | D11: Current Charge ($) | E11: Volume | F11: Proposed Rate ($) | G11: Proposed Charge ($) | H11: Change ($) | I11: Change (%) | J11: % of Total Bill on RPP | K11: % of Total Bill on TOU
A12: Energy First Tier | B12: =IF(B4>B7,B7,B4) -> 450 | C12: =VLOOKUP($A12,'Data Pass Through'!$A:$D,2,FALSE) -> 0.101 | D12: =B12*C12 -> 45.45 | E12: =B12 -> 450 | F12: =VLOOKUP($A12,'Data Pass Through'!$A:$D,3,FALSE) -> 0.101 | G12: =E12*F12 -> 45.45 | H12: =G12-D12 -> 0 | I12: =IF(ISERROR(H12/ABS(D12)),"N/A",(H12/ABS(D12))) -> 0 | J12: =G12/$G$49 -> 0.5239318423
A13: Energy Second Tier | B13: =IF(B4>B7,(B4)-B7,0) -> 0 | C13: =VLOOKUP($A13,'Data Pass Through'!$A:$D,2,FALSE) -> 0.118 | D13: =B13*C13 -> 0 | E13: =B13 -> 0 | F13: =VLOOKUP($A13,'Data Pass Through'!$A:$D,3,FALSE) -> 0.118 | G13: =E13*F13 -> 0 | H13: 0 | I13: N/A | J13: =G13/$G$49 -> 0
A14: Sub-Total: Energy (RPP Tiered) | D14: =SUM(D12:D13) -> 45.45 | G14: =SUM(G12:G13) -> 45.45 | H14: 0 | I14: 0 | J14: =G14/$G$49 -> 0.5239318423
A15: TOU-Off Peak | B15: =B$4*VLOOKUP($B$3,'Data Billing Quantities'!$A:$O,MATCH(BI_R2_Low!$A15,'Data Billing Quantities'!$4:$4,0),FALSE) -> 288 | C15: =VLOOKUP($A15,'Data Pass Through'!$A:$D,2,FALSE) -> 0.085 | D15: =B15*C15 -> 24.48 | E15: 288 | F15: =VLOOKUP($A15,'Data Pass Through'!$A:$D,3,FALSE) -> 0.085 | G15: =E15*F15 -> 24.48 | H15: 0 | I15: 0 | K15: =G15/$G$54 -> 0.2728640226
A16: TOU-Mid Peak | B16: =B$4*VLOOKUP($B$3,'Data Billing Quantities'!$A:$O,MATCH(BI_R2_Low!$A16,'Data Billing Quantities'!$4:$4,0),FALSE) -> 81 | C16: =VLOOKUP($A16,'Data Pass Through'!$A:$D,2,FALSE) -> 0.119 | D16: =B16*C16 -> 9.639 | E16: 81 | F16: =VLOOKUP($A16,'Data Pass Through'!$A:$D,3,FALSE) -> 0.119 | G16: =E16*F16 -> 9.639 | H16: 0 | I16: 0 | K16: 0.1074402089
A17: TOU-On Peak | B17: =B$4*VLOOKUP($B$3,'Data Billing Quantities'!$A:$O,MATCH(BI_R2_Low!$A17,'Data Billing Quantities'!$4:$4,0),FALSE) -> 81 | C17: =VLOOKUP($A17,'Data Pass Through'!$A:$D,2,FALSE) -> 0.176 | D17: =B17*C17 -> 14.256 | E17: 81 | F17: =VLOOKUP($A17,'Data Pass Through'!$A:$D,3,FALSE) -> 0.176 | G17: =E17*F17 -> 14.256 | H17: 0 | I17: 0 | K17: 0.1589031661
A18: Sub-Total: Energy (RPP TOU) | D18: =SUM(D15:D17) -> 48.375 | G18: =SUM(G15:G17) -> 48.375 | H18: 0 | I18: 0 | J18: =G18/$G$49 -> 0.5576502281 | K18: 0.5392073975
A19: Service Charge | B19: 1 | C19: =IF(ISERROR(VLOOKUP($B$3,'Data Current Rates'!$A:$BE,MATCH(BI_R2_Low!$A19,CurrentHeader,0),FALSE)),0,VLOOKUP($B$3,'Data Current Rates'!$A:$BE,MATCH(BI_R2_Low!$A19,CurrentHeader,0),FALSE)) -> 53.14 | D19: =B19*C19 -> 53.14 | E19: 1 | F19: =VLOOKUP($B$3,'Data Proposed Rates'!$A:$BC,MATCH(BI_R2_Low!$A19,ProposedHeader,0),FALSE) -> 53.14 | G19: =E19*F19 -> 53.14 | H19: 0 | I19: 0 | J19: 0.6125794961 | K19: 0.5923200228
A20: Base Rate Adjustment to Recover Past Tax Amounts FIXED | E20: 1 | F20: =VLOOKUP($B$3,'Data Proposed Rates'!$A:$BC,MATCH(BI_R2_Low!$A20,ProposedHeader,0),FALSE) -> 4.42 | G20: 4.42 | H20: 4.42 | I20: N/A | J20: 0.05095222756 | K20: 0.04926711519
A21: Fixed Deferral/Variance Account Rider (General) | B21: 1 | C21: =IF(ISERROR(VLOOKUP($B$3,'Data Current Rates'!$A:$BE,MATCH(BI_R2_Low!$A21,CurrentHeader,0),FALSE)),0,VLOOKUP($B$3,'Data Current Rates'!$A:$BE,MATCH(BI_R2_Low!$A21,CurrentHeader,0),FALSE)) -> -0.14 | D21: -0.14 | E21: 1 | F21: =VLOOKUP($B$3,'Data Proposed Rates'!$A:$BC,MATCH(BI_R2_Low!$A21,ProposedHeader,0),FALSE) -> -0.14 | G21: -0.14 | H21: 0 | I21: 0 | J21: -0.001613871461 | K21: -0.001560496861
A22: Fixed ESM Rider | B22: 1 | C22: =IF(ISERROR(VLOOKUP($B$3,'Data Current Rates'!$A:$BE,MATCH(BI_R2_Low!$A22,CurrentHeader,0),FALSE)),0,VLOOKUP($B$3,'Data Current Rates'!$A:$BE,MATCH(BI_R2_Low!$A22,CurrentHeader,0),FALSE)) -> -1.92 | D22: -1.92 | E22: 1 | F22: =VLOOKUP($B$3,'Data Proposed Rates'!$A:$BC,MATCH(BI_R2_Low!$A22,ProposedHeader,0),FALSE) -> -1.92 | G22: -1.92 | H22: 0 | I22: 0 | J22: -0.02213309433 | K22: -0.02140109981
A23: Distribution Volumetric Charge | B23: =IF($B$9="kWh",$B$4,$B$5) -> 450 | C23: =IF(ISERROR(VLOOKUP($B$3,'Data Current Rates'!$A:$BE,MATCH(BI_R2_Low!$A23,CurrentHeader,0),FALSE)),0,VLOOKUP($B$3,'Data Current Rates'!$A:$BE,MATCH(BI_R2_Low!$A23,CurrentHeader,0),FALSE)) -> 0.0227 | D23: 10.215 | E23: =IF($B$9="kWh",$B$4,$B$5) -> 450 | F23: =VLOOKUP($B$3,'Data Proposed Rates'!$A:$BC,MATCH(BI_R2_Low!$A23,ProposedHeader,0),FALSE) -> 0.0227 | G23: 10.215 | H23: 0 | I23: 0 | J23: 0.1177549784 | K23: 0.1138605388
A24: Base Rate Adjustment to Recover Past Tax Amounts VOL
A25: Volumetric Deferral/Variance Account Rider (General) | B25: =IF($B$9="kWh",$B$4,$B$5) -> 450 | C25: =IF(ISERROR(VLOOKUP($B$3,'Data Current Rates'!$A:$BE,MATCH(BI_R2_Low!$A25,CurrentHeader,0),FALSE)),0,VLOOKUP($B$3,'Data Current Rates'!$A:$BE,MATCH(BI_R2_Low!$A25,CurrentHeader,0),FALSE)) -> -0.0011 | D25: -0.495 | E25: =IF($B$9="kWh",$B$4,$B$5) -> 450 | F25: =VLOOKUP($B$3,'Data Proposed Rates'!$A:$BC,MATCH(BI_R2_Low!$A25,ProposedHeader,0),FALSE) -> -0.0011 | G25: -0.495 | H25: 0 | I25: 0 | J25: -0.005706188381 | K25: -0.005517471044
A26: Volumetric ESM Rider | B26: 450 | C26: =IF(ISERROR(VLOOKUP($B$3,'Data Current Rates'!$A:$BE,MATCH(BI_R2_Low!$A26,CurrentHeader,0),FALSE)),0,VLOOKUP($B$3,'Data Current Rates'!$A:$BE,MATCH(BI_R2_Low!$A26,CurrentHeader,0),FALSE)) -> 0 | D26: 0 | E26: 450 | F26: =VLOOKUP($B$3,'Data Proposed Rates'!$A:$BC,MATCH(BI_R2_Low!$A26,ProposedHeader,0),FALSE) -> 0 | G26: 0 | H26: 0 | I26: N/A | J26: 0 | K26: 0
A27: Fair Hydro Plan - Distribution Rate Protection Savings* | D27: =IF(AND(B3<>"R1",B3<>"R2"),0,IF(VLOOKUP($A27,'Data Pass Through'!$A:$D,2,FALSE)=0,0,IF(SUM(D19:D20,D23:D24)<VLOOKUP($A27,'Data Pass Through'!$A:$D,2,FALSE),0,VLOOKUP($A27,'Data Pass Through'!$A:$D,2,FALSE)-SUM(D19:D20,D23:D24)))) -> -26.495 | G27: =IF(AND(B3<>"R1",B3<>"R2"),0,IF(VLOOKUP($A27,'Data Pass Through'!$A:$D,2,FALSE)=0,0,IF(SUM(G19:G20,G23:G24)<VLOOKUP($A27,'Data Pass Through'!$A:$D,2,FALSE),0,VLOOKUP($A27,'Data Pass Through'!$A:$D,2,FALSE)-SUM(G19:G20,G23:G24)))) -> -30.915 | H27: -4.42 | I27: -0.166823929 | J27: -0.3563774016 | K27: -0.3445911461
A28: Sub-Total: Distribution (excluding pass through) | D28: =SUM(INDIRECT("D19:D"&ROW()-1)) -> 34.305 | G28: =SUM(INDIRECT("g19:g"&ROW()-1)) -> 34.305 | H28: =G28-D28 -> 0 | I28: 0 | J28: 0.3954561463 | K28: 0.382377463
A29: Smart Metering Entity Charge | B29: 1 | C29: =VLOOKUP($A29,'Data Pass Through'!$A:$D,2,FALSE) -> 0.57 | D29: =B29*C29 -> 0.57 | E29: 1 | F29: =VLOOKUP($A29,'Data Pass Through'!$A:$D,3,FALSE) -> 0.57 | G29: =E29*F29 -> 0.57 | H29: 0 | I29: 0 | J29: 0.006570762378 | K29: 0.006353451506
A30: Line Losses on Cost of Power (based on two-tier RPP prices) | B30: =B8-B4 -> 47.25 | C30: =IF(B4>B7,C13,C12) -> 0.101 | D30: =B30*C30 -> 4.77225 | E30: 47.25 | F30: =IF(B4>B7,F13,F12) -> 0.101 | G30: =E30*F30 -> 4.77225 | H30: 0 | I30: 0 | J30: 0.05501284344 | K30: 0.05319343675
A31: Line Losses on Cost of Power (based on TOU prices) | B31: =B8-B4 -> 47.25 | C31: =VLOOKUP($B$3,'Data Billing Quantities'!$A:$O,MATCH(BI_R2_Low!$A15,'Data Billing Quantities'!$4:$4,0),FALSE)*C15+VLOOKUP($B$3,'Data Billing Quantities'!$A:$O,MATCH(BI_R2_Low!$A16,'Data Billing Quantities'!$4:$4,0),FALSE)*C16+VLOOKUP($B$3,'Data Billing Quantities'!$A:$O,MATCH(BI_R2_Low!$A17,'Data Billing Quantities'!$4:$4,0),FALSE)*C17 -> 0.1075 | D31: =B31*C31 -> 5.079375 | E31: 47.25 | F31: =VLOOKUP($B$3,'Data Billing Quantities'!$A:$O,MATCH(BI_R2_Low!$A15,'Data Billing Quantities'!$4:$4,0),FALSE)*F15+VLOOKUP($B$3,'Data Billing Quantities'!$A:$O,MATCH(BI_R2_Low!$A16,'Data Billing Quantities'!$4:$4,0),FALSE)*F16+VLOOKUP($B$3,'Data Billing Quantities'!$A:$O,MATCH(BI_R2_Low!$A17,'Data Billing Quantities'!$4:$4,0),FALSE)*F17 -> 0.1075 | G31: =E31*F31 -> 5.079375 | H31: 0 | I31: 0 | J31: 0.05855327396 | K31: 0.05661677674
A32: Sub-Total: Distribution (based on two-tier RPP prices) | D32: =SUM(D28,D29:D30) -> 39.64725 | G32: =SUM(G28,G29:G30) -> 39.64725 | H32: 0 | I32: 0 | J32: 0.4570397521 | K32: 0.4419243512
A33: Sub-Total: Distribution (based on TOU prices) | D33: =SUM(D28,D29,D31) -> 39.954375 | G33: =SUM(G28,G29,G31) -> 39.954375 | H33: 0 | I33: 0 | J33: 0.4605801826 | K33: 0.4453476912
A34: Retail Transmission Rate – Network Service Rate | B34: =B8 -> 497.25 | C34: =VLOOKUP($B$3,'Data Current Rates'!$A:$BE,MATCH(BI_R2_Low!$A34,CurrentHeader,0),FALSE) -> 0.0077 | D34: =B34*C34 -> 3.828825 | E34: 497.25 | F34: =VLOOKUP($B$3,'Data Proposed Rates'!$A:$BC,MATCH(BI_R2_Low!$A34,ProposedHeader,0),FALSE) -> 0.0077 | G34: =E34*F34 -> 3.828825 | H34: =G34-D34 -> 0 | I34: 0 | J34: 0.04413736713 | K34: 0.04267763853
A35: Retail Transmission Rate – Line and Transformation Connection Service Rate | B35: =B8 -> 497.25 | C35: =VLOOKUP($B$3,'Data Current Rates'!$A:$BE,MATCH(BI_R2_Low!$A35,CurrentHeader,0),FALSE) -> 0.0068 | D35: =B35*C35 -> 3.3813 | E35: 497.25 | F35: =VLOOKUP($B$3,'Data Proposed Rates'!$A:$BC,MATCH(BI_R2_Low!$A35,ProposedHeader,0),FALSE) -> 0.0068 | G35: =E35*F35 -> 3.3813 | H35: =G35-D35 -> 0 | I35: 0 | J35: 0.03897845409 | K35: 0.03768934312
A36: Sub-Total: Retail Transmission | D36: =SUM(D34:D35) -> 7.210125 | G36: =SUM(G34:G35) -> 7.210125 | H36: =G36-D36 -> 0 | I36: 0 | J36: 0.08311582121 | K36: 0.08036698165
A37: Sub-Total: Delivery (based on two-tier RPP prices) | D37: =D32+D36 -> 46.857375 | G37: =G32+G36 -> 46.857375 | H37: =G37-D37 -> 0 | I37: 0 | J37: 0.5401555733 | K37: 0.5222913329
A38: Sub-Total: Delivery (based on TOU prices) | D38: =D33+D36 -> 47.1645 | G38: =G33+G36 -> 47.1645 | H38: =G38-D38 -> 0 | I38: 0 | J38: 0.5436960038 | K38: 0.5257146729
A39: Wholesale Market Service Rate (WMS) - not including CBR | B39: =B8 -> 497.25 | C39: =VLOOKUP($A39,'Data Pass Through'!$A:$D,2,FALSE) -> 0.003 | D39: =B39*C39 -> 1.49175 | E39: =$B$8 -> 497.25 | F39: =VLOOKUP($A39,'Data Pass Through'!$A:$D,3,FALSE) -> 0.003 | G39: =E39*F39 -> 1.49175 | H39: 0 | I39: 0 | J39: 0.0171963768 | K39: 0.01662765137
A40: Capacity Based Recovery (CBR) - Applicable for Class B Customers | B40: =B8 -> 497.25 | C40: =VLOOKUP($A40,'Data Pass Through'!$A:$D,2,FALSE) -> 0.0004 | D40: =B40*C40 -> 0.1989 | E40: =$B$8 -> 497.25 | F40: =VLOOKUP($A40,'Data Pass Through'!$A:$D,3,FALSE) -> 0.0004 | G40: =E40*F40 -> 0.1989 | H40: 0 | I40: 0 | J40: 0.00229285024 | K40: 0.002217020183
A41: Rural Rate Protection Charge | B41: =B8 -> 497.25 | C41: =VLOOKUP($A41,'Data Pass Through'!$A:$D,2,FALSE) -> 0.0005 | D41: 0.248625 | E41: 497.25 | F41: =VLOOKUP($A41,'Data Pass Through'!$A:$D,3,FALSE) -> 0.0005 | G41: 0.248625 | H41: 0 | I41: 0 | J41: 0.0028660628 | K41: 0.002771275229
A42: Standard Supply Service – Administration Charge (if applicable) | B42: 1 | C42: =VLOOKUP($A42,'Data Pass Through'!$A:$D,2,FALSE) -> 0.25 | D42: =B42*C42 -> 0.25 | E42: 1 | F42: =VLOOKUP($A42,'Data Pass Through'!$A:$D,3,FALSE) -> 0.25 | G42: 0.25 | H42: 0 | I42: 0 | J42: 0.002881913324 | K42: 0.002786601538
A43: Sub-Total: Regulatory | D43: =SUM(D39:D42) -> 2.189275 | G43: =SUM(G39:G42) -> 2.189275 | H43: 0 | I43: 0 | J43: 0.02523720317 | K43: 0.02440254833
A44: Debt Retirement Charge (DRC) | B44: =B4 -> 450 | C44: =VLOOKUP($A44,'Data Pass Through'!$A:$D,2,FALSE) -> 0 | D44: =B44*C44 -> 0 | E44: 450 | F44: =VLOOKUP($A44,'Data Pass Through'!$A:$D,3,FALSE) -> 0 | G44: =E44*F44 -> 0 | H44: 0 | I44: N/A | J44: 0 | K44: 0
A45: Total Electricty Charge on Two-Tier RPP | D45: =SUM(D14,D28,D29,D30,D36,D43,D44) -> 94.49665 | G45: =SUM(G14,G28,G29,G30,G36,G43,G44) -> 94.49665 | H45: 0 | I45: 0 | J45: 1.089324619
A46: HST | C46: 0.13 | D46: =D45*C46 -> 12.2845645 | F46: =C46 -> 0.13 | G46: =G45*F46 -> 12.2845645 | H46: 0 | I46: 0 | J46: 0.1416122004
A47: Total Electricity Charge on Two-Tier RPP (including HST) | D47: =SUM(D45:D46) -> 106.7812145 | G47: =SUM(G45:G46) -> 106.7812145 | H47: 0 | I47: 0 | J47: 1.230936819
A48: Ontario Electricity Rebate (OER) | C48: ='Data Pass Through'!B20 -> -0.212 | D48: =D45*C48 -> -20.0332898 | F48: ='Data Pass Through'!C20 -> -0.212 | G48: =G45*F48 -> -20.0332898 | H48: 0 | I48: 0 | J48: -0.2309368192
A49: Total Amount on Two-Tier RPP | D49: =SUM(D47:D48) -> 86.7479247 | G49: =SUM(G47:G48) -> 86.7479247 | H49: 0 | I49: 0 | J49: 1
A50: Total Electricty Charge on TOU (before HST) | D50: =SUM(D18,D28,D29,D31,D36,D43,D44) -> 97.728775 | G50: =SUM(G18,G28,G29,G31,G36,G43,G44) -> 97.728775 | H50: 0 | I50: 0 | K50: =G50/$G$54 -> 1.089324619
A51: HST | C51: 0.13 | D51: =D50*C51 -> 12.70474075 | F51: =C51 -> 0.13 | G51: =G50*F51 -> 12.70474075 | H51: 0 | I51: 0 | K51: =G51/$G$54 -> 0.1416122004
A52: Total Electricity Charge on TOU (including HST) | D52: =SUM(D50:D51) -> 110.4335157 | G52: =SUM(G50:G51) -> 110.4335157 | H52: 0 | I52: 0 | K52: =G52/$G$54 -> 1.230936819
A53: Ontario Electricity Rebate (OER) | C53: ='Data Pass Through'!B20 -> -0.212 | D53: =D50*C53 -> -20.7185003 | F53: ='Data Pass Through'!C20 -> -0.212 | G53: =G50*F53 -> -20.7185003 | H53: 0 | I53: 0 | K53: =G53/$G$54 -> -0.2309368192
A54: Total Amount on TOU | D54: =SUM(D52:D53) -> 89.71501545 | G54: =SUM(G52:G53) -> 89.71501545 | H54: 0 | I54: 0 | K54: =G54/$G$54 -> 1
A55: * Distribution rate protection applies to R1 and R2 customers

Sheet BI_R2_Typical
A1: 2021 Bill Impacts (Typical Consumption Level) - R2
A3: Rate Class | B3: =RIGHT(A1,LEN(A1)-FIND("- ",A1,1)-1) -> R2
A4: Monthly Consumption (kWh) | B4: =IF(COUNTIF(A1,"*Low*")>0,VLOOKUP(B3,'Data Billing Quantities'!$A:$Z,MATCH("Low kWh",'Data Billing Quantities'!4:4,0),FALSE),IF(COUNTIF(A1,"*Typical*")>0,VLOOKUP(B3,'Data Billing Quantities'!$A:$Z,MATCH("Typical kWh",'Data Billing Quantities'!4:4,0),FALSE),IF(COUNTIF(A1,"*Average*")>0,VLOOKUP(B3,'Data Billing Quantities'!$A:$Z,MATCH("Average kWh",'Data Billing Quantities'!4:4,0),FALSE),IF(COUNTIF(A1,"*High*")>0,VLOOKUP(B3,'Data Billing Quantities'!$A:$Z,MATCH("High kWh",'Data Billing Quantities'!4:4,0),FALSE),"error")))) -> 750
A5: Peak (kW) | B5: =IF(COUNTIF(A1,"*Low*")>0,VLOOKUP(B3,'Data Billing Quantities'!$A:$Z,MATCH("Low kW",'Data Billing Quantities'!4:4,0),FALSE),IF(COUNTIF(A1,"*Typical*")>0,VLOOKUP(B3,'Data Billing Quantities'!$A:$Z,MATCH("Typical kW",'Data Billing Quantities'!4:4,0),FALSE),IF(COUNTIF(A1,"*Average*")>0,VLOOKUP(B3,'Data Billing Quantities'!$A:$Z,MATCH("Average kW",'Data Billing Quantities'!4:4,0),FALSE),IF(COUNTIF(A1,"*High*")>0,VLOOKUP(B3,'Data Billing Quantities'!$A:$Z,MATCH("High kW",'Data Billing Quantities'!4:4,0),FALSE),"error")))) -> 0
A6: Loss factor | B6: =VLOOKUP(B3,'Data Billing Quantities'!A:D,MATCH(A6,'Data Billing Quantities'!4:4,0),FALSE) -> 1.105
A7: Commodity Threshold | B7: =VLOOKUP(B3,'Data Billing Quantities'!A:D,MATCH(A7,'Data Billing Quantities'!4:4,0),FALSE) -> 600
A8: Monthly Consumption (kWh) - Uplifted | B8: =B4*B6 -> 828.75
A9: Charge determinant | B9: =VLOOKUP(B3,'Data Billing Quantities'!A:D,MATCH(A9,'Data Billing Quantities'!4:4,0),FALSE) -> kWh
B11: Volume | C11: Current Rate ($) | D11: Current Charge ($) | E11: Volume | F11: Proposed Rate ($) | G11: Proposed Charge ($) | H11: Change ($) | I11: Change (%) | J11: % of Total Bill on RPP | K11: % of Total Bill on TOU
A12: Energy First Tier | B12: =IF(B4>B7,B7,B4) -> 600 | C12: =VLOOKUP($A12,'Data Pass Through'!$A:$D,2,FALSE) -> 0.101 | D12: =B12*C12 -> 60.6 | E12: =B12 -> 600 | F12: =VLOOKUP($A12,'Data Pass Through'!$A:$D,3,FALSE) -> 0.101 | G12: =E12*F12 -> 60.6 | H12: =G12-D12 -> 0 | I12: =IF(ISERROR(H12/ABS(D12)),"N/A",(H12/ABS(D12))) -> 0 | J12: =G12/$G$49 -> 0.4796189375
A13: Energy Second Tier | B13: =IF(B4>B7,(B4)-B7,0) -> 150 | C13: =VLOOKUP($A13,'Data Pass Through'!$A:$D,2,FALSE) -> 0.118 | D13: =B13*C13 -> 17.7 | E13: =B13 -> 150 | F13: =VLOOKUP($A13,'Data Pass Through'!$A:$D,3,FALSE) -> 0.118 | G13: =E13*F13 -> 17.7 | H13: 0 | I13: 0 | J13: =G13/$G$49 -> 0.1400867194
A14: Sub-Total: Energy (RPP Tiered) | D14: =SUM(D12:D13) -> 78.3 | G14: =SUM(G12:G13) -> 78.3 | H14: 0 | I14: 0 | J14: =G14/$G$49 -> 0.6197056569
A15: TOU-Off Peak | B15: =B$4*VLOOKUP($B$3,'Data Billing Quantities'!$A:$O,MATCH(BI_R2_Typical!$A15,'Data Billing Quantities'!$4:$4,0),FALSE) -> 480 | C15: =VLOOKUP($A15,'Data Pass Through'!$A:$D,2,FALSE) -> 0.085 | D15: =B15*C15 -> 40.8 | E15: 480 | F15: =VLOOKUP($A15,'Data Pass Through'!$A:$D,3,FALSE) -> 0.085 | G15: =E15*F15 -> 40.8 | H15: 0 | I15: 0 | K15: =G15/$G$54 -> 0.319434824
A16: TOU-Mid Peak | B16: =B$4*VLOOKUP($B$3,'Data Billing Quantities'!$A:$O,MATCH(BI_R2_Typical!$A16,'Data Billing Quantities'!$4:$4,0),FALSE) -> 135 | C16: =VLOOKUP($A16,'Data Pass Through'!$A:$D,2,FALSE) -> 0.119 | D16: =B16*C16 -> 16.065 | E16: 135 | F16: =VLOOKUP($A16,'Data Pass Through'!$A:$D,3,FALSE) -> 0.119 | G16: =E16*F16 -> 16.065 | H16: 0 | I16: 0 | K16: 0.1257774619
A17: TOU-On Peak | B17: =B$4*VLOOKUP($B$3,'Data Billing Quantities'!$A:$O,MATCH(BI_R2_Typical!$A17,'Data Billing Quantities'!$4:$4,0),FALSE) -> 135 | C17: =VLOOKUP($A17,'Data Pass Through'!$A:$D,2,FALSE) -> 0.176 | D17: =B17*C17 -> 23.76 | E17: 135 | F17: =VLOOKUP($A17,'Data Pass Through'!$A:$D,3,FALSE) -> 0.176 | G17: =E17*F17 -> 23.76 | H17: 0 | I17: 0 | K17: 0.1860238093
A18: Sub-Total: Energy (RPP TOU) | D18: =SUM(D15:D17) -> 80.625 | G18: =SUM(G15:G17) -> 80.625 | H18: 0 | I18: 0 | J18: =G18/$G$49 -> 0.6381068785 | K18: 0.6312360952
A19: Service Charge | B19: 1 | C19: =IF(ISERROR(VLOOKUP($B$3,'Data Current Rates'!$A:$BE,MATCH(BI_R2_Typical!$A19,CurrentHeader,0),FALSE)),0,VLOOKUP($B$3,'Data Current Rates'!$A:$BE,MATCH(BI_R2_Typical!$A19,CurrentHeader,0),FALSE)) -> 53.14 | D19: =B19*C19 -> 53.14 | E19: 1 | F19: =VLOOKUP($B$3,'Data Proposed Rates'!$A:$BC,MATCH(BI_R2_Typical!$A19,ProposedHeader,0),FALSE) -> 53.14 | G19: =E19*F19 -> 53.14 | H19: 0 | I19: 0 | J19: 0.4205767383 | K19: 0.4160481996
A20: Base Rate Adjustment to Recover Past Tax Amounts FIXED | E20: 1 | F20: =VLOOKUP($B$3,'Data Proposed Rates'!$A:$BC,MATCH(BI_R2_Typical!$A20,ProposedHeader,0),FALSE) -> 4.42 | G20: 4.42 | H20: 4.42 | I20: N/A | J20: 0.03498210732 | K20: 0.03460543926
A21: Fixed Deferral/Variance Account Rider (General) | B21: 1 | C21: =IF(ISERROR(VLOOKUP($B$3,'Data Current Rates'!$A:$BE,MATCH(BI_R2_Typical!$A21,CurrentHeader,0),FALSE)),0,VLOOKUP($B$3,'Data Current Rates'!$A:$BE,MATCH(BI_R2_Typical!$A21,CurrentHeader,0),FALSE)) -> -0.14 | D21: -0.14 | E21: 1 | F21: =VLOOKUP($B$3,'Data Proposed Rates'!$A:$BC,MATCH(BI_R2_Typical!$A21,ProposedHeader,0),FALSE) -> -0.14 | G21: -0.14 | H21: 0 | I21: 0 | J21: -0.001108030549 | K21: -0.001096099886
A22: Fixed ESM Rider | B22: 1 | C22: =IF(ISERROR(VLOOKUP($B$3,'Data Current Rates'!$A:$BE,MATCH(BI_R2_Typical!$A22,CurrentHeader,0),FALSE)),0,VLOOKUP($B$3,'Data Current Rates'!$A:$BE,MATCH(BI_R2_Typical!$A22,CurrentHeader,0),FALSE)) -> -1.92 | D22: -1.92 | E22: 1 | F22: =VLOOKUP($B$3,'Data Proposed Rates'!$A:$BC,MATCH(BI_R2_Typical!$A22,ProposedHeader,0),FALSE) -> -1.92 | G22: -1.92 | H22: 0 | I22: 0 | J22: -0.01519584753 | K22: -0.01503222701
A23: Distribution Volumetric Charge | B23: =IF($B$9="kWh",$B$4,$B$5) -> 750 | C23: =IF(ISERROR(VLOOKUP($B$3,'Data Current Rates'!$A:$BE,MATCH(BI_R2_Typical!$A23,CurrentHeader,0),FALSE)),0,VLOOKUP($B$3,'Data Current Rates'!$A:$BE,MATCH(BI_R2_Typical!$A23,CurrentHeader,0),FALSE)) -> 0.0227 | D23: 17.025 | E23: =IF($B$9="kWh",$B$4,$B$5) -> 750 | F23: =VLOOKUP($B$3,'Data Proposed Rates'!$A:$BC,MATCH(BI_R2_Typical!$A23,ProposedHeader,0),FALSE) -> 0.0227 | G23: 17.025 | H23: 0 | I23: 0 | J23: 0.1347444292 | K23: 0.1332935754
A24: Base Rate Adjustment to Recover Past Tax Amounts VOL
A25: Volumetric Deferral/Variance Account Rider (General) | B25: =IF($B$9="kWh",$B$4,$B$5) -> 750 | C25: =IF(ISERROR(VLOOKUP($B$3,'Data Current Rates'!$A:$BE,MATCH(BI_R2_Typical!$A25,CurrentHeader,0),FALSE)),0,VLOOKUP($B$3,'Data Current Rates'!$A:$BE,MATCH(BI_R2_Typical!$A25,CurrentHeader,0),FALSE)) -> -0.0011 | D25: -0.825 | E25: =IF($B$9="kWh",$B$4,$B$5) -> 750 | F25: =VLOOKUP($B$3,'Data Proposed Rates'!$A:$BC,MATCH(BI_R2_Typical!$A25,ProposedHeader,0),FALSE) -> -0.0011 | G25: -0.825 | H25: 0 | I25: 0 | J25: -0.006529465734 | K25: -0.006459160043
A26: Volumetric ESM Rider | B26: 750 | C26: =IF(ISERROR(VLOOKUP($B$3,'Data Current Rates'!$A:$BE,MATCH(BI_R2_Typical!$A26,CurrentHeader,0),FALSE)),0,VLOOKUP($B$3,'Data Current Rates'!$A:$BE,MATCH(BI_R2_Typical!$A26,CurrentHeader,0),FALSE)) -> 0 | D26: 0 | E26: 750 | F26: =VLOOKUP($B$3,'Data Proposed Rates'!$A:$BC,MATCH(BI_R2_Typical!$A26,ProposedHeader,0),FALSE) -> 0 | G26: 0 | H26: 0 | I26: N/A | J26: 0 | K26: 0
A27: Fair Hydro Plan - Distribution Rate Protection Savings* | D27: =IF(AND(B3<>"R1",B3<>"R2"),0,IF(VLOOKUP($A27,'Data Pass Through'!$A:$D,2,FALSE)=0,0,IF(SUM(D19:D20,D23:D24)<VLOOKUP($A27,'Data Pass Through'!$A:$D,2,FALSE),0,VLOOKUP($A27,'Data Pass Through'!$A:$D,2,FALSE)-SUM(D19:D20,D23:D24)))) -> -33.305 | G27: =IF(AND(B3<>"R1",B3<>"R2"),0,IF(VLOOKUP($A27,'Data Pass Through'!$A:$D,2,FALSE)=0,0,IF(SUM(G19:G20,G23:G24)<VLOOKUP($A27,'Data Pass Through'!$A:$D,2,FALSE),0,VLOOKUP($A27,'Data Pass Through'!$A:$D,2,FALSE)-SUM(G19:G20,G23:G24)))) -> -37.725 | H27: -4.42 | I27: -0.1327128059 | J27: -0.2985746604 | K27: -0.2953597729
A28: Sub-Total: Distribution (excluding pass through) | D28: =SUM(INDIRECT("D19:D"&ROW()-1)) -> 33.975 | G28: =SUM(INDIRECT("g19:g"&ROW()-1)) -> 33.975 | H28: =G28-D28 -> 0 | I28: 0 | J28: 0.2688952707 | K28: 0.2659999545
A29: Smart Metering Entity Charge | B29: 1 | C29: =VLOOKUP($A29,'Data Pass Through'!$A:$D,2,FALSE) -> 0.57 | D29: =B29*C29 -> 0.57 | E29: 1 | F29: =VLOOKUP($A29,'Data Pass Through'!$A:$D,3,FALSE) -> 0.57 | G29: =E29*F29 -> 0.57 | H29: 0 | I29: 0 | J29: 0.004511267234 | K29: 0.004462692394
A30: Line Losses on Cost of Power (based on two-tier RPP prices) | B30: =B8-B4 -> 78.75 | C30: =IF(B4>B7,C13,C12) -> 0.118 | D30: =B30*C30 -> 9.2925 | E30: 78.75 | F30: =IF(B4>B7,F13,F12) -> 0.118 | G30: =E30*F30 -> 9.2925 | H30: 0 | I30: 0 | J30: 0.07354552767 | K30: 0.07275362994
A31: Line Losses on Cost of Power (based on TOU prices) | B31: =B8-B4 -> 78.75 | C31: =VLOOKUP($B$3,'Data Billing Quantities'!$A:$O,MATCH(BI_R2_Typical!$A15,'Data Billing Quantities'!$4:$4,0),FALSE)*C15+VLOOKUP($B$3,'Data Billing Quantities'!$A:$O,MATCH(BI_R2_Typical!$A16,'Data Billing Quantities'!$4:$4,0),FALSE)*C16+VLOOKUP($B$3,'Data Billing Quantities'!$A:$O,MATCH(BI_R2_Typical!$A17,'Data Billing Quantities'!$4:$4,0),FALSE)*C17 -> 0.1075 | D31: =B31*C31 -> 8.465625 | E31: 78.75 | F31: =VLOOKUP($B$3,'Data Billing Quantities'!$A:$O,MATCH(BI_R2_Typical!$A15,'Data Billing Quantities'!$4:$4,0),FALSE)*F15+VLOOKUP($B$3,'Data Billing Quantities'!$A:$O,MATCH(BI_R2_Typical!$A16,'Data Billing Quantities'!$4:$4,0),FALSE)*F16+VLOOKUP($B$3,'Data Billing Quantities'!$A:$O,MATCH(BI_R2_Typical!$A17,'Data Billing Quantities'!$4:$4,0),FALSE)*F17 -> 0.1075 | G31: =E31*F31 -> 8.465625 | H31: 0 | I31: 0 | J31: 0.06700122224 | K31: 0.06627978999
A32: Sub-Total: Distribution (based on two-tier RPP prices) | D32: =SUM(D28,D29:D30) -> 43.8375 | G32: =SUM(G28,G29:G30) -> 43.8375 | H32: 0 | I32: 0 | J32: 0.3469520656 | K32: 0.3432162769
A33: Sub-Total: Distribution (based on TOU prices) | D33: =SUM(D28,D29,D31) -> 43.010625 | G33: =SUM(G28,G29,G31) -> 43.010625 | H33: 0 | I33: 0 | J33: 0.3404077601 | K33: 0.3367424369
